Workbook

Sheet LDC Info
AA3: Algoma Power Inc.
AA4: Atikokan Hydro Inc.
AA5: Attawapiskat Power Corporation
AA6: Bluewater Power Distribution Corp.
AA7: Brant County Power
AA8: Brantford Power Inc.
AA9: Burlington Hydro Inc.
AA10: Cambridge and North Dumfries Hydro
AA11: Canadian Niagara Power Inc. – Eastern Ontario Power/Fort Erie/Port Colborne
AA12: Centre Wellington Hydro Ltd.
AA13: Chapleau Public Utilities Corporation
D14: Utility Name | E14: Hydro Ottawa Limited | AA14: COLLUS Power Corp.
AA15: Cooperative Hydro Embrun Inc.
D16: Assigned EB Number | E16: EB-2015-0004 | AA16: E.L.K. Energy Inc.
AA17: Enersource Hydro Mississauga Inc.
D18: Name of Contact and Title | E18: Patrick Hoey; Director, Regulatory Affairs | AA18: Entegrus Powerlines Inc.
AA19: ENWIN Utilities Ltd.
D20: Phone Number | E20: 613-738-5499, ext 7472 | AA20: Erie Thames Powerlines Corp.
AA21: Espanola Regional Hydro Distribution Corporation
D22: Email Address | E22: PatrickHoey@HydroOttawa.com | AA22: Essex Powerlines Corporation
AA23: Festival Hydro Inc.
D24: Test Year | E24: 2016 | AA24: Fort Albany Power Corporation
AA25: Fort Frances Power Corporation
D26: Bridge Year | E26: =IF(ISBLANK(E24), "", E24-1) -> 2015 | AA26: Greater Sudbury Hydro Inc.
AA27: Grimsby Power Inc.
D28: Last Rebasing Year | E28: 2012 | AA28: Guelph Hydro Electric Systems Inc.
AA29: Haldimand County Hydro Inc.
A30: Identify the accounting standard used for the test year
E31: MIFRS
A33: Did you update your depreciation and capitalization policies?
E34: No
A36: When did you update your depreciation and capitalization policies?
E37: 2001-01-01 | F37: 2012
A39: Identify the year that the applicant has adopted or is expected to adopt IFRS for financial reporting purposes
E40: 2015 or Later
A43: Are you applying for cost recovery for the test and/or future year(s) for Green Energy initiatives?
A46: ="Is " & E14 & " an embedded distributor?" -> Is Hydro Ottawa Limited an embedded distributor? | E46: No
B49: Notes | AA49: Guelph Hydro Electric Systems Inc.
AA50: Halton Hills Hydro Inc.
C51: Pale green cells represent input cells. | AA51: Hearst Power Distribution Co. Ltd.
AA52: Horizon Utilities Corporation
C53: Pale blue cells represent drop-down lists. The applicant should select the appropriate item from the drop-down list. | AA53: Hydro 2000 Inc.
AA54: Hydro Hawkesbury Inc.
C55: White cells contain fixed values, automatically generated values or formulae. | AA55: Hydro One Brampton Networks Inc.
AA56: Hydro One Networks Inc.
AA57: Hydro One Remote Communities Inc.
AA58: Hydro Ottawa Limited
AA59: Innisfil Hydro Dist. Systems Limited
AA60: Kashechewan Power Corporation
AA61: Kenora Hydro Electric Corporation Ltd.
AA62: Kingston Hydro Corporation
AA63: Kitchener-Wilmot Hydro Inc.
AA64: Lakefront Utilities Inc.
AA65: Lakeland Power Distribution Ltd.
AA66: London Hydro Inc.
AA67: Midland Power Utility Corporation
AA68: Milton Hydro Distribution Inc.
AA69: Newmarket – Tay Power Distribution Ltd.
AA70: Niagara Peninsula Energy Inc.
AA71: Niagara-on-the-Lake Hydro Inc.
AA72: Norfolk Power Distribution Ltd.
AA73: North Bay Hydro Distribution Limited
AA74: Northern Ontario Wires Inc.
AA75: Oakville Hydro Distribution Inc.
AA76: Orangeville Hydro Limited
AA77: Orillia Power Distribution Corp.
AA78: Oshawa PUC Networks Inc.
AA79: Ottawa River Power Corporation
AA80: Parry Sound Power Corporation
AA81: Peterborough Distribution Inc.
AA82: PowerStream Inc.
AA83: PUC Distribution Inc.
AA84: Renfrew Hydro Inc.
AA85: Rideau St. Lawrence Distribution Inc.
AA86: St. Thomas Energy Inc.
AA87: Sioux Lookout Hydro Inc.
AA88: Thunder Bay Hydro Electricity Distribution
AA89: Tillsonburg Hydro Inc.
AA90: Toronto Hydro-Electric System Limited
AA91: Veridian Connections Inc.
AA92: Wasaga Distribution Inc.
AA93: Waterloo North Hydro Inc.
AA94: Welland Hydro Electric System Corp.
AA95: Wellington North Power Inc.
AA96: West Coast Huron Energy Inc.
AA97: Westario Power Inc.
AA98: Whitby Hydro Electric Corporation
AA99: Woodstock Hydro Services Inc.

Sheet Table of Contents
A15: 1 | B15: LDC Information Sheet | E15: 26 | F15: App.2-FC: Calculation of Renewable Generation Connection Direct Benefits/Provincial Amount: Renewable Expansion Investments
A16: 2 | B16: Index | E16: 27 | F16: App.2-G: Service Reliability Indicators
A17: 3 | B17: Cost of Service Application Flowchart | E17: 28 | F17: App.2-H: Other Operating Revenue
A18: 4 | B18: List of Key References | E18: 29 | F18: App.2-I: Load Forecast CDM Adjustment Workform
A19: 5 | B19: App.2-AA: Capital Projects Table | E19: 30 | F19: App.2-IA: Actual and Forecast Load and Customer Data
A20: 6 | B20: App.2-AB: Capital Expenditures | E20: 31 | F20: App.2-JA: OM&A Summary Analysis
A21: 7 | B21: App. 2-AC: Customer Engagement Worksheet | E21: 32 | F21: App.2-JB: Recoverable OM&A Cost Driver Table
A22: 8 | B22: App.2-B: General Accounting Instructions | E22: 33 | F22: App.2-JC: OMA Programs Table
A23: 9 | B23: App.2-BA: Fixed Asset Continuity Schedule | E23: 34 | F23: App.2-K: Employee Costs
A24: 10 | B24: Appendix 2-BB: Service Life Comparison | E24: 35 | F24: App.2-L: Recoverable OM&A Cost per Customer and per FTE
A25: 11 | B25: App.2-CA: 2012 Depreciation and Amortization Expense (Old CGAAP) | E25: 36 | F25: App.2-M: Regulatory Costs Schedule
A26: 12 | B26: App.2-CB: 2012 Depreciation and Amortization Expense (New CGAAP) | E26: 37 | F26: App.2-N: Shared Servcies and Corporate Cost Allocation
A27: 13 | B27: App.2-CC: 2013 Depreciation and Amortization Expense (New CGAAP) | E27: 38 | F27: App.2-OA: Capital Structure and Cost of Capital
A28: 14 | B28: App.2-CD: 2014 Depreciation and Amortization Expense (MIFRS) | E28: 39 | F28: App.2-OB: Debt Instruments
A29: 15 | B29: App.2-CE: 2015 Depreciation and Amortization Expense (MIFRS) | E29: 40 | F29: App.2-P: Cost Allocation
A30: 16 | B30: App.2-CF: 2013 Depreciation and Amortization Expense (Old CGAAP) | E30: 41 | F30: App.2-Q: Cost of Serving Embedded Distributor(s)
A31: 17 | B31: App.2-CG: 2013 Depreciation and Amortization Expense (New CGAAP) | E31: 42 | F31: App.2-R: Loss Factors
A32: 18 | B32: App.2-CH: 2014 Depreciation and Amortization Expense (MIFRS) | E32: 43 | F32: App.2-S: Stranded Meter Treatment
A33: 19 | B33: App.2-CI: 2015 Depreciation and Amortization Expense (MIFRS) | E33: 44 | F33: App.2-TA: Account 1592, PILs and Tax Variances
A34: 20 | B34: App.2-D: Overhead Expenses | E34: 45 | F34: App.2-TB: Account 1592, HST-OVAT Input Tax Credits
A35: 21 | B35: App.2-EA: Account 1575 PP&E Deferral Account (2015 IFRS Adopters) | E35: 46 | F35: App.2-U: One-Time Incremental IFRS Transition Costs
A36: 22 | B36: App.2-EB: Account 1576 - Accounting Changes Under CGAAP (2012 Changes) | E36: 47 | F36: App.2-V: Revenue Reconciliation
A37: 23 | B37: App.2-EC: Account 1576 - Accounting Changes Under CGAAP (2013 Changes) | E37: 48 | F37: App.2-W: Bill Impacts
A38: 24 | B38: App.2-FA: Renewable Generation Connection Investment Summary | E38: 49 | F38: App.2-Y: Transition to MIFRS Summary Impact
A39: 25 | B39: App.2-FB: Calculation of Renewable Generation Connection Direct Benefits/Provincial Amount: Renewable Enabling Improvement Investments | E39: 50 | F39: App. 2-Z: Tariff Schedule

Sheet COS Flowchart
B4: Cost of Service Rate Application Schematic
B6: The Cost of Service Rate Application Schematic is a flowchart appended to Chapter 2 of the Filing Requirements as a guide for the components of an application and how demand and costs interrelate to derive the revenue requirement and then how the revenue requirement is allocated between classes and through fixed/variable splits to derive rates that will be compensatory for the annual revenue requirement, based on the the forecasted demand. There is no form to be filled out; therefore, this Schedule is not required to be filed.

Sheet List of Key References
B3: List of Key References
A5: A list of key references for understanding the Filing Requirements has been embedded in the document below. To access the list of references and associated hyperlinks doublt click the icon below.

Sheet App.2-AA_Capital Projects
G1: File Number: | H1: =EBNUMBER -> EB-2015-0004
G2: Exhibit: | H2: B
G3: Tab: | H3: 5
G4: Schedule: | H4: 1
G5: Page: | H5: 1
G7: Date: | H7: ORIGINAL
A9: Appendix 2-AA
A10: Capital Projects Table
A13: Projects | B13: =C13-1 -> 2011 | C13: =D13-1 -> 2012 | D13: =E13-1 -> 2013 | E13: =BridgeYear - 1 -> 2014 | F13: =BridgeYear & " Bridge Year" -> 2015 Bridge Year | G13: =TestYear & " Test Year" -> 2016 Test Year
A14: Reporting Basis | B14: CGAAP | C14: MIFRS | D14: MIFRS | E14: MIFRS | F14: MIFRS | G14: MIFRS
A15: SYSTEM ACCESS
A16: Plant Relocation | B16: 7743.47714 | C16: 5941.52818 | D16: 10005.37253 | E16: 9436.53896 | F16: 7813.886 | G16: 7620.296
A17: Residential | B17: 7247.09306 | C17: 6278.43278 | D17: 6573.12647 | E17: 5984.68484 | F17: 6720.415 | G17: 6889.078
A18: Commercial | B18: 9158.63607 | C18: 11891.99709 | D18: 10634.36841 | E18: 9341.59427 | F18: 12279.392 | G18: 13422.974
A19: System Expansion | B19: 3275.65393 | C19: 1675.09314 | D19: 5709.97816 | E19: 10143.61598 | F19: 3727.445 | G19: 3479.307
A20: Stations Embedded Generation | B20: 190.17363 | C20: 1181.16299 | D20: 64.37293 | E20: 276.57615 | F20: 375.958 | G20: 376.697
A21: Infill & Upgrade (App. G) | B21: 3081.46387 | C21: 2731.16236 | D21: 3177.84553 | E21: 2857.23828 | F21: 3074.771 | G21: 3159.922
A22: Damage to Plant | B22: 826.03824 | C22: 798.35285 | D22: 1348.99412 | E22: 839.8854 | F22: 1119.756 | G22: 1148.291
A23: Metering | B23: 112.14455 | C23: 370.44708 | D23: 160.48627 | E23: 129.64897 | F23: 163.132 | G23: 166.556
A24: Sub-Total | B24: =SUM(B16:B23) -> 31634.68049 | C24: 30868.17647 | D24: 37674.54442 | E24: 39009.78285 | F24: 35274.755 | G24: 36263.121
A25: SYSTEM RENEWAL
A26: Stations Asset | B26: 5097.28393 | C26: 8474.8933 | D26: 9153.68296 | E26: 14493.20771 | F26: 17200.496 | G26: 16337.967
A27: Stations Refurbishment | B27: 2046.23938 | C27: 1067.04963 | D27: 906.04392 | E27: 824.90174 | F27: 678.659 | G27: 597.017
A28: Distribution Asset | B28: 20502.01086 | C28: 19698.17051 | D28: 18991.66172 | E28: 21262.87643 | F28: 21756.411 | G28: 23682.99
A29: Metering | B29: 122.12599 | C29: 385.27574 | D29: 488.28521 | E29: 416.41343 | F29: 412.352 | G29: 414.57
A30: Sub-Total | B30: =SUM(B26:B29) -> 27767.66016 | C30: 29625.38918 | D30: 29539.67381 | E30: 36997.39931 | F30: 40047.918 | G30: 41032.544
A31: SYSTEM SERVICE
A32: Station Capacity | B32: 19170.34514 | C32: 11838.19818 | D32: 13197.67549 | E32: 6223.14455 | F32: 2186.63 | G32: 5675.64
A33: Distribution Enhancements | B33: 6225.93652 | C33: 8374.56392 | D33: 10319.25049 | E33: 14960.84895 | F33: 15175.569 | G33: 11290.361
A34: Automation | B34: 1319.66917 | C34: 1149.56168 | D34: 400.02833 | E34: 569.20415 | F34: 3443.95 | G34: 5268.554
A35: Sub-Total | B35: =SUM(B32:B34) -> 26715.95083 | C35: 21362.32378 | D35: 23916.95431 | E35: 21753.19765 | F35: 20806.149 | G35: 22234.555
A36: GENERAL PLANT
A37: Buildings - Facilities | B37: 766.82006 | C37: 380.24919 | D37: 379.87256 | E37: 426.34424 | F37: 687.752 | G37: 687.706
A38: Customer Service | B38: 3818.26702 | C38: 10364.98961 | D38: 13388.67558 | E38: 5838.65234 | F38: 2449.653 | G38: 3740.218
A39: ERP System | B39: 949.62297 | C39: 932.85094 | D39: 477.89859 | E39: 328.65222 | F39: 1546.515 | G39: 5042.608
A40: Fleet Replacement | B40: 2024.08294 | C40: 2541.55286 | D40: 3056.19522 | E40: 1440.82066 | F40: 1537.328 | G40: 1455.474
A41: Info Serv & Tech New Initiatives | B41: 296.49091 | C41: 577.77189 | D41: 57.43009 | E41: 1583.64565 | F41: 2110.596 | G41: 2126.55
A42: IT Life Cycle & Ongoing Enhancements | B42: 1121.50819 | C42: 2439.90869 | D42: 3076.29689 | E42: 2821.03619 | F42: 1970.042 | G42: 1423.57
A43: Operations Initiatives | B43: 355.97625 | C43: 682.85985 | D43: 241.78062 | E43: 3011.19362 | F43: 2756.107 | G43: 1074.486
A44: Tools Replacements | B44: 580.30498 | C44: 567.67385 | D44: 539.14226 | E44: 386.23424 | F44: 512.146 | G44: 511.851
A45: Hydro One Payments | B45: 0 | C45: 1116.448 | D45: 6357.85507 | E45: 2452.84081 | F45: 2347.215 | G45: 4574.747
A46: Facilities Implementation Plan | B46: 302 | C46: 7586 | D46: 12909 | E46: 453 | F46: 4933 | G46: 25262
A47: Sub-Total | B47: =SUM(B37:B46) -> 10215.07332 | C47: 27190.30488 | D47: 40484.14688 | E47: 18742.41997 | F47: 20850.354 | G47: 45899.21
A48: Miscellaneous
A49: Total | B49: =SUMPRODUCT(--($A15:$A48="Sub-Total"), B$15:B$48)+B48 -> 96333.3648 | C49: 109046.1943 | D49: 131615.3194 | E49: 116502.7998 | F49: 116979.176 | G49: 145429.43
A50: Less Renewable Generation Facility Assets and Other Non Rate-Regulated Utility Assets (input as negative)
A51: Total | B51: =B49+B50 -> 96333.3648 | C51: 109046.1943 | D51: 131615.3194 | E51: 116502.7998 | F51: 116979.176 | G51: 145429.43
A55: Notes:
A57: 1 Please provide a breakdown of the major components of each capital project undertaken in each year. Please ensure that all projects below the materiality threshold are included in the miscellaneous line. Add more projects as required.
A58: 2 The applicant should group projects appropriately and avoid presentations that result in classification of significant components of the capital budget in the miscellaneous category.

Sheet App.2-AB_Capital Expenditures
S1: File Number: | U1: =EBNUMBER -> EB-2015-0004
S2: Exhibit: | U2: B
S3: Tab: | U3: 5
S4: Schedule: | U4: 1
S5: Page: | U5: 1
S7: Date: | U7: ORIGINAL
A9: Appendix 2-AB
A10: Table 2 - Capital Expenditure Summary from Chapter 5 Consolidated Distribution System Plan Filing Requirements
A12: First year of Forecast Period: | B12: =TestYear -> 2016
A13: CATEGORY | B13: Historical Period (previous plan1 & actual) | Q13: Forecast Period (planned)
B14: =E14-1 -> 2011 | E14: =H14-1 -> 2012 | H14: =K14-1 -> 2013 | K14: =N14-1 -> 2014 | N14: =Q14-1 -> 2015 | Q14: =B12 -> 2016 | R14: =Q14+1 -> 2017 | S14: =R14+1 -> 2018 | T14: 2019 | U14: 2020
B15: Plan | C15: Actual | D15: Var | E15: Plan | F15: Actual | G15: Var | H15: Plan | I15: Actual | J15: Var | K15: Plan | L15: Actual | M15: Var | N15: Plan | O15: Actual2 | P15: Var
B16: $ '000 000 | D16: % | E16: $ '000 000 | G16: % | H16: $ '000 000 | J16: % | K16: $ '000 000 | M16: % | N16: $ '000 000 | P16: % | Q16: $ '000 000
A17: System Access | B17: 30.2 | C17: 31.6 | D17: =IF(ISERROR((C17-B17)/B17),"--",(C17-B17)/B17) -> 0.04635761589 | E17: 34.5 | F17: 30.9 | G17: =IF(ISERROR((F17-E17)/E17),"--",(F17-E17)/E17) -> -0.1043478261 | H17: 36.9 | I17: 37.7 | J17: =IF(ISERROR((I17-H17)/H17),"--",(I17-H17)/H17) -> 0.0216802168 | K17: 40.7 | L17: 39 | M17: =IF(ISERROR((L17-K17)/K17),"--",(L17-K17)/K17) -> -0.04176904177 | N17: 35.3 | P17: =IF(ISERROR((O17-N17)/N17),"--",(O17-N17)/N17) -> -1 | Q17: 36.3 | R17: 35.2 | S17: 35.1 | T17: 35.8 | U17: 36.6
A18: System Renewal | B18: 26.7 | C18: 27.8 | D18: =IF(ISERROR((C18-B18)/B18),"--",(C18-B18)/B18) -> 0.04119850187 | E18: 27.4 | F18: 29.6 | G18: =IF(ISERROR((F18-E18)/E18),"--",(F18-E18)/E18) -> 0.0802919708 | H18: 23.4 | I18: 29.5 | J18: =IF(ISERROR((I18-H18)/H18),"--",(I18-H18)/H18) -> 0.2606837607 | K18: 32.8 | L18: 37 | M18: =IF(ISERROR((L18-K18)/K18),"--",(L18-K18)/K18) -> 0.1280487805 | N18: 40 | P18: =IF(ISERROR((O18-N18)/N18),"--",(O18-N18)/N18) -> -1 | Q18: 41 | R18: 31.8 | S18: 36.5 | T18: 36 | U18: 35.7
A19: System Service | B19: 25.5 | C19: 26.7 | D19: 0.04705882353 | E19: 21.5 | F19: 21.4 | G19: -0.004651162791 | H19: 25.1 | I19: 23.9 | J19: -0.04780876494 | K19: 23.1 | L19: 21.8 | M19: -0.05627705628 | N19: 20.8 | P19: -1 | Q19: 22.2 | R19: 34 | S19: 29.5 | T19: 30.5 | U19: 33.3
A20: General Plant | B20: 20.6 | C20: 10.2 | D20: -0.5048543689 | E20: 35.9 | F20: 27.2 | G20: -0.2423398329 | H20: 43.6 | I20: 40.5 | J20: -0.07110091743 | K20: 22.8 | L20: 18.7 | M20: -0.1798245614 | N20: 20.9 | P20: -1 | Q20: 45.9 | R20: 48.1 | S20: 18.3 | T20: 18.7 | U20: 14
A21: TOTAL EXPENDITURE | B21: =SUM(B17:B20) -> 103 | C21: =SUM(C17:C20) -> 96.3 | D21: -0.06504854369 | E21: 119.3 | F21: 109.1 | G21: -0.08549874267 | H21: 129 | I21: 131.6 | J21: 0.02015503876 | K21: 119.4 | L21: 116.5 | M21: -0.0242881072 | N21: 117 | O21: 0 | P21: -1 | Q21: 145.4 | R21: 149.1 | S21: 119.4 | T21: 121 | U21: =SUM(U17:U20) -> 119.6
A22: System O&M | B22: N/A | C22: N/A | D22: -- | E22: N/A | F22: 24.9 | G22: -- | H22: N/A | I22: 25.2 | J22: -- | K22: N/A | L22: 27.1 | M22: -- | N22: 29.5 | O22: N/A | P22: -- | Q22: 30.9 | R22: N/A | S22: N/A | T22: N/A | U22: N/A
A24: Notes to the Table:
A25: 1. Historical “previous plan” data is not required unless a plan has previously been filed
A26: 2. Indicate the number of months of 'actual' data included in the last year of the Historical Period (normally a 'bridge' year):
A28: Explanatory Notes on Variances (complete only if applicable)
A29: Notes on shifts in forecast vs. historical budgets by category
A32: Notes on year over year Plan vs. Actual variances for Total Expenditures
A35: Notes on Plan vs. Actual variance trends for individual expenditure categories

Sheet App. 2-AC_Customer Engagement
B1: File Number: | C1: EB-2015-0004
B2: Exhibit: | C2: A
B3: Tab: | C3: 3
B4: Schedule: | C4: 1
B5: Page:
B7: Date: | C7: ORIGINAL
A9: Appendix 2-AC
A10: Customer Engagement Activities Summary
A12: Provide a list of customer engagement activities | B12: Provide a list of customer needs and preferences identified through each engagement activity | C12: Actions taken to respond to identified needs and preferences. If no action was taken, explain why.
A13: REFER TO EXHIBIT A-3-1 | B13: REFER TO EXHIBIT A-3-1 | C13: REFER TO EXHIBIT A-3-1
A45: Note: Use "ALT-ENTER" to go to the next line within a cell

Sheet App.2-B_Acct Instructions
A1: General Instructions to MIFRS Appendices
A2: Types of Schedules to File
A4: The purpose of this tab is to provide general instructions. The specific instructions to each appendix are listed in footnotes of each appendix.
A6: The typical applicant is expected to have made capitalization and depreciation policy changes under CGAAP as permitted by the Board on January 1, 2012 or mandated by the Board by January 1, 2013, and adopts IFRS for reporting purposes on January 1, 2015 (transition date January 1, 2014). In general, applicants under the two scenarios should provide the following information in the appendices:
E9: Accounting Policy Changes in 2012 and Adopts IFRS in 2015 | F9: Accounting Policy Changes in 2013 and Adopts IFRS in 2015
E10: (Date of Transition to IFRS 2014)
A11: Information to be filed in 2015 CoS Application | B11: 2015 | C11: Test | E11: MIFRS | F11: MIFRS
B12: 2014 | C12: Bridge | E12: MIFRS and Revised CGAAP* | F12: MIFRS and Revised CGAAP*
B13: 2013 | C13: Historical | E13: Revised CGAAP | F13: CGAAP and Revised CGAAP
B14: 2012 | C14: Historical | E14: CGAAP and Revised CGAAP | F14: CGAAP
B15: 2011 and Prior | C15: Historical | E15: CGAAP | F15: CGAAP
A17: 1) For the year that the applicant implemented changes to its capitalization and depreciation policies (2012 or 2013), the applicant must file two appendices, one before and one after the policy changes.
A20: 2) For the transition year (2014), the applicant may file two appendices, one under Revised CGAAP and one under MIFRS depending, on the materiality of impacts. See the specific instructions under each appendix below for further details.
A25: Appendix 2-BA - Fixed Asset Schedule
A27: Applicants are to provide Appendix 2-BA in accordance with the years and corresponding accounting standards noted in the above table to provide a year over year continuity in fixed assets.
A28: *For the transition year (2014), the applicant should file two appendices, one under Revised CGAAP and one under MIFRS if the change between Revised CGAAP and MIFRS is material. If the change from the accounting standards is not material, the applicant may choose to only provide one appendix under MIFRS. The applicant must also indicate the fixed asset net book value balance under Revised CGAAP, the total dollar value of the change and explain why it is not material.
A32: Regulatory Gross Assets of Property, Plant and Equipment
A34: For an applicant that is adopting IFRS on January 1, 2015 for financial reporting purposes, the applicant must establish the continuity of historic cost by using the December 31, 2013 regulatory gross assets of property, plant and equipment as the opening January 1, 2014 regulatory gross assets. The applicant must provide schedules (including Appendix 2-BA, Fixed Asset Continuity Schedule) which must identify the following details to substantiate the continuity of historic cost for regulatory purposes:
A37: · December 31, 2013 regulatory gross assets of property, plant and equipment, by asset class; and
A38: · January 1, 2014 regulatory gross assets of property, plant and equipment, by asset class.
A40: Accumulated Depreciation
A42: For an applicant that is adopting IFRS on January 1, 2015 for financial reporting purposes, the applicant must establish the continuity of historic cost by using the December 31, 2013 regulatory accumulated depreciation as the opening January 1, 2014 regulatory accumulated depreciation. The applicant must provide schedules (including Appendix 2-BA, Fixed Asset Continuity Schedule) which must identify the following details to substantiate the continuity of historic cost for regulatory purposes:
A45: · December 31, 2013 regulatory accumulated depreciation, by asset class; and
A46: · January 1, 2014 regulatory accumulated depreciation, by asset class.
A48: Appendix 2-C - Depreciation and Amortization
A50: Applicants are to provide Appendix 2-C starting in the year capitalization and depreciation policy changes were implemented in accordance with the years and corresponding accounting standards listed in the above table.
A51: If an applicant changed capitalization and depreciation policies effective January 1, 2012 and will adopt IFRS for reporting purposes effective January 1, 2015, the applicant must complete Appendix 2-CA to 2-CE (inclusive).
A52: If an applicant changed capitalization and depreciation policies effective January 1, 2013 and will adopt IFRS for reporting purposes effective January 1, 2015, the applicant must complete Appendix 2-CF to 2-CI (inclusive).
A53: *Depreciation accounting policy changes were mandated by the Board by January 1, 2013. These accounting changes should be implemented consistent with the Board’s regulatory accounting policies as set out for MIFRS as contained in the Report of the Board, Transition to International Financial Reporting Standards (EB-2008-0408), the Depreciation Study for Use by Electricity Distributors (EB-2010-0178) and the Revised 2012 Accounting Procedures Handbook for Electricity Distributors. In general, no further changes to an applicant's depreciation policy (i.e. assets' service lives) are expected after the Board mandated changes by January 1, 2013. The set of Appendix CA to CI assumes this to be the case. If the applicant has made any changes to its depreciation policy subsequent to the Board mandated changes, applicants must identify the change, explain the nature of the change, the reason for the change, quantify the impact of the change, and quantify the depreciation expense before and after the change.
A56: Appendix 2-E - Account 1575, IFRS-CGAAP Transitional PP&E Amounts (2-EA), Account 1576, Accounting Changes Under CGAAP (2-EB, 2-EC)
A58: If an applicant changed capitalization and depreciation policies effective January 1, 2012 and will adopt IFRS for reporting purposes effective January 1, 2015, the applicant must complete Appendix 2-EA and 2-EB. If the applicant does not make any further PP&E accounting policy changes beyond the capitalization and depreciation policy changes as permitted by the Board on January 1, 2012 (i.e. no further changes made on transition to IFRS), the applicant must indicate this and does not need to complete Appendix 2-EA.
A60: If an applicant changed capitalization and depreciation policies effective January 1, 2013 and will adopt IFRS for reporting purposes effective January 1, 2015, the applicant must complete Appendix 2-EA and 2-EC. If the applicant does not make any further PP&E accounting policy changes beyond the capitalization and depreciation policy changes as mandated by the Board by January 1, 2013 (i.e. no further changes made on transition to IFRS), the applicant must indicate this and does not need to complete Appendix 2-EA.
A62: Please refer to section 2.12.4 and 2.12.5 of the Filing Requirements for further details.
A64: Appendix 2-YA - Summary of Impacts to Revenue Requirement from Transition to MIFRS
A66: For applicants adopting MIFRS, the applicants must provide a summary of the dollar impacts of MIFRS to each component of the revenue requirement (e.g. rate base, operating costs, etc), including the overall impact on the proposed revenue requirement. Accordingly, the applicants must identify financial differences and resulting revenue requirement impacts arising from the adoption of MIFRS as compared to CGAAP prior to capitalization and depreciation policy changes.

Sheet App.2-BA_FA Cont 2012
L1: File Number: | M1: =EBNUMBER -> EB-2015-0004
L2: Exhibit: | M2: B
L3: Tab: | M3: 1
L4: Schedule: | M4: 1
L5: Page: | M5: 1 of 9
L7: Date: | M7: ORIGINAL
A9: Appendix 2-BA
A10: Fixed Asset Continuity Schedule
E12: Accounting Standard | F12: MIFRS
E13: Year | F13: 2012
D15: Cost | J15: Accumulated Depreciation
A16: CCA Class | B16: OEB | C16: Description | D16: Opening Balance | E16: Additions | F16: Disposals | G16: Closing Balance | I16: Opening Balance | J16: Additions | K16: Disposals | L16: Closing Balance | M16: Net Book Value
A17: 12 | B17: 1611 | C17: Computer Software (Formally known as Account 1925) | D17: 23536162.26 | E17: 2579010.1 | F17: 0 | G17: 26115172.36 | H17: 26115172.36 | I17: -7046764.76 | J17: -7661587.12 | K17: 0 | L17: -14708351.88 | M17: 11406820.48
A18: CEC | B18: 1612 | C18: Land Rights (Formally known as Account 1906) | D18: 1912380.28 | E18: 10071.5 | F18: 0 | G18: 1922451.78 | H18: 1922451.78 | I18: -48470.65 | J18: -48860.33 | K18: 0 | L18: -97330.98 | M18: 1825120.8
A19: N/A | B19: 1805 | C19: Land | D19: 5308934.09 | E19: 10335.8 | F19: 0 | G19: 5319269.89 | H19: 5319269.89 | I19: 0 | J19: 0 | K19: 0 | L19: 0 | M19: 5319269.89
A20: 47 | B20: 1808 | C20: Buildings | D20: 17332484.79 | E20: 1044620.78 | F20: 0 | G20: 18377105.57 | H20: 18377105.57 | I20: -512978.59 | J20: -544338.49 | K20: 0 | L20: -1057317.08 | M20: 17319788.49
A21: 13 | B21: 1810 | C21: Leasehold Improvements | D21: 0 | E21: 0 | F21: 0 | G21: 0 | H21: 0 | I21: 0 | J21: 0 | K21: 0 | L21: 0 | M21: 0
A22: 47 | B22: 1815 | C22: Transformer Station Equipment >50 kV | D22: 55223255.62 | E22: 8076499.34 | F22: 0 | G22: 63299754.96 | H22: 63299754.96 | I22: -2107116 | J22: -2201965.23 | K22: 0 | L22: -4309081.23 | M22: 58990673.73
A23: 47 | B23: 1820 | C23: Distribution Station Equipment <50 kV | D23: 44563372.3 | E23: 6666923.22 | F23: 0 | G23: 51230295.52 | H23: 51230295.52 | I23: -3585603.57 | J23: -3696778.34 | K23: 0 | L23: -7282381.91 | M23: 43947913.61
A24: 47 | B24: 1825 | C24: Storage Battery Equipment | D24: 0 | E24: 0 | F24: 0 | G24: 0 | H24: 0 | I24: 0 | J24: 0 | K24: 0 | L24: 0 | M24: 0
A25: 47 | B25: 1830 | C25: Poles, Towers & Fixtures | D25: 62485223.5 | E25: 8911408.42 | F25: -208788.48 | G25: 71187843.44 | H25: 71187843.44 | I25: -1577765.67 | J25: -1783189.83 | K25: 8552.85 | L25: -3352402.65 | M25: 67835440.79
A26: 47 | B26: 1835 | C26: Overhead Conductors & Devices | D26: 48247214.88 | E26: 8225709.11 | F26: 0 | G26: 56472923.99 | H26: 56472923.99 | I26: -1288845.89 | J26: -1500742.65 | K26: 0 | L26: -2789588.54 | M26: 53683335.45
A27: 47 | B27: 1840 | C27: Underground Conduit | D27: 58232836.1 | E27: 7538303.76 | F27: 0 | G27: 65771139.86 | H27: 65771139.86 | I27: -1957361.69 | J27: -2158811.21 | K27: 0 | L27: -4116172.9 | M27: 61654966.96
A28: 47 | B28: 1845 | C28: Underground Conductors & Devices | D28: 66687108.52 | E28: 12435509.35 | F28: -92395.57 | G28: 79030222.3 | H28: 79030222.3 | I28: -3212797.96 | J28: -3539504.88 | K28: 19138.63 | L28: -6733164.21 | M28: 72297058.09
A29: 47 | B29: 1850 | C29: Line Transformers | D29: 45853921.39 | E29: 9726448.24 | F29: -204590.75 | G29: 55375778.88 | H29: 55375778.88 | I29: -1710147.49 | J29: -1972606.04 | K29: 11658.82 | L29: -3671094.71 | M29: 51704684.17
A30: 47 | B30: 1855 | C30: Services (Overhead & Underground) | D30: 44415221.78 | E30: 4107837.58 | F30: 0 | G30: 48523059.36 | H30: 48523059.36 | I30: -1164837.15 | J30: -1282116.22 | K30: 0 | L30: -2446953.37 | M30: 46076105.99
A31: 47 | B31: 1860 | C31: Meters | D31: 9568361.23 | E31: 791230.13 | F31: -447.92 | G31: 10359143.44 | H31: 10359143.44 | I31: -3103246.987 | J31: -3023692.177 | K31: 74.92 | L31: -6126864.243 | M31: 4232279.197
A32: 47 | B32: 1860 | C32: Meters (Smart Meters) | D32: 43449176.13 | E32: 1875209.46 | F32: -35106.23 | G32: 45289279.36 | H32: 45289279.36 | I32: -3536288.31 | J32: -3672851.05 | K32: 3112.8 | L32: -7206026.56 | M32: 38083252.8
A33: N/A | B33: 1905 | C33: Land | D33: 0 | E33: 0 | F33: 0 | G33: 0 | H33: 0 | I33: 0 | J33: 0 | K33: 0 | L33: 0 | M33: 0
A34: 47 | B34: 1908 | C34: Buildings & Fixtures | D34: 36118077.45 | E34: 240940.16 | F34: 0 | G34: 36359017.61 | H34: 36359017.61 | I34: -2130171.72 | J34: -1971214.27 | K34: 0 | L34: -4101385.99 | M34: 32257631.62
A35: 13 | B35: 1910 | C35: Leasehold Improvements | D35: 0 | E35: 0 | F35: 0 | G35: 0 | H35: 0 | I35: 0 | J35: 0 | K35: 0 | L35: 0 | M35: 0
A36: 8 | B36: 1915 | C36: Office Furniture & Equipment (10 years) | D36: 1705903.69 | E36: 111454.65 | F36: 0 | G36: 1817358.34 | H36: 1817358.34 | I36: -289720.76 | J36: -293140.88 | K36: 0 | L36: -582861.64 | M36: 1234496.7
A37: 8 | B37: 1915 | C37: Office Furniture & Equipment (5 years) | D37: 0 | E37: 0 | F37: 0 | G37: 0 | H37: 0 | I37: 0 | J37: 0 | K37: 0 | L37: 0 | M37: 0
A38: 10 | B38: 1920 | C38: Computer Equipment - Hardware | D38: 4101696.27 | E38: 1414659.56 | F38: 0 | G38: 5516355.83 | H38: 5516355.83 | I38: -1307319.15 | J38: -1290258.01 | K38: 0 | L38: -2597577.16 | M38: 2918778.67
A39: 45 | B39: 1920 | C39: Computer Equip.-Hardware(Post Mar. 22/04) | D39: 362379.11 | E39: 244756.68 | F39: 0 | G39: 607135.79 | H39: 607135.79 | I39: -65889.2 | J39: -111743.04 | K39: 0 | L39: -177632.24 | M39: 429503.55
A40: 45.1 | B40: 1920 | C40: Computer Equip.-Hardware(Post Mar. 19/07) | D40: 0 | E40: 0 | F40: 0 | G40: 0 | H40: 607135.79 | I40: 0 | J40: 0 | K40: 0 | L40: 0 | M40: 0
A41: 10 | B41: 1930 | C41: Transportation Equipment | D41: 8101699.37 | E41: 1983051.12 | F41: -5545.27 | G41: 10079205.22 | H41: 607135.79 | I41: -683799.66 | J41: -860989.54 | K41: 1742.77 | L41: -1543046.43 | M41: 8536158.79
A42: 8 | B42: 1935 | C42: Stores Equipment | D42: 583607.58 | E42: 0 | F42: 0 | G42: 583607.58 | H42: 607135.79 | I42: -89316.01 | J42: -55620.77 | K42: 0 | L42: -144936.78 | M42: 438670.8
A43: 8 | B43: 1940 | C43: Tools, Shop & Garage Equipment | D43: 3982760.56 | E43: 484697.7 | F43: 0 | G43: 4467458.26 | H43: 607135.79 | I43: -631987.53 | J43: -662651.16 | K43: 0 | L43: -1294638.69 | M43: 3172819.57
A44: 8 | B44: 1945 | C44: Measurement & Testing Equipment | D44: 136418.31 | E44: 129902.74 | F44: 0 | G44: 266321.05 | H44: 607135.79 | I44: -43351.42 | J44: -43628.4 | K44: 0 | L44: -86979.82 | M44: 179341.23
A45: 8 | B45: 1950 | C45: Power Operated Equipment | D45: 0 | E45: 0 | F45: 0 | G45: 0 | H45: 607135.79 | I45: 0 | J45: 0 | K45: 0 | L45: 0 | M45: 0
A46: 8 | B46: 1955 | C46: Communications Equipment | D46: 583218.34 | E46: 710515.21 | F46: 0 | G46: 1293733.55 | H46: 607135.79 | I46: -148444.57 | J46: -194444.75 | K46: 0 | L46: -342889.32 | M46: 950844.23
A47: 8 | B47: 1955 | C47: Communication Equipment (Smart Meters) | D47: 0 | E47: 0 | F47: 0 | G47: 0 | H47: 607135.79 | I47: 0 | J47: 0 | K47: 0 | L47: 0 | M47: 0
A48: 8 | B48: 1960 | C48: Miscellaneous Equipment | D48: 239338.33 | E48: 18347.78 | F48: 0 | G48: 257686.11 | H48: 607135.79 | I48: -24567.87 | J48: -28710.02 | K48: 0 | L48: -53277.89 | M48: 204408.22
A49: 47 | B49: 1970 | C49: Load Management Controls Customer Premises | D49: 291630.11 | E49: -92.56 | F49: 0 | G49: 291537.55 | H49: 607135.79 | I49: -52414.98 | J49: -52553.95 | K49: 0 | L49: -104968.93 | M49: 186568.62
A50: 47 | B50: 1975 | C50: Load Management Controls Utility Premises | D50: 39547.53 | E50: 0 | F50: 0 | G50: 39547.53 | H50: 607135.79 | I50: -7188.67 | J50: -7208.36 | K50: 0 | L50: -14397.03 | M50: 25150.5
A51: 47 | B51: 1980 | C51: System Supervisor Equipment | D51: 7165092.1 | E51: 380642.59 | F51: 0 | G51: 7545734.69 | H51: 607135.79 | I51: -715365.11 | J51: -740020.2 | K51: 0 | L51: -1455385.31 | M51: 6090349.38
A52: 47 | B52: 1985 | C52: Miscellaneous Fixed Assets | D52: 0 | E52: 0 | F52: 0 | G52: 0 | H52: 607135.79 | I52: 0 | J52: 0 | K52: 0 | L52: 0 | M52: 0
A53: 47 | B53: 1990 | C53: Other Tangible Property | D53: 0 | E53: 0 | F53: 0 | G53: 0 | H53: 607135.79 | I53: 0 | J53: 0 | K53: 0 | L53: 0 | M53: 0
A54: 47 | B54: 1995 | C54: Contributions & Grants | D54: 0 | E54: 0 | F54: 0 | G54: 0 | H54: 607135.79 | I54: 0 | J54: 0 | K54: 0 | L54: 0 | M54: 0
A55: 47 | B55: 2440 | C55: Deferred Revenue5 | D55: -21049858.32 | E55: -22190942.87 | F55: 0 | G55: -43240801.19 | H55: 607135.79 | I55: 276871.88 | J55: 857606.69 | K55: 0 | L55: 1134478.57 | M55: -42106322.62
B56: 1609 | C56: Capital Contributions Paid | D56: 2106099.37 | E56: 0 | F56: 0 | G56: 2106099.37 | H56: 607135.79 | I56: -53566.54 | J56: -53713.3 | K56: 0 | L56: -107279.84 | M56: 1998819.53
C57: Sub-Total | D57: 571283262.7 | E57: 55527049.55 | F57: -546874.22 | G57: 626263438 | I57: =SUM(I17:I56) -> -36818456.03 | J57: =SUM(J17:J56) -> -38595333.53 | K57: =SUM(K17:K56) -> 44280.79 | L57: =SUM(L17:L56) -> -75369508.76 | M57: =SUM(M17:M56) -> 550893929.2
C58: Less Socialized Renewable Energy Generation Investments (input as negative) | G58: =D58+E58+F58 -> 0 | L58: =I58+J58+K58 -> 0 | M58: =G58+L58 -> 0
C59: Less Other Non Rate-Regulated Utility Assets (input as negative) | G59: =D59+E59+F59 -> 0 | L59: 0 | M59: =G59+L59 -> 0
C60: Total PP&E | D60: =SUM(D57:D59) -> 571283262.7 | E60: =SUM(E57:E59) -> 55527049.55 | F60: -546874.22 | G60: 626263438 | I60: =SUM(I57:I59) -> -36818456.03 | J60: -38595333.53 | K60: 44280.79 | L60: -75369508.76 | M60: 550893929.2
C61: Depreciation Expense adj. from gain or loss on the retirement of assets (pool of like assets), if applicable6
C62: Total | J62: =J60+J61 -> -38595333.53
I64: Less: Fully Allocated Depreciation
A65: 10 | C65: Transportation | I65: Transportation
A66: 8 | C66: Stores Equipment | I66: Stores Equipment
I67: Net Depreciation | K67: =J62-K65-K66 -> -38595333.53
A69: Notes:
A71: 1 | B71: Tables in the format outlined above covering all fixed asset accounts should be submitted for the Test Year, Bridge Year and all relevant historical years. At a minimum , the applicant must provide data for the earlier of: 1) all historical years back to its last rebasing; or 2) at least three years of historical actuals, in addition to Bridge Year and Test Year forecasts.
A74: 2 | B74: The "CCA Class" for fixed assets should agree with the CCA Class used for tax purposes in Tax Returns. Fixed Assets sub-components may be used where the underlying asset components are classified under multiple CCA Classes for tax purposes. If an applicant uses any different classes from those shown in the table, an explanation should be provided. (also see note 3 below).
A77: 3 | B77: The table may need to be customized for a utility's asset categories or for any new asset accounts announced or authorized by the Board.
A79: 4 | B79: The additions column (E) must not include construction work in progress (CWIP).
A81: 5 | B81: Effective on the date of IFRS adoption, customer contributions will no longer be recorded in Account 1995 Contributions & Grants, but will be recorded in Account 2440, Deferred Revenues.
A83: 6 | B83: Where a distributor for general financial reporting purposes under IFRS has accounted for the amount of gain or loss on the retirement of assets in a pool of like assets as a charge or credit to income, for reporting and rate application filings the distributor shall reclassify such gains and losses as depreciation expense, and disclose the amount separately.

Sheet App.2-BA_FA Cont 2013
L1: File Number: | M1: =EBNUMBER -> EB-2015-0004
L2: Exhibit: | M2: B
L3: Tab: | M3: 1
L4: Schedule: | M4: 1
L5: Page: | M5: 2 of 9
L7: Date: | M7: ORIGINAL
A9: Appendix 2-BA
A10: Fixed Asset Continuity Schedule
E12: Accounting Standard | F12: MIFRS
E13: Year | F13: 2013
D15: Cost | J15: Accumulated Depreciation
A16: CCA Class | B16: OEB | C16: Description | D16: Opening Balance | E16: Additions | F16: Disposals | G16: Closing Balance | I16: Opening Balance | J16: Additions | K16: Disposals | L16: Closing Balance | M16: Net Book Value
A17: 12 | B17: 1611 | C17: Computer Software (Formally known as Account 1925) | D17: 26115172.36 | E17: 2144979.81 | F17: 0 | G17: 28260152.17 | I17: -14708351.88 | J17: -7809802.44 | K17: 0 | L17: -22518154.32 | M17: 5741997.85
A18: CEC | B18: 1612 | C18: Land Rights (Formally known as Account 1906) | D18: 1922451.78 | E18: 1840 | F18: 0 | G18: 1924291.78 | I18: -97330.98 | J18: -48764.36 | K18: 0 | L18: -146095.34 | M18: 1778196.44
A19: N/A | B19: 1805 | C19: Land | D19: 5319269.89 | E19: 19613594.18 | F19: 0 | G19: 24932864.07 | I19: 0 | J19: 0 | K19: 0 | L19: 0 | M19: 24932864.07
A20: 47 | B20: 1808 | C20: Buildings | D20: 18377105.57 | E20: 8210366.73 | F20: 0 | G20: 26587472.3 | I20: -1057317.08 | J20: -671997.75 | K20: 0 | L20: -1729314.83 | M20: 24858157.47
A21: 13 | B21: 1810 | C21: Leasehold Improvements | D21: 0 | E21: 0 | F21: 0 | G21: 0 | I21: 0 | J21: 0 | K21: 0 | L21: 0 | M21: 0
A22: 47 | B22: 1815 | C22: Transformer Station Equipment >50 kV | D22: 63299754.96 | E22: 15040975.89 | F22: 0 | G22: 78340730.85 | I22: -4309081.23 | J22: -2328032.49 | K22: 0 | L22: -6637113.72 | M22: 71703617.13
A23: 47 | B23: 1820 | C23: Distribution Station Equipment <50 kV | D23: 51230295.52 | E23: 12332014.49 | F23: -819211.56 | G23: 62743098.45 | I23: -7282381.91 | J23: -3634358.09 | K23: 644119.92 | L23: -10272620.08 | M23: 52470478.37
A24: 47 | B24: 1825 | C24: Storage Battery Equipment | D24: 0 | E24: 0 | F24: 0 | G24: 0 | I24: 0 | J24: 0 | K24: 0 | L24: 0 | M24: 0
A25: 47 | B25: 1830 | C25: Poles, Towers & Fixtures | D25: 71187843.44 | E25: 9567350.46 | F25: -166288.54 | G25: 80588905.36 | I25: -3352402.65 | J25: -1979636.08 | K25: 11414.87 | L25: -5320623.86 | M25: 75268281.5
A26: 47 | B26: 1835 | C26: Overhead Conductors & Devices | D26: 56472923.99 | E26: 11676071.94 | F26: -248900.89 | G26: 67900095.04 | I26: -2789588.54 | J26: -1716864.28 | K26: 45607.04 | L26: -4460845.78 | M26: 63439249.26
A27: 47 | B27: 1840 | C27: Underground Conduit | D27: 65771139.86 | E27: 14463485.53 | F27: 0 | G27: 80234625.39 | I27: -4116172.9 | J27: -2428122.49 | K27: 0 | L27: -6544295.39 | M27: 73690330
A28: 47 | B28: 1845 | C28: Underground Conductors & Devices | D28: 79030222.3 | E28: 14478841.65 | F28: -1035072.32 | G28: 92473991.63 | I28: -6733164.21 | J28: -3875608.89 | K28: 125088.31 | L28: -10483684.79 | M28: 81990306.84
A29: 47 | B29: 1850 | C29: Line Transformers | D29: 55375778.88 | E29: 9974323.87 | F29: -195122.67 | G29: 65154980.08 | I29: -3671094.71 | J29: -2241043.03 | K29: 22555.71 | L29: -5889582.03 | M29: 59265398.05
A30: 47 | B30: 1855 | C30: Services (Overhead & Underground) | D30: 48523059.36 | E30: 3557666.96 | F30: 0 | G30: 52080726.32 | I30: -2446953.37 | J30: -1364056.79 | K30: 0 | L30: -3811010.16 | M30: 48269716.16
A31: 47 | B31: 1860 | C31: Meters | D31: 10359143.44 | E31: 500011.16 | F31: 0 | G31: 10859154.6 | I31: -6126864.243 | J31: -3053946.69 | K31: 0 | L31: -9180810.933 | M31: 1678343.667
A32: 47 | B32: 1860 | C32: Meters (Smart Meters) | D32: 45289279.36 | E32: 1809524.52 | F32: -1475007.04 | G32: 45623796.84 | I32: -7206026.56 | J32: -3700831.61 | K32: 289395.73 | L32: -10617462.44 | M32: 35006334.4
A33: N/A | B33: 1905 | C33: Land | D33: 0 | E33: 0 | F33: 0 | G33: 0 | I33: 0 | J33: 0 | K33: 0 | L33: 0 | M33: 0
A34: 47 | B34: 1908 | C34: Buildings & Fixtures | D34: 36359017.61 | E34: 195466.56 | F34: 0 | G34: 36554484.17 | I34: -4101385.99 | J34: -1879580.67 | K34: 0 | L34: -5980966.66 | M34: 30573517.51
A35: 13 | B35: 1910 | C35: Leasehold Improvements | D35: 0 | E35: 0 | F35: 0 | G35: 0 | I35: 0 | J35: 0 | K35: 0 | L35: 0 | M35: 0
A36: 8 | B36: 1915 | C36: Office Furniture & Equipment (10 years) | D36: 1817358.34 | E36: 163426 | F36: 0 | G36: 1980784.34 | I36: -582861.64 | J36: -266735.2 | K36: 0 | L36: -849596.84 | M36: 1131187.5
A37: 8 | B37: 1915 | C37: Office Furniture & Equipment (5 years) | D37: 0 | E37: 0 | F37: 0 | G37: 0 | I37: 0 | J37: 0 | K37: 0 | L37: 0 | M37: 0
A38: 10 | B38: 1920 | C38: Computer Equipment - Hardware | D38: 5516355.83 | E38: 1462573.75 | F38: 0 | G38: 6978929.58 | I38: -2597577.16 | J38: -1216848.47 | K38: 0 | L38: -3814425.63 | M38: 3164503.95
A39: 45 | B39: 1920 | C39: Computer Equip.-Hardware(Post Mar. 22/04) | D39: 607135.79 | E39: 228106.43 | F39: 0 | G39: 835242.22 | I39: -177632.24 | J39: -154113.25 | K39: 0 | L39: -331745.49 | M39: 503496.73
A40: 45.1 | B40: 1920 | C40: Computer Equip.-Hardware(Post Mar. 19/07) | D40: 0 | E40: 0 | F40: 0 | G40: 0 | I40: 0 | J40: 0 | K40: 0 | L40: 0 | M40: 0
A41: 10 | B41: 1930 | C41: Transportation Equipment | D41: 10079205.22 | E41: 2082164.63 | F41: -1171.33 | G41: 12160198.52 | I41: -1543046.43 | J41: -1020180.97 | K41: 0.3 | L41: -2563227.1 | M41: 9596971.42
A42: 8 | B42: 1935 | C42: Stores Equipment | D42: 583607.58 | E42: 0 | F42: 0 | G42: 583607.58 | I42: -144936.78 | J42: -47211.38 | K42: 0 | L42: -192148.16 | M42: 391459.42
A43: 8 | B43: 1940 | C43: Tools, Shop & Garage Equipment | D43: 4467458.26 | E43: 421819.93 | F43: 0 | G43: 4889278.19 | I43: -1294638.69 | J43: -665437.05 | K43: 0 | L43: -1960075.74 | M43: 2929202.45
A44: 8 | B44: 1945 | C44: Measurement & Testing Equipment | D44: 266321.05 | E44: 99017.36 | F44: 0 | G44: 365338.41 | I44: -86979.82 | J44: -45326.5 | K44: 0 | L44: -132306.32 | M44: 233032.09
A45: 8 | B45: 1950 | C45: Power Operated Equipment | D45: 0 | E45: 0 | F45: 0 | G45: 0 | I45: 0 | J45: 0 | K45: 0 | L45: 0 | M45: 0
A46: 8 | B46: 1955 | C46: Communications Equipment | D46: 1293733.55 | E46: 494549.59 | F46: 0 | G46: 1788283.14 | I46: -342889.32 | J46: -211010.02 | K46: 0 | L46: -553899.34 | M46: 1234383.8
A47: 8 | B47: 1955 | C47: Communication Equipment (Smart Meters) | D47: 0 | E47: 0 | F47: 0 | G47: 0 | I47: 0 | J47: 0 | K47: 0 | L47: 0 | M47: 0
A48: 8 | B48: 1960 | C48: Miscellaneous Equipment | D48: 257686.11 | E48: 52104.41 | F48: 0 | G48: 309790.52 | I48: -53277.89 | J48: -32156.43 | K48: 0 | L48: -85434.32 | M48: 224356.2
A49: 47 | B49: 1970 | C49: Load Management Controls Customer Premises | D49: 291537.55 | E49: 0 | F49: 0 | G49: 291537.55 | I49: -104968.93 | J49: -52405.73 | K49: 0 | L49: -157374.66 | M49: 134162.89
A50: 47 | B50: 1975 | C50: Load Management Controls Utility Premises | D50: 39547.53 | E50: 0 | F50: 0 | G50: 39547.53 | I50: -14397.03 | J50: -7188.67 | K50: 0 | L50: -21585.7 | M50: 17961.83
A51: 47 | B51: 1980 | C51: System Supervisor Equipment | D51: 7545734.69 | E51: 341135.71 | F51: 0 | G51: 7886870.4 | I51: -1455385.31 | J51: -726018.85 | K51: 0 | L51: -2181404.16 | M51: 5705466.24
A52: 47 | B52: 1985 | C52: Miscellaneous Fixed Assets | D52: 0 | E52: 0 | F52: 0 | G52: 0 | I52: 0 | J52: 0 | K52: 0 | L52: 0 | M52: 0
A53: 47 | B53: 1990 | C53: Other Tangible Property | D53: 0 | E53: 0 | F53: 0 | G53: 0 | I53: 0 | J53: 0 | K53: 0 | L53: 0 | M53: 0
A54: 47 | B54: 1995 | C54: Contributions & Grants | D54: 0 | E54: 0 | F54: 0 | G54: 0 | I54: 0 | J54: 0 | K54: 0 | L54: 0 | M54: 0
A55: 47 | B55: 2440 | C55: Deferred Revenue5 | D55: -43240801.19 | E55: -21418578.19 | F55: 0 | G55: -64659379.38 | I55: 1134478.57 | J55: 1433962.77 | K55: 0 | L55: 2568441.34 | M55: -62090938.04
B56: 1609 | C56: Capital Contributions Paid | D56: 2106099.37 | E56: 354446.87 | F56: 0 | G56: 2460546.24 | I56: -107279.84 | J56: -54976.58 | K56: 0 | L56: -162256.42 | M56: 2298289.82
C57: Sub-Total | D57: =SUM(D17:D56) -> 626263438 | E57: =SUM(E17:E56) -> 107847280.2 | F57: =SUM(F17:F56) -> -3940774.35 | G57: =SUM(G17:G56) -> 730169943.9 | I57: =SUM(I17:I56) -> -75369508.76 | J57: =SUM(J17:J56) -> -39798291.99 | K57: =SUM(K17:K56) -> 1138181.88 | L57: =SUM(L17:L56) -> -114029618.9 | M57: =SUM(M17:M56) -> 616140325
C58: Less Socialized Renewable Energy Generation Investments (input as negative) | G58: =D58+E58+F58 -> 0 | L58: =I58+J58+K58 -> 0 | M58: =G58+L58 -> 0
C59: Less Other Non Rate-Regulated Utility Assets (input as negative) | G59: =D59+E59+F59 -> 0 | L59: 0 | M59: =G59+L59 -> 0
C60: Total PP&E | D60: =SUM(D57:D59) -> 626263438 | E60: =SUM(E57:E59) -> 107847280.2 | F60: -3940774.35 | G60: 730169943.9 | I60: =SUM(I57:I59) -> -75369508.76 | J60: -39798291.99 | K60: 1138181.88 | L60: -114029618.9 | M60: 616140325
C61: Depreciation Expense adj. from gain or loss on the retirement of assets (pool of like assets), if applicable6
C62: Total | J62: =J60+J61 -> -39798291.99
I64: Less: Fully Allocated Depreciation
A65: 10 | C65: Transportation | I65: Transportation
A66: 8 | C66: Stores Equipment | I66: Stores Equipment
I67: Net Depreciation | K67: =J62-K65-K66 -> -39798291.99
A69: Notes:
A71: 1 | B71: Tables in the format outlined above covering all fixed asset accounts should be submitted for the Test Year, Bridge Year and all relevant historical years. At a minimum , the applicant must provide data for the earlier of: 1) all historical years back to its last rebasing; or 2) at least three years of historical actuals, in addition to Bridge Year and Test Year forecasts.
A74: 2 | B74: The "CCA Class" for fixed assets should agree with the CCA Class used for tax purposes in Tax Returns. Fixed Assets sub-components may be used where the underlying asset components are classified under multiple CCA Classes for tax purposes. If an applicant uses any different classes from those shown in the table, an explanation should be provided. (also see note 3 below).
A77: 3 | B77: The table may need to be customized for a utility's asset categories or for any new asset accounts announced or authorized by the Board.
A79: 4 | B79: The additions column (E) must not include construction work in progress (CWIP).
A81: 5 | B81: Effective on the date of IFRS adoption, customer contributions will no longer be recorded in Account 1995 Contributions & Grants, but will be recorded in Account 2440, Deferred Revenues.
A83: 6 | B83: Where a distributor for general financial reporting purposes under IFRS has accounted for the amount of gain or loss on the retirement of assets in a pool of like assets as a charge or credit to income, for reporting and rate application filings the distributor shall reclassify such gains and losses as depreciation expense, and disclose the amount separately.

Sheet App.2-BA_FA Cont 2014
P1: File Number: | Q1: =EBNUMBER -> EB-2015-0004
P2: Exhibit: | Q2: B
P3: Tab: | Q3: 1
P4: Schedule: | Q4: 1
P5: Page: | Q5: 3 of 9
P7: Date: | Q7: ORIGINAL
A9: Appendix 2-BA
A10: Fixed Asset Continuity Schedule
G12: Accounting Standard | H12: MIFRS
G13: Year | H13: 2014
D15: Cost | K15: Accumulated Depreciation
A16: CCA Class | B16: OEB | C16: Description | D16: Opening Balance MIFRS | E16: Adj to IFRS | F16: Opening Balance IFRS | G16: Additions | H16: Disposals | I16: Closing Balance | K16: Opening Balance MIFRS | L16: Adj to IFRS | M16: Opening Balance IFRS | N16: Additions | O16: Disposals | P16: Closing Balance | Q16: Net Book Value
A17: 12 | B17: 1611 | C17: Computer Software (Formally known as Account 1925) | D17: 28260152.17 | E17: -21520260.16 | F17: 6739892.01 | G17: 35904264.71 | H17: -30413.32 | I17: 42613743.4 | K17: -22518154.32 | L17: 22518154.32 | M17: 0 | N17: -6484309.39 | O17: 30413.32 | P17: -6453896.07 | Q17: 36159847.33
A18: CEC | B18: 1612 | C18: Land Rights (Formally known as Account 1906) | D18: 1924291.78 | E18: -145921.65 | F18: 1778370.13 | G18: 9045 | H18: 0 | I18: 1787415.13 | K18: -146095.34 | L18: 146095.34 | M18: 0 | N18: -49926.36 | O18: 0 | P18: -49926.36 | Q18: 1737488.77
A19: N/A | B19: 1805 | C19: Land | D19: 24932864.07 | E19: 0 | F19: 24932864.07 | G19: 61800 | H19: 0 | I19: 24994664.07 | K19: 0 | L19: 0 | M19: 0 | N19: 0 | O19: 0 | P19: 0 | Q19: 24994664.07
A20: 47 | B20: 1808 | C20: Buildings | D20: 26587472.3 | E20: -1429684.79 | F20: 25157787.51 | G20: 1399089.2 | H20: 0 | I20: 26556876.71 | K20: -1729314.83 | L20: 1729314.83 | M20: 0 | N20: -744457.31 | O20: 0 | P20: -744457.31 | Q20: 25812419.4
A21: 13 | B21: 1810 | C21: Leasehold Improvements | D21: 0 | E21: 0 | F21: 0 | G21: 0 | H21: 0 | I21: 0 | K21: 0 | L21: 0 | M21: 0 | N21: 0 | O21: 0 | P21: 0 | Q21: 0
A22: 47 | B22: 1815 | C22: Transformer Station Equipment >50 kV | D22: 78340730.85 | E22: -5486042.151 | F22: 72854688.7 | G22: 5012250.14 | H22: -2870.49 | I22: 77864068.35 | K22: -6637113.72 | L22: 6637113.72 | M22: 0 | N22: -2854205.79 | O22: 2870.49 | P22: -2851335.3 | Q22: 75012733.05
A23: 47 | B23: 1820 | C23: Distribution Station Equipment <50 kV | D23: 62743098.45 | E23: -8676698.046 | F23: 54066400.4 | G23: 8308505.85 | H23: -138212.58 | I23: 62236693.67 | K23: -10272620.08 | L23: 10272620.08 | M23: 0 | N23: -3703635.26 | O23: 31989.7 | P23: -3671645.56 | Q23: 58565048.11
A24: 47 | B24: 1825 | C24: Storage Battery Equipment | D24: 0 | E24: 0 | F24: 0 | G24: 0 | H24: 0 | I24: 0 | K24: 0 | L24: 0 | M24: 0 | N24: 0 | O24: 0 | P24: 0 | Q24: 0
A25: 47 | B25: 1830 | C25: Poles, Towers & Fixtures | D25: 80588905.36 | E25: -11394993.32 | F25: 69193912.04 | G25: 10980359.76 | H25: -172090.67 | I25: 80002181.13 | K25: -5320623.86 | L25: 5320623.86 | M25: 0 | N25: -2186176.22 | O25: 1141.67 | P25: -2185034.55 | Q25: 77817146.58
A26: 47 | B26: 1835 | C26: Overhead Conductors & Devices | D26: 67900095.04 | E26: -9142443.887 | F26: 58757651.15 | G26: 12474266.1 | H26: -44535.84 | I26: 71187381.41 | K26: -4460845.78 | L26: 4460845.78 | M26: 0 | N26: -1945450.47 | O26: 3677.83 | P26: -1941772.64 | Q26: 69245608.77
A27: 47 | B27: 1840 | C27: Underground Conduit | D27: 80234625.39 | E27: -21297533.51 | F27: 58937091.88 | G27: 15031081.28 | H27: 0 | I27: 73968173.16 | K27: -6544295.39 | L27: 6544295.39 | M27: 0 | N27: -2747146.65 | O27: 0 | P27: -2747146.65 | Q27: 71221026.51
A28: 47 | B28: 1845 | C28: Underground Conductors & Devices | D28: 92473991.63 | E28: -27236909.07 | F28: 65237082.56 | G28: 15539738.93 | H28: -956489.11 | I28: 79820332.38 | K28: -10483684.79 | L28: 10483684.79 | M28: 0 | N28: -3941668.07 | O28: 419504.14 | P28: -3522163.93 | Q28: 76298168.45
A29: 47 | B29: 1850 | C29: Line Transformers | D29: 65154980.08 | E29: -19498266.91 | F29: 45656713.17 | G29: 9327221.82 | H29: -124321.22 | I29: 54859613.77 | K29: -5889582.03 | L29: 5889582.03 | M29: -2.328306437e-10 | N29: -2304901.92 | O29: 1703.98 | P29: -2303197.94 | Q29: 52556415.83
A30: 47 | B30: 1855 | C30: Services (Overhead & Underground) | D30: 52080726.32 | E30: -12796072.92 | F30: 39284653.4 | G30: 3756627.54 | H30: 0 | I30: 43041280.94 | K30: -3811010.16 | L30: 3811010.16 | M30: 0 | N30: -1436916.97 | O30: 0 | P30: -1436916.97 | Q30: 41604363.97
A31: 47 | B31: 1860 | C31: Meters | D31: 10859154.18 | E31: =-918612.199798861-9095688 -> -10014300.2 | F31: =9940541.98020114-9095688 -> 844853.9802 | G31: 710311.08 | H31: =-9098738.35+9095688 -> -3050.35 | I31: 1552114.71 | K31: =-9180810.79 -> -9180810.79 | L31: =85122.79+9095688 -> 9180810.79 | M31: =-9095688+9095688 -> 0 | N31: -103332.28 | O31: =9095776.74-9095688 -> 88.74 | P31: -103243.54 | Q31: 1448871.17
A32: 47 | B32: 1860 | C32: Meters (Smart Meters) | D32: 45623796.84 | E32: =-10631381.3587283 -> -10631381.36 | F32: 34992415.48 | G32: 1661001.2 | H32: -151105.64 | I32: 36502311.04 | K32: -10617462.44 | L32: 10617462.44 | M32: 0 | N32: -3784776.12 | O32: 6280.3 | P32: -3778495.82 | Q32: 32723815.22
A33: N/A | B33: 1905 | C33: Land | D33: 0 | E33: 0 | F33: 0 | G33: 0 | H33: 0 | I33: 0 | K33: 0 | L33: 0 | M33: 0 | N33: 0 | O33: 0 | P33: 0 | Q33: 0
A34: 47 | B34: 1908 | C34: Buildings & Fixtures | D34: 36554484.17 | E34: -5254413.566 | F34: 31300070.6 | G34: 533617.57 | H34: -1530.75 | I34: 31832157.42 | K34: -5980966.66 | L34: 5980966.66 | M34: 0 | N34: -1744435.68 | O34: 1530.75 | P34: -1742904.93 | Q34: 30089252.49
A35: 13 | B35: 1910 | C35: Leasehold Improvements | D35: 0 | E35: 0 | F35: 0 | G35: 0 | H35: 0 | I35: 0 | K35: 0 | L35: 0 | M35: 0 | N35: 0 | O35: 0 | P35: 0 | Q35: 0
A36: 8 | B36: 1915 | C36: Office Furniture & Equipment (10 years) | D36: 1980784.34 | E36: -839463.93 | F36: 1141320.41 | G36: 117203.75 | H36: -11763.95 | I36: 1246760.21 | K36: -849596.84 | L36: 849596.84 | M36: 0 | N36: -248753.19 | O36: 11763.95 | P36: -236989.24 | Q36: 1009770.97
A37: 8 | B37: 1915 | C37: Office Furniture & Equipment (5 years) | D37: 0 | E37: 0 | F37: 0 | G37: 0 | H37: 0 | I37: 0 | K37: 0 | L37: 0 | M37: 0 | N37: 0 | O37: 0 | P37: 0 | Q37: 0
A38: 10 | B38: 1920 | C38: Computer Equipment - Hardware | D38: 6978929.58 | E38: -3826053.77 | F38: 3152875.81 | G38: 1063717.71 | H38: -61378.09 | I38: 4155215.43 | K38: -3814425.63 | L38: 3814425.63 | M38: 0 | N38: -1266141.17 | O38: 61378.09 | P38: -1204763.08 | Q38: 2950452.35
A39: 45 | B39: 1920 | C39: Computer Equip.-Hardware(Post Mar. 22/04) | D39: 835242.22 | E39: -330536.49 | F39: 504705.73 | G39: 539471.7 | H39: 0 | I39: 1044177.43 | K39: -331745.49 | L39: 331745.49 | M39: 0 | N39: -148732.14 | O39: 0 | P39: -148732.14 | Q39: 895445.29
A40: 45.1 | B40: 1920 | C40: Computer Equip.-Hardware(Post Mar. 19/07) | D40: 0 | E40: 0 | F40: 0 | G40: 0 | H40: 0 | I40: 0 | K40: 0 | L40: 0 | M40: 0 | N40: 0 | O40: 0 | P40: 0 | Q40: 0
A41: 10 | B41: 1930 | C41: Transportation Equipment | D41: 12160198.52 | E41: -3189239.59 | F41: 8970958.93 | G41: 2429331.84 | H41: -20897.53 | I41: 11379393.24 | K41: -2563227.1 | L41: 2563227.1 | M41: 0 | N41: -1453869.71 | O41: 1837.95 | P41: -1452031.76 | Q41: 9927361.48
A42: 8 | B42: 1935 | C42: Stores Equipment | D42: 583607.58 | E42: -255010.63 | F42: 328596.95 | G42: 423431.6 | H42: 0 | I42: 752028.55 | K42: -192148.16 | L42: 192148.16 | M42: 0 | N42: -80903.66 | O42: 0 | P42: -80903.66 | Q42: 671124.89
A43: 8 | B43: 1940 | C43: Tools, Shop & Garage Equipment | D43: 4889278.19 | E43: -1939658.939 | F43: 2949619.251 | G43: 329284.88 | H43: -10833.42 | I43: 3268070.711 | K43: -1960075.74 | L43: 1960075.74 | M43: 0 | N43: -691828.92 | O43: 10833.42 | P43: -680995.5 | Q43: 2587075.211
A44: 8 | B44: 1945 | C44: Measurement & Testing Equipment | D44: 365338.41 | E44: -128853.77 | F44: 236484.64 | G44: 536.41 | H44: -8190.86 | I44: 228830.19 | K44: -132306.32 | L44: 132306.32 | M44: 0 | N44: -38354 | O44: 8190.86 | P44: -30163.14 | Q44: 198667.05
A45: 8 | B45: 1950 | C45: Power Operated Equipment | D45: 0 | E45: 0 | F45: 0 | G45: 0 | H45: 0 | I45: 0 | K45: 0 | L45: 0 | M45: 0 | N45: 0 | O45: 0 | P45: 0 | Q45: 0
A46: 8 | B46: 1955 | C46: Communications Equipment | D46: 1788283.14 | E46: -543260.9 | F46: 1245022.24 | G46: 251596.35 | H46: 0 | I46: 1496618.59 | K46: -553899.34 | L46: 553899.34 | M46: 0 | N46: -151451.62 | O46: 0 | P46: -151451.62 | Q46: 1345166.97
A47: 8 | B47: 1955 | C47: Communication Equipment (Smart Meters) | D47: 0 | E47: 0 | F47: 0 | G47: 0 | H47: 0 | I47: 0 | K47: 0 | L47: 0 | M47: 0 | N47: 0 | O47: 0 | P47: 0 | Q47: 0
A48: 8 | B48: 1960 | C48: Miscellaneous Equipment | D48: 309790.52 | E48: -82499.40222 | F48: 227291.1178 | G48: 1961.99 | H48: 0 | I48: 229253.1078 | K48: -85434.32 | L48: 85434.32 | M48: 0 | N48: -33856.05 | O48: 0 | P48: -33856.05 | Q48: 195397.0578
A49: 47 | B49: 1970 | C49: Load Management Controls Customer Premises | D49: 291537.55 | E49: -157292.48 | F49: 134245.07 | G49: 0 | H49: 0 | I49: 134245.07 | K49: -157374.66 | L49: 157374.66 | M49: 0 | N49: -52405.73 | O49: 0 | P49: -52405.73 | Q49: 81839.34
A50: 47 | B50: 1975 | C50: Load Management Controls Utility Premises | D50: 39547.53 | E50: -21573.2 | F50: 17974.33 | G50: 0 | H50: 0 | I50: 17974.33 | K50: -21585.7 | L50: 21585.7 | M50: 0 | N50: -7188.67 | O50: 0 | P50: -7188.67 | Q50: 10785.66
A51: 47 | B51: 1980 | C51: System Supervisor Equipment | D51: 7886870.4 | E51: -2165961.518 | F51: 5720908.882 | G51: 541583.41 | H51: -4483.01 | I51: 6258009.282 | K51: -2181404.16 | L51: 2181404.16 | M51: 0 | N51: -728782.88 | O51: 4483.01 | P51: -724299.87 | Q51: 5533709.412
A52: 47 | B52: 1985 | C52: Miscellaneous Fixed Assets | D52: 0 | E52: 0 | F52: 0 | G52: 0 | H52: 0 | I52: 0 | K52: 0 | L52: 0 | M52: 0 | N52: 0 | O52: 0 | P52: 0 | Q52: 0
A53: 47 | B53: 1990 | C53: Other Tangible Property | D53: 0 | E53: 0 | F53: 0 | G53: 0 | H53: 0 | I53: 0 | K53: 0 | L53: 0 | M53: 0 | N53: 0 | O53: 0 | P53: 0 | Q53: 0
A54: 47 | B54: 1995 | C54: Contributions & Grants | D54: 0 | E54: 0 | F54: 0 | G54: 0 | H54: 0 | I54: 0 | K54: 0 | L54: 0 | M54: 0 | N54: 0 | O54: 0 | P54: 0 | Q54: 0
A55: 47 | B55: 2440 | C55: Deferred Revenue5 | D55: -64659379.38 | E55: 64659379.38 | F55: 0 | G55: -20143564.86 | H55: 0 | I55: -20143564.86 | K55: 2568441.34 | L55: -2568441.34 | M55: 0 | N55: 2537164.78 | O55: 0 | P55: 2537164.78 | Q55: -17606400.08
B56: 1609 | C56: Capital Contributions Paid | D56: 2460546.24 | E56: -182190.45 | F56: 2278355.79 | G56: 7708450.72 | H56: 0 | I56: 9986806.51 | K56: -162256.42 | L56: 162256.42 | M56: 0 | N56: -120564.54 | O56: 0 | P56: -120564.54 | Q56: 9866241.97
C57: Sub-Total | D57: =SUM(D17:D56) -> 730169943.5 | E57: -113527137.2 | F57: =SUM(F17:F56) -> 616642806.2 | G57: =SUM(G17:G56) -> 113972185.7 | H57: =SUM(H17:H56) -> -1742166.83 | I57: =SUM(I17:I56) -> 728872825.1 | K57: =SUM(K17:K56) -> -114029618.7 | L57: 114029618.7 | M57: =SUM(M17:M56) -> -2.328306437e-10 | N57: =SUM(N17:N56) -> -36517005.99 | O57: =SUM(O17:O56) -> 597688.2 | P57: =SUM(P17:P56) -> -35919317.79 | Q57: =SUM(Q17:Q56) -> 692953507.3
C58: Less Socialized Renewable Energy Generation Investments (input as negative) | I58: =F58+G58+H58 -> 0 | P58: =M58+N58+O58 -> 0 | Q58: =I58+P58 -> 0
C59: Less Other Non Rate-Regulated Utility Assets (input as negative) | I59: =F59+G59+H59 -> 0 | P59: 0 | Q59: =I59+P59 -> 0
C60: Total PP&E | D60: =SUM(D57:D59) -> 730169943.5 | E60: -113527137.2 | F60: =SUM(F57:F59) -> 616642806.2 | G60: =SUM(G57:G59) -> 113972185.7 | H60: -1742166.83 | I60: 728872825.1 | K60: =SUM(K57:K59) -> -114029618.7 | L60: 114029618.7 | M60: -2.328306437e-10 | N60: -36517005.99 | O60: 597688.2 | P60: -35919317.79 | Q60: 692953507.3
C61: Depreciation Expense adj. from gain or loss on the retirement of assets (pool of like assets), if applicable6
C62: Total | N62: =N60+N61 -> -36517005.99
M64: Less: Fully Allocated Depreciation
A65: 10 | C65: Transportation | M65: Transportation
A66: 8 | C66: Stores Equipment | M66: Stores Equipment
M67: Net Depreciation | O67: =N62-O65-O66 -> -36517005.99
A69: Notes:
A71: 1 | B71: Tables in the format outlined above covering all fixed asset accounts should be submitted for the Test Year, Bridge Year and all relevant historical years. At a minimum , the applicant must provide data for the earlier of: 1) all historical years back to its last rebasing; or 2) at least three years of historical actuals, in addition to Bridge Year and Test Year forecasts.
A74: 2 | B74: The "CCA Class" for fixed assets should agree with the CCA Class used for tax purposes in Tax Returns. Fixed Assets sub-components may be used where the underlying asset components are classified under multiple CCA Classes for tax purposes. If an applicant uses any different classes from those shown in the table, an explanation should be provided. (also see note 3 below).
A77: 3 | B77: The table may need to be customized for a utility's asset categories or for any new asset accounts announced or authorized by the Board.
A79: 4 | B79: The additions column (E) must not include construction work in progress (CWIP).
A81: 5 | B81: Effective on the date of IFRS adoption, customer contributions will no longer be recorded in Account 1995 Contributions & Grants, but will be recorded in Account 2440, Deferred Revenues.
A83: 6 | B83: Where a distributor for general financial reporting purposes under IFRS has accounted for the amount of gain or loss on the retirement of assets in a pool of like assets as a charge or credit to income, for reporting and rate application filings the distributor shall reclassify such gains and losses as depreciation expense, and disclose the amount separately.

Sheet App.2-BA_FA Cont 2015
L1: File Number: | M1: =EBNUMBER -> EB-2015-0004
L2: Exhibit: | M2: B
L3: Tab: | M3: 1
L4: Schedule: | M4: 1
L5: Page: | M5: 4 of 9
L7: Date: | M7: ORIGINAL
A9: Appendix 2-BA
A10: Fixed Asset Continuity Schedule
E12: Accounting Standard | F12: MIFRS
E13: Year | F13: 2015
D15: Cost | J15: Accumulated Depreciation
A16: CCA Class | B16: OEB | C16: Description | D16: Opening Balance | E16: Additions | F16: Disposals | G16: Closing Balance | I16: Opening Balance | J16: Additions | K16: Disposals | L16: Closing Balance | M16: Net Book Value
A17: 12 | B17: 1611 | C17: Computer Software (Formally known as Account 1925) | D17: 42613743.4 | E17: 8494616 | F17: 0 | G17: 51108359.4 | I17: -6453896.07 | J17: -6842769.4 | K17: 0 | L17: -13296665.47 | M17: 37811693.93
A18: CEC | B18: 1612 | C18: Land Rights (Formally known as Account 1906) | D18: 1787415.13 | E18: 47888 | F18: 0 | G18: 1835303.13 | I18: -49926.36 | J18: -49427.08 | K18: 0 | L18: -99353.44 | M18: 1735949.69
A19: N/A | B19: 1805 | C19: Land | D19: 24994664.07 | E19: 56376 | F19: 0 | G19: 25051040.07 | I19: 0 | J19: 0 | K19: 0 | L19: 0 | M19: 25051040.07
A20: 47 | B20: 1808 | C20: Buildings | D20: 26556876.71 | E20: 1767355.73 | F20: 0 | G20: 28324232.44 | I20: -744457.31 | J20: -808229.8 | K20: 0 | L20: -1552687.11 | M20: 26771545.33
A21: 13 | B21: 1810 | C21: Leasehold Improvements | D21: 0 | E21: 0 | F21: 0 | G21: 0 | I21: 0 | J21: 0 | K21: 0 | L21: 0 | M21: 0
A22: 47 | B22: 1815 | C22: Transformer Station Equipment >50 kV | D22: 77864068.35 | E22: 9155388.62 | F22: 0 | G22: 87019456.97 | I22: -2851335.3 | J22: -3144273.93 | K22: 0 | L22: -5995609.23 | M22: 81023847.74
A23: 47 | B23: 1820 | C23: Distribution Station Equipment <50 kV | D23: 62236693.67 | E23: 14881533.36 | F23: -153346 | G23: 76964881.03 | I23: -3671645.56 | J23: -3566263.81 | K23: 91547 | L23: -7146362.37 | M23: 69818518.66
A24: 47 | B24: 1825 | C24: Storage Battery Equipment | D24: 0 | E24: 0 | F24: 0 | G24: 0 | I24: 0 | J24: 0 | K24: 0 | L24: 0 | M24: 0
A25: 47 | B25: 1830 | C25: Poles, Towers & Fixtures | D25: 80002181.13 | E25: 11425159.82 | F25: -176894 | G25: 91250446.95 | I25: -2185034.55 | J25: -2548239.9 | K25: 85385 | L25: -4647889.45 | M25: 86602557.5
A26: 47 | B26: 1835 | C26: Overhead Conductors & Devices | D26: 71187381.41 | E26: 12523986.19 | F26: -139822 | G26: 83571545.6 | I26: -1941772.64 | J26: -2434302.12 | K26: 118010 | L26: -4258064.76 | M26: 79313480.84
A27: 47 | B27: 1840 | C27: Underground Conduit | D27: 73968173.16 | E27: 15060043.9 | F27: 0 | G27: 89028217.06 | I27: -2747146.65 | J27: -3733364.42 | K27: 0 | L27: -6480511.07 | M27: 82547705.99
A28: 47 | B28: 1845 | C28: Underground Conductors & Devices | D28: 79820332.38 | E28: 16750870.97 | F28: -882544 | G28: 95688659.35 | I28: -3522163.93 | J28: -4899089.32 | K28: 510296 | L28: -7910957.25 | M28: 87777702.1
A29: 47 | B29: 1850 | C29: Line Transformers | D29: 54859613.77 | E29: 12473909.14 | F29: -211886 | G29: 67121636.91 | I29: -2303197.94 | J29: -3607515.74 | K29: 117650 | L29: -5793063.68 | M29: 61328573.23
A30: 47 | B30: 1855 | C30: Services (Overhead & Underground) | D30: 43041280.94 | E30: 4806826 | F30: 0 | G30: 47848106.94 | I30: -1436916.97 | J30: -2297983.16 | K30: 0 | L30: -3734900.13 | M30: 44113206.81
A31: 47 | B31: 1860 | C31: Meters | D31: 1552114.71 | E31: 772217 | F31: -1706 | G31: 2322625.71 | I31: -103243.54 | J31: -371358 | K31: 125 | L31: -474476.54 | M31: 1848149.17
A32: 47 | B32: 1860 | C32: Meters (Smart Meters) | D32: 36502311.04 | E32: 2172740 | F32: -148671 | G32: 38526380.04 | I32: -3778495.82 | J32: -3925421.38 | K32: 52031 | L32: -7651886.2 | M32: 30874493.84
A33: N/A | B33: 1905 | C33: Land | D33: 0 | E33: 0 | F33: 0 | G33: 0 | I33: 0 | J33: 0 | K33: 0 | L33: 0 | M33: 0
A34: 47 | B34: 1908 | C34: Buildings & Fixtures | D34: 31832157.42 | E34: 492252 | F34: 0 | G34: 32324409.42 | I34: -1742904.93 | J34: -1820639.26 | K34: 0 | L34: -3563544.19 | M34: 28760865.23
A35: 13 | B35: 1910 | C35: Leasehold Improvements | D35: 0 | E35: 0 | F35: 0 | G35: 0 | I35: 0 | J35: 0 | K35: 0 | L35: 0 | M35: 0
A36: 8 | B36: 1915 | C36: Office Furniture & Equipment (10 years) | D36: 1246760.21 | E36: 202281 | F36: 0 | G36: 1449041.21 | I36: -236989.24 | J36: -242372.27 | K36: 0 | L36: -479361.51 | M36: 969679.7
A37: 8 | B37: 1915 | C37: Office Furniture & Equipment (5 years) | D37: 0 | E37: 0 | F37: 0 | G37: 0 | I37: 0 | J37: 0 | K37: 0 | L37: 0 | M37: 0
A38: 10 | B38: 1920 | C38: Computer Equipment - Hardware | D38: 4155215.43 | E38: 1077440 | F38: 0 | G38: 5232655.43 | I38: -1204763.08 | J38: -1216913.74 | K38: 0 | L38: -2421676.82 | M38: 2810978.61
A39: 45 | B39: 1920 | C39: Computer Equip.-Hardware(Post Mar. 22/04) | D39: 1044177.43 | E39: 20232 | F39: 0 | G39: 1064409.43 | I39: -148732.14 | J39: -257792.55 | K39: 0 | L39: -406524.69 | M39: 657884.74
A40: 45.1 | B40: 1920 | C40: Computer Equip.-Hardware(Post Mar. 19/07) | D40: 0 | E40: 0 | F40: 0 | G40: 0 | I40: 0 | J40: 0 | K40: 0 | L40: 0 | M40: 0
A41: 10 | B41: 1930 | C41: Transportation Equipment | D41: 11379393.24 | E41: 1464507 | F41: -48184 | G41: 12795716.24 | I41: -1452031.76 | J41: -1255179.58 | K41: 38009 | L41: -2669202.34 | M41: 10126513.9
A42: 8 | B42: 1935 | C42: Stores Equipment | D42: 752028.55 | E42: 72821 | F42: 0 | G42: 824849.55 | I42: -80903.66 | J42: -62129.56 | K42: 0 | L42: -143033.22 | M42: 681816.33
A43: 8 | B43: 1940 | C43: Tools, Shop & Garage Equipment | D43: 3268070.711 | E43: 513134 | F43: 0 | G43: 3781204.711 | I43: -680995.5 | J43: -664267.53 | K43: 0 | L43: -1345263.03 | M43: 2435941.681
A44: 8 | B44: 1945 | C44: Measurement & Testing Equipment | D44: 228830.19 | E44: 89 | F44: 0 | G44: 228919.19 | I44: -30163.14 | J44: -30318.92 | K44: 0 | L44: -60482.06 | M44: 168437.13
A45: 8 | B45: 1950 | C45: Power Operated Equipment | D45: 0 | E45: 0 | F45: 0 | G45: 0 | I45: 0 | J45: 0 | K45: 0 | L45: 0 | M45: 0
A46: 8 | B46: 1955 | C46: Communications Equipment | D46: 1496618.59 | E46: 234645 | F46: 0 | G46: 1731263.59 | I46: -151451.62 | J46: -238550.68 | K46: 0 | L46: -390002.3 | M46: 1341261.29
A47: 8 | B47: 1955 | C47: Communication Equipment (Smart Meters) | D47: 0 | E47: 0 | F47: 0 | G47: 0 | I47: 0 | J47: 0 | K47: 0 | L47: 0 | M47: 0
A48: 8 | B48: 1960 | C48: Miscellaneous Equipment | D48: 229253.1078 | E48: 0 | F48: 0 | G48: 229253.1078 | I48: -33856.05 | J48: -35188.47 | K48: 0 | L48: -69044.52 | M48: 160208.5878
A49: 47 | B49: 1970 | C49: Load Management Controls Customer Premises | D49: 134245.07 | E49: 0 | F49: 0 | G49: 134245.07 | I49: -52405.73 | J49: -52425.76 | K49: 0 | L49: -104831.49 | M49: 29413.58
A50: 47 | B50: 1975 | C50: Load Management Controls Utility Premises | D50: 17974.33 | E50: 0 | F50: 0 | G50: 17974.33 | I50: -7188.67 | J50: -7193.68 | K50: 0 | L50: -14382.35 | M50: 3591.98
A51: 47 | B51: 1980 | C51: System Supervisor Equipment | D51: 6258009.282 | E51: 513106.04 | F51: 0 | G51: 6771115.322 | I51: -724299.87 | J51: -788096.68 | K51: 0 | L51: -1512396.55 | M51: 5258718.772
A52: 47 | B52: 1985 | C52: Miscellaneous Fixed Assets | D52: 0 | E52: 0 | F52: 0 | G52: 0 | I52: 0 | J52: 0 | K52: 0 | L52: 0 | M52: 0
A53: 47 | B53: 1990 | C53: Other Tangible Property | D53: 0 | E53: 0 | F53: 0 | G53: 0 | I53: 0 | J53: 0 | K53: 0 | L53: 0 | M53: 0
A54: 47 | B54: 1995 | C54: Contributions & Grants | D54: 0 | E54: 0 | F54: 0 | G54: 0 | I54: 0 | J54: 0 | K54: 0 | L54: 0 | M54: 0
A55: 47 | B55: 2440 | C55: Deferred Revenue5 | D55: -20143564.86 | E55: -25432188 | F55: 0 | G55: -45575752.86 | I55: 2537164.78 | J55: 6833629.3 | K55: 0 | L55: 9370794.08 | M55: -36204958.78
B56: 1609 | C56: Capital Contributions Paid | D56: 9986806.51 | E56: 17352847.05 | F56: 0 | G56: =SUM(D56:F56) -> 27339653.56 | I56: -120564.54 | J56: -492095.6026 | K56: 0 | L56: -612660.1426 | M56: 26726993.42
C57: Sub-Total | D57: =SUM(D17:D56) -> 728872825.1 | E57: =SUM(E17:E56) -> 106900076.8 | F57: =SUM(F17:F56) -> -1763053 | G57: =SUM(G17:G56) -> 834009848.9 | I57: =SUM(I17:I56) -> -35919317.79 | J57: =SUM(J17:J56) -> -38557773.04 | K57: =SUM(K17:K56) -> 1013053 | L57: =SUM(L17:L56) -> -73464037.83 | M57: =SUM(M17:M56) -> 760545811.1
C58: Less Socialized Renewable Energy Generation Investments (input as negative) | G58: =D58+E58+F58 -> 0 | L58: =I58+J58+K58 -> 0 | M58: =G58+L58 -> 0
C59: Less Other Non Rate-Regulated Utility Assets (input as negative) | G59: 0 | L59: 0 | M59: 0
C60: Total PP&E | D60: =SUM(D57:D59) -> 728872825.1 | E60: =SUM(E57:E59) -> 106900076.8 | F60: -1763053 | G60: 834009848.9 | I60: =SUM(I57:I59) -> -35919317.79 | J60: -38557773.04 | K60: 1013053 | L60: -73464037.83 | M60: 760545811.1
C61: Depreciation Expense adj. from gain or loss on the retirement of assets (pool of like assets), if applicable6
C62: Total | J62: =J60+J61 -> -38557773.04
I64: Less: Fully Allocated Depreciation
A65: 10 | C65: Transportation | I65: Transportation
A66: 8 | C66: Stores Equipment | I66: Stores Equipment
I67: Net Depreciation | K67: =J62-K65-K66 -> -38557773.04
A69: Notes:
A71: 1 | B71: Tables in the format outlined above covering all fixed asset accounts should be submitted for the Test Year, Bridge Year and all relevant historical years. At a minimum , the applicant must provide data for the earlier of: 1) all historical years back to its last rebasing; or 2) at least three years of historical actuals, in addition to Bridge Year and Test Year forecasts.
A74: 2 | B74: The "CCA Class" for fixed assets should agree with the CCA Class used for tax purposes in Tax Returns. Fixed Assets sub-components may be used where the underlying asset components are classified under multiple CCA Classes for tax purposes. If an applicant uses any different classes from those shown in the table, an explanation should be provided. (also see note 3 below).
A77: 3 | B77: The table may need to be customized for a utility's asset categories or for any new asset accounts announced or authorized by the Board.
A79: 4 | B79: The additions column (E) must not include construction work in progress (CWIP).
A81: 5 | B81: Effective on the date of IFRS adoption, customer contributions will no longer be recorded in Account 1995 Contributions & Grants, but will be recorded in Account 2440, Deferred Revenues.
A83: 6 | B83: Where a distributor for general financial reporting purposes under IFRS has accounted for the amount of gain or loss on the retirement of assets in a pool of like assets as a charge or credit to income, for reporting and rate application filings the distributor shall reclassify such gains and losses as depreciation expense, and disclose the amount separately.

Sheet App.2-BA_FA Cont 2016
L1: File Number: | M1: =EBNUMBER -> EB-2015-0004
L2: Exhibit: | M2: B
L3: Tab: | M3: 1
L4: Schedule: | M4: 1
L5: Page: | M5: 5 of 9
L7: Date: | M7: ORIGINAL
A9: Appendix 2-BA
A10: Fixed Asset Continuity Schedule
E12: Accounting Standard | F12: MIFRS
E13: Year | F13: 2016
D15: Cost | J15: Accumulated Depreciation
A16: CCA Class | B16: OEB | C16: Description | D16: Opening Balance | E16: Additions | F16: Disposals | G16: Closing Balance | I16: Opening Balance | J16: Additions | K16: Disposals | L16: Closing Balance | M16: Net Book Value
A17: 12 | B17: 1611 | C17: Computer Software (Formally known as Account 1925) | D17: 51108359.4 | E17: 5746639 | F17: 0 | G17: 56854998.4 | I17: -13296665.47 | J17: -7476010.34 | K17: 0 | L17: -20772675.81 | M17: 36082322.59
A18: CEC | B18: 1612 | C18: Land Rights (Formally known as Account 1906) | D18: 1835303.13 | E18: 60962 | F18: 0 | G18: 1896265.13 | I18: -99353.44 | J18: -50651.73 | K18: 0 | L18: -150005.17 | M18: 1746259.96
A19: N/A | B19: 1805 | C19: Land | D19: 25051040.07 | E19: 83466 | F19: 0 | G19: 25134506.07 | I19: 0 | J19: 0 | K19: 0 | L19: 0 | M19: 25134506.07
A20: 47 | B20: 1808 | C20: Buildings | D20: 28324232.44 | E20: 1836061 | F20: 0 | G20: 30160293.44 | I20: -1552687.11 | J20: -839898.87 | K20: 0 | L20: -2392585.98 | M20: 27767707.46
A21: 13 | B21: 1810 | C21: Leasehold Improvements | D21: 0 | E21: 0 | F21: 0 | G21: 0 | I21: 0 | J21: 0 | K21: 0 | L21: 0 | M21: 0
A22: 47 | B22: 1815 | C22: Transformer Station Equipment >50 kV | D22: 87019456.97 | E22: 502034 | F22: 0 | G22: 87521490.97 | I22: -5995609.23 | J22: -3157711.62 | K22: 0 | L22: -9153320.85 | M22: 78368170.12
A23: 47 | B23: 1820 | C23: Distribution Station Equipment <50 kV | D23: 76964881.03 | E23: 14861294 | F23: -153346 | G23: 91672829.03 | I23: -7146362.37 | J23: -3363678.16 | K23: 91547 | L23: -10418493.53 | M23: 81254335.5
A24: 47 | B24: 1825 | C24: Storage Battery Equipment | D24: 0 | E24: 0 | F24: 0 | G24: 0 | I24: 0 | J24: 0 | K24: 0 | L24: 0 | M24: 0
A25: 47 | B25: 1830 | C25: Poles, Towers & Fixtures | D25: 91250446.95 | E25: 10912340 | F25: -176894 | G25: 101985892.9 | I25: -4647889.45 | J25: -2801604 | K25: 85385 | L25: -7364108.45 | M25: 94621784.5
A26: 47 | B26: 1835 | C26: Overhead Conductors & Devices | D26: 83571545.6 | E26: 11154075 | F26: -139822 | G26: 94585798.6 | I26: -4258064.76 | J26: -2719076.03 | K26: 118010 | L26: -6859130.79 | M26: 87726667.81
A27: 47 | B27: 1840 | C27: Underground Conduit | D27: 89028217.06 | E27: 17658496 | F27: 0 | G27: 106686713.1 | I27: -6480511.07 | J27: -4150193.36 | K27: 0 | L27: -10630704.43 | M27: 96056008.63
A28: 47 | B28: 1845 | C28: Underground Conductors & Devices | D28: 95688659.35 | E28: 17768578 | F28: -882544 | G28: 112574693.3 | I28: -7910957.25 | J28: -5331395.77 | K28: 510296 | L28: -12732057.02 | M28: 99842636.33
A29: 47 | B29: 1850 | C29: Line Transformers | D29: 67121636.91 | E29: 10588745 | F29: -211886 | G29: 77498495.91 | I29: -5793063.68 | J29: -3992560.54 | K29: 117650 | L29: -9667974.22 | M29: 67830521.69
A30: 47 | B30: 1855 | C30: Services (Overhead & Underground) | D30: 47848106.94 | E30: 4641415 | F30: 0 | G30: 52489521.94 | I30: -3734900.13 | J30: -2408976.49 | K30: 0 | L30: -6143876.62 | M30: 46345645.32
A31: 47 | B31: 1860 | C31: Meters | D31: 2322625.71 | E31: 839698 | F31: -1706 | G31: 3160617.71 | I31: -474476.54 | J31: -425965.2 | K31: 125 | L31: -900316.74 | M31: 2260300.97
A32: 47 | B32: 1860 | C32: Meters (Smart Meters) | D32: 38526380.04 | E32: 2239212 | F32: -148671 | G32: 40616921.04 | I32: -7651886.2 | J32: -4082919.16 | K32: 52031 | L32: -11682774.36 | M32: 28934146.68
A33: N/A | B33: 1905 | C33: Land | D33: 0 | E33: 0 | F33: 0 | G33: 0 | I33: 0 | J33: 0 | K33: 0 | L33: 0 | M33: 0
A34: 47 | B34: 1908 | C34: Buildings & Fixtures | D34: 32324409.42 | E34: 1249694 | F34: 0 | G34: 33574103.42 | I34: -3563544.19 | J34: -1855444.19 | K34: 0 | L34: -5418988.38 | M34: 28155115.04
A35: 13 | B35: 1910 | C35: Leasehold Improvements | D35: 0 | E35: 0 | F35: 0 | G35: 0 | I35: 0 | J35: 0 | K35: 0 | L35: 0 | M35: 0
A36: 8 | B36: 1915 | C36: Office Furniture & Equipment (10 years) | D36: 1449041.21 | E36: 202162 | F36: 0 | G36: 1651203.21 | I36: -479361.51 | J36: -250327.19 | K36: 0 | L36: -729688.7 | M36: 921514.51
A37: 8 | B37: 1915 | C37: Office Furniture & Equipment (5 years) | D37: 0 | E37: 0 | F37: 0 | G37: 0 | I37: 0 | J37: 0 | K37: 0 | L37: 0 | M37: 0
A38: 10 | B38: 1920 | C38: Computer Equipment - Hardware | D38: 5232655.43 | E38: 3046928 | F38: 0 | G38: 8279583.43 | I38: -2421676.82 | J38: -1367711.78 | K38: 0 | L38: -3789388.6 | M38: 4490194.83
A39: 45 | B39: 1920 | C39: Computer Equip.-Hardware(Post Mar. 22/04) | D39: 1064409.43 | E39: 20216 | F39: 0 | G39: 1084625.43 | I39: -406524.69 | J39: -226907.19 | K39: 0 | L39: -633431.88 | M39: 451193.55
A40: 45.1 | B40: 1920 | C40: Computer Equip.-Hardware(Post Mar. 19/07) | D40: 0 | E40: 0 | F40: 0 | G40: 0 | I40: 0 | J40: 0 | K40: 0 | L40: 0 | M40: 0
A41: 10 | B41: 1930 | C41: Transportation Equipment | D41: 12795716.24 | E41: 1289703 | F41: -48184 | G41: 14037235.24 | I41: -2669202.34 | J41: -1375966.79 | K41: 38009 | L41: -4007160.13 | M41: 10030075.11
A42: 8 | B42: 1935 | C42: Stores Equipment | D42: 824849.55 | E42: 165771 | F42: 0 | G42: 990620.55 | I42: -143033.22 | J42: -68346.12 | K42: 0 | L42: -211379.34 | M42: 779241.21
A43: 8 | B43: 1940 | C43: Tools, Shop & Garage Equipment | D43: 3781204.711 | E43: 512676 | F43: 0 | G43: 4293880.711 | I43: -1345263.03 | J43: -590895.65 | K43: 0 | L43: -1936158.68 | M43: 2357722.031
A44: 8 | B44: 1945 | C44: Measurement & Testing Equipment | D44: 228919.19 | E44: 195 | F44: 0 | G44: 229114.19 | I44: -60482.06 | J44: -27265.82 | K44: 0 | L44: -87747.88 | M44: 141366.31
A45: 8 | B45: 1950 | C45: Power Operated Equipment | D45: 0 | E45: 0 | F45: 0 | G45: 0 | I45: 0 | J45: 0 | K45: 0 | L45: 0 | M45: 0
A46: 8 | B46: 1955 | C46: Communications Equipment | D46: 1731263.59 | E46: 1876347 | F46: 0 | G46: 3607610.59 | I46: -390002.3 | J46: -297915.62 | K46: 0 | L46: -687917.92 | M46: 2919692.67
A47: 8 | B47: 1955 | C47: Communication Equipment (Smart Meters) | D47: 0 | E47: 0 | F47: 0 | G47: 0 | I47: 0 | J47: 0 | K47: 0 | L47: 0 | M47: 0
A48: 8 | B48: 1960 | C48: Miscellaneous Equipment | D48: 229253.1078 | E48: 1361293 | F48: 0 | G48: 1590546.108 | I48: -69044.52 | J48: -57812.23 | K48: 0 | L48: -126856.75 | M48: 1463689.358
A49: 47 | B49: 1970 | C49: Load Management Controls Customer Premises | D49: 134245.07 | E49: 0 | F49: 0 | G49: 134245.07 | I49: -104831.49 | J49: -27780.68 | K49: 0 | L49: -132612.17 | M49: 1632.9
A50: 47 | B50: 1975 | C50: Load Management Controls Utility Premises | D50: 17974.33 | E50: 0 | F50: 0 | G50: 17974.33 | I50: -14382.35 | J50: -3586.98 | K50: 0 | L50: -17969.33 | M50: 5
A51: 47 | B51: 1980 | C51: System Supervisor Equipment | D51: 6771115.322 | E51: 574547 | F51: 0 | G51: 7345662.322 | I51: -1512396.55 | J51: -780383.12 | K51: 0 | L51: -2292779.67 | M51: 5052882.652
A52: 47 | B52: 1985 | C52: Miscellaneous Fixed Assets | D52: 0 | E52: 0 | F52: 0 | G52: 0 | I52: 0 | J52: 0 | K52: 0 | L52: 0 | M52: 0
A53: 47 | B53: 1990 | C53: Other Tangible Property | D53: 0 | E53: 0 | F53: 0 | G53: 0 | I53: 0 | J53: 0 | K53: 0 | L53: 0 | M53: 0
A54: 47 | B54: 1995 | C54: Contributions & Grants | D54: 0 | E54: 0 | F54: 0 | G54: 0 | I54: 0 | J54: 0 | K54: 0 | L54: 0 | M54: 0
A55: 47 | B55: 2440 | C55: Deferred Revenue5 | D55: -45575752.86 | E55: -25701824 | F55: 0 | G55: -71277576.86 | I55: 9370794.08 | J55: 7565739.62 | K55: 0 | L55: 16936533.7 | M55: -54341043.16
B56: 1609 | C56: Capital Contributions Paid | D56: 27339653.56 | E56: 4890441 | F56: 0 | G56: 32230094.56 | I56: -612660.1426 | J56: -660869.3089 | K56: 0 | L56: -1273529.451 | M56: 30956565.11
C57: Sub-Total | D57: =SUM(D17:D56) -> 834009848.9 | E57: =SUM(E17:E56) -> 88381164 | F57: =SUM(F17:F56) -> -1763053 | G57: =SUM(G17:G56) -> 920627959.9 | I57: =SUM(I17:I56) -> -73464037.83 | J57: =SUM(J17:J56) -> -40826114.32 | K57: =SUM(K17:K56) -> 1013053 | L57: =SUM(L17:L56) -> -113277099.2 | M57: =SUM(M17:M56) -> 807350860.8
C58: Less Socialized Renewable Energy Generation Investments (input as negative) | G58: =D58+E58+F58 -> 0 | L58: =I58+J58+K58 -> 0 | M58: =G58+L58 -> 0
C59: Less Other Non Rate-Regulated Utility Assets (input as negative) | G59: 0 | L59: 0 | M59: 0
C60: Total PP&E | D60: =SUM(D57:D59) -> 834009848.9 | E60: =SUM(E57:E59) -> 88381164 | F60: -1763053 | G60: 920627959.9 | I60: =SUM(I57:I59) -> -73464037.83 | J60: -40826114.32 | K60: 1013053 | L60: -113277099.2 | M60: 807350860.8
C61: Depreciation Expense adj. from gain or loss on the retirement of assets (pool of like assets), if applicable6
C62: Total | J62: =J60+J61 -> -40826114.32
I64: Less: Fully Allocated Depreciation
A65: 10 | C65: Transportation | I65: Transportation
A66: 8 | C66: Stores Equipment | I66: Stores Equipment
I67: Net Depreciation | K67: =J62-K65-K66 -> -40826114.32
A69: Notes:
A71: 1 | B71: Tables in the format outlined above covering all fixed asset accounts should be submitted for the Test Year, Bridge Year and all relevant historical years. At a minimum , the applicant must provide data for the earlier of: 1) all historical years back to its last rebasing; or 2) at least three years of historical actuals, in addition to Bridge Year and Test Year forecasts.
A74: 2 | B74: The "CCA Class" for fixed assets should agree with the CCA Class used for tax purposes in Tax Returns. Fixed Assets sub-components may be used where the underlying asset components are classified under multiple CCA Classes for tax purposes. If an applicant uses any different classes from those shown in the table, an explanation should be provided. (also see note 3 below).
A77: 3 | B77: The table may need to be customized for a utility's asset categories or for any new asset accounts announced or authorized by the Board.
A79: 4 | B79: The additions column (E) must not include construction work in progress (CWIP).
A81: 5 | B81: Effective on the date of IFRS adoption, customer contributions will no longer be recorded in Account 1995 Contributions & Grants, but will be recorded in Account 2440, Deferred Revenues.
A83: 6 | B83: Where a distributor for general financial reporting purposes under IFRS has accounted for the amount of gain or loss on the retirement of assets in a pool of like assets as a charge or credit to income, for reporting and rate application filings the distributor shall reclassify such gains and losses as depreciation expense, and disclose the amount separately.

Sheet App.2-BA_FA Cont 2017
L1: File Number: | M1: =EBNUMBER -> EB-2015-0004
L2: Exhibit: | M2: B
L3: Tab: | M3: 1
L4: Schedule: | M4: 1
L5: Page: | M5: 6 of 9
L7: Date: | M7: ORIGINAL
A9: Appendix 2-BA
A10: Fixed Asset Continuity Schedule
E12: Accounting Standard | F12: MIFRS
E13: Year | F13: 2017
D15: Cost | J15: Accumulated Depreciation
A16: CCA Class | B16: OEB | C16: Description | D16: Opening Balance | E16: Additions | F16: Disposals | G16: Closing Balance | I16: Opening Balance | J16: Additions | K16: Disposals | L16: Closing Balance | M16: Net Book Value
A17: 12 | B17: 1611 | C17: Computer Software (Formally known as Account 1925) | D17: 56854998.4 | E17: 14487488 | F17: 0 | G17: 71342486.4 | I17: -20772675.81 | J17: -9090500 | K17: 0 | L17: -29863175.81 | M17: 41479310.59
A18: CEC | B18: 1612 | C18: Land Rights (Formally known as Account 1906) | D18: 1896265.13 | E18: 54317 | F18: 0 | G18: 1950582.13 | I18: -150005.17 | J18: -51667 | K18: 0 | L18: -201672.17 | M18: 1748909.96
A19: N/A | B19: 1805 | C19: Land | D19: 25134506.07 | E19: 74745 | F19: 0 | G19: 25209251.07 | I19: 0 | J19: 0 | K19: 0 | L19: 0 | M19: 25209251.07
A20: 47 | B20: 1808 | C20: Buildings | D20: 30160293.44 | E20: 2066613 | F20: 0 | G20: 32226906.44 | I20: -2392585.98 | J20: -852913 | K20: 0 | L20: -3245498.98 | M20: 28981407.46
A21: 13 | B21: 1810 | C21: Leasehold Improvements | D21: 0 | E21: 0 | F21: 0 | G21: 0 | I21: 0 | J21: 0 | K21: 0 | L21: 0 | M21: 0
A22: 47 | B22: 1815 | C22: Transformer Station Equipment >50 kV | D22: 87521490.97 | E22: 3270317 | F22: 0 | G22: 90791807.97 | I22: -9153320.85 | J22: -3176044 | K22: 0 | L22: -12329364.85 | M22: 78462443.12
A23: 47 | B23: 1820 | C23: Distribution Station Equipment <50 kV | D23: 91672829.03 | E23: 7281006 | F23: -153346 | G23: 98800489.03 | I23: -10418493.53 | J23: -3426827 | K23: 91547 | L23: -13753773.53 | M23: 85046715.5
A24: 47 | B24: 1825 | C24: Storage Battery Equipment | D24: 0 | E24: 0 | F24: 0 | G24: 0 | I24: 0 | J24: 0 | K24: 0 | L24: 0 | M24: 0
A25: 47 | B25: 1830 | C25: Poles, Towers & Fixtures | D25: 101985892.9 | E25: 9641272 | F25: -176894 | G25: 111450270.9 | I25: -7364108.45 | J25: -3023381 | K25: 85385 | L25: -10302104.45 | M25: 101148166.5
A26: 47 | B26: 1835 | C26: Overhead Conductors & Devices | D26: 94585798.6 | E26: 10561884 | F26: -139822 | G26: 105007860.6 | I26: -6859130.79 | J26: -2964330 | K26: 118010 | L26: -9705450.79 | M26: 95302409.81
A27: 47 | B27: 1840 | C27: Underground Conduit | D27: 106686713.1 | E27: 15913333 | F27: 0 | G27: 122600046.1 | I27: -10630704.43 | J27: -4555873 | K27: 0 | L27: -15186577.43 | M27: 107413468.6
A28: 47 | B28: 1845 | C28: Underground Conductors & Devices | D28: 112574693.3 | E28: 15799995 | F28: -882544 | G28: 127492144.3 | I28: -12732057.02 | J28: -5738226 | K28: 510296 | L28: -17959987.02 | M28: 109532157.3
A29: 47 | B29: 1850 | C29: Line Transformers | D29: 77498495.91 | E29: 11268691 | F29: -211886 | G29: 88555300.91 | I29: -9667974.22 | J29: -4339744 | K29: 117650 | L29: -13890068.22 | M29: 74665232.69
A30: 47 | B30: 1855 | C30: Services (Overhead & Underground) | D30: 52489521.94 | E30: 4462139 | F30: 0 | G30: 56951660.94 | I30: -6143876.62 | J30: -2504052 | K30: 0 | L30: -8647928.62 | M30: 48303732.32
A31: 47 | B31: 1860 | C31: Meters | D31: 3160617.71 | E31: 795550 | F31: -1706 | G31: 3954461.71 | I31: -900316.74 | J31: -479211 | K31: 125 | L31: -1379402.74 | M31: 2575058.97
A32: 47 | B32: 1860 | C32: Meters (Smart Meters) | D32: 40616921.04 | E32: 3422515 | F32: -148671 | G32: 43890765.04 | I32: -11682774.36 | J32: -4261213 | K32: 52031 | L32: -15891956.36 | M32: 27998808.68
A33: N/A | B33: 1905 | C33: Land | D33: 0 | E33: 0 | F33: 0 | G33: 0 | I33: 0 | J33: 0 | K33: 0 | L33: 0 | M33: 0
A34: 47 | B34: 1908 | C34: Buildings & Fixtures | D34: 33574103.42 | E34: 434312 | F34: 0 | G34: 34008415.42 | I34: -5418988.38 | J34: -1832004 | K34: 0 | L34: -7250992.38 | M34: 26757423.04
A35: 13 | B35: 1910 | C35: Leasehold Improvements | D35: 0 | E35: 0 | F35: 0 | G35: 0 | I35: 0 | J35: 0 | K35: 0 | L35: 0 | M35: 0
A36: 8 | B36: 1915 | C36: Office Furniture & Equipment (10 years) | D36: 1651203.21 | E36: 80864 | F36: 0 | G36: 1732067.21 | I36: -729688.7 | J36: -226757 | K36: 0 | L36: -956445.7 | M36: 775621.51
A37: 8 | B37: 1915 | C37: Office Furniture & Equipment (5 years) | D37: 0 | E37: 0 | F37: 0 | G37: 0 | I37: 0 | J37: 0 | K37: 0 | L37: 0 | M37: 0
A38: 10 | B38: 1920 | C38: Computer Equipment - Hardware | D38: 8279583.43 | E38: 936580 | F38: 0 | G38: 9216163.43 | I38: -3789388.6 | J38: -1531304 | K38: 0 | L38: -5320692.6 | M38: 3895470.83
A39: 45 | B39: 1920 | C39: Computer Equip.-Hardware(Post Mar. 22/04) | D39: 1084625.43 | E39: 20622 | F39: 0 | G39: 1105247.43 | I39: -633431.88 | J39: -182815 | K39: 0 | L39: -816246.88 | M39: 289000.55
A40: 45.1 | B40: 1920 | C40: Computer Equip.-Hardware(Post Mar. 19/07) | D40: 0 | E40: 0 | F40: 0 | G40: 0 | I40: 0 | J40: 0 | K40: 0 | L40: 0 | M40: 0
A41: 10 | B41: 1930 | C41: Transportation Equipment | D41: 14037235.24 | E41: 1035059 | F41: -48184 | G41: 15024110.24 | I41: -4007160.13 | J41: -1446015 | K41: 38009 | L41: -5415166.13 | M41: 9608944.11
A42: 8 | B42: 1935 | C42: Stores Equipment | D42: 990620.55 | E42: 173858 | F42: 0 | G42: 1164478.55 | I42: -211379.34 | J42: -79506 | K42: 0 | L42: -290885.34 | M42: 873593.21
A43: 8 | B43: 1940 | C43: Tools, Shop & Garage Equipment | D43: 4293880.711 | E43: 521576 | F43: 0 | G43: 4815456.711 | I43: -1936158.68 | J43: -512161 | K43: 0 | L43: -2448319.68 | M43: 2367137.031
A44: 8 | B44: 1945 | C44: Measurement & Testing Equipment | D44: 229114.19 | E44: 110 | F44: 0 | G44: 229224.19 | I44: -87747.88 | J44: -24704 | K44: 0 | L44: -112451.88 | M44: 116772.31
A45: 8 | B45: 1950 | C45: Power Operated Equipment | D45: 0 | E45: 0 | F45: 0 | G45: 0 | I45: 0 | J45: 0 | K45: 0 | L45: 0 | M45: 0
A46: 8 | B46: 1955 | C46: Communications Equipment | D46: 3607610.59 | E46: 1507683 | F46: 0 | G46: 5115293.59 | I46: -687917.92 | J46: -336374 | K46: 0 | L46: -1024291.92 | M46: 4091001.67
A47: 8 | B47: 1955 | C47: Communication Equipment (Smart Meters) | D47: 0 | E47: 0 | F47: 0 | G47: 0 | I47: 0 | J47: 0 | K47: 0 | L47: 0 | M47: 0
A48: 8 | B48: 1960 | C48: Miscellaneous Equipment | D48: 1590546.108 | E48: 2912498 | F48: 0 | G48: 4503044.108 | I48: -126856.75 | J48: -193857 | K48: 0 | L48: -320713.75 | M48: 4182330.358
A49: 47 | B49: 1970 | C49: Load Management Controls Customer Premises | D49: 134245.07 | E49: 0 | F49: 0 | G49: 134245.07 | I49: -132612.17 | J49: -1613 | K49: 0 | L49: -134225.17 | M49: 19.9
A50: 47 | B50: 1975 | C50: Load Management Controls Utility Premises | D50: 17974.33 | E50: 0 | F50: 0 | G50: 17974.33 | I50: -17969.33 | J50: 0 | K50: 0 | L50: -17969.33 | M50: 5
A51: 47 | B51: 1980 | C51: System Supervisor Equipment | D51: 7345662.322 | E51: 462587 | F51: 0 | G51: 7808249.322 | I51: -2292779.67 | J51: -753194 | K51: 0 | L51: -3045973.67 | M51: 4762275.652
A52: 47 | B52: 1985 | C52: Miscellaneous Fixed Assets | D52: 0 | E52: 0 | F52: 0 | G52: 0 | I52: 0 | J52: 0 | K52: 0 | L52: 0 | M52: 0
A53: 47 | B53: 1990 | C53: Other Tangible Property | D53: 0 | E53: 0 | F53: 0 | G53: 0 | I53: 0 | J53: 0 | K53: 0 | L53: 0 | M53: 0
A54: 47 | B54: 1995 | C54: Contributions & Grants | D54: 0 | E54: 0 | F54: 0 | G54: 0 | I54: 0 | J54: 0 | K54: 0 | L54: 0 | M54: 0
A55: 47 | B55: 2440 | C55: Deferred Revenue5 | D55: -71277576.86 | E55: -25296257 | F55: 0 | G55: -96573833.86 | I55: 16936533.7 | J55: 8229610 | K55: 0 | L55: 25166143.7 | M55: -71407690.16
B56: 1609 | C56: Capital Contributions Paid | D56: 32230094.56 | E56: 5000000 | F56: 0 | G56: 37230094.56 | I56: -1273529.451 | J56: -790402.8889 | K56: 0 | L56: -2063932.34 | M56: 35166162.22
C57: Sub-Total | D57: =SUM(D17:D56) -> 920627959.9 | E57: =SUM(E17:E56) -> 86889357 | F57: =SUM(F17:F56) -> -1763053 | G57: =SUM(G17:G56) -> 1005754264 | I57: =SUM(I17:I56) -> -113277099.2 | J57: =SUM(J17:J56) -> -44145077.89 | K57: =SUM(K17:K56) -> 1013053 | L57: =SUM(L17:L56) -> -156409124 | M57: =SUM(M17:M56) -> 849345139.9
C58: Less Socialized Renewable Energy Generation Investments (input as negative) | G58: =D58+E58+F58 -> 0 | L58: =I58+J58+K58 -> 0 | M58: =G58+L58 -> 0
C59: Less Other Non Rate-Regulated Utility Assets (input as negative) | G59: 0 | L59: 0 | M59: 0
C60: Total PP&E | D60: =SUM(D57:D59) -> 920627959.9 | E60: =SUM(E57:E59) -> 86889357 | F60: -1763053 | G60: 1005754264 | I60: =SUM(I57:I59) -> -113277099.2 | J60: -44145077.89 | K60: 1013053 | L60: -156409124 | M60: 849345139.9
C61: Depreciation Expense adj. from gain or loss on the retirement of assets (pool of like assets), if applicable6
C62: Total | J62: =J60+J61 -> -44145077.89
I64: Less: Fully Allocated Depreciation
A65: 10 | C65: Transportation | I65: Transportation
A66: 8 | C66: Stores Equipment | I66: Stores Equipment
I67: Net Depreciation | K67: =J62-K65-K66 -> -44145077.89
A69: Notes:
A71: 1 | B71: Tables in the format outlined above covering all fixed asset accounts should be submitted for the Test Year, Bridge Year and all relevant historical years. At a minimum , the applicant must provide data for the earlier of: 1) all historical years back to its last rebasing; or 2) at least three years of historical actuals, in addition to Bridge Year and Test Year forecasts.
A74: 2 | B74: The "CCA Class" for fixed assets should agree with the CCA Class used for tax purposes in Tax Returns. Fixed Assets sub-components may be used where the underlying asset components are classified under multiple CCA Classes for tax purposes. If an applicant uses any different classes from those shown in the table, an explanation should be provided. (also see note 3 below).
A77: 3 | B77: The table may need to be customized for a utility's asset categories or for any new asset accounts announced or authorized by the Board.
A79: 4 | B79: The additions column (E) must not include construction work in progress (CWIP).
A81: 5 | B81: Effective on the date of IFRS adoption, customer contributions will no longer be recorded in Account 1995 Contributions & Grants, but will be recorded in Account 2440, Deferred Revenues.
A83: 6 | B83: Where a distributor for general financial reporting purposes under IFRS has accounted for the amount of gain or loss on the retirement of assets in a pool of like assets as a charge or credit to income, for reporting and rate application filings the distributor shall reclassify such gains and losses as depreciation expense, and disclose the amount separately.

Sheet App.2-BA_FA Cont 2018
L1: File Number: | M1: =EBNUMBER -> EB-2015-0004
L2: Exhibit: | M2: B
L3: Tab: | M3: 1
L4: Schedule: | M4: 1
L5: Page: | M5: 7 of 9
L7: Date: | M7: ORIGINAL
A9: Appendix 2-BA
A10: Fixed Asset Continuity Schedule
E12: Accounting Standard | F12: MIFRS
E13: Year | F13: 2018
D15: Cost | J15: Accumulated Depreciation
A16: CCA Class | B16: OEB | C16: Description | D16: Opening Balance | E16: Additions | F16: Disposals | G16: Closing Balance | I16: Opening Balance | J16: Additions | K16: Disposals | L16: Closing Balance | M16: Net Book Value
A17: 12 | B17: 1611 | C17: Computer Software (Formally known as Account 1925) | D17: 71342486.4 | E17: 4427066 | F17: 0 | G17: 75769552.4 | I17: -29863175.81 | J17: -9832030 | K17: 0 | L17: -39695205.81 | M17: 36074346.59
A18: CEC | B18: 1612 | C18: Land Rights (Formally known as Account 1906) | D18: 1950582.13 | E18: 62268 | F18: 0 | G18: 2012850.13 | I18: -201672.17 | J18: -52833 | K18: 0 | L18: -254505.17 | M18: 1758344.96
A19: N/A | B19: 1805 | C19: Land | D19: 25209251.07 | E19: 86076 | F19: 0 | G19: 25295327.07 | I19: 0 | J19: 0 | K19: 0 | L19: 0 | M19: 25295327.07
A20: 47 | B20: 1808 | C20: Buildings | D20: 32226906.44 | E20: 2806407 | F20: 0 | G20: 35033313.44 | I20: -3245498.98 | J20: -887113 | K20: 0 | L20: -4132611.98 | M20: 30900701.46
A21: 13 | B21: 1810 | C21: Leasehold Improvements | D21: 0 | E21: 0 | F21: 0 | G21: 0 | I21: 0 | J21: 0 | K21: 0 | L21: 0 | M21: 0
A22: 47 | B22: 1815 | C22: Transformer Station Equipment >50 kV | D22: 90791807.97 | E22: 2080855 | F22: 0 | G22: 92872662.97 | I22: -12329364.85 | J22: -3249345 | K22: 0 | L22: -15578709.85 | M22: 77293953.12
A23: 47 | B23: 1820 | C23: Distribution Station Equipment <50 kV | D23: 98800489.03 | E23: 21080999 | F23: -153346 | G23: 119728142 | I23: -13753773.53 | J23: -3804192 | K23: 91547 | L23: -17466418.53 | M23: 102261723.5
A24: 47 | B24: 1825 | C24: Storage Battery Equipment | D24: 0 | E24: 0 | F24: 0 | G24: 0 | I24: 0 | J24: 0 | K24: 0 | L24: 0 | M24: 0
A25: 47 | B25: 1830 | C25: Poles, Towers & Fixtures | D25: 111450270.9 | E25: 10665681 | F25: -176894 | G25: 121939057.9 | I25: -10302104.45 | J25: -3249573 | K25: 85385 | L25: -13466292.45 | M25: 108472765.5
A26: 47 | B26: 1835 | C26: Overhead Conductors & Devices | D26: 105007860.6 | E26: 11850925 | F26: -139822 | G26: 116718963.6 | I26: -9705450.79 | J26: -3223910 | K26: 118010 | L26: -12811350.79 | M26: 103907612.8
A27: 47 | B27: 1840 | C27: Underground Conduit | D27: 122600046.1 | E27: 16732365 | F27: 0 | G27: 139332411.1 | I27: -15186577.43 | J27: -4970108 | K27: 0 | L27: -20156685.43 | M27: 119175725.6
A28: 47 | B28: 1845 | C28: Underground Conductors & Devices | D28: 127492144.3 | E28: 16687693 | F28: -882544 | G28: 143297293.3 | I28: -17959987.02 | J28: -6166168 | K28: 510296 | L28: -23615859.02 | M28: 119681434.3
A29: 47 | B29: 1850 | C29: Line Transformers | D29: 88555300.91 | E29: 11745128 | F29: -211886 | G29: 100088542.9 | I29: -13890068.22 | J29: -4715034 | K29: 117650 | L29: -18487452.22 | M29: 81601090.69
A30: 47 | B30: 1855 | C30: Services (Overhead & Underground) | D30: 56951660.94 | E30: 4653541 | F30: 0 | G30: 61605201.94 | I30: -8647928.62 | J30: -2605361 | K30: 0 | L30: -11253289.62 | M30: 50351912.32
A31: 47 | B31: 1860 | C31: Meters | D31: 3954461.71 | E31: 789986 | F31: -1706 | G31: 4742741.71 | I31: -1379402.74 | J31: -525269 | K31: 125 | L31: -1904546.74 | M31: 2838194.97
A32: 47 | B32: 1860 | C32: Meters (Smart Meters) | D32: 43890765.04 | E32: 3459747 | F32: -148671 | G32: 47201841.04 | I32: -15891956.36 | J32: -4490622 | K32: 52031 | L32: -20330547.36 | M32: 26871293.68
A33: N/A | B33: 1905 | C33: Land | D33: 0 | E33: 0 | F33: 0 | G33: 0 | I33: 0 | J33: 0 | K33: 0 | L33: 0 | M33: 0
A34: 47 | B34: 1908 | C34: Buildings & Fixtures | D34: 34008415.42 | E34: 123306 | F34: 0 | G34: 34131721.42 | I34: -7250992.38 | J34: -1762299 | K34: 0 | L34: -9013291.38 | M34: 25118430.04
A35: 13 | B35: 1910 | C35: Leasehold Improvements | D35: 0 | E35: 0 | F35: 0 | G35: 0 | I35: 0 | J35: 0 | K35: 0 | L35: 0 | M35: 0
A36: 8 | B36: 1915 | C36: Office Furniture & Equipment (10 years) | D36: 1732067.21 | E36: 40432 | F36: 0 | G36: 1772499.21 | I36: -956445.7 | J36: -171883 | K36: 0 | L36: -1128328.7 | M36: 644170.51
A37: 8 | B37: 1915 | C37: Office Furniture & Equipment (5 years) | D37: 0 | E37: 0 | F37: 0 | G37: 0 | I37: 0 | J37: 0 | K37: 0 | L37: 0 | M37: 0
A38: 10 | B38: 1920 | C38: Computer Equipment - Hardware | D38: 9216163.43 | E38: 995222 | F38: 0 | G38: 10211385.43 | I38: -5320692.6 | J38: -1454736 | K38: 0 | L38: -6775428.6 | M38: 3435956.83
A39: 45 | B39: 1920 | C39: Computer Equip.-Hardware(Post Mar. 22/04) | D39: 1105247.43 | E39: 21039 | F39: 0 | G39: 1126286.43 | I39: -816246.88 | J39: -143197 | K39: 0 | L39: -959443.88 | M39: 166842.55
A40: 45.1 | B40: 1920 | C40: Computer Equip.-Hardware(Post Mar. 19/07) | D40: 0 | E40: 0 | F40: 0 | G40: 0 | I40: 0 | J40: 0 | K40: 0 | L40: 0 | M40: 0
A41: 10 | B41: 1930 | C41: Transportation Equipment | D41: 15024110.24 | E41: 1451508 | F41: -48184 | G41: 16427434.24 | I41: -5415166.13 | J41: -1483849 | K41: 38009 | L41: -6861006.13 | M41: 9566428.11
A42: 8 | B42: 1935 | C42: Stores Equipment | D42: 1164478.55 | E42: 0 | F42: 0 | G42: 1164478.55 | I42: -290885.34 | J42: -85302 | K42: 0 | L42: -376187.34 | M42: 788291.21
A43: 8 | B43: 1940 | C43: Tools, Shop & Garage Equipment | D43: 4815456.711 | E43: 530821 | F43: 0 | G43: 5346277.711 | I43: -2448319.68 | J43: -490397 | K43: 0 | L43: -2938716.68 | M43: 2407561.031
A44: 8 | B44: 1945 | C44: Measurement & Testing Equipment | D44: 229224.19 | E44: 210 | F44: 0 | G44: 229434.19 | I44: -112451.88 | J44: -24053 | K44: 0 | L44: -136504.88 | M44: 92929.31
A45: 8 | B45: 1950 | C45: Power Operated Equipment | D45: 0 | E45: 0 | F45: 0 | G45: 0 | I45: 0 | J45: 0 | K45: 0 | L45: 0 | M45: 0
A46: 8 | B46: 1955 | C46: Communications Equipment | D46: 5115293.59 | E46: 1510081 | F46: 0 | G46: 6625374.59 | I46: -1024291.92 | J46: -389357 | K46: 0 | L46: -1413648.92 | M46: 5211725.67
A47: 8 | B47: 1955 | C47: Communication Equipment (Smart Meters) | D47: 0 | E47: 0 | F47: 0 | G47: 0 | I47: 0 | J47: 0 | K47: 0 | L47: 0 | M47: 0
A48: 8 | B48: 1960 | C48: Miscellaneous Equipment | D48: 4503044.108 | E48: 1610265 | F48: 0 | G48: 6113309.108 | I48: -320713.75 | J48: -470314 | K48: 0 | L48: -791027.75 | M48: 5322281.358
A49: 47 | B49: 1970 | C49: Load Management Controls Customer Premises | D49: 134245.07 | E49: 0 | F49: 0 | G49: 134245.07 | I49: -134225.17 | J49: 0 | K49: 0 | L49: -134225.17 | M49: 19.9
A50: 47 | B50: 1975 | C50: Load Management Controls Utility Premises | D50: 17974.33 | E50: 0 | F50: 0 | G50: 17974.33 | I50: -17969.33 | J50: 0 | K50: 0 | L50: -17969.33 | M50: 5
A51: 47 | B51: 1980 | C51: System Supervisor Equipment | D51: 7808249.322 | E51: 612188 | F51: 0 | G51: 8420437.322 | I51: -3045973.67 | J51: -756591 | K51: 0 | L51: -3802564.67 | M51: 4617872.652
A52: 47 | B52: 1985 | C52: Miscellaneous Fixed Assets | D52: 0 | E52: 0 | F52: 0 | G52: 0 | I52: 0 | J52: 0 | K52: 0 | L52: 0 | M52: 0
A53: 47 | B53: 1990 | C53: Other Tangible Property | D53: 0 | E53: 0 | F53: 0 | G53: 0 | I53: 0 | J53: 0 | K53: 0 | L53: 0 | M53: 0
A54: 47 | B54: 1995 | C54: Contributions & Grants | D54: 0 | E54: 0 | F54: 0 | G54: 0 | I54: 0 | J54: 0 | K54: 0 | L54: 0 | M54: 0
A55: 47 | B55: 2440 | C55: Deferred Revenue5 | D55: -96573833.86 | E55: -25075051 | F55: 0 | G55: -121648884.9 | I55: 25166143.7 | J55: 8805600 | K55: 0 | L55: 33971743.7 | M55: -87677141.16
B56: 1609 | C56: Capital Contributions Paid | D56: 37230094.56 | E56: 5277020 | F56: 0 | G56: 42507114.56 | I56: -2063932.34 | J56: -849472.8889 | K56: 0 | L56: -2913405.229 | M56: 39593709.33
C57: Sub-Total | D57: =SUM(D17:D56) -> 1005754264 | E57: =SUM(E17:E56) -> 94225778 | F57: =SUM(F17:F56) -> -1763053 | G57: =SUM(G17:G56) -> 1098216989 | I57: =SUM(I17:I56) -> -156409124 | J57: =SUM(J17:J56) -> -47047408.89 | K57: =SUM(K17:K56) -> 1013053 | L57: =SUM(L17:L56) -> -202443479.9 | M57: =SUM(M17:M56) -> 895773509
C58: Less Socialized Renewable Energy Generation Investments (input as negative) | G58: =D58+E58+F58 -> 0 | L58: =I58+J58+K58 -> 0 | M58: =G58+L58 -> 0
C59: Less Other Non Rate-Regulated Utility Assets (input as negative) | G59: 0 | L59: 0 | M59: 0
C60: Total PP&E | D60: =SUM(D57:D59) -> 1005754264 | E60: =SUM(E57:E59) -> 94225778 | F60: -1763053 | G60: 1098216989 | I60: =SUM(I57:I59) -> -156409124 | J60: -47047408.89 | K60: 1013053 | L60: -202443479.9 | M60: 895773509
C61: Depreciation Expense adj. from gain or loss on the retirement of assets (pool of like assets), if applicable6
C62: Total | J62: =J60+J61 -> -47047408.89
I64: Less: Fully Allocated Depreciation
A65: 10 | C65: Transportation | I65: Transportation
A66: 8 | C66: Stores Equipment | I66: Stores Equipment
I67: Net Depreciation | K67: =J62-K65-K66 -> -47047408.89
A69: Notes:
A71: 1 | B71: Tables in the format outlined above covering all fixed asset accounts should be submitted for the Test Year, Bridge Year and all relevant historical years. At a minimum , the applicant must provide data for the earlier of: 1) all historical years back to its last rebasing; or 2) at least three years of historical actuals, in addition to Bridge Year and Test Year forecasts.
A74: 2 | B74: The "CCA Class" for fixed assets should agree with the CCA Class used for tax purposes in Tax Returns. Fixed Assets sub-components may be used where the underlying asset components are classified under multiple CCA Classes for tax purposes. If an applicant uses any different classes from those shown in the table, an explanation should be provided. (also see note 3 below).
A77: 3 | B77: The table may need to be customized for a utility's asset categories or for any new asset accounts announced or authorized by the Board.
A79: 4 | B79: The additions column (E) must not include construction work in progress (CWIP).
A81: 5 | B81: Effective on the date of IFRS adoption, customer contributions will no longer be recorded in Account 1995 Contributions & Grants, but will be recorded in Account 2440, Deferred Revenues.
A83: 6 | B83: Where a distributor for general financial reporting purposes under IFRS has accounted for the amount of gain or loss on the retirement of assets in a pool of like assets as a charge or credit to income, for reporting and rate application filings the distributor shall reclassify such gains and losses as depreciation expense, and disclose the amount separately.

Sheet App.2-BA_FA Cont 2019
L1: File Number: | M1: =EBNUMBER -> EB-2015-0004
L2: Exhibit: | M2: B
L3: Tab: | M3: 1
L4: Schedule: | M4: 1
L5: Page: | M5: 8 of 9
L7: Date: | M7: ORIGINAL
A9: Appendix 2-BA
A10: Fixed Asset Continuity Schedule
E12: Accounting Standard | F12: MIFRS
E13: Year | F13: 2019
D15: Cost | J15: Accumulated Depreciation
A16: CCA Class | B16: OEB | C16: Description | D16: Opening Balance | E16: Additions | F16: Disposals | G16: Closing Balance | I16: Opening Balance | J16: Additions | K16: Disposals | L16: Closing Balance | M16: Net Book Value
A17: 12 | B17: 1611 | C17: Computer Software (Formally known as Account 1925) | D17: 75769552.4 | E17: 4325277 | F17: 0 | G17: 80094829.4 | I17: -39695205.81 | J17: -9854403 | K17: 0 | L17: -49549608.81 | M17: 30545220.59
A18: CEC | B18: 1612 | C18: Land Rights (Formally known as Account 1906) | D18: 2012850.13 | E18: 56723 | F18: 0 | G18: 2069573.13 | I18: -254505.17 | J18: -54023 | K18: 0 | L18: -308528.17 | M18: 1761044.96
A19: N/A | B19: 1805 | C19: Land | D19: 25295327.07 | E19: 78066 | F19: 0 | G19: 25373393.07 | I19: 0 | J19: 0 | K19: 0 | L19: 0 | M19: 25373393.07
A20: 47 | B20: 1808 | C20: Buildings | D20: 35033313.44 | E20: 612390 | F20: 0 | G20: 35645703.44 | I20: -4132611.98 | J20: -921932 | K20: 0 | L20: -5054543.98 | M20: 30591159.46
A21: 13 | B21: 1810 | C21: Leasehold Improvements | D21: 0 | E21: 0 | F21: 0 | G21: 0 | I21: 0 | J21: 0 | K21: 0 | L21: 0 | M21: 0
A22: 47 | B22: 1815 | C22: Transformer Station Equipment >50 kV | D22: 92872662.97 | E22: 296350 | F22: 0 | G22: 93169012.97 | I22: -15578709.85 | J22: -3277184 | K22: 0 | L22: -18855893.85 | M22: 74313119.12
A23: 47 | B23: 1820 | C23: Distribution Station Equipment <50 kV | D23: 119728142 | E23: 6540900 | F23: -153346 | G23: 126115696 | I23: -17466418.53 | J23: -4112271 | K23: 91547 | L23: -21487142.53 | M23: 104628553.5
A24: 47 | B24: 1825 | C24: Storage Battery Equipment | D24: 0 | E24: 0 | F24: 0 | G24: 0 | I24: 0 | J24: 0 | K24: 0 | L24: 0 | M24: 0
A25: 47 | B25: 1830 | C25: Poles, Towers & Fixtures | D25: 121939057.9 | E25: 9999245 | F25: -176894 | G25: 131761408.9 | I25: -13466292.45 | J25: -3478871 | K25: 85385 | L25: -16859778.45 | M25: 114901630.5
A26: 47 | B26: 1835 | C26: Overhead Conductors & Devices | D26: 116718963.6 | E26: 10901888 | F26: -139822 | G26: 127481029.6 | I26: -12811350.79 | J26: -3486791 | K26: 118010 | L26: -16180131.79 | M26: 111300897.8
A27: 47 | B27: 1840 | C27: Underground Conduit | D27: 139332411.1 | E27: 15564684 | F27: 0 | G27: 154897095.1 | I27: -20156685.43 | J27: -5338917 | K27: 0 | L27: -25495602.43 | M27: 129401492.6
A28: 47 | B28: 1845 | C28: Underground Conductors & Devices | D28: 143297293.3 | E28: 14669994 | F28: -882544 | G28: 157084743.3 | I28: -23615859.02 | J28: -6567209 | K28: 510296 | L28: -29672772.02 | M28: 127411971.3
A29: 47 | B29: 1850 | C29: Line Transformers | D29: 100088542.9 | E29: 11457891 | F29: -211886 | G29: 111334547.9 | I29: -18487452.22 | J29: -5093370 | K29: 117650 | L29: -23463172.22 | M29: 87871375.69
A30: 47 | B30: 1855 | C30: Services (Overhead & Underground) | D30: 61605201.94 | E30: 4621673 | F30: 0 | G30: 66226874.94 | I30: -11253289.62 | J30: -2704372 | K30: 0 | L30: -13957661.62 | M30: 52269213.32
A31: 47 | B31: 1860 | C31: Meters | D31: 4742741.71 | E31: 805470 | F31: -1706 | G31: 5546505.71 | I31: -1904546.74 | J31: -548655 | K31: 125 | L31: -2453076.74 | M31: 3093428.97
A32: 47 | B32: 1860 | C32: Meters (Smart Meters) | D32: 47201841.04 | E32: 3535732 | F32: -148671 | G32: 50588902.04 | I32: -20330547.36 | J32: -4723805 | K32: 52031 | L32: -25002321.36 | M32: 25586580.68
A33: N/A | B33: 1905 | C33: Land | D33: 0 | E33: 0 | F33: 0 | G33: 0 | I33: 0 | J33: 0 | K33: 0 | L33: 0 | M33: 0
A34: 47 | B34: 1908 | C34: Buildings & Fixtures | D34: 34131721.42 | E34: 248527 | F34: 0 | G34: 34380248.42 | I34: -9013291.38 | J34: -1714509 | K34: 0 | L34: -10727800.38 | M34: 23652448.04
A35: 13 | B35: 1910 | C35: Leasehold Improvements | D35: 0 | E35: 0 | F35: 0 | G35: 0 | I35: 0 | J35: 0 | K35: 0 | L35: 0 | M35: 0
A36: 8 | B36: 1915 | C36: Office Furniture & Equipment (10 years) | D36: 1772499.21 | E36: 80864 | F36: 0 | G36: 1853363.21 | I36: -1128328.7 | J36: -137970 | K36: 0 | L36: -1266298.7 | M36: 587064.51
A37: 8 | B37: 1915 | C37: Office Furniture & Equipment (5 years) | D37: 0 | E37: 0 | F37: 0 | G37: 0 | I37: 0 | J37: 0 | K37: 0 | L37: 0 | M37: 0
A38: 10 | B38: 1920 | C38: Computer Equipment - Hardware | D38: 10211385.43 | E38: 879384 | F38: 0 | G38: 11090769.43 | I38: -6775428.6 | J38: -1405067 | K38: 0 | L38: -8180495.6 | M38: 2910273.83
A39: 45 | B39: 1920 | C39: Computer Equip.-Hardware(Post Mar. 22/04) | D39: 1126286.43 | E39: 21464 | F39: 0 | G39: 1147750.43 | I39: -959443.88 | J39: -72106 | K39: 0 | L39: -1031549.88 | M39: 116200.55
A40: 45.1 | B40: 1920 | C40: Computer Equip.-Hardware(Post Mar. 19/07) | D40: 0 | E40: 0 | F40: 0 | G40: 0 | I40: 0 | J40: 0 | K40: 0 | L40: 0 | M40: 0
A41: 10 | B41: 1930 | C41: Transportation Equipment | D41: 16427434.24 | E41: 1479811 | F41: -48184 | G41: 17859061.24 | I41: -6861006.13 | J41: -1499427 | K41: 38009 | L41: -8322424.13 | M41: 9536637.11
A42: 8 | B42: 1935 | C42: Stores Equipment | D42: 1164478.55 | E42: 0 | F42: 0 | G42: 1164478.55 | I42: -376187.34 | J42: -85302 | K42: 0 | L42: -461489.34 | M42: 702989.21
A43: 8 | B43: 1940 | C43: Tools, Shop & Garage Equipment | D43: 5346277.711 | E43: 539893 | F43: 0 | G43: 5886170.711 | I43: -2938716.68 | J43: -485401 | K43: 0 | L43: -3424117.68 | M43: 2462053.031
A44: 8 | B44: 1945 | C44: Measurement & Testing Equipment | D44: 229434.19 | E44: 33 | F44: 0 | G44: 229467.19 | I44: -136504.88 | J44: -23408 | K44: 0 | L44: -159912.88 | M44: 69554.31
A45: 8 | B45: 1950 | C45: Power Operated Equipment | D45: 0 | E45: 0 | F45: 0 | G45: 0 | I45: 0 | J45: 0 | K45: 0 | L45: 0 | M45: 0
A46: 8 | B46: 1955 | C46: Communications Equipment | D46: 6625374.59 | E46: 1368157 | F46: 0 | G46: 7993531.59 | I46: -1413648.92 | J46: -434225 | K46: 0 | L46: -1847873.92 | M46: 6145657.67
A47: 8 | B47: 1955 | C47: Communication Equipment (Smart Meters) | D47: 0 | E47: 0 | F47: 0 | G47: 0 | I47: 0 | J47: 0 | K47: 0 | L47: 0 | M47: 0
A48: 8 | B48: 1960 | C48: Miscellaneous Equipment | D48: 6113309.108 | E48: 722548 | F48: 0 | G48: 6835857.108 | I48: -791027.75 | J48: -618190 | K48: 0 | L48: -1409217.75 | M48: 5426639.358
A49: 47 | B49: 1970 | C49: Load Management Controls Customer Premises | D49: 134245.07 | E49: 0 | F49: 0 | G49: 134245.07 | I49: -134225.17 | J49: 0 | K49: 0 | L49: -134225.17 | M49: 19.9
A50: 47 | B50: 1975 | C50: Load Management Controls Utility Premises | D50: 17974.33 | E50: 0 | F50: 0 | G50: 17974.33 | I50: -17969.33 | J50: 0 | K50: 0 | L50: -17969.33 | M50: 5
A51: 47 | B51: 1980 | C51: System Supervisor Equipment | D51: 8420437.322 | E51: 384007 | F51: 0 | G51: 8804444.322 | I51: -3802564.67 | J51: -738391 | K51: 0 | L51: -4540955.67 | M51: 4263488.652
A52: 47 | B52: 1985 | C52: Miscellaneous Fixed Assets | D52: 0 | E52: 0 | F52: 0 | G52: 0 | I52: 0 | J52: 0 | K52: 0 | L52: 0 | M52: 0
A53: 47 | B53: 1990 | C53: Other Tangible Property | D53: 0 | E53: 0 | F53: 0 | G53: 0 | I53: 0 | J53: 0 | K53: 0 | L53: 0 | M53: 0
A54: 47 | B54: 1995 | C54: Contributions & Grants | D54: 0 | E54: 0 | F54: 0 | G54: 0 | I54: 0 | J54: 0 | K54: 0 | L54: 0 | M54: 0
A55: 47 | B55: 2440 | C55: Deferred Revenue5 | D55: -121648884.9 | E55: -25576549 | F55: 0 | G55: -147225433.9 | I55: 33971743.7 | J55: 9390330 | K55: 0 | L55: 43362073.7 | M55: -103863360.2
B56: 1609 | C56: Capital Contributions Paid | D56: 42507114.56 | E56: 5000000 | F56: 0 | G56: 47507114.56 | I56: -2913405.229 | J56: -963224.8889 | K56: 0 | L56: -3876630.118 | M56: 43630484.44
C57: Sub-Total | D57: =SUM(D17:D56) -> 1098216989 | E57: =SUM(E17:E56) -> 68614422 | F57: =SUM(F17:F56) -> -1763053 | G57: =SUM(G17:G56) -> 1165068358 | I57: =SUM(I17:I56) -> -202443479.9 | J57: =SUM(J17:J56) -> -48948693.89 | K57: =SUM(K17:K56) -> 1013053 | L57: =SUM(L17:L56) -> -250379120.8 | M57: =SUM(M17:M56) -> 914689237.1
C58: Less Socialized Renewable Energy Generation Investments (input as negative) | G58: =D58+E58+F58 -> 0 | L58: =I58+J58+K58 -> 0 | M58: =G58+L58 -> 0
C59: Less Other Non Rate-Regulated Utility Assets (input as negative) | G59: 0 | L59: 0 | M59: 0
C60: Total PP&E | D60: =SUM(D57:D59) -> 1098216989 | E60: =SUM(E57:E59) -> 68614422 | F60: -1763053 | G60: 1165068358 | I60: =SUM(I57:I59) -> -202443479.9 | J60: -48948693.89 | K60: 1013053 | L60: -250379120.8 | M60: 914689237.1
C61: Depreciation Expense adj. from gain or loss on the retirement of assets (pool of like assets), if applicable6
C62: Total | J62: =J60+J61 -> -48948693.89
I64: Less: Fully Allocated Depreciation
A65: 10 | C65: Transportation | I65: Transportation
A66: 8 | C66: Stores Equipment | I66: Stores Equipment
I67: Net Depreciation | K67: =J62-K65-K66 -> -48948693.89
A69: Notes:
A71: 1 | B71: Tables in the format outlined above covering all fixed asset accounts should be submitted for the Test Year, Bridge Year and all relevant historical years. At a minimum , the applicant must provide data for the earlier of: 1) all historical years back to its last rebasing; or 2) at least three years of historical actuals, in addition to Bridge Year and Test Year forecasts.
A74: 2 | B74: The "CCA Class" for fixed assets should agree with the CCA Class used for tax purposes in Tax Returns. Fixed Assets sub-components may be used where the underlying asset components are classified under multiple CCA Classes for tax purposes. If an applicant uses any different classes from those shown in the table, an explanation should be provided. (also see note 3 below).
A77: 3 | B77: The table may need to be customized for a utility's asset categories or for any new asset accounts announced or authorized by the Board.
A79: 4 | B79: The additions column (E) must not include construction work in progress (CWIP).
A81: 5 | B81: Effective on the date of IFRS adoption, customer contributions will no longer be recorded in Account 1995 Contributions & Grants, but will be recorded in Account 2440, Deferred Revenues.
A83: 6 | B83: Where a distributor for general financial reporting purposes under IFRS has accounted for the amount of gain or loss on the retirement of assets in a pool of like assets as a charge or credit to income, for reporting and rate application filings the distributor shall reclassify such gains and losses as depreciation expense, and disclose the amount separately.

Sheet App.2-BA_FA Cont 2020
L1: File Number: | M1: =EBNUMBER -> EB-2015-0004
L2: Exhibit: | M2: B
L3: Tab: | M3: 1
L4: Schedule: | M4: 1
L5: Page: | M5: 9 of 9
L7: Date: | M7: ORIGINAL
A9: Appendix 2-BA
A10: Fixed Asset Continuity Schedule
E12: Accounting Standard | F12: MIFRS
E13: Year | F13: 2020
D15: Cost | J15: Accumulated Depreciation
A16: CCA Class | B16: OEB | C16: Description | D16: Opening Balance | E16: Additions | F16: Disposals | G16: Closing Balance | I16: Opening Balance | J16: Additions | K16: Disposals | L16: Closing Balance | M16: Net Book Value
A17: 12 | B17: 1611 | C17: Computer Software (Formally known as Account 1925) | D17: 80094829.4 | E17: 11398852 | F17: 0 | G17: 91493681.4 | I17: -49549608.81 | J17: -9608727 | K17: 0 | L17: -59158335.81 | M17: 32335345.59
A18: CEC | B18: 1612 | C18: Land Rights (Formally known as Account 1906) | D18: 2069573.13 | E18: 59142 | F18: 0 | G18: 2128715.13 | I18: -308528.17 | J18: -55315 | K18: 0 | L18: -363843.17 | M18: 1764871.96
A19: N/A | B19: 1805 | C19: Land | D19: 25373393.07 | E19: 81467 | F19: 0 | G19: 25454860.07 | I19: 0 | J19: 0 | K19: 0 | L19: 0 | M19: 25454860.07
A20: 47 | B20: 1808 | C20: Buildings | D20: 35645703.44 | E20: 7064436 | F20: 0 | G20: 42710139.44 | I20: -5054543.98 | J20: -962080 | K20: 0 | L20: -6016623.98 | M20: 36693515.46
A21: 13 | B21: 1810 | C21: Leasehold Improvements | D21: 0 | E21: 0 | F21: 0 | G21: 0 | I21: 0 | J21: 0 | K21: 0 | L21: 0 | M21: 0
A22: 47 | B22: 1815 | C22: Transformer Station Equipment >50 kV | D22: 93169012.97 | E22: 19410941 | F22: 0 | G22: 112579954 | I22: -18855893.85 | J22: -3260988 | K22: 0 | L22: -22116881.85 | M22: 90463072.12
A23: 47 | B23: 1820 | C23: Distribution Station Equipment <50 kV | D23: 126115696 | E23: 14870523 | F23: -153346 | G23: 140832873 | I23: -21487142.53 | J23: -4283202 | K23: 91547 | L23: -25678797.53 | M23: 115154075.5
A24: 47 | B24: 1825 | C24: Storage Battery Equipment | D24: 0 | E24: 0 | F24: 0 | G24: 0 | I24: 0 | J24: 0 | K24: 0 | L24: 0 | M24: 0
A25: 47 | B25: 1830 | C25: Poles, Towers & Fixtures | D25: 131761408.9 | E25: 10469545 | F25: -176894 | G25: 142054059.9 | I25: -16859778.45 | J25: -3712067 | K25: 85385 | L25: -20486460.45 | M25: 121567599.5
A26: 47 | B26: 1835 | C26: Overhead Conductors & Devices | D26: 127481029.6 | E26: 11419118 | F26: -139822 | G26: 138760325.6 | I26: -16180131.79 | J26: -3749711 | K26: 118010 | L26: -19811832.79 | M26: 118948492.8
A27: 47 | B27: 1840 | C27: Underground Conduit | D27: 154897095.1 | E27: 16160263 | F27: 0 | G27: 171057358.1 | I27: -25495602.43 | J27: -5705059 | K27: 0 | L27: -31200661.43 | M27: 139856696.6
A28: 47 | B28: 1845 | C28: Underground Conductors & Devices | D28: 157084743.3 | E28: 15589187 | F28: -882544 | G28: 171791386.3 | I28: -29672772.02 | J28: -6951688 | K28: 510296 | L28: -36114164.02 | M28: 135677222.3
A29: 47 | B29: 1850 | C29: Line Transformers | D29: 111334547.9 | E29: 11852434 | F29: -211886 | G29: 122975095.9 | I29: -23463172.22 | J29: -5481196 | K29: 117650 | L29: -28826718.22 | M29: 94148377.69
A30: 47 | B30: 1855 | C30: Services (Overhead & Underground) | D30: 66226874.94 | E30: 4732585 | F30: 0 | G30: 70959459.94 | I30: -13957661.62 | J30: -2810332 | K30: 0 | L30: -16767993.62 | M30: 54191466.32
A31: 47 | B31: 1860 | C31: Meters | D31: 5546505.71 | E31: 821639 | F31: -1706 | G31: 6366438.71 | I31: -2453076.74 | J31: -577498 | K31: 125 | L31: -3030449.74 | M31: 3335988.97
A32: 47 | B32: 1860 | C32: Meters (Smart Meters) | D32: 50588902.04 | E32: 3613495 | F32: -148671 | G32: 54053726.04 | I32: -25002321.36 | J32: -4972542 | K32: 52031 | L32: -29922832.36 | M32: 24130893.68
A33: N/A | B33: 1905 | C33: Land | D33: 0 | E33: 0 | F33: 0 | G33: 0 | I33: 0 | J33: 0 | K33: 0 | L33: 0 | M33: 0
A34: 47 | B34: 1908 | C34: Buildings & Fixtures | D34: 34380248.42 | E34: 132 | F34: 0 | G34: 34380380.42 | I34: -10727800.38 | J34: -1721400 | K34: 0 | L34: -12449200.38 | M34: 21931180.04
A35: 13 | B35: 1910 | C35: Leasehold Improvements | D35: 0 | E35: 0 | F35: 0 | G35: 0 | I35: 0 | J35: 0 | K35: 0 | L35: 0 | M35: 0
A36: 8 | B36: 1915 | C36: Office Furniture & Equipment (10 years) | D36: 1853363.21 | E36: 121296 | F36: 0 | G36: 1974659.21 | I36: -1266298.7 | J36: -133586 | K36: 0 | L36: -1399884.7 | M36: 574774.51
A37: 8 | B37: 1915 | C37: Office Furniture & Equipment (5 years) | D37: 0 | E37: 0 | F37: 0 | G37: 0 | I37: 0 | J37: 0 | K37: 0 | L37: 0 | M37: 0
A38: 10 | B38: 1920 | C38: Computer Equipment - Hardware | D38: 11090769.43 | E38: 897131 | F38: 0 | G38: 11987900.43 | I38: -8180495.6 | J38: -1356374 | K38: 0 | L38: -9536869.6 | M38: 2451030.83
A39: 45 | B39: 1920 | C39: Computer Equip.-Hardware(Post Mar. 22/04) | D39: 1147750.43 | E39: 21897 | F39: 0 | G39: 1169647.43 | I39: -1031549.88 | J39: -20883 | K39: 0 | L39: -1052432.88 | M39: 117214.55
A40: 45.1 | B40: 1920 | C40: Computer Equip.-Hardware(Post Mar. 19/07) | D40: 0 | E40: 0 | F40: 0 | G40: 0 | I40: 0 | J40: 0 | K40: 0 | L40: 0 | M40: 0
A41: 10 | B41: 1930 | C41: Transportation Equipment | D41: 17859061.24 | E41: 1572486 | F41: -48184 | G41: 19383363.24 | I41: -8322424.13 | J41: -1518087 | K41: 38009 | L41: -9802502.13 | M41: 9580861.11
A42: 8 | B42: 1935 | C42: Stores Equipment | D42: 1164478.55 | E42: 303240 | F42: 0 | G42: 1467718.55 | I42: -461489.34 | J42: -95569 | K42: 0 | L42: -557058.34 | M42: 910660.21
A43: 8 | B43: 1940 | C43: Tools, Shop & Garage Equipment | D43: 5886170.711 | E43: 549412 | F43: 0 | G43: 6435582.711 | I43: -3424117.68 | J43: -486606 | K43: 0 | L43: -3910723.68 | M43: 2524859.031
A44: 8 | B44: 1945 | C44: Measurement & Testing Equipment | D44: 229467.19 | E44: 0 | F44: 0 | G44: 229467.19 | I44: -159912.88 | J44: -23472 | K44: 0 | L44: -183384.88 | M44: 46082.31
A45: 8 | B45: 1950 | C45: Power Operated Equipment | D45: 0 | E45: 0 | F45: 0 | G45: 0 | I45: 0 | J45: 0 | K45: 0 | L45: 0 | M45: 0
A46: 8 | B46: 1955 | C46: Communications Equipment | D46: 7993531.59 | E46: 3179757 | F46: 0 | G46: 11173288.59 | I46: -1847873.92 | J46: -449640 | K46: 0 | L46: -2297513.92 | M46: 8875774.67
A47: 8 | B47: 1955 | C47: Communication Equipment (Smart Meters) | D47: 0 | E47: 0 | F47: 0 | G47: 0 | I47: 0 | J47: 0 | K47: 0 | L47: 0 | M47: 0
A48: 8 | B48: 1960 | C48: Miscellaneous Equipment | D48: 6835857.108 | E48: 0 | F48: 0 | G48: 6835857.108 | I48: -1409217.75 | J48: -677865 | K48: 0 | L48: -2087082.75 | M48: 4748774.358
A49: 47 | B49: 1970 | C49: Load Management Controls Customer Premises | D49: 134245.07 | E49: 0 | F49: 0 | G49: 134245.07 | I49: -134225.17 | J49: 0 | K49: 0 | L49: -134225.17 | M49: 19.9
A50: 47 | B50: 1975 | C50: Load Management Controls Utility Premises | D50: 17974.33 | E50: 0 | F50: 0 | G50: 17974.33 | I50: -17969.33 | J50: 0 | K50: 0 | L50: -17969.33 | M50: 5
A51: 47 | B51: 1980 | C51: System Supervisor Equipment | D51: 8804444.322 | E51: 530571 | F51: 0 | G51: 9335015.322 | I51: -4540955.67 | J51: -685716 | K51: 0 | L51: -5226671.67 | M51: 4108343.652
A52: 47 | B52: 1985 | C52: Miscellaneous Fixed Assets | D52: 0 | E52: 0 | F52: 0 | G52: 0 | I52: 0 | J52: 0 | K52: 0 | L52: 0 | M52: 0
A53: 47 | B53: 1990 | C53: Other Tangible Property | D53: 0 | E53: 0 | F53: 0 | G53: 0 | I53: 0 | J53: 0 | K53: 0 | L53: 0 | M53: 0
A54: 47 | B54: 1995 | C54: Contributions & Grants | D54: 0 | E54: 0 | F54: 0 | G54: 0 | I54: 0 | J54: 0 | K54: 0 | L54: 0 | M54: 0
A55: 47 | B55: 2440 | C55: Deferred Revenue5 | D55: -147225433.9 | E55: -26088080 | F55: 0 | G55: -173313513.9 | I55: 43362073.7 | J55: 10079699 | K55: 0 | L55: 53441772.7 | M55: -119871741.2
B56: 1609 | C56: Capital Contributions Paid | D56: 47507114.56 | E56: 5030454 | F56: 0 | G56: 52537568.56 | I56: -3876630.118 | J56: -1074899.889 | K56: 0 | L56: -4951530.007 | M56: 47586038.55
C57: Sub-Total | D57: =SUM(D17:D56) -> 1165068358 | E57: =SUM(E17:E56) -> 113661923 | F57: =SUM(F17:F56) -> -1763053 | G57: =SUM(G17:G56) -> 1276967228 | I57: =SUM(I17:I56) -> -250379120.8 | J57: =SUM(J17:J56) -> -50294803.89 | K57: =SUM(K17:K56) -> 1013053 | L57: =SUM(L17:L56) -> -299660871.7 | M57: =SUM(M17:M56) -> 977306356.2
C58: Less Socialized Renewable Energy Generation Investments (input as negative) | G58: =D58+E58+F58 -> 0 | L58: =I58+J58+K58 -> 0 | M58: =G58+L58 -> 0
C59: Less Other Non Rate-Regulated Utility Assets (input as negative) | G59: 0 | L59: 0 | M59: 0
C60: Total PP&E | D60: =SUM(D57:D59) -> 1165068358 | E60: =SUM(E57:E59) -> 113661923 | F60: -1763053 | G60: 1276967228 | I60: =SUM(I57:I59) -> -250379120.8 | J60: -50294803.89 | K60: 1013053 | L60: -299660871.7 | M60: 977306356.2
C61: Depreciation Expense adj. from gain or loss on the retirement of assets (pool of like assets), if applicable6
C62: Total | J62: =J60+J61 -> -50294803.89
I64: Less: Fully Allocated Depreciation
A65: 10 | C65: Transportation | I65: Transportation
A66: 8 | C66: Stores Equipment | I66: Stores Equipment
I67: Net Depreciation | K67: =J62-K65-K66 -> -50294803.89
A69: Notes:
A71: 1 | B71: Tables in the format outlined above covering all fixed asset accounts should be submitted for the Test Year, Bridge Year and all relevant historical years. At a minimum , the applicant must provide data for the earlier of: 1) all historical years back to its last rebasing; or 2) at least three years of historical actuals, in addition to Bridge Year and Test Year forecasts.
A74: 2 | B74: The "CCA Class" for fixed assets should agree with the CCA Class used for tax purposes in Tax Returns. Fixed Assets sub-components may be used where the underlying asset components are classified under multiple CCA Classes for tax purposes. If an applicant uses any different classes from those shown in the table, an explanation should be provided. (also see note 3 below).
A77: 3 | B77: The table may need to be customized for a utility's asset categories or for any new asset accounts announced or authorized by the Board.
A79: 4 | B79: The additions column (E) must not include construction work in progress (CWIP).
A81: 5 | B81: Effective on the date of IFRS adoption, customer contributions will no longer be recorded in Account 1995 Contributions & Grants, but will be recorded in Account 2440, Deferred Revenues.
A83: 6 | B83: Where a distributor for general financial reporting purposes under IFRS has accounted for the amount of gain or loss on the retirement of assets in a pool of like assets as a charge or credit to income, for reporting and rate application filings the distributor shall reclassify such gains and losses as depreciation expense, and disclose the amount separately.

Sheet App.2-CA_OldCGAAP_DepExp_2012 (hidden)
K1: File Number: | L1: =EBNUMBER -> EB-2015-0004
K2: Exhibit:
K3: Tab:
K4: Schedule:
K5: Page:
K7: Date:
A9: Appendix 2-CA
A10: Depreciation and Amortization Expense
B11: Assumes the applicant made capitalization and depreciation expense accounting policy changes under CGAAP effective January 1, 2012 and will adopt IFRS for financial reporting purposes effective January 1, 2015.
C13: Year | D13: 2012 | E13: Former CGAAP
A15: Account | B15: Description | C15: Opening Regulatory Gross PP&E as at Jan 1, 2012 | D15: Less Fully Depreciated | E15: Net for Depreciation | F15: Additions | G15: Total for Depreciation | H15: Years | I15: Depreciation Rate | J15: Depreciation Expense | K15: 2012 Depreciation Expense per Appendix 2-BA Fixed Assets, Column J (l) | L15: Variance 2
C16: (a) | D16: (b) | E16: (c) | F16: (d) | G16: (e) = (c) + ½ x (d) 1 | H16: (f) | I16: (g) = 1 / (f) | J16: (h) = (e) / (f) | L16: (m) = (h) - (l)
A17: 1611 | B17: Computer Software (Formally known as Account 1925) | E17: =C17-D17 -> 0 | G17: =E17+0.5*F17 -> 0 | I17: =IF(H17=0,0,1/H17) -> 0 | J17: =IF(H17=0,0,G17/H17) -> 0 | L17: =IF(ISERROR(+J17-K17), 0, +J17-K17) -> 0
A18: 1612 | B18: Land Rights (Formally known as Account 1906) | E18: =C18-D18 -> 0 | G18: =E18+0.5*F18 -> 0 | I18: 0 | J18: 0 | L18: 0
A19: 1805 | B19: Land | E19: 0 | G19: 0 | I19: 0 | J19: 0 | L19: 0
A20: 1808 | B20: Buildings | E20: 0 | G20: 0 | I20: 0 | J20: 0 | L20: 0
A21: 1810 | B21: Leasehold Improvements | E21: 0 | G21: 0 | I21: 0 | J21: 0 | L21: 0
A22: 1815 | B22: Transformer Station Equipment >50 kV | E22: 0 | G22: 0 | I22: 0 | J22: 0 | L22: 0
A23: 1820 | B23: Distribution Station Equipment <50 kV | E23: 0 | G23: 0 | I23: 0 | J23: 0 | L23: 0
A24: 1825 | B24: Storage Battery Equipment | E24: 0 | G24: 0 | I24: 0 | J24: 0 | L24: 0
A25: 1830 | B25: Poles, Towers & Fixtures | E25: 0 | G25: 0 | I25: 0 | J25: 0 | L25: 0
A26: 1835 | B26: Overhead Conductors & Devices | E26: 0 | G26: 0 | I26: 0 | J26: 0 | L26: 0
A27: 1840 | B27: Underground Conduit | E27: 0 | G27: 0 | I27: 0 | J27: 0 | L27: 0
A28: 1845 | B28: Underground Conductors & Devices | E28: 0 | G28: 0 | I28: 0 | J28: 0 | L28: 0
A29: 1850 | B29: Line Transformers | E29: 0 | G29: 0 | I29: 0 | J29: 0 | L29: 0
A30: 1855 | B30: Services (Overhead & Underground) | E30: 0 | G30: 0 | I30: 0 | J30: 0 | L30: 0
A31: 1860 | B31: Meters | E31: 0 | G31: 0 | I31: 0 | J31: 0 | L31: 0
A32: 1860 | B32: Meters (Smart Meters) | E32: 0 | G32: 0 | I32: 0 | J32: 0 | L32: 0
A33: 1905 | B33: Land | E33: 0 | G33: 0 | I33: 0 | J33: 0 | L33: 0
A34: 1908 | B34: Buildings & Fixtures | E34: 0 | G34: 0 | I34: 0 | J34: 0 | L34: 0
A35: 1910 | B35: Leasehold Improvements | E35: 0 | G35: 0 | I35: 0 | J35: 0 | L35: 0
A36: 1915 | B36: Office Furniture & Equipment (10 years) | E36: 0 | G36: 0 | I36: 0 | J36: 0 | L36: 0
A37: 1915 | B37: Office Furniture & Equipment (5 years) | E37: 0 | G37: 0 | I37: 0 | J37: 0 | L37: 0
A38: 1920 | B38: Computer Equipment - Hardware | E38: 0 | G38: 0 | I38: 0 | J38: 0 | L38: 0
A39: 1920 | B39: Computer Equip.-Hardware(Post Mar. 22/04) | E39: 0 | G39: 0 | I39: 0 | J39: 0 | L39: 0
A40: 1920 | B40: Computer Equip.-Hardware(Post Mar. 19/07) | E40: 0 | G40: 0 | I40: 0 | J40: 0 | L40: 0
A41: 1930 | B41: Transportation Equipment | E41: 0 | G41: 0 | I41: 0 | J41: 0 | L41: 0
A42: 1935 | B42: Stores Equipment | E42: 0 | G42: 0 | I42: 0 | J42: 0 | L42: 0
A43: 1940 | B43: Tools, Shop & Garage Equipment | E43: 0 | G43: 0 | I43: 0 | J43: 0 | L43: 0
A44: 1945 | B44: Measurement & Testing Equipment | E44: 0 | G44: 0 | I44: 0 | J44: 0 | L44: 0
A45: 1950 | B45: Power Operated Equipment | E45: 0 | G45: 0 | I45: 0 | J45: 0 | L45: 0
A46: 1955 | B46: Communications Equipment | E46: 0 | G46: 0 | I46: 0 | J46: 0 | L46: 0
A47: 1955 | B47: Communication Equipment (Smart Meters) | E47: 0 | G47: 0 | I47: 0 | J47: 0 | L47: 0
A48: 1960 | B48: Miscellaneous Equipment | E48: 0 | G48: 0 | I48: 0 | J48: 0 | L48: 0
A49: 1970 | B49: Load Management Controls Customer Premises | E49: 0 | G49: 0 | I49: 0 | J49: 0 | L49: 0
A50: 1975 | B50: Load Management Controls Utility Premises | E50: 0 | G50: 0 | I50: 0 | J50: 0 | L50: 0
A51: 1980 | B51: System Supervisor Equipment | E51: 0 | G51: 0 | I51: 0 | J51: 0 | L51: 0
A52: 1985 | B52: Miscellaneous Fixed Assets | E52: 0 | G52: 0 | I52: 0 | J52: 0 | L52: 0
A53: 1990 | B53: Other Tangible Property | E53: 0 | G53: 0 | I53: 0 | J53: 0 | L53: 0
A54: 1995 | B54: Contributions & Grants | E54: 0 | G54: 0 | I54: 0 | J54: 0 | L54: 0
B55: Total | C55: =SUM(C17:C54) -> 0 | D55: =SUM(D17:D54) -> 0 | E55: =SUM(E17:E54) -> 0 | F55: =SUM(F17:F54) -> 0 | G55: =SUM(G17:G54) -> 0 | J55: =SUM(J17:J54) -> 0 | K55: =SUM(K17:K54) -> 0 | L55: =SUM(L17:L54) -> 0
A57: Notes:
A59: 1 | B59: Board policy of the "half-year" rule - the applicant must ensure that additions in the year attract a half-year depreciation expense in the first year. Deviations from this standard practice must be supported in the application.
A60: 2 | B60: The applicant must provide an explanation of material variances in evidence.
A62: General | B62: Applicants must provide a breakdown of depreciation and amortization expense in the above format for all relevant accounts. Asset Retirement Obligations (AROs), depreciation and accretion expense should be disclosed separately consistent with the Notes of historical Audited Financial Statements.

Sheet App.2-CB_NewCGAAP_DepExp_2012 (hidden)
N1: File Number: | O1: =EBNUMBER -> EB-2015-0004
N2: Exhibit:
N3: Tab:
N4: Schedule:
N5: Page:
N7: Date:
A9: Appendix 2-CB
A10: Depreciation and Amortization Expense
A11: Assumes the applicant made capitalization and depreciation expense accounting policy changes under CGAAP effective January 1, 2012 and will adopt IFRS for financial reporting purposes effective January 1, 2015.
C13: Year | D13: 2012 | E13: Revised CGAAP
A15: Account | B15: Description | C15: Opening NBV as at Jan 1, 2012 5 | D15: Additions | E15: Average Remaining Life of Opening NBV 4 | F15: Years (new additions only) 3 | G15: Depreciation Rate on New Additions | H15: Depreciation Expense on Opening NBV | I15: Depreciation Expense on Additions 1 | J15: 2012 Depreciation Expense | K15: 2012 Depreciation Expense per Appendix 2-BA Fixed Assets, Column J (l) | L15: Variance 2 | M15: Depreciation Expense on 2012 Full Year Additions | N15: Less Depreciation Expense on Assets Fully Depreciated during the year (o) | O15: 2012 Full Year Depreciation 6
C16: (a) | D16: (d) | E16: (i) | F16: (f) | G16: (g) = 1 / (f) | H16: (j) = (a) / (i) | I16: (h)=((d)*0.5)/(f) | J16: (k) = (j) + (h) | L16: (m) = (k) - (l) | M16: (n) = (d)/(f) | O16: (p) = (j) + (n) - (o)
A17: 1611 | B17: Computer Software (Formally known as Account 1925) | G17: =IF(F17=0,0,1/F17) -> 0 | H17: =IF(E17=0,0,+C17/E17) -> 0 | I17: =IF(F17=0,0,+(D17*0.5)/F17) -> 0 | J17: =IF(ISERROR(+H17+I17), 0, +H17+I17) -> 0 | L17: =IF(ISERROR(+J17-K17), 0, +J17-K17) -> 0 | M17: =IF(F17=0,0,+(D17)/F17) -> 0 | O17: =IF(ISERROR(+M17+H17-N17), 0, +M17+H17-N17) -> 0
A18: 1612 | B18: Land Rights (Formally known as Account 1906) | G18: 0 | H18: 0 | I18: 0 | J18: 0 | L18: 0 | M18: 0 | O18: =IF(ISERROR(+M18+H18-N18), 0, +M18+H18-N18) -> 0
A19: 1805 | B19: Land | G19: 0 | H19: 0 | I19: 0 | J19: 0 | L19: 0 | M19: 0 | O19: 0
A20: 1808 | B20: Buildings | G20: 0 | H20: 0 | I20: 0 | J20: 0 | L20: 0 | M20: 0 | O20: 0
A21: 1810 | B21: Leasehold Improvements | G21: 0 | H21: 0 | I21: 0 | J21: 0 | L21: 0 | M21: 0 | O21: 0
A22: 1815 | B22: Transformer Station Equipment >50 kV | G22: 0 | H22: 0 | I22: 0 | J22: 0 | L22: 0 | M22: 0 | O22: 0
A23: 1820 | B23: Distribution Station Equipment <50 kV | G23: 0 | H23: 0 | I23: 0 | J23: 0 | L23: 0 | M23: 0 | O23: 0
A24: 1825 | B24: Storage Battery Equipment | G24: 0 | H24: 0 | I24: 0 | J24: 0 | L24: 0 | M24: 0 | O24: 0
A25: 1830 | B25: Poles, Towers & Fixtures | G25: 0 | H25: 0 | I25: 0 | J25: 0 | L25: 0 | M25: 0 | O25: 0
A26: 1835 | B26: Overhead Conductors & Devices | G26: 0 | H26: 0 | I26: 0 | J26: 0 | L26: 0 | M26: 0 | O26: 0
A27: 1840 | B27: Underground Conduit | G27: 0 | H27: 0 | I27: 0 | J27: 0 | L27: 0 | M27: 0 | O27: 0
A28: 1845 | B28: Underground Conductors & Devices | G28: 0 | H28: 0 | I28: 0 | J28: 0 | L28: 0 | M28: 0 | O28: 0
A29: 1850 | B29: Line Transformers | G29: 0 | H29: 0 | I29: 0 | J29: 0 | L29: 0 | M29: 0 | O29: 0
A30: 1855 | B30: Services (Overhead & Underground) | G30: 0 | H30: 0 | I30: 0 | J30: 0 | L30: 0 | M30: 0 | O30: 0
A31: 1860 | B31: Meters | G31: 0 | H31: 0 | I31: 0 | J31: 0 | L31: 0 | M31: 0 | O31: 0
A32: 1860 | B32: Meters (Smart Meters) | G32: 0 | H32: 0 | I32: 0 | J32: 0 | L32: 0 | M32: 0 | O32: 0
A33: 1905 | B33: Land | G33: 0 | H33: 0 | I33: 0 | J33: 0 | L33: 0 | M33: 0 | O33: 0
A34: 1908 | B34: Buildings & Fixtures | G34: 0 | H34: 0 | I34: 0 | J34: 0 | L34: 0 | M34: 0 | O34: 0
A35: 1910 | B35: Leasehold Improvements | G35: 0 | H35: 0 | I35: 0 | J35: 0 | L35: 0 | M35: 0 | O35: 0
A36: 1915 | B36: Office Furniture & Equipment (10 years) | G36: 0 | H36: 0 | I36: 0 | J36: 0 | L36: 0 | M36: 0 | O36: 0
A37: 1915 | B37: Office Furniture & Equipment (5 years) | G37: 0 | H37: 0 | I37: 0 | J37: 0 | L37: 0 | M37: 0 | O37: 0
A38: 1920 | B38: Computer Equipment - Hardware | G38: 0 | H38: 0 | I38: 0 | J38: 0 | L38: 0 | M38: 0 | O38: 0
A39: 1920 | B39: Computer Equip.-Hardware(Post Mar. 22/04) | G39: 0 | H39: 0 | I39: 0 | J39: 0 | L39: 0 | M39: 0 | O39: 0
A40: 1920 | B40: Computer Equip.-Hardware(Post Mar. 19/07) | G40: 0 | H40: 0 | I40: 0 | J40: 0 | L40: 0 | M40: 0 | O40: 0
A41: 1930 | B41: Transportation Equipment | G41: 0 | H41: 0 | I41: 0 | J41: 0 | L41: 0 | M41: 0 | O41: 0
A42: 1935 | B42: Stores Equipment | G42: 0 | H42: 0 | I42: 0 | J42: 0 | L42: 0 | M42: 0 | O42: 0
A43: 1940 | B43: Tools, Shop & Garage Equipment | G43: 0 | H43: 0 | I43: 0 | J43: 0 | L43: 0 | M43: 0 | O43: 0
A44: 1945 | B44: Measurement & Testing Equipment | G44: 0 | H44: 0 | I44: 0 | J44: 0 | L44: 0 | M44: 0 | O44: 0
A45: 1950 | B45: Power Operated Equipment | G45: 0 | H45: 0 | I45: 0 | J45: 0 | L45: 0 | M45: 0 | O45: 0
A46: 1955 | B46: Communications Equipment | G46: 0 | H46: 0 | I46: 0 | J46: 0 | L46: 0 | M46: 0 | O46: 0
A47: 1955 | B47: Communication Equipment (Smart Meters) | G47: 0 | H47: 0 | I47: 0 | J47: 0 | L47: 0 | M47: 0 | O47: 0
A48: 1960 | B48: Miscellaneous Equipment | G48: 0 | H48: 0 | I48: 0 | J48: 0 | L48: 0 | M48: 0 | O48: 0
A49: 1970 | B49: Load Management Controls Customer Premises | G49: 0 | H49: 0 | I49: 0 | J49: 0 | L49: 0 | M49: 0 | O49: 0
A50: 1975 | B50: Load Management Controls Utility Premises | G50: 0 | H50: 0 | I50: 0 | J50: 0 | L50: 0 | M50: 0 | O50: 0
A51: 1980 | B51: System Supervisor Equipment | G51: 0 | H51: 0 | I51: 0 | J51: 0 | L51: 0 | M51: 0 | O51: 0
A52: 1985 | B52: Miscellaneous Fixed Assets | G52: 0 | H52: 0 | I52: 0 | J52: 0 | L52: 0 | M52: 0 | O52: 0
A53: 1990 | B53: Other Tangible Property | G53: 0 | H53: 0 | I53: 0 | J53: 0 | L53: 0 | M53: 0 | O53: 0
A54: 1995 | B54: Contributions & Grants | G54: 0 | H54: 0 | I54: 0 | J54: 0 | L54: 0 | M54: 0 | O54: 0
B55: Total | C55: =SUM(C17:C54) -> 0 | D55: =SUM(D17:D54) -> 0 | H55: =SUM(H17:H54) -> 0 | I55: 0 | J55: 0 | K55: 0 | L55: 0 | M55: 0 | N55: 0 | O55: 0
A57: Notes:
A59: 1 | B59: Board policy of the "half-year" rule - the applicant must ensure that additions in the year attract a half-year depreciation expense in the first year. Deviations from this standard practice must be supported in the application.
A60: 2 | B60: The applicant must provide an explanation of material variances in evidence.
A61: 3 | B61: The applicant should ensure that the years for new additions of assets are the asset useful lives determined by management in accordance with the Board's regulatory accounting policies. The capitalization and depreciation expense accounting changes should be implemented consistent with the Board’s regulatory accounting policies as set out for modified IFRS as contained in the Report of the Board, Transition to International Financial Reporting Standards, EB-2008-0408, the Kinectrics Report, and the Revised 2012 Accounting Procedures Handbook for Electricity Distributors (“APH”).
A62: 4 | B62: A recalculation should be performed to determine the average remaining life of opening balance of assets (i.e. excluding 2012 additions) under the change in policies under CGAAP. For example, Asset A had a useful life of 20 years under CGAAP without the change in policies. On January 1, 2012, the effective date of the changes in policies, Asset A was 3 years depreciated. As a result, Asset A would have a remaining service life of 17 years (20 years less 3 years) as of January 1, 2012. Due to making the change in policies under CGAAP, management re-assessed the asset useful lives and concluded that the revised useful life of Asset A is now 30 years. Therefore, the average remaining useful life of the opening balance of Asset A is determined to be 27 years (30 years less 3 years) under the revised CGAAP as of January 1, 2012.
A63: 5 | B63: NBV must exclude assets still on the books but which have been fully amortized or depreciated.
A64: 6 | B64: This column refers to the calculated full year depreciation but excludes the depreciation expense on assets fully depreciated during the year. This column is used for the purpose of calculating depreciation expense in the following year on the next worksheet.
A66: General: | B66: Applicants must provide a breakdown of depreciation and amortization expense in the above format for all relevant accounts. Asset Retirement Obligations (AROs), depreciation and accretion expense should be disclosed separately consistent with the Notes of historical Audited Financial Statements.

Sheet App.2-CC_NewCGAAP_DepExp_2013 (hidden)
J1: File Number: | K1: =EBNUMBER -> EB-2015-0004
J2: Exhibit:
J3: Tab:
J4: Schedule:
J5: Page:
J7: Date:
A9: Appendix 2-CC
A10: Depreciation and Amortization Expense
A11: Assumes the applicant made capitalization and depreciation expense accounting policy changes under CGAAP effective January 1, 2012 and will adopt IFRS for financial reporting purposes effective January 1, 2015.
C13: 2013 | D13: Revised CGAAP
A15: Account | B15: Description | C15: Additions | D15: Years (new additions only) | E15: Depreciation Rate on New Additions | F15: 2013 Depreciation Expense 1 | G15: 2013 Depreciation Expense per Apppendix 2-BA Fixed Assets, Column J (l) | H15: Variance 2 | I15: Depreciation Expense on 2013 Full Year Additions | J15: Less Depreciation Expense on Assets Fully Depreciated during the year (o) | K15: 2013 Full Year Depreciation 3
C16: (d) | D16: (f) | E16: (g) = 1 / (f) | F16: (h)=2012 Full Year Deprecation + ((d)*0.5)/(f) | H16: (m) = (h) - (l) | I16: (n)=((d))/(f) | K16: (p) = 2012 Full Year Depreciation + (n) - (o)
A17: 1611 | B17: Computer Software (Formally known as Account 1925) | E17: =IF(D17=0,0,1/D17) -> 0 | F17: =IF(D17=0,+'App.2-CB_NewCGAAP_DepExp_2012'!O17,+'App.2-CB_NewCGAAP_DepExp_2012'!O17+((C17*0.5)/D17)) -> 0 | H17: =IF(ISERROR(+F17-G17), 0, +F17-G17) -> 0 | I17: =IF(D17=0,0,+(C17)/D17) -> 0 | K17: =IF(ISERROR(+I17+'App.2-CB_NewCGAAP_DepExp_2012'!O17-J17), 0, +I17+'App.2-CB_NewCGAAP_DepExp_2012'!O17-J17) -> 0
A18: 1612 | B18: Land Rights (Formally known as Account 1906) | E18: 0 | F18: =IF(D18=0,+'App.2-CB_NewCGAAP_DepExp_2012'!O18,+'App.2-CB_NewCGAAP_DepExp_2012'!O18+((C18*0.5)/D18)) -> 0 | H18: 0 | I18: 0 | K18: =IF(ISERROR(+I18+'App.2-CB_NewCGAAP_DepExp_2012'!O18-J18), 0, +I18+'App.2-CB_NewCGAAP_DepExp_2012'!O18-J18) -> 0
A19: 1805 | B19: Land | E19: 0 | F19: =IF(D19=0,+'App.2-CB_NewCGAAP_DepExp_2012'!O19,+'App.2-CB_NewCGAAP_DepExp_2012'!O19+((C19*0.5)/D19)) -> 0 | H19: 0 | I19: 0 | K19: =IF(ISERROR(+I19+'App.2-CB_NewCGAAP_DepExp_2012'!O19-J19), 0, +I19+'App.2-CB_NewCGAAP_DepExp_2012'!O19-J19) -> 0
A20: 1808 | B20: Buildings | E20: 0 | F20: =IF(D20=0,+'App.2-CB_NewCGAAP_DepExp_2012'!O20,+'App.2-CB_NewCGAAP_DepExp_2012'!O20+((C20*0.5)/D20)) -> 0 | H20: 0 | I20: 0 | K20: =IF(ISERROR(+I20+'App.2-CB_NewCGAAP_DepExp_2012'!O20-J20), 0, +I20+'App.2-CB_NewCGAAP_DepExp_2012'!O20-J20) -> 0
A21: 1810 | B21: Leasehold Improvements | E21: 0 | F21: =IF(D21=0,+'App.2-CB_NewCGAAP_DepExp_2012'!O21,+'App.2-CB_NewCGAAP_DepExp_2012'!O21+((C21*0.5)/D21)) -> 0 | H21: 0 | I21: 0 | K21: =IF(ISERROR(+I21+'App.2-CB_NewCGAAP_DepExp_2012'!O21-J21), 0, +I21+'App.2-CB_NewCGAAP_DepExp_2012'!O21-J21) -> 0
A22: 1815 | B22: Transformer Station Equipment >50 kV | E22: 0 | F22: =IF(D22=0,+'App.2-CB_NewCGAAP_DepExp_2012'!O22,+'App.2-CB_NewCGAAP_DepExp_2012'!O22+((C22*0.5)/D22)) -> 0 | H22: 0 | I22: 0 | K22: =IF(ISERROR(+I22+'App.2-CB_NewCGAAP_DepExp_2012'!O22-J22), 0, +I22+'App.2-CB_NewCGAAP_DepExp_2012'!O22-J22) -> 0
A23: 1820 | B23: Distribution Station Equipment <50 kV | E23: 0 | F23: =IF(D23=0,+'App.2-CB_NewCGAAP_DepExp_2012'!O23,+'App.2-CB_NewCGAAP_DepExp_2012'!O23+((C23*0.5)/D23)) -> 0 | H23: 0 | I23: 0 | K23: =IF(ISERROR(+I23+'App.2-CB_NewCGAAP_DepExp_2012'!O23-J23), 0, +I23+'App.2-CB_NewCGAAP_DepExp_2012'!O23-J23) -> 0
A24: 1825 | B24: Storage Battery Equipment | E24: 0 | F24: =IF(D24=0,+'App.2-CB_NewCGAAP_DepExp_2012'!O24,+'App.2-CB_NewCGAAP_DepExp_2012'!O24+((C24*0.5)/D24)) -> 0 | H24: 0 | I24: 0 | K24: =IF(ISERROR(+I24+'App.2-CB_NewCGAAP_DepExp_2012'!O24-J24), 0, +I24+'App.2-CB_NewCGAAP_DepExp_2012'!O24-J24) -> 0
A25: 1830 | B25: Poles, Towers & Fixtures | E25: 0 | F25: =IF(D25=0,+'App.2-CB_NewCGAAP_DepExp_2012'!O25,+'App.2-CB_NewCGAAP_DepExp_2012'!O25+((C25*0.5)/D25)) -> 0 | H25: 0 | I25: 0 | K25: =IF(ISERROR(+I25+'App.2-CB_NewCGAAP_DepExp_2012'!O25-J25), 0, +I25+'App.2-CB_NewCGAAP_DepExp_2012'!O25-J25) -> 0
A26: 1835 | B26: Overhead Conductors & Devices | E26: 0 | F26: =IF(D26=0,+'App.2-CB_NewCGAAP_DepExp_2012'!O26,+'App.2-CB_NewCGAAP_DepExp_2012'!O26+((C26*0.5)/D26)) -> 0 | H26: 0 | I26: 0 | K26: =IF(ISERROR(+I26+'App.2-CB_NewCGAAP_DepExp_2012'!O26-J26), 0, +I26+'App.2-CB_NewCGAAP_DepExp_2012'!O26-J26) -> 0
A27: 1840 | B27: Underground Conduit | E27: 0 | F27: =IF(D27=0,+'App.2-CB_NewCGAAP_DepExp_2012'!O27,+'App.2-CB_NewCGAAP_DepExp_2012'!O27+((C27*0.5)/D27)) -> 0 | H27: 0 | I27: 0 | K27: =IF(ISERROR(+I27+'App.2-CB_NewCGAAP_DepExp_2012'!O27-J27), 0, +I27+'App.2-CB_NewCGAAP_DepExp_2012'!O27-J27) -> 0
A28: 1845 | B28: Underground Conductors & Devices | E28: 0 | F28: =IF(D28=0,+'App.2-CB_NewCGAAP_DepExp_2012'!O28,+'App.2-CB_NewCGAAP_DepExp_2012'!O28+((C28*0.5)/D28)) -> 0 | H28: 0 | I28: 0 | K28: =IF(ISERROR(+I28+'App.2-CB_NewCGAAP_DepExp_2012'!O28-J28), 0, +I28+'App.2-CB_NewCGAAP_DepExp_2012'!O28-J28) -> 0
A29: 1850 | B29: Line Transformers | E29: 0 | F29: =IF(D29=0,+'App.2-CB_NewCGAAP_DepExp_2012'!O29,+'App.2-CB_NewCGAAP_DepExp_2012'!O29+((C29*0.5)/D29)) -> 0 | H29: 0 | I29: 0 | K29: =IF(ISERROR(+I29+'App.2-CB_NewCGAAP_DepExp_2012'!O29-J29), 0, +I29+'App.2-CB_NewCGAAP_DepExp_2012'!O29-J29) -> 0
A30: 1855 | B30: Services (Overhead & Underground) | E30: 0 | F30: =IF(D30=0,+'App.2-CB_NewCGAAP_DepExp_2012'!O30,+'App.2-CB_NewCGAAP_DepExp_2012'!O30+((C30*0.5)/D30)) -> 0 | H30: 0 | I30: 0 | K30: =IF(ISERROR(+I30+'App.2-CB_NewCGAAP_DepExp_2012'!O30-J30), 0, +I30+'App.2-CB_NewCGAAP_DepExp_2012'!O30-J30) -> 0
A31: 1860 | B31: Meters | E31: 0 | F31: =IF(D31=0,+'App.2-CB_NewCGAAP_DepExp_2012'!O31,+'App.2-CB_NewCGAAP_DepExp_2012'!O31+((C31*0.5)/D31)) -> 0 | H31: 0 | I31: 0 | K31: =IF(ISERROR(+I31+'App.2-CB_NewCGAAP_DepExp_2012'!O31-J31), 0, +I31+'App.2-CB_NewCGAAP_DepExp_2012'!O31-J31) -> 0
A32: 1860 | B32: Meters (Smart Meters) | E32: 0 | F32: =IF(D32=0,+'App.2-CB_NewCGAAP_DepExp_2012'!O32,+'App.2-CB_NewCGAAP_DepExp_2012'!O32+((C32*0.5)/D32)) -> 0 | H32: 0 | I32: 0 | K32: =IF(ISERROR(+I32+'App.2-CB_NewCGAAP_DepExp_2012'!O32-J32), 0, +I32+'App.2-CB_NewCGAAP_DepExp_2012'!O32-J32) -> 0
A33: 1905 | B33: Land | E33: 0 | F33: =IF(D33=0,+'App.2-CB_NewCGAAP_DepExp_2012'!O33,+'App.2-CB_NewCGAAP_DepExp_2012'!O33+((C33*0.5)/D33)) -> 0 | H33: 0 | I33: 0 | K33: =IF(ISERROR(+I33+'App.2-CB_NewCGAAP_DepExp_2012'!O33-J33), 0, +I33+'App.2-CB_NewCGAAP_DepExp_2012'!O33-J33) -> 0
A34: 1908 | B34: Buildings & Fixtures | E34: 0 | F34: =IF(D34=0,+'App.2-CB_NewCGAAP_DepExp_2012'!O34,+'App.2-CB_NewCGAAP_DepExp_2012'!O34+((C34*0.5)/D34)) -> 0 | H34: 0 | I34: 0 | K34: =IF(ISERROR(+I34+'App.2-CB_NewCGAAP_DepExp_2012'!O34-J34), 0, +I34+'App.2-CB_NewCGAAP_DepExp_2012'!O34-J34) -> 0
A35: 1910 | B35: Leasehold Improvements | E35: 0 | F35: =IF(D35=0,+'App.2-CB_NewCGAAP_DepExp_2012'!O35,+'App.2-CB_NewCGAAP_DepExp_2012'!O35+((C35*0.5)/D35)) -> 0 | H35: 0 | I35: 0 | K35: =IF(ISERROR(+I35+'App.2-CB_NewCGAAP_DepExp_2012'!O35-J35), 0, +I35+'App.2-CB_NewCGAAP_DepExp_2012'!O35-J35) -> 0
A36: 1915 | B36: Office Furniture & Equipment (10 years) | E36: 0 | F36: =IF(D36=0,+'App.2-CB_NewCGAAP_DepExp_2012'!O36,+'App.2-CB_NewCGAAP_DepExp_2012'!O36+((C36*0.5)/D36)) -> 0 | H36: 0 | I36: 0 | K36: =IF(ISERROR(+I36+'App.2-CB_NewCGAAP_DepExp_2012'!O36-J36), 0, +I36+'App.2-CB_NewCGAAP_DepExp_2012'!O36-J36) -> 0
A37: 1915 | B37: Office Furniture & Equipment (5 years) | E37: 0 | F37: =IF(D37=0,+'App.2-CB_NewCGAAP_DepExp_2012'!O37,+'App.2-CB_NewCGAAP_DepExp_2012'!O37+((C37*0.5)/D37)) -> 0 | H37: 0 | I37: 0 | K37: =IF(ISERROR(+I37+'App.2-CB_NewCGAAP_DepExp_2012'!O37-J37), 0, +I37+'App.2-CB_NewCGAAP_DepExp_2012'!O37-J37) -> 0
A38: 1920 | B38: Computer Equipment - Hardware | E38: 0 | F38: =IF(D38=0,+'App.2-CB_NewCGAAP_DepExp_2012'!O38,+'App.2-CB_NewCGAAP_DepExp_2012'!O38+((C38*0.5)/D38)) -> 0 | H38: 0 | I38: 0 | K38: =IF(ISERROR(+I38+'App.2-CB_NewCGAAP_DepExp_2012'!O38-J38), 0, +I38+'App.2-CB_NewCGAAP_DepExp_2012'!O38-J38) -> 0
A39: 1920 | B39: Computer Equip.-Hardware(Post Mar. 22/04) | E39: 0 | F39: =IF(D39=0,+'App.2-CB_NewCGAAP_DepExp_2012'!O39,+'App.2-CB_NewCGAAP_DepExp_2012'!O39+((C39*0.5)/D39)) -> 0 | H39: 0 | I39: 0 | K39: =IF(ISERROR(+I39+'App.2-CB_NewCGAAP_DepExp_2012'!O39-J39), 0, +I39+'App.2-CB_NewCGAAP_DepExp_2012'!O39-J39) -> 0
A40: 1920 | B40: Computer Equip.-Hardware(Post Mar. 19/07) | E40: 0 | F40: =IF(D40=0,+'App.2-CB_NewCGAAP_DepExp_2012'!O40,+'App.2-CB_NewCGAAP_DepExp_2012'!O40+((C40*0.5)/D40)) -> 0 | H40: 0 | I40: 0 | K40: =IF(ISERROR(+I40+'App.2-CB_NewCGAAP_DepExp_2012'!O40-J40), 0, +I40+'App.2-CB_NewCGAAP_DepExp_2012'!O40-J40) -> 0
A41: 1930 | B41: Transportation Equipment | E41: 0 | F41: =IF(D41=0,+'App.2-CB_NewCGAAP_DepExp_2012'!O41,+'App.2-CB_NewCGAAP_DepExp_2012'!O41+((C41*0.5)/D41)) -> 0 | H41: 0 | I41: 0 | K41: =IF(ISERROR(+I41+'App.2-CB_NewCGAAP_DepExp_2012'!O41-J41), 0, +I41+'App.2-CB_NewCGAAP_DepExp_2012'!O41-J41) -> 0
A42: 1935 | B42: Stores Equipment | E42: 0 | F42: =IF(D42=0,+'App.2-CB_NewCGAAP_DepExp_2012'!O42,+'App.2-CB_NewCGAAP_DepExp_2012'!O42+((C42*0.5)/D42)) -> 0 | H42: 0 | I42: 0 | K42: =IF(ISERROR(+I42+'App.2-CB_NewCGAAP_DepExp_2012'!O42-J42), 0, +I42+'App.2-CB_NewCGAAP_DepExp_2012'!O42-J42) -> 0
A43: 1940 | B43: Tools, Shop & Garage Equipment | E43: 0 | F43: =IF(D43=0,+'App.2-CB_NewCGAAP_DepExp_2012'!O43,+'App.2-CB_NewCGAAP_DepExp_2012'!O43+((C43*0.5)/D43)) -> 0 | H43: 0 | I43: 0 | K43: =IF(ISERROR(+I43+'App.2-CB_NewCGAAP_DepExp_2012'!O43-J43), 0, +I43+'App.2-CB_NewCGAAP_DepExp_2012'!O43-J43) -> 0
A44: 1945 | B44: Measurement & Testing Equipment | E44: 0 | F44: =IF(D44=0,+'App.2-CB_NewCGAAP_DepExp_2012'!O44,+'App.2-CB_NewCGAAP_DepExp_2012'!O44+((C44*0.5)/D44)) -> 0 | H44: 0 | I44: 0 | K44: =IF(ISERROR(+I44+'App.2-CB_NewCGAAP_DepExp_2012'!O44-J44), 0, +I44+'App.2-CB_NewCGAAP_DepExp_2012'!O44-J44) -> 0
A45: 1950 | B45: Power Operated Equipment | E45: 0 | F45: =IF(D45=0,+'App.2-CB_NewCGAAP_DepExp_2012'!O45,+'App.2-CB_NewCGAAP_DepExp_2012'!O45+((C45*0.5)/D45)) -> 0 | H45: 0 | I45: 0 | K45: =IF(ISERROR(+I45+'App.2-CB_NewCGAAP_DepExp_2012'!O45-J45), 0, +I45+'App.2-CB_NewCGAAP_DepExp_2012'!O45-J45) -> 0
A46: 1955 | B46: Communications Equipment | E46: 0 | F46: =IF(D46=0,+'App.2-CB_NewCGAAP_DepExp_2012'!O46,+'App.2-CB_NewCGAAP_DepExp_2012'!O46+((C46*0.5)/D46)) -> 0 | H46: 0 | I46: 0 | K46: =IF(ISERROR(+I46+'App.2-CB_NewCGAAP_DepExp_2012'!O46-J46), 0, +I46+'App.2-CB_NewCGAAP_DepExp_2012'!O46-J46) -> 0
A47: 1955 | B47: Communication Equipment (Smart Meters) | E47: 0 | F47: =IF(D47=0,+'App.2-CB_NewCGAAP_DepExp_2012'!O47,+'App.2-CB_NewCGAAP_DepExp_2012'!O47+((C47*0.5)/D47)) -> 0 | H47: 0 | I47: 0 | K47: =IF(ISERROR(+I47+'App.2-CB_NewCGAAP_DepExp_2012'!O47-J47), 0, +I47+'App.2-CB_NewCGAAP_DepExp_2012'!O47-J47) -> 0
A48: 1960 | B48: Miscellaneous Equipment | E48: 0 | F48: =IF(D48=0,+'App.2-CB_NewCGAAP_DepExp_2012'!O48,+'App.2-CB_NewCGAAP_DepExp_2012'!O48+((C48*0.5)/D48)) -> 0 | H48: 0 | I48: 0 | K48: =IF(ISERROR(+I48+'App.2-CB_NewCGAAP_DepExp_2012'!O48-J48), 0, +I48+'App.2-CB_NewCGAAP_DepExp_2012'!O48-J48) -> 0
A49: 1970 | B49: Load Management Controls Customer Premises | E49: 0 | F49: =IF(D49=0,+'App.2-CB_NewCGAAP_DepExp_2012'!O49,+'App.2-CB_NewCGAAP_DepExp_2012'!O49+((C49*0.5)/D49)) -> 0 | H49: 0 | I49: 0 | K49: =IF(ISERROR(+I49+'App.2-CB_NewCGAAP_DepExp_2012'!O49-J49), 0, +I49+'App.2-CB_NewCGAAP_DepExp_2012'!O49-J49) -> 0
A50: 1975 | B50: Load Management Controls Utility Premises | E50: 0 | F50: =IF(D50=0,+'App.2-CB_NewCGAAP_DepExp_2012'!O50,+'App.2-CB_NewCGAAP_DepExp_2012'!O50+((C50*0.5)/D50)) -> 0 | H50: 0 | I50: 0 | K50: =IF(ISERROR(+I50+'App.2-CB_NewCGAAP_DepExp_2012'!O50-J50), 0, +I50+'App.2-CB_NewCGAAP_DepExp_2012'!O50-J50) -> 0
A51: 1980 | B51: System Supervisor Equipment | E51: 0 | F51: =IF(D51=0,+'App.2-CB_NewCGAAP_DepExp_2012'!O51,+'App.2-CB_NewCGAAP_DepExp_2012'!O51+((C51*0.5)/D51)) -> 0 | H51: 0 | I51: 0 | K51: =IF(ISERROR(+I51+'App.2-CB_NewCGAAP_DepExp_2012'!O51-J51), 0, +I51+'App.2-CB_NewCGAAP_DepExp_2012'!O51-J51) -> 0
A52: 1985 | B52: Miscellaneous Fixed Assets | E52: 0 | F52: =IF(D52=0,+'App.2-CB_NewCGAAP_DepExp_2012'!O52,+'App.2-CB_NewCGAAP_DepExp_2012'!O52+((C52*0.5)/D52)) -> 0 | H52: 0 | I52: 0 | K52: =IF(ISERROR(+I52+'App.2-CB_NewCGAAP_DepExp_2012'!O52-J52), 0, +I52+'App.2-CB_NewCGAAP_DepExp_2012'!O52-J52) -> 0
A53: 1990 | B53: Other Tangible Property | E53: 0 | F53: =IF(D53=0,+'App.2-CB_NewCGAAP_DepExp_2012'!O53,+'App.2-CB_NewCGAAP_DepExp_2012'!O53+((C53*0.5)/D53)) -> 0 | H53: 0 | I53: 0 | K53: =IF(ISERROR(+I53+'App.2-CB_NewCGAAP_DepExp_2012'!O53-J53), 0, +I53+'App.2-CB_NewCGAAP_DepExp_2012'!O53-J53) -> 0
A54: 1995 | B54: Contributions & Grants | E54: 0 | F54: =IF(D54=0,+'App.2-CB_NewCGAAP_DepExp_2012'!O54,+'App.2-CB_NewCGAAP_DepExp_2012'!O54+((C54*0.5)/D54)) -> 0 | H54: 0 | I54: 0 | K54: =IF(ISERROR(+I54+'App.2-CB_NewCGAAP_DepExp_2012'!O54-J54), 0, +I54+'App.2-CB_NewCGAAP_DepExp_2012'!O54-J54) -> 0
B55: Total | C55: =SUM(C17:C54) -> 0 | F55: =SUM(F17:F54) -> 0 | G55: 0 | H55: 0 | I55: 0 | J55: 0 | K55: 0
A57: Notes:
A58: 1 | B58: Board policy of the "half-year" rule - the applicant must ensure that additions in the year attract a half-year depreciation expense in the first year. Deviations from this standard practice must be supported in the application.
A59: 2 | B59: The applicant must provide an explanation of material variances in evidence.
A60: 3 | B60: This column refers to the calculated full year depreciation but excludes the depreciation expense on assets fully depreciated during the year. This column is used for the purpose of calculating depreciation expense in the following year on the next worksheet.
A62: General: | B62: Applicants must provide a breakdown of depreciation and amortization expense in the above format for all relevant accounts. Asset Retirement Obligations (AROs), depreciation and accretion expense should be disclosed separately consistent with the Notes of historical Audited Financial Statements.

Sheet App.2-CD_MIFRS_DepExp_2014 (hidden)
J1: File Number: | K1: =EBNUMBER -> EB-2015-0004
J2: Exhibit:
J3: Tab:
J4: Schedule:
J5: Page:
J7: Date:
A9: Appendix 2-CD
A10: Depreciation and Amortization Expense
A11: Assumes the applicant made capitalization and depreciation expense accounting policy changes under CGAAP effective January 1, 2012 and will adopt IFRS for financial reporting purposes effective January 1, 2015.
E13: 2014 | F13: MIFRS
A15: Account | B15: Description | C15: Additions | D15: Years (new additions only) | E15: Depreciation Rate on New Additions | F15: 2014 Depreciation Expense 1 | G15: 2014 Depreciation Expense per Apppendix 2-BA Fixed Assets, Column J (l) | H15: Variance 2 | I15: Depreciation Expense on 2014 Full Year Additions | J15: Less Depreciation Expense on Assets Fully Depreciated during the year (o) | K15: 2014 Full Year Depreciation 3
C16: (d) | D16: (f) | E16: (g) = 1 / (f) | F16: (h)=2013 Full Year Deprecation + ((d)*0.5)/(f) | H16: (m) = (h) - (l) | I16: (n)=((d))/(f) | K16: (p) = 2013 Full Year Depreciation + (n) - (o)
A17: 1611 | B17: Computer Software (Formally known as Account 1925) | E17: =IF(D17=0,0,1/D17) -> 0 | F17: =IF(D17=0,+'App.2-CC_NewCGAAP_DepExp_2013'!K17,+'App.2-CC_NewCGAAP_DepExp_2013'!K17+((C17*0.5)/D17)) -> 0 | H17: =IF(ISERROR(+F17-G17), 0, +F17-G17) -> 0 | I17: =IF(D17=0,0,+(C17)/D17) -> 0 | K17: =IF(ISERROR(+I17+'App.2-CC_NewCGAAP_DepExp_2013'!K17-J17), 0, +I17+'App.2-CC_NewCGAAP_DepExp_2013'!K17-J17) -> 0
A18: 1612 | B18: Land Rights (Formally known as Account 1906) | E18: 0 | F18: =IF(D18=0,+'App.2-CC_NewCGAAP_DepExp_2013'!K18,+'App.2-CC_NewCGAAP_DepExp_2013'!K18+((C18*0.5)/D18)) -> 0 | H18: 0 | I18: 0 | K18: =IF(ISERROR(+I18+'App.2-CC_NewCGAAP_DepExp_2013'!K18-J18), 0, +I18+'App.2-CC_NewCGAAP_DepExp_2013'!K18-J18) -> 0
A19: 1805 | B19: Land | E19: 0 | F19: =IF(D19=0,+'App.2-CC_NewCGAAP_DepExp_2013'!K19,+'App.2-CC_NewCGAAP_DepExp_2013'!K19+((C19*0.5)/D19)) -> 0 | H19: 0 | I19: 0 | K19: =IF(ISERROR(+I19+'App.2-CC_NewCGAAP_DepExp_2013'!K19-J19), 0, +I19+'App.2-CC_NewCGAAP_DepExp_2013'!K19-J19) -> 0
A20: 1808 | B20: Buildings | E20: 0 | F20: =IF(D20=0,+'App.2-CC_NewCGAAP_DepExp_2013'!K20,+'App.2-CC_NewCGAAP_DepExp_2013'!K20+((C20*0.5)/D20)) -> 0 | H20: 0 | I20: 0 | K20: =IF(ISERROR(+I20+'App.2-CC_NewCGAAP_DepExp_2013'!K20-J20), 0, +I20+'App.2-CC_NewCGAAP_DepExp_2013'!K20-J20) -> 0
A21: 1810 | B21: Leasehold Improvements | E21: 0 | F21: =IF(D21=0,+'App.2-CC_NewCGAAP_DepExp_2013'!K21,+'App.2-CC_NewCGAAP_DepExp_2013'!K21+((C21*0.5)/D21)) -> 0 | H21: 0 | I21: 0 | K21: =IF(ISERROR(+I21+'App.2-CC_NewCGAAP_DepExp_2013'!K21-J21), 0, +I21+'App.2-CC_NewCGAAP_DepExp_2013'!K21-J21) -> 0
A22: 1815 | B22: Transformer Station Equipment >50 kV | E22: 0 | F22: =IF(D22=0,+'App.2-CC_NewCGAAP_DepExp_2013'!K22,+'App.2-CC_NewCGAAP_DepExp_2013'!K22+((C22*0.5)/D22)) -> 0 | H22: 0 | I22: 0 | K22: =IF(ISERROR(+I22+'App.2-CC_NewCGAAP_DepExp_2013'!K22-J22), 0, +I22+'App.2-CC_NewCGAAP_DepExp_2013'!K22-J22) -> 0
A23: 1820 | B23: Distribution Station Equipment <50 kV | E23: 0 | F23: =IF(D23=0,+'App.2-CC_NewCGAAP_DepExp_2013'!K23,+'App.2-CC_NewCGAAP_DepExp_2013'!K23+((C23*0.5)/D23)) -> 0 | H23: 0 | I23: 0 | K23: =IF(ISERROR(+I23+'App.2-CC_NewCGAAP_DepExp_2013'!K23-J23), 0, +I23+'App.2-CC_NewCGAAP_DepExp_2013'!K23-J23) -> 0
A24: 1825 | B24: Storage Battery Equipment | E24: 0 | F24: =IF(D24=0,+'App.2-CC_NewCGAAP_DepExp_2013'!K24,+'App.2-CC_NewCGAAP_DepExp_2013'!K24+((C24*0.5)/D24)) -> 0 | H24: 0 | I24: 0 | K24: =IF(ISERROR(+I24+'App.2-CC_NewCGAAP_DepExp_2013'!K24-J24), 0, +I24+'App.2-CC_NewCGAAP_DepExp_2013'!K24-J24) -> 0
A25: 1830 | B25: Poles, Towers & Fixtures | E25: 0 | F25: =IF(D25=0,+'App.2-CC_NewCGAAP_DepExp_2013'!K25,+'App.2-CC_NewCGAAP_DepExp_2013'!K25+((C25*0.5)/D25)) -> 0 | H25: 0 | I25: 0 | K25: =IF(ISERROR(+I25+'App.2-CC_NewCGAAP_DepExp_2013'!K25-J25), 0, +I25+'App.2-CC_NewCGAAP_DepExp_2013'!K25-J25) -> 0
A26: 1835 | B26: Overhead Conductors & Devices | E26: 0 | F26: =IF(D26=0,+'App.2-CC_NewCGAAP_DepExp_2013'!K26,+'App.2-CC_NewCGAAP_DepExp_2013'!K26+((C26*0.5)/D26)) -> 0 | H26: 0 | I26: 0 | K26: =IF(ISERROR(+I26+'App.2-CC_NewCGAAP_DepExp_2013'!K26-J26), 0, +I26+'App.2-CC_NewCGAAP_DepExp_2013'!K26-J26) -> 0
A27: 1840 | B27: Underground Conduit | E27: 0 | F27: =IF(D27=0,+'App.2-CC_NewCGAAP_DepExp_2013'!K27,+'App.2-CC_NewCGAAP_DepExp_2013'!K27+((C27*0.5)/D27)) -> 0 | H27: 0 | I27: 0 | K27: =IF(ISERROR(+I27+'App.2-CC_NewCGAAP_DepExp_2013'!K27-J27), 0, +I27+'App.2-CC_NewCGAAP_DepExp_2013'!K27-J27) -> 0
A28: 1845 | B28: Underground Conductors & Devices | E28: 0 | F28: =IF(D28=0,+'App.2-CC_NewCGAAP_DepExp_2013'!K28,+'App.2-CC_NewCGAAP_DepExp_2013'!K28+((C28*0.5)/D28)) -> 0 | H28: 0 | I28: 0 | K28: =IF(ISERROR(+I28+'App.2-CC_NewCGAAP_DepExp_2013'!K28-J28), 0, +I28+'App.2-CC_NewCGAAP_DepExp_2013'!K28-J28) -> 0
A29: 1850 | B29: Line Transformers | E29: 0 | F29: =IF(D29=0,+'App.2-CC_NewCGAAP_DepExp_2013'!K29,+'App.2-CC_NewCGAAP_DepExp_2013'!K29+((C29*0.5)/D29)) -> 0 | H29: 0 | I29: 0 | K29: =IF(ISERROR(+I29+'App.2-CC_NewCGAAP_DepExp_2013'!K29-J29), 0, +I29+'App.2-CC_NewCGAAP_DepExp_2013'!K29-J29) -> 0
A30: 1855 | B30: Services (Overhead & Underground) | E30: 0 | F30: =IF(D30=0,+'App.2-CC_NewCGAAP_DepExp_2013'!K30,+'App.2-CC_NewCGAAP_DepExp_2013'!K30+((C30*0.5)/D30)) -> 0 | H30: 0 | I30: 0 | K30: =IF(ISERROR(+I30+'App.2-CC_NewCGAAP_DepExp_2013'!K30-J30), 0, +I30+'App.2-CC_NewCGAAP_DepExp_2013'!K30-J30) -> 0
A31: 1860 | B31: Meters | E31: 0 | F31: =IF(D31=0,+'App.2-CC_NewCGAAP_DepExp_2013'!K31,+'App.2-CC_NewCGAAP_DepExp_2013'!K31+((C31*0.5)/D31)) -> 0 | H31: 0 | I31: 0 | K31: =IF(ISERROR(+I31+'App.2-CC_NewCGAAP_DepExp_2013'!K31-J31), 0, +I31+'App.2-CC_NewCGAAP_DepExp_2013'!K31-J31) -> 0
A32: 1860 | B32: Meters (Smart Meters) | E32: 0 | F32: =IF(D32=0,+'App.2-CC_NewCGAAP_DepExp_2013'!K32,+'App.2-CC_NewCGAAP_DepExp_2013'!K32+((C32*0.5)/D32)) -> 0 | H32: 0 | I32: 0 | K32: =IF(ISERROR(+I32+'App.2-CC_NewCGAAP_DepExp_2013'!K32-J32), 0, +I32+'App.2-CC_NewCGAAP_DepExp_2013'!K32-J32) -> 0
A33: 1905 | B33: Land | E33: 0 | F33: =IF(D33=0,+'App.2-CC_NewCGAAP_DepExp_2013'!K33,+'App.2-CC_NewCGAAP_DepExp_2013'!K33+((C33*0.5)/D33)) -> 0 | H33: 0 | I33: 0 | K33: =IF(ISERROR(+I33+'App.2-CC_NewCGAAP_DepExp_2013'!K33-J33), 0, +I33+'App.2-CC_NewCGAAP_DepExp_2013'!K33-J33) -> 0
A34: 1908 | B34: Buildings & Fixtures | E34: 0 | F34: =IF(D34=0,+'App.2-CC_NewCGAAP_DepExp_2013'!K34,+'App.2-CC_NewCGAAP_DepExp_2013'!K34+((C34*0.5)/D34)) -> 0 | H34: 0 | I34: 0 | K34: =IF(ISERROR(+I34+'App.2-CC_NewCGAAP_DepExp_2013'!K34-J34), 0, +I34+'App.2-CC_NewCGAAP_DepExp_2013'!K34-J34) -> 0
A35: 1910 | B35: Leasehold Improvements | E35: 0 | F35: =IF(D35=0,+'App.2-CC_NewCGAAP_DepExp_2013'!K35,+'App.2-CC_NewCGAAP_DepExp_2013'!K35+((C35*0.5)/D35)) -> 0 | H35: 0 | I35: 0 | K35: =IF(ISERROR(+I35+'App.2-CC_NewCGAAP_DepExp_2013'!K35-J35), 0, +I35+'App.2-CC_NewCGAAP_DepExp_2013'!K35-J35) -> 0
A36: 1915 | B36: Office Furniture & Equipment (10 years) | E36: 0 | F36: =IF(D36=0,+'App.2-CC_NewCGAAP_DepExp_2013'!K36,+'App.2-CC_NewCGAAP_DepExp_2013'!K36+((C36*0.5)/D36)) -> 0 | H36: 0 | I36: 0 | K36: =IF(ISERROR(+I36+'App.2-CC_NewCGAAP_DepExp_2013'!K36-J36), 0, +I36+'App.2-CC_NewCGAAP_DepExp_2013'!K36-J36) -> 0
A37: 1915 | B37: Office Furniture & Equipment (5 years) | E37: 0 | F37: =IF(D37=0,+'App.2-CC_NewCGAAP_DepExp_2013'!K37,+'App.2-CC_NewCGAAP_DepExp_2013'!K37+((C37*0.5)/D37)) -> 0 | H37: 0 | I37: 0 | K37: =IF(ISERROR(+I37+'App.2-CC_NewCGAAP_DepExp_2013'!K37-J37), 0, +I37+'App.2-CC_NewCGAAP_DepExp_2013'!K37-J37) -> 0
A38: 1920 | B38: Computer Equipment - Hardware | E38: 0 | F38: =IF(D38=0,+'App.2-CC_NewCGAAP_DepExp_2013'!K38,+'App.2-CC_NewCGAAP_DepExp_2013'!K38+((C38*0.5)/D38)) -> 0 | H38: 0 | I38: 0 | K38: =IF(ISERROR(+I38+'App.2-CC_NewCGAAP_DepExp_2013'!K38-J38), 0, +I38+'App.2-CC_NewCGAAP_DepExp_2013'!K38-J38) -> 0
A39: 1920 | B39: Computer Equip.-Hardware(Post Mar. 22/04) | E39: 0 | F39: =IF(D39=0,+'App.2-CC_NewCGAAP_DepExp_2013'!K39,+'App.2-CC_NewCGAAP_DepExp_2013'!K39+((C39*0.5)/D39)) -> 0 | H39: 0 | I39: 0 | K39: =IF(ISERROR(+I39+'App.2-CC_NewCGAAP_DepExp_2013'!K39-J39), 0, +I39+'App.2-CC_NewCGAAP_DepExp_2013'!K39-J39) -> 0
A40: 1920 | B40: Computer Equip.-Hardware(Post Mar. 19/07) | E40: 0 | F40: =IF(D40=0,+'App.2-CC_NewCGAAP_DepExp_2013'!K40,+'App.2-CC_NewCGAAP_DepExp_2013'!K40+((C40*0.5)/D40)) -> 0 | H40: 0 | I40: 0 | K40: =IF(ISERROR(+I40+'App.2-CC_NewCGAAP_DepExp_2013'!K40-J40), 0, +I40+'App.2-CC_NewCGAAP_DepExp_2013'!K40-J40) -> 0
A41: 1930 | B41: Transportation Equipment | E41: 0 | F41: =IF(D41=0,+'App.2-CC_NewCGAAP_DepExp_2013'!K41,+'App.2-CC_NewCGAAP_DepExp_2013'!K41+((C41*0.5)/D41)) -> 0 | H41: 0 | I41: 0 | K41: =IF(ISERROR(+I41+'App.2-CC_NewCGAAP_DepExp_2013'!K41-J41), 0, +I41+'App.2-CC_NewCGAAP_DepExp_2013'!K41-J41) -> 0
A42: 1935 | B42: Stores Equipment | E42: 0 | F42: =IF(D42=0,+'App.2-CC_NewCGAAP_DepExp_2013'!K42,+'App.2-CC_NewCGAAP_DepExp_2013'!K42+((C42*0.5)/D42)) -> 0 | H42: 0 | I42: 0 | K42: =IF(ISERROR(+I42+'App.2-CC_NewCGAAP_DepExp_2013'!K42-J42), 0, +I42+'App.2-CC_NewCGAAP_DepExp_2013'!K42-J42) -> 0
A43: 1940 | B43: Tools, Shop & Garage Equipment | E43: 0 | F43: =IF(D43=0,+'App.2-CC_NewCGAAP_DepExp_2013'!K43,+'App.2-CC_NewCGAAP_DepExp_2013'!K43+((C43*0.5)/D43)) -> 0 | H43: 0 | I43: 0 | K43: =IF(ISERROR(+I43+'App.2-CC_NewCGAAP_DepExp_2013'!K43-J43), 0, +I43+'App.2-CC_NewCGAAP_DepExp_2013'!K43-J43) -> 0
A44: 1945 | B44: Measurement & Testing Equipment | E44: 0 | F44: =IF(D44=0,+'App.2-CC_NewCGAAP_DepExp_2013'!K44,+'App.2-CC_NewCGAAP_DepExp_2013'!K44+((C44*0.5)/D44)) -> 0 | H44: 0 | I44: 0 | K44: =IF(ISERROR(+I44+'App.2-CC_NewCGAAP_DepExp_2013'!K44-J44), 0, +I44+'App.2-CC_NewCGAAP_DepExp_2013'!K44-J44) -> 0
A45: 1950 | B45: Power Operated Equipment | E45: 0 | F45: =IF(D45=0,+'App.2-CC_NewCGAAP_DepExp_2013'!K45,+'App.2-CC_NewCGAAP_DepExp_2013'!K45+((C45*0.5)/D45)) -> 0 | H45: 0 | I45: 0 | K45: =IF(ISERROR(+I45+'App.2-CC_NewCGAAP_DepExp_2013'!K45-J45), 0, +I45+'App.2-CC_NewCGAAP_DepExp_2013'!K45-J45) -> 0
A46: 1955 | B46: Communications Equipment | E46: 0 | F46: =IF(D46=0,+'App.2-CC_NewCGAAP_DepExp_2013'!K46,+'App.2-CC_NewCGAAP_DepExp_2013'!K46+((C46*0.5)/D46)) -> 0 | H46: 0 | I46: 0 | K46: =IF(ISERROR(+I46+'App.2-CC_NewCGAAP_DepExp_2013'!K46-J46), 0, +I46+'App.2-CC_NewCGAAP_DepExp_2013'!K46-J46) -> 0
A47: 1955 | B47: Communication Equipment (Smart Meters) | E47: 0 | F47: =IF(D47=0,+'App.2-CC_NewCGAAP_DepExp_2013'!K47,+'App.2-CC_NewCGAAP_DepExp_2013'!K47+((C47*0.5)/D47)) -> 0 | H47: 0 | I47: 0 | K47: =IF(ISERROR(+I47+'App.2-CC_NewCGAAP_DepExp_2013'!K47-J47), 0, +I47+'App.2-CC_NewCGAAP_DepExp_2013'!K47-J47) -> 0
A48: 1960 | B48: Miscellaneous Equipment | E48: 0 | F48: =IF(D48=0,+'App.2-CC_NewCGAAP_DepExp_2013'!K48,+'App.2-CC_NewCGAAP_DepExp_2013'!K48+((C48*0.5)/D48)) -> 0 | H48: 0 | I48: 0 | K48: =IF(ISERROR(+I48+'App.2-CC_NewCGAAP_DepExp_2013'!K48-J48), 0, +I48+'App.2-CC_NewCGAAP_DepExp_2013'!K48-J48) -> 0
A49: 1970 | B49: Load Management Controls Customer Premises | E49: 0 | F49: =IF(D49=0,+'App.2-CC_NewCGAAP_DepExp_2013'!K49,+'App.2-CC_NewCGAAP_DepExp_2013'!K49+((C49*0.5)/D49)) -> 0 | H49: 0 | I49: 0 | K49: =IF(ISERROR(+I49+'App.2-CC_NewCGAAP_DepExp_2013'!K49-J49), 0, +I49+'App.2-CC_NewCGAAP_DepExp_2013'!K49-J49) -> 0
A50: 1975 | B50: Load Management Controls Utility Premises | E50: 0 | F50: =IF(D50=0,+'App.2-CC_NewCGAAP_DepExp_2013'!K50,+'App.2-CC_NewCGAAP_DepExp_2013'!K50+((C50*0.5)/D50)) -> 0 | H50: 0 | I50: 0 | K50: =IF(ISERROR(+I50+'App.2-CC_NewCGAAP_DepExp_2013'!K50-J50), 0, +I50+'App.2-CC_NewCGAAP_DepExp_2013'!K50-J50) -> 0
A51: 1980 | B51: System Supervisor Equipment | E51: 0 | F51: =IF(D51=0,+'App.2-CC_NewCGAAP_DepExp_2013'!K51,+'App.2-CC_NewCGAAP_DepExp_2013'!K51+((C51*0.5)/D51)) -> 0 | H51: 0 | I51: 0 | K51: =IF(ISERROR(+I51+'App.2-CC_NewCGAAP_DepExp_2013'!K51-J51), 0, +I51+'App.2-CC_NewCGAAP_DepExp_2013'!K51-J51) -> 0
A52: 1985 | B52: Miscellaneous Fixed Assets | E52: 0 | F52: =IF(D52=0,+'App.2-CC_NewCGAAP_DepExp_2013'!K52,+'App.2-CC_NewCGAAP_DepExp_2013'!K52+((C52*0.5)/D52)) -> 0 | H52: 0 | I52: 0 | K52: =IF(ISERROR(+I52+'App.2-CC_NewCGAAP_DepExp_2013'!K52-J52), 0, +I52+'App.2-CC_NewCGAAP_DepExp_2013'!K52-J52) -> 0
A53: 1990 | B53: Other Tangible Property | E53: 0 | F53: =IF(D53=0,+'App.2-CC_NewCGAAP_DepExp_2013'!K53,+'App.2-CC_NewCGAAP_DepExp_2013'!K53+((C53*0.5)/D53)) -> 0 | H53: 0 | I53: 0 | K53: =IF(ISERROR(+I53+'App.2-CC_NewCGAAP_DepExp_2013'!K53-J53), 0, +I53+'App.2-CC_NewCGAAP_DepExp_2013'!K53-J53) -> 0
E54: 0 | F54: =IF(D54=0,+'App.2-CC_NewCGAAP_DepExp_2013'!K54,+'App.2-CC_NewCGAAP_DepExp_2013'!K54+((C54*0.5)/D54)) -> 0 | H54: 0 | I54: 0 | K54: =IF(ISERROR(+I54+'App.2-CC_NewCGAAP_DepExp_2013'!K54-J54), 0, +I54+'App.2-CC_NewCGAAP_DepExp_2013'!K54-J54) -> 0
B55: Total | C55: =SUM(C17:C54) -> 0 | F55: =SUM(F17:F54) -> 0 | G55: 0 | H55: 0 | I55: 0 | J55: 0 | K55: 0
B56: Depreciation exp. adj. from gain or loss on the retirement of assets (pool of like assets) | F56: 0
B57: Total Depreciation Expense | F57: =+F56+F55 -> 0
A59: Notes:
A60: 1 | B60: Board policy of the "half-year" rule - the applicant must ensure that additions in the year attract a half-year depreciation expense in the first year. Deviations from this standard practice must be supported in the application.
A61: 2 | B61: The applicant must provide an explanation of material variances in evidence.
A62: 3 | B62: This column refers to the calculated full year depreciation but excludes the depreciation expense on assets fully depreciated during the year. This column is used for the purpose of calculating depreciation expense in the following year on the next worksheet.
A64: General: | B64: Applicants must provide a breakdown of depreciation and amortization expense in the above format for all relevant accounts. Asset Retirement Obligations (AROs), depreciation and accretion expense should be disclosed separately consistent with the Notes of historical Audited Financial Statements.

Sheet App.2-CE_MIFRS_DepExp_2015 (hidden)
G1: File Number: | H1: =EBNUMBER -> EB-2015-0004
G2: Exhibit:
G3: Tab:
G4: Schedule:
G5: Page:
G7: Date:
A9: Appendix 2-CE
A10: Depreciation and Amortization Expense
A11: Assumes the applicant made capitalization and depreciation expense accounting policy changes under CGAAP effective January 1, 2012 and will adopt IFRS for financial reporting purposes effective January 1, 2015.
C13: 2015 | D13: MIFRS
A15: Account | B15: Description | C15: Additions | D15: Years (new additions only) | E15: Depreciation Rate on New Additions | F15: 2015 Depreciation Expense 1 | G15: 2015 Depreciation Expense per Appendix 2-BA Fixed Assets, Column J (l) | H15: Variance 2
C16: (d) | D16: (f) | E16: (g) = 1 / (f) | F16: (h)=2014 Full Year Depreciation + ((d)*0.5)/(f) | H16: (m) = (h) - (l)
A17: 1611 | B17: Computer Software (Formally known as Account 1925) | E17: =IF(D17=0,0,1/D17) -> 0 | F17: =IF(D17=0,'App.2-CD_MIFRS_DepExp_2014'!K17,+'App.2-CD_MIFRS_DepExp_2014'!K17+((C17*0.5)/D17)) -> 0 | H17: =IF(ISERROR(+F17-G17), 0, +F17-G17) -> 0
A18: 1612 | B18: Land Rights (Formally known as Account 1906) | E18: 0 | F18: =IF(D18=0,'App.2-CD_MIFRS_DepExp_2014'!K18,+'App.2-CD_MIFRS_DepExp_2014'!K18+((C18*0.5)/D18)) -> 0 | H18: 0
A19: 1805 | B19: Land | E19: 0 | F19: =IF(D19=0,'App.2-CD_MIFRS_DepExp_2014'!K19,+'App.2-CD_MIFRS_DepExp_2014'!K19+((C19*0.5)/D19)) -> 0 | H19: 0
A20: 1808 | B20: Buildings | E20: 0 | F20: =IF(D20=0,'App.2-CD_MIFRS_DepExp_2014'!K20,+'App.2-CD_MIFRS_DepExp_2014'!K20+((C20*0.5)/D20)) -> 0 | H20: 0
A21: 1810 | B21: Leasehold Improvements | E21: 0 | F21: =IF(D21=0,'App.2-CD_MIFRS_DepExp_2014'!K21,+'App.2-CD_MIFRS_DepExp_2014'!K21+((C21*0.5)/D21)) -> 0 | H21: 0
A22: 1815 | B22: Transformer Station Equipment >50 kV | E22: 0 | F22: =IF(D22=0,'App.2-CD_MIFRS_DepExp_2014'!K22,+'App.2-CD_MIFRS_DepExp_2014'!K22+((C22*0.5)/D22)) -> 0 | H22: 0
A23: 1820 | B23: Distribution Station Equipment <50 kV | E23: 0 | F23: =IF(D23=0,'App.2-CD_MIFRS_DepExp_2014'!K23,+'App.2-CD_MIFRS_DepExp_2014'!K23+((C23*0.5)/D23)) -> 0 | H23: 0
A24: 1825 | B24: Storage Battery Equipment | E24: 0 | F24: =IF(D24=0,'App.2-CD_MIFRS_DepExp_2014'!K24,+'App.2-CD_MIFRS_DepExp_2014'!K24+((C24*0.5)/D24)) -> 0 | H24: 0
A25: 1830 | B25: Poles, Towers & Fixtures | E25: 0 | F25: =IF(D25=0,'App.2-CD_MIFRS_DepExp_2014'!K25,+'App.2-CD_MIFRS_DepExp_2014'!K25+((C25*0.5)/D25)) -> 0 | H25: 0
A26: 1835 | B26: Overhead Conductors & Devices | E26: 0 | F26: =IF(D26=0,'App.2-CD_MIFRS_DepExp_2014'!K26,+'App.2-CD_MIFRS_DepExp_2014'!K26+((C26*0.5)/D26)) -> 0 | H26: 0
A27: 1840 | B27: Underground Conduit | E27: 0 | F27: =IF(D27=0,'App.2-CD_MIFRS_DepExp_2014'!K27,+'App.2-CD_MIFRS_DepExp_2014'!K27+((C27*0.5)/D27)) -> 0 | H27: 0
A28: 1845 | B28: Underground Conductors & Devices | E28: 0 | F28: =IF(D28=0,'App.2-CD_MIFRS_DepExp_2014'!K28,+'App.2-CD_MIFRS_DepExp_2014'!K28+((C28*0.5)/D28)) -> 0 | H28: 0
A29: 1850 | B29: Line Transformers | E29: 0 | F29: =IF(D29=0,'App.2-CD_MIFRS_DepExp_2014'!K29,+'App.2-CD_MIFRS_DepExp_2014'!K29+((C29*0.5)/D29)) -> 0 | H29: 0
A30: 1855 | B30: Services (Overhead & Underground) | E30: 0 | F30: =IF(D30=0,'App.2-CD_MIFRS_DepExp_2014'!K30,+'App.2-CD_MIFRS_DepExp_2014'!K30+((C30*0.5)/D30)) -> 0 | H30: 0
A31: 1860 | B31: Meters | E31: 0 | F31: =IF(D31=0,'App.2-CD_MIFRS_DepExp_2014'!K31,+'App.2-CD_MIFRS_DepExp_2014'!K31+((C31*0.5)/D31)) -> 0 | H31: 0
A32: 1860 | B32: Meters (Smart Meters) | E32: 0 | F32: =IF(D32=0,'App.2-CD_MIFRS_DepExp_2014'!K32,+'App.2-CD_MIFRS_DepExp_2014'!K32+((C32*0.5)/D32)) -> 0 | H32: 0
A33: 1905 | B33: Land | E33: 0 | F33: =IF(D33=0,'App.2-CD_MIFRS_DepExp_2014'!K33,+'App.2-CD_MIFRS_DepExp_2014'!K33+((C33*0.5)/D33)) -> 0 | H33: 0
A34: 1908 | B34: Buildings & Fixtures | E34: 0 | F34: =IF(D34=0,'App.2-CD_MIFRS_DepExp_2014'!K34,+'App.2-CD_MIFRS_DepExp_2014'!K34+((C34*0.5)/D34)) -> 0 | H34: 0
A35: 1910 | B35: Leasehold Improvements | E35: 0 | F35: =IF(D35=0,'App.2-CD_MIFRS_DepExp_2014'!K35,+'App.2-CD_MIFRS_DepExp_2014'!K35+((C35*0.5)/D35)) -> 0 | H35: 0
A36: 1915 | B36: Office Furniture & Equipment (10 years) | E36: 0 | F36: =IF(D36=0,'App.2-CD_MIFRS_DepExp_2014'!K36,+'App.2-CD_MIFRS_DepExp_2014'!K36+((C36*0.5)/D36)) -> 0 | H36: 0
A37: 1915 | B37: Office Furniture & Equipment (5 years) | E37: 0 | F37: =IF(D37=0,'App.2-CD_MIFRS_DepExp_2014'!K37,+'App.2-CD_MIFRS_DepExp_2014'!K37+((C37*0.5)/D37)) -> 0 | H37: 0
A38: 1920 | B38: Computer Equipment - Hardware | E38: 0 | F38: =IF(D38=0,'App.2-CD_MIFRS_DepExp_2014'!K38,+'App.2-CD_MIFRS_DepExp_2014'!K38+((C38*0.5)/D38)) -> 0 | H38: 0
A39: 1920 | B39: Computer Equip.-Hardware(Post Mar. 22/04) | E39: 0 | F39: =IF(D39=0,'App.2-CD_MIFRS_DepExp_2014'!K39,+'App.2-CD_MIFRS_DepExp_2014'!K39+((C39*0.5)/D39)) -> 0 | H39: 0
A40: 1920 | B40: Computer Equip.-Hardware(Post Mar. 19/07) | E40: 0 | F40: =IF(D40=0,'App.2-CD_MIFRS_DepExp_2014'!K40,+'App.2-CD_MIFRS_DepExp_2014'!K40+((C40*0.5)/D40)) -> 0 | H40: 0
A41: 1930 | B41: Transportation Equipment | E41: 0 | F41: =IF(D41=0,'App.2-CD_MIFRS_DepExp_2014'!K41,+'App.2-CD_MIFRS_DepExp_2014'!K41+((C41*0.5)/D41)) -> 0 | H41: 0
A42: 1935 | B42: Stores Equipment | E42: 0 | F42: =IF(D42=0,'App.2-CD_MIFRS_DepExp_2014'!K42,+'App.2-CD_MIFRS_DepExp_2014'!K42+((C42*0.5)/D42)) -> 0 | H42: 0
A43: 1940 | B43: Tools, Shop & Garage Equipment | E43: 0 | F43: =IF(D43=0,'App.2-CD_MIFRS_DepExp_2014'!K43,+'App.2-CD_MIFRS_DepExp_2014'!K43+((C43*0.5)/D43)) -> 0 | H43: 0
A44: 1945 | B44: Measurement & Testing Equipment | E44: 0 | F44: =IF(D44=0,'App.2-CD_MIFRS_DepExp_2014'!K44,+'App.2-CD_MIFRS_DepExp_2014'!K44+((C44*0.5)/D44)) -> 0 | H44: 0
A45: 1950 | B45: Power Operated Equipment | E45: 0 | F45: =IF(D45=0,'App.2-CD_MIFRS_DepExp_2014'!K45,+'App.2-CD_MIFRS_DepExp_2014'!K45+((C45*0.5)/D45)) -> 0 | H45: 0
A46: 1955 | B46: Communications Equipment | E46: 0 | F46: =IF(D46=0,'App.2-CD_MIFRS_DepExp_2014'!K46,+'App.2-CD_MIFRS_DepExp_2014'!K46+((C46*0.5)/D46)) -> 0 | H46: 0
A47: 1955 | B47: Communication Equipment (Smart Meters) | E47: 0 | F47: =IF(D47=0,'App.2-CD_MIFRS_DepExp_2014'!K47,+'App.2-CD_MIFRS_DepExp_2014'!K47+((C47*0.5)/D47)) -> 0 | H47: 0
A48: 1960 | B48: Miscellaneous Equipment | E48: 0 | F48: =IF(D48=0,'App.2-CD_MIFRS_DepExp_2014'!K48,+'App.2-CD_MIFRS_DepExp_2014'!K48+((C48*0.5)/D48)) -> 0 | H48: 0
A49: 1970 | B49: Load Management Controls Customer Premises | E49: 0 | F49: =IF(D49=0,'App.2-CD_MIFRS_DepExp_2014'!K49,+'App.2-CD_MIFRS_DepExp_2014'!K49+((C49*0.5)/D49)) -> 0 | H49: 0
A50: 1975 | B50: Load Management Controls Utility Premises | E50: 0 | F50: =IF(D50=0,'App.2-CD_MIFRS_DepExp_2014'!K50,+'App.2-CD_MIFRS_DepExp_2014'!K50+((C50*0.5)/D50)) -> 0 | H50: 0
A51: 1980 | B51: System Supervisor Equipment | E51: 0 | F51: =IF(D51=0,'App.2-CD_MIFRS_DepExp_2014'!K51,+'App.2-CD_MIFRS_DepExp_2014'!K51+((C51*0.5)/D51)) -> 0 | H51: 0
A52: 1985 | B52: Miscellaneous Fixed Assets | E52: 0 | F52: =IF(D52=0,'App.2-CD_MIFRS_DepExp_2014'!K52,+'App.2-CD_MIFRS_DepExp_2014'!K52+((C52*0.5)/D52)) -> 0 | H52: 0
A53: 1990 | B53: Other Tangible Property | E53: 0 | F53: =IF(D53=0,'App.2-CD_MIFRS_DepExp_2014'!K53,+'App.2-CD_MIFRS_DepExp_2014'!K53+((C53*0.5)/D53)) -> 0 | H53: 0
E54: 0 | F54: =IF(D54=0,'App.2-CD_MIFRS_DepExp_2014'!K54,+'App.2-CD_MIFRS_DepExp_2014'!K54+((C54*0.5)/D54)) -> 0 | H54: 0
B55: Total | C55: =SUM(C17:C54) -> 0 | F55: =SUM(F17:F54) -> 0 | G55: =SUM(G17:G54) -> 0 | H55: =SUM(H17:H54) -> 0
B56: Depreciation exp. adj. from gain or loss on the retirement of assets (pool of like assets)
B57: Total Depreciation expense to be included in the test year revenue requirement | F57: =SUM(F55:F56) -> 0
A58: Notes:
A59: 1 | B59: Board policy of the "half-year" rule - the applicant must ensure that additions in the year attract a half-year depreciation expense in the first year. Deviations from this standard practice must be supported in the application.
A60: 2 | B60: The applicant must provide an explanation of material variances in evidence.
A63: General: | B63: Applicants must provide a breakdown of depreciation and amortization expense in the above format for all relevant accounts. Asset Retirement Obligations (AROs), depreciation and accretion expense should be disclosed separately consistent with the Notes of historical Audited Financial Statements.

Sheet App.2-CF_OldCGAAP_DepExp_2013 (hidden)
K1: File Number: | L1: =EBNUMBER -> EB-2015-0004
K2: Exhibit:
K3: Tab:
K4: Schedule:
K5: Page:
K7: Date:
A9: Appendix 2-CF
A10: Depreciation and Amortization Expense
B11: Assumes the applicant made capitalization and depreciation expense accounting policy changes under CGAAP effective January 1, 2013 and will adopt IFRS for financial reporting purposes effective January 1, 2015.
C13: Year | D13: 2013 | E13: Former CGAAP
A15: Account | B15: Description | C15: Opening Regulatory Gross PP&E as at Jan 1, 2013 | D15: Less Fully Depreciated | E15: Net for Depreciation | F15: Additions | G15: Total for Depreciation | H15: Years | I15: Depreciation Rate | J15: Depreciation Expense | K15: 2013 Depreciation Expense per Appendix 2-BA Fixed Assets, Column J (l) | L15: Variance 2
C16: (a) | D16: (b) | E16: (c) | F16: (d) | G16: (e) = (c) + ½ x (d) 1 | H16: (f) | I16: (g) = 1 / (f) | J16: (h) = (e) / (f) | L16: (m) = (h) - (l)
A17: 1611 | B17: Computer Software (Formally known as Account 1925) | E17: =C17-D17 -> 0 | G17: =E17+0.5*F17 -> 0 | I17: =IF(H17=0,0,1/H17) -> 0 | J17: =IF(H17=0,0,G17/H17) -> 0 | L17: =IF(ISERROR(+J17-K17), 0, +J17-K17) -> 0
A18: 1612 | B18: Land Rights (Formally known as Account 1906) | E18: =C18-D18 -> 0 | G18: =E18+0.5*F18 -> 0 | I18: 0 | J18: 0 | L18: 0
A19: 1805 | B19: Land | E19: 0 | G19: 0 | I19: 0 | J19: 0 | L19: 0
A20: 1808 | B20: Buildings | E20: 0 | G20: 0 | I20: 0 | J20: 0 | L20: 0
A21: 1810 | B21: Leasehold Improvements | E21: 0 | G21: 0 | I21: 0 | J21: 0 | L21: 0
A22: 1815 | B22: Transformer Station Equipment >50 kV | E22: 0 | G22: 0 | I22: 0 | J22: 0 | L22: 0
A23: 1820 | B23: Distribution Station Equipment <50 kV | E23: 0 | G23: 0 | I23: 0 | J23: 0 | L23: 0
A24: 1825 | B24: Storage Battery Equipment | E24: 0 | G24: 0 | I24: 0 | J24: 0 | L24: 0
A25: 1830 | B25: Poles, Towers & Fixtures | E25: 0 | G25: 0 | I25: 0 | J25: 0 | L25: 0
A26: 1835 | B26: Overhead Conductors & Devices | E26: 0 | G26: 0 | I26: 0 | J26: 0 | L26: 0
A27: 1840 | B27: Underground Conduit | E27: 0 | G27: 0 | I27: 0 | J27: 0 | L27: 0
A28: 1845 | B28: Underground Conductors & Devices | E28: 0 | G28: 0 | I28: 0 | J28: 0 | L28: 0
A29: 1850 | B29: Line Transformers | E29: 0 | G29: 0 | I29: 0 | J29: 0 | L29: 0
A30: 1855 | B30: Services (Overhead & Underground) | E30: 0 | G30: 0 | I30: 0 | J30: 0 | L30: 0
A31: 1860 | B31: Meters | E31: 0 | G31: 0 | I31: 0 | J31: 0 | L31: 0
A32: 1860 | B32: Meters (Smart Meters) | E32: 0 | G32: 0 | I32: 0 | J32: 0 | L32: 0
A33: 1905 | B33: Land | E33: 0 | G33: 0 | I33: 0 | J33: 0 | L33: 0
A34: 1908 | B34: Buildings & Fixtures | E34: 0 | G34: 0 | I34: 0 | J34: 0 | L34: 0
A35: 1910 | B35: Leasehold Improvements | E35: 0 | G35: 0 | I35: 0 | J35: 0 | L35: 0
A36: 1915 | B36: Office Furniture & Equipment (10 years) | E36: 0 | G36: 0 | I36: 0 | J36: 0 | L36: 0
A37: 1915 | B37: Office Furniture & Equipment (5 years) | E37: 0 | G37: 0 | I37: 0 | J37: 0 | L37: 0
A38: 1920 | B38: Computer Equipment - Hardware | E38: 0 | G38: 0 | I38: 0 | J38: 0 | L38: 0
A39: 1920 | B39: Computer Equip.-Hardware(Post Mar. 22/04) | E39: 0 | G39: 0 | I39: 0 | J39: 0 | L39: 0
A40: 1920 | B40: Computer Equip.-Hardware(Post Mar. 19/07) | E40: 0 | G40: 0 | I40: 0 | J40: 0 | L40: 0
A41: 1930 | B41: Transportation Equipment | E41: 0 | G41: 0 | I41: 0 | J41: 0 | L41: 0
A42: 1935 | B42: Stores Equipment | E42: 0 | G42: 0 | I42: 0 | J42: 0 | L42: 0
A43: 1940 | B43: Tools, Shop & Garage Equipment | E43: 0 | G43: 0 | I43: 0 | J43: 0 | L43: 0
A44: 1945 | B44: Measurement & Testing Equipment | E44: 0 | G44: 0 | I44: 0 | J44: 0 | L44: 0
A45: 1950 | B45: Power Operated Equipment | E45: 0 | G45: 0 | I45: 0 | J45: 0 | L45: 0
A46: 1955 | B46: Communications Equipment | E46: 0 | G46: 0 | I46: 0 | J46: 0 | L46: 0
A47: 1955 | B47: Communication Equipment (Smart Meters) | E47: 0 | G47: 0 | I47: 0 | J47: 0 | L47: 0
A48: 1960 | B48: Miscellaneous Equipment | E48: 0 | G48: 0 | I48: 0 | J48: 0 | L48: 0
A49: 1970 | B49: Load Management Controls - Customer Premises | E49: 0 | G49: 0 | I49: 0 | J49: 0 | L49: 0
A50: 1975 | B50: Load Management Controls Utility Premises | E50: 0 | G50: 0 | I50: 0 | J50: 0 | L50: 0
A51: 1980 | B51: System Supervisor Equipment | E51: 0 | G51: 0 | I51: 0 | J51: 0 | L51: 0
A52: 1985 | B52: Miscellaneous Fixed Assets | E52: 0 | G52: 0 | I52: 0 | J52: 0 | L52: 0
A53: 1990 | B53: Other Tangible Property | E53: 0 | G53: 0 | I53: 0 | J53: 0 | L53: 0
A54: 1995 | B54: Contributions & Grants | E54: 0 | G54: 0 | I54: 0 | J54: 0 | L54: 0
B55: Total | C55: =SUM(C17:C54) -> 0 | D55: =SUM(D17:D54) -> 0 | E55: =SUM(E17:E54) -> 0 | F55: =SUM(F17:F54) -> 0 | G55: =SUM(G17:G54) -> 0 | J55: =SUM(J17:J54) -> 0 | K55: =SUM(K17:K54) -> 0 | L55: =SUM(L17:L54) -> 0
A57: Notes:
A59: 1 | B59: Board policy of the "half-year" rule - the applicant must ensure that additions in the year attract a half-year depreciation expense in the first year. Deviations from this standard practice must be supported in the application.
A60: 2 | B60: The applicant must provide an explanation of material variances in evidence.
A62: General | B62: Applicants must provide a breakdown of depreciation and amortization expense in the above format for all relevant accounts. Asset Retirement Obligations (AROs), depreciation and accretion expense should be disclosed separately consistent with the Notes of historical Audited Financial Statements.

Sheet App.2-CG_NewCGAAP_DepExp_2013 (hidden)
N1: File Number: | O1: =EBNUMBER -> EB-2015-0004
N2: Exhibit:
N3: Tab:
N4: Schedule:
N5: Page:
N7: Date:
A9: Appendix 2-CO
A10: Depreciation and Amortization Expense
A11: Assumes the applicant made capitalization and depreciation expense accounting policy changes under CGAAP effective January 1, 2013 and will adopt IFRS for financial reporting purposes effective January 1, 2015.
C13: Year | D13: 2013 | E13: Revised CGAAP
A15: Account | B15: Description | C15: Opening NBV as at Jan 1, 2013 5 | D15: Additions | E15: Average Remaining Life of Opening NBV 4 | F15: Years (new additions only) 3 | G15: Depreciation Rate on New Additions | H15: Depreciation Expense on Opening NBV | I15: Depreciation Expense on Additions 1 | J15: 2013 Depreciation Expense | K15: 2013 Depreciation Expense per Appendix 2-BA Fixed Assets, Column J (l) | L15: Variance 2 | M15: Depreciation Expense on 2013 Full Year Additions | N15: Less Depreciation Expense on Assets Fully Depreciated during the year (o) | O15: 2013 Full Year Depreciation 6
C16: (a) | D16: (d) | E16: (i) | F16: (f) | G16: (g) = 1 / (f) | H16: (j) = (a) / (i) | I16: (h)=((d)*0.5)/(f) | J16: (k) = (j) + (h) | L16: (m) = (k) - (l) | M16: (n) = (d)/(f) | O16: (p) = (j) + (n) - (o)
A17: 1611 | B17: Computer Software (Formally known as Account 1925) | G17: =IF(F17=0,0,1/F17) -> 0 | H17: =IF(E17=0,0,+C17/E17) -> 0 | I17: =IF(F17=0,0,+(D17*0.5)/F17) -> 0 | J17: =IF(ISERROR(+H17+I17), 0, +H17+I17) -> 0 | L17: =IF(ISERROR(+J17-K17), 0, +J17-K17) -> 0 | M17: =IF(F17=0,0,+(D17)/F17) -> 0 | O17: =IF(ISERROR(+M17+H17-N17), 0, +M17+H17-N17) -> 0
A18: 1612 | B18: Land Rights (Formally known as Account 1906) | G18: 0 | H18: 0 | I18: 0 | J18: 0 | L18: 0 | M18: 0 | O18: =IF(ISERROR(+M18+H18-N18), 0, +M18+H18-N18) -> 0
A19: 1805 | B19: Land | G19: 0 | H19: 0 | I19: 0 | J19: 0 | L19: 0 | M19: 0 | O19: 0
A20: 1808 | B20: Buildings | G20: 0 | H20: 0 | I20: 0 | J20: 0 | L20: 0 | M20: 0 | O20: 0
A21: 1810 | B21: Leasehold Improvements | G21: 0 | H21: 0 | I21: 0 | J21: 0 | L21: 0 | M21: 0 | O21: 0
A22: 1815 | B22: Transformer Station Equipment >50 kV | G22: 0 | H22: 0 | I22: 0 | J22: 0 | L22: 0 | M22: 0 | O22: 0
A23: 1820 | B23: Distribution Station Equipment <50 kV | G23: 0 | H23: 0 | I23: 0 | J23: 0 | L23: 0 | M23: 0 | O23: 0
A24: 1825 | B24: Storage Battery Equipment | G24: 0 | H24: 0 | I24: 0 | J24: 0 | L24: 0 | M24: 0 | O24: 0
A25: 1830 | B25: Poles, Towers & Fixtures | G25: 0 | H25: 0 | I25: 0 | J25: 0 | L25: 0 | M25: 0 | O25: 0
A26: 1835 | B26: Overhead Conductors & Devices | G26: 0 | H26: 0 | I26: 0 | J26: 0 | L26: 0 | M26: 0 | O26: 0
A27: 1840 | B27: Underground Conduit | G27: 0 | H27: 0 | I27: 0 | J27: 0 | L27: 0 | M27: 0 | O27: 0
A28: 1845 | B28: Underground Conductors & Devices | G28: 0 | H28: 0 | I28: 0 | J28: 0 | L28: 0 | M28: 0 | O28: 0
A29: 1850 | B29: Line Transformers | G29: 0 | H29: 0 | I29: 0 | J29: 0 | L29: 0 | M29: 0 | O29: 0
A30: 1855 | B30: Services (Overhead & Underground) | G30: 0 | H30: 0 | I30: 0 | J30: 0 | L30: 0 | M30: 0 | O30: 0
A31: 1860 | B31: Meters | G31: 0 | H31: 0 | I31: 0 | J31: 0 | L31: 0 | M31: 0 | O31: 0
A32: 1860 | B32: Meters (Smart Meters) | G32: 0 | H32: 0 | I32: 0 | J32: 0 | L32: 0 | M32: 0 | O32: 0
A33: 1905 | B33: Land | G33: 0 | H33: 0 | I33: 0 | J33: 0 | L33: 0 | M33: 0 | O33: 0
A34: 1908 | B34: Buildings & Fixtures | G34: 0 | H34: 0 | I34: 0 | J34: 0 | L34: 0 | M34: 0 | O34: 0
A35: 1910 | B35: Leasehold Improvements | G35: 0 | H35: 0 | I35: 0 | J35: 0 | L35: 0 | M35: 0 | O35: 0
A36: 1915 | B36: Office Furniture & Equipment (10 years) | G36: 0 | H36: 0 | I36: 0 | J36: 0 | L36: 0 | M36: 0 | O36: 0
A37: 1915 | B37: Office Furniture & Equipment (5 years) | G37: 0 | H37: 0 | I37: 0 | J37: 0 | L37: 0 | M37: 0 | O37: 0
A38: 1920 | B38: Computer Equipment - Hardware | G38: 0 | H38: 0 | I38: 0 | J38: 0 | L38: 0 | M38: 0 | O38: 0
A39: 1920 | B39: Computer Equip.-Hardware(Post Mar. 22/04) | G39: 0 | H39: 0 | I39: 0 | J39: 0 | L39: 0 | M39: 0 | O39: 0
A40: 1920 | B40: Computer Equip.-Hardware(Post Mar. 19/07) | G40: 0 | H40: 0 | I40: 0 | J40: 0 | L40: 0 | M40: 0 | O40: 0
A41: 1930 | B41: Transportation Equipment | G41: 0 | H41: 0 | I41: 0 | J41: 0 | L41: 0 | M41: 0 | O41: 0
A42: 1935 | B42: Stores Equipment | G42: 0 | H42: 0 | I42: 0 | J42: 0 | L42: 0 | M42: 0 | O42: 0
A43: 1940 | B43: Tools, Shop & Garage Equipment | G43: 0 | H43: 0 | I43: 0 | J43: 0 | L43: 0 | M43: 0 | O43: 0
A44: 1945 | B44: Measurement & Testing Equipment | G44: 0 | H44: 0 | I44: 0 | J44: 0 | L44: 0 | M44: 0 | O44: 0
A45: 1950 | B45: Power Operated Equipment | G45: 0 | H45: 0 | I45: 0 | J45: 0 | L45: 0 | M45: 0 | O45: 0
A46: 1955 | B46: Communications Equipment | G46: 0 | H46: 0 | I46: 0 | J46: 0 | L46: 0 | M46: 0 | O46: 0
A47: 1955 | B47: Communication Equipment (Smart Meters) | G47: 0 | H47: 0 | I47: 0 | J47: 0 | L47: 0 | M47: 0 | O47: 0
A48: 1960 | B48: Miscellaneous Equipment | G48: 0 | H48: 0 | I48: 0 | J48: 0 | L48: 0 | M48: 0 | O48: 0
A49: 1970 | B49: Load Management Controls - Customer Premises | G49: 0 | H49: 0 | I49: 0 | J49: 0 | L49: 0 | M49: 0 | O49: 0
A50: 1975 | B50: Load Management Controls Utility Premises | G50: 0 | H50: 0 | I50: 0 | J50: 0 | L50: 0 | M50: 0 | O50: 0
A51: 1980 | B51: System Supervisor Equipment | G51: 0 | H51: 0 | I51: 0 | J51: 0 | L51: 0 | M51: 0 | O51: 0
A52: 1985 | B52: Miscellaneous Fixed Assets | G52: 0 | H52: 0 | I52: 0 | J52: 0 | L52: 0 | M52: 0 | O52: 0
A53: 1990 | B53: Other Tangible Property | G53: 0 | H53: 0 | I53: 0 | J53: 0 | L53: 0 | M53: 0 | O53: 0
A54: 1995 | B54: Contributions & Grants | G54: 0 | H54: 0 | I54: 0 | J54: 0 | L54: 0 | M54: 0 | O54: 0
B55: Total | C55: =SUM(C17:C54) -> 0 | D55: =SUM(D17:D54) -> 0 | H55: =SUM(H17:H54) -> 0 | I55: 0 | J55: 0 | K55: 0 | L55: 0 | M55: 0 | N55: 0 | O55: 0
A57: Notes:
A59: 1 | B59: Board policy of the "half-year" rule - the applicant must ensure that additions in the year attract a half-year depreciation expense in the first year. Deviations from this standard practice must be supported in the application.
A60: 2 | B60: The applicant must provide an explanation of material variances in evidence.
A61: 3 | B61: The applicant should ensure that the years for new additions of assets are the asset useful lives determined by management in accordance with the Board's regulatory accounting policies. The capitalization and depreciation expense accounting changes should be implemented consistent with the Board’s regulatory accounting policies as set out for MIFRS as contained in the Report of the Board, Transition to International Financial Reporting Standards, EB-2008-0408, the Kinectrics Report, and the Revised 2012 Accounting Procedures Handbook for Electricity Distributors.
A62: 4 | B62: A recalculation should be performed to determine the average remaining life of opening balance of assets (i.e. excluding 2013 additions) under the change in policies under CGAAP. For example, Asset A had a useful life of 20 years under CGAAP without the change in policies. On January 1, 2013, the effective date of the changes in policies, Asset A was 3 years depreciated. As a result, Asset A would have a remaining service life of 17 years (20 years less 3 years) as of January 1, 2013. Due to making the change in policies under CGAAP, management re-assessed the asset useful lives and concluded that the revised useful life of Asset A is now 30 years. Therefore, the average remaining useful life of the opening balance of Asset A is determined to be 27 years (30 years less 3 years) under the revised CGAAP as of January 1, 2013.
A63: 5 | B63: NBV must exclude assets still on the books but which have been fully amortized or depreciated.
A64: 6 | B64: This column refers to the calculated full year depreciation but excludes the depreciation expense on assets fully depreciated during the year. This column is used for the purpose of calculating depreciation expense in the following year on the next worksheet.
A66: General: | B66: Applicants must provide a breakdown of depreciation and amortization expense in the above format for all relevant accounts. Asset Retirement Obligations (AROs), depreciation and accretion expense should be disclosed separately consistent with the Notes of historical Audited Financial Statements.

Sheet App.2-CH_MIFRS_DepExp_2014 (hidden)
J1: File Number: | K1: =EBNUMBER -> EB-2015-0004
J2: Exhibit:
J3: Tab:
J4: Schedule:
J5: Page:
J7: Date:
A9: Appendix 2-CP
A10: Depreciation and Amortization Expense
A11: Assumes the applicant made capitalization and depreciation expense accounting policy changes under CGAAP effective January 1, 2013 and will adopt IFRS for financial reporting purposes effective January 1, 2015.
E13: 2014 | F13: MIFRS
A15: Account | B15: Description | C15: Additions | D15: Years (new additions only) | E15: Depreciation Rate on New Additions | F15: 2014 Depreciation Expense 1 | G15: 2014 Depreciation Expense per Apppendix 2-BA Fixed Assets, Column J (l) | H15: Variance 2 | I15: Depreciation Expense on 2014 Full Year Additions | J15: Less Depreciation Expense on Assets Fully Depreciated during the year (o) | K15: 2014 Full Year Depreciation 3
C16: (d) | D16: (f) | E16: (g) = 1 / (f) | F16: (h)=2013 Full Year Deprecation + ((d)*0.5)/(f) | H16: (m) = (h) - (l) | I16: (n)=((d))/(f) | K16: (p) = 2013 Full Year Depreciation + (n) - (o)
A17: 1611 | B17: Computer Software (Formally known as Account 1925) | E17: =IF(D17=0,0,1/D17) -> 0 | F17: =IF(D17=0,+'App.2-CG_NewCGAAP_DepExp_2013'!O17,+'App.2-CG_NewCGAAP_DepExp_2013'!O17+((C17*0.5)/D17)) -> 0 | H17: =IF(ISERROR(+F17-G17), 0, +F17-G17) -> 0 | I17: =IF(D17=0,0,+(C17)/D17) -> 0 | K17: =IF(ISERROR(+I17+'App.2-CG_NewCGAAP_DepExp_2013'!O17-J17), 0, +I17+'App.2-CG_NewCGAAP_DepExp_2013'!O17-J17) -> 0
A18: 1612 | B18: Land Rights (Formally known as Account 1906) | E18: 0 | F18: =IF(D18=0,+'App.2-CG_NewCGAAP_DepExp_2013'!O18,+'App.2-CG_NewCGAAP_DepExp_2013'!O18+((C18*0.5)/D18)) -> 0 | H18: 0 | I18: 0 | K18: =IF(ISERROR(+I18+'App.2-CG_NewCGAAP_DepExp_2013'!O18-J18), 0, +I18+'App.2-CG_NewCGAAP_DepExp_2013'!O18-J18) -> 0
A19: 1805 | B19: Land | E19: 0 | F19: =IF(D19=0,+'App.2-CG_NewCGAAP_DepExp_2013'!O19,+'App.2-CG_NewCGAAP_DepExp_2013'!O19+((C19*0.5)/D19)) -> 0 | H19: 0 | I19: 0 | K19: =IF(ISERROR(+I19+'App.2-CG_NewCGAAP_DepExp_2013'!O19-J19), 0, +I19+'App.2-CG_NewCGAAP_DepExp_2013'!O19-J19) -> 0
A20: 1808 | B20: Buildings | E20: 0 | F20: =IF(D20=0,+'App.2-CG_NewCGAAP_DepExp_2013'!O20,+'App.2-CG_NewCGAAP_DepExp_2013'!O20+((C20*0.5)/D20)) -> 0 | H20: 0 | I20: 0 | K20: =IF(ISERROR(+I20+'App.2-CG_NewCGAAP_DepExp_2013'!O20-J20), 0, +I20+'App.2-CG_NewCGAAP_DepExp_2013'!O20-J20) -> 0
A21: 1810 | B21: Leasehold Improvements | E21: 0 | F21: =IF(D21=0,+'App.2-CG_NewCGAAP_DepExp_2013'!O21,+'App.2-CG_NewCGAAP_DepExp_2013'!O21+((C21*0.5)/D21)) -> 0 | H21: 0 | I21: 0 | K21: =IF(ISERROR(+I21+'App.2-CG_NewCGAAP_DepExp_2013'!O21-J21), 0, +I21+'App.2-CG_NewCGAAP_DepExp_2013'!O21-J21) -> 0
A22: 1815 | B22: Transformer Station Equipment >50 kV | E22: 0 | F22: =IF(D22=0,+'App.2-CG_NewCGAAP_DepExp_2013'!O22,+'App.2-CG_NewCGAAP_DepExp_2013'!O22+((C22*0.5)/D22)) -> 0 | H22: 0 | I22: 0 | K22: =IF(ISERROR(+I22+'App.2-CG_NewCGAAP_DepExp_2013'!O22-J22), 0, +I22+'App.2-CG_NewCGAAP_DepExp_2013'!O22-J22) -> 0
A23: 1820 | B23: Distribution Station Equipment <50 kV | E23: 0 | F23: =IF(D23=0,+'App.2-CG_NewCGAAP_DepExp_2013'!O23,+'App.2-CG_NewCGAAP_DepExp_2013'!O23+((C23*0.5)/D23)) -> 0 | H23: 0 | I23: 0 | K23: =IF(ISERROR(+I23+'App.2-CG_NewCGAAP_DepExp_2013'!O23-J23), 0, +I23+'App.2-CG_NewCGAAP_DepExp_2013'!O23-J23) -> 0
A24: 1825 | B24: Storage Battery Equipment | E24: 0 | F24: =IF(D24=0,+'App.2-CG_NewCGAAP_DepExp_2013'!O24,+'App.2-CG_NewCGAAP_DepExp_2013'!O24+((C24*0.5)/D24)) -> 0 | H24: 0 | I24: 0 | K24: =IF(ISERROR(+I24+'App.2-CG_NewCGAAP_DepExp_2013'!O24-J24), 0, +I24+'App.2-CG_NewCGAAP_DepExp_2013'!O24-J24) -> 0
A25: 1830 | B25: Poles, Towers & Fixtures | E25: 0 | F25: =IF(D25=0,+'App.2-CG_NewCGAAP_DepExp_2013'!O25,+'App.2-CG_NewCGAAP_DepExp_2013'!O25+((C25*0.5)/D25)) -> 0 | H25: 0 | I25: 0 | K25: =IF(ISERROR(+I25+'App.2-CG_NewCGAAP_DepExp_2013'!O25-J25), 0, +I25+'App.2-CG_NewCGAAP_DepExp_2013'!O25-J25) -> 0
A26: 1835 | B26: Overhead Conductors & Devices | E26: 0 | F26: =IF(D26=0,+'App.2-CG_NewCGAAP_DepExp_2013'!O26,+'App.2-CG_NewCGAAP_DepExp_2013'!O26+((C26*0.5)/D26)) -> 0 | H26: 0 | I26: 0 | K26: =IF(ISERROR(+I26+'App.2-CG_NewCGAAP_DepExp_2013'!O26-J26), 0, +I26+'App.2-CG_NewCGAAP_DepExp_2013'!O26-J26) -> 0
A27: 1840 | B27: Underground Conduit | E27: 0 | F27: =IF(D27=0,+'App.2-CG_NewCGAAP_DepExp_2013'!O27,+'App.2-CG_NewCGAAP_DepExp_2013'!O27+((C27*0.5)/D27)) -> 0 | H27: 0 | I27: 0 | K27: =IF(ISERROR(+I27+'App.2-CG_NewCGAAP_DepExp_2013'!O27-J27), 0, +I27+'App.2-CG_NewCGAAP_DepExp_2013'!O27-J27) -> 0
A28: 1845 | B28: Underground Conductors & Devices | E28: 0 | F28: =IF(D28=0,+'App.2-CG_NewCGAAP_DepExp_2013'!O28,+'App.2-CG_NewCGAAP_DepExp_2013'!O28+((C28*0.5)/D28)) -> 0 | H28: 0 | I28: 0 | K28: =IF(ISERROR(+I28+'App.2-CG_NewCGAAP_DepExp_2013'!O28-J28), 0, +I28+'App.2-CG_NewCGAAP_DepExp_2013'!O28-J28) -> 0
A29: 1850 | B29: Line Transformers | E29: 0 | F29: =IF(D29=0,+'App.2-CG_NewCGAAP_DepExp_2013'!O29,+'App.2-CG_NewCGAAP_DepExp_2013'!O29+((C29*0.5)/D29)) -> 0 | H29: 0 | I29: 0 | K29: =IF(ISERROR(+I29+'App.2-CG_NewCGAAP_DepExp_2013'!O29-J29), 0, +I29+'App.2-CG_NewCGAAP_DepExp_2013'!O29-J29) -> 0
A30: 1855 | B30: Services (Overhead & Underground) | E30: 0 | F30: =IF(D30=0,+'App.2-CG_NewCGAAP_DepExp_2013'!O30,+'App.2-CG_NewCGAAP_DepExp_2013'!O30+((C30*0.5)/D30)) -> 0 | H30: 0 | I30: 0 | K30: =IF(ISERROR(+I30+'App.2-CG_NewCGAAP_DepExp_2013'!O30-J30), 0, +I30+'App.2-CG_NewCGAAP_DepExp_2013'!O30-J30) -> 0
A31: 1860 | B31: Meters | E31: 0 | F31: =IF(D31=0,+'App.2-CG_NewCGAAP_DepExp_2013'!O31,+'App.2-CG_NewCGAAP_DepExp_2013'!O31+((C31*0.5)/D31)) -> 0 | H31: 0 | I31: 0 | K31: =IF(ISERROR(+I31+'App.2-CG_NewCGAAP_DepExp_2013'!O31-J31), 0, +I31+'App.2-CG_NewCGAAP_DepExp_2013'!O31-J31) -> 0
A32: 1860 | B32: Meters (Smart Meters) | E32: 0 | F32: =IF(D32=0,+'App.2-CG_NewCGAAP_DepExp_2013'!O32,+'App.2-CG_NewCGAAP_DepExp_2013'!O32+((C32*0.5)/D32)) -> 0 | H32: 0 | I32: 0 | K32: =IF(ISERROR(+I32+'App.2-CG_NewCGAAP_DepExp_2013'!O32-J32), 0, +I32+'App.2-CG_NewCGAAP_DepExp_2013'!O32-J32) -> 0
A33: 1905 | B33: Land | E33: 0 | F33: =IF(D33=0,+'App.2-CG_NewCGAAP_DepExp_2013'!O33,+'App.2-CG_NewCGAAP_DepExp_2013'!O33+((C33*0.5)/D33)) -> 0 | H33: 0 | I33: 0 | K33: =IF(ISERROR(+I33+'App.2-CG_NewCGAAP_DepExp_2013'!O33-J33), 0, +I33+'App.2-CG_NewCGAAP_DepExp_2013'!O33-J33) -> 0
A34: 1908 | B34: Buildings & Fixtures | E34: 0 | F34: =IF(D34=0,+'App.2-CG_NewCGAAP_DepExp_2013'!O34,+'App.2-CG_NewCGAAP_DepExp_2013'!O34+((C34*0.5)/D34)) -> 0 | H34: 0 | I34: 0 | K34: =IF(ISERROR(+I34+'App.2-CG_NewCGAAP_DepExp_2013'!O34-J34), 0, +I34+'App.2-CG_NewCGAAP_DepExp_2013'!O34-J34) -> 0
A35: 1910 | B35: Leasehold Improvements | E35: 0 | F35: =IF(D35=0,+'App.2-CG_NewCGAAP_DepExp_2013'!O35,+'App.2-CG_NewCGAAP_DepExp_2013'!O35+((C35*0.5)/D35)) -> 0 | H35: 0 | I35: 0 | K35: =IF(ISERROR(+I35+'App.2-CG_NewCGAAP_DepExp_2013'!O35-J35), 0, +I35+'App.2-CG_NewCGAAP_DepExp_2013'!O35-J35) -> 0
A36: 1915 | B36: Office Furniture & Equipment (10 years) | E36: 0 | F36: =IF(D36=0,+'App.2-CG_NewCGAAP_DepExp_2013'!O36,+'App.2-CG_NewCGAAP_DepExp_2013'!O36+((C36*0.5)/D36)) -> 0 | H36: 0 | I36: 0 | K36: =IF(ISERROR(+I36+'App.2-CG_NewCGAAP_DepExp_2013'!O36-J36), 0, +I36+'App.2-CG_NewCGAAP_DepExp_2013'!O36-J36) -> 0
A37: 1915 | B37: Office Furniture & Equipment (5 years) | E37: 0 | F37: =IF(D37=0,+'App.2-CG_NewCGAAP_DepExp_2013'!O37,+'App.2-CG_NewCGAAP_DepExp_2013'!O37+((C37*0.5)/D37)) -> 0 | H37: 0 | I37: 0 | K37: =IF(ISERROR(+I37+'App.2-CG_NewCGAAP_DepExp_2013'!O37-J37), 0, +I37+'App.2-CG_NewCGAAP_DepExp_2013'!O37-J37) -> 0
A38: 1920 | B38: Computer Equipment - Hardware | E38: 0 | F38: =IF(D38=0,+'App.2-CG_NewCGAAP_DepExp_2013'!O38,+'App.2-CG_NewCGAAP_DepExp_2013'!O38+((C38*0.5)/D38)) -> 0 | H38: 0 | I38: 0 | K38: =IF(ISERROR(+I38+'App.2-CG_NewCGAAP_DepExp_2013'!O38-J38), 0, +I38+'App.2-CG_NewCGAAP_DepExp_2013'!O38-J38) -> 0
A39: 1920 | B39: Computer Equip.-Hardware(Post Mar. 22/04) | E39: 0 | F39: =IF(D39=0,+'App.2-CG_NewCGAAP_DepExp_2013'!O39,+'App.2-CG_NewCGAAP_DepExp_2013'!O39+((C39*0.5)/D39)) -> 0 | H39: 0 | I39: 0 | K39: =IF(ISERROR(+I39+'App.2-CG_NewCGAAP_DepExp_2013'!O39-J39), 0, +I39+'App.2-CG_NewCGAAP_DepExp_2013'!O39-J39) -> 0
A40: 1920 | B40: Computer Equip.-Hardware(Post Mar. 19/07) | E40: 0 | F40: =IF(D40=0,+'App.2-CG_NewCGAAP_DepExp_2013'!O40,+'App.2-CG_NewCGAAP_DepExp_2013'!O40+((C40*0.5)/D40)) -> 0 | H40: 0 | I40: 0 | K40: =IF(ISERROR(+I40+'App.2-CG_NewCGAAP_DepExp_2013'!O40-J40), 0, +I40+'App.2-CG_NewCGAAP_DepExp_2013'!O40-J40) -> 0
A41: 1930 | B41: Transportation Equipment | E41: 0 | F41: =IF(D41=0,+'App.2-CG_NewCGAAP_DepExp_2013'!O41,+'App.2-CG_NewCGAAP_DepExp_2013'!O41+((C41*0.5)/D41)) -> 0 | H41: 0 | I41: 0 | K41: =IF(ISERROR(+I41+'App.2-CG_NewCGAAP_DepExp_2013'!O41-J41), 0, +I41+'App.2-CG_NewCGAAP_DepExp_2013'!O41-J41) -> 0
A42: 1935 | B42: Stores Equipment | E42: 0 | F42: =IF(D42=0,+'App.2-CG_NewCGAAP_DepExp_2013'!O42,+'App.2-CG_NewCGAAP_DepExp_2013'!O42+((C42*0.5)/D42)) -> 0 | H42: 0 | I42: 0 | K42: =IF(ISERROR(+I42+'App.2-CG_NewCGAAP_DepExp_2013'!O42-J42), 0, +I42+'App.2-CG_NewCGAAP_DepExp_2013'!O42-J42) -> 0
A43: 1940 | B43: Tools, Shop & Garage Equipment | E43: 0 | F43: =IF(D43=0,+'App.2-CG_NewCGAAP_DepExp_2013'!O43,+'App.2-CG_NewCGAAP_DepExp_2013'!O43+((C43*0.5)/D43)) -> 0 | H43: 0 | I43: 0 | K43: =IF(ISERROR(+I43+'App.2-CG_NewCGAAP_DepExp_2013'!O43-J43), 0, +I43+'App.2-CG_NewCGAAP_DepExp_2013'!O43-J43) -> 0
A44: 1945 | B44: Measurement & Testing Equipment | E44: 0 | F44: =IF(D44=0,+'App.2-CG_NewCGAAP_DepExp_2013'!O44,+'App.2-CG_NewCGAAP_DepExp_2013'!O44+((C44*0.5)/D44)) -> 0 | H44: 0 | I44: 0 | K44: =IF(ISERROR(+I44+'App.2-CG_NewCGAAP_DepExp_2013'!O44-J44), 0, +I44+'App.2-CG_NewCGAAP_DepExp_2013'!O44-J44) -> 0
A45: 1950 | B45: Power Operated Equipment | E45: 0 | F45: =IF(D45=0,+'App.2-CG_NewCGAAP_DepExp_2013'!O45,+'App.2-CG_NewCGAAP_DepExp_2013'!O45+((C45*0.5)/D45)) -> 0 | H45: 0 | I45: 0 | K45: =IF(ISERROR(+I45+'App.2-CG_NewCGAAP_DepExp_2013'!O45-J45), 0, +I45+'App.2-CG_NewCGAAP_DepExp_2013'!O45-J45) -> 0
A46: 1955 | B46: Communications Equipment | E46: 0 | F46: =IF(D46=0,+'App.2-CG_NewCGAAP_DepExp_2013'!O46,+'App.2-CG_NewCGAAP_DepExp_2013'!O46+((C46*0.5)/D46)) -> 0 | H46: 0 | I46: 0 | K46: =IF(ISERROR(+I46+'App.2-CG_NewCGAAP_DepExp_2013'!O46-J46), 0, +I46+'App.2-CG_NewCGAAP_DepExp_2013'!O46-J46) -> 0
A47: 1955 | B47: Communication Equipment (Smart Meters) | E47: 0 | F47: =IF(D47=0,+'App.2-CG_NewCGAAP_DepExp_2013'!O47,+'App.2-CG_NewCGAAP_DepExp_2013'!O47+((C47*0.5)/D47)) -> 0 | H47: 0 | I47: 0 | K47: =IF(ISERROR(+I47+'App.2-CG_NewCGAAP_DepExp_2013'!O47-J47), 0, +I47+'App.2-CG_NewCGAAP_DepExp_2013'!O47-J47) -> 0
A48: 1960 | B48: Miscellaneous Equipment | E48: 0 | F48: =IF(D48=0,+'App.2-CG_NewCGAAP_DepExp_2013'!O48,+'App.2-CG_NewCGAAP_DepExp_2013'!O48+((C48*0.5)/D48)) -> 0 | H48: 0 | I48: 0 | K48: =IF(ISERROR(+I48+'App.2-CG_NewCGAAP_DepExp_2013'!O48-J48), 0, +I48+'App.2-CG_NewCGAAP_DepExp_2013'!O48-J48) -> 0
A49: 1970 | B49: Load Management Controls - Customer Premises | E49: 0 | F49: =IF(D49=0,+'App.2-CG_NewCGAAP_DepExp_2013'!O49,+'App.2-CG_NewCGAAP_DepExp_2013'!O49+((C49*0.5)/D49)) -> 0 | H49: 0 | I49: 0 | K49: =IF(ISERROR(+I49+'App.2-CG_NewCGAAP_DepExp_2013'!O49-J49), 0, +I49+'App.2-CG_NewCGAAP_DepExp_2013'!O49-J49) -> 0
A50: 1975 | B50: Load Management Controls Utility Premises | E50: 0 | F50: =IF(D50=0,+'App.2-CG_NewCGAAP_DepExp_2013'!O50,+'App.2-CG_NewCGAAP_DepExp_2013'!O50+((C50*0.5)/D50)) -> 0 | H50: 0 | I50: 0 | K50: =IF(ISERROR(+I50+'App.2-CG_NewCGAAP_DepExp_2013'!O50-J50), 0, +I50+'App.2-CG_NewCGAAP_DepExp_2013'!O50-J50) -> 0
A51: 1980 | B51: System Supervisor Equipment | E51: 0 | F51: =IF(D51=0,+'App.2-CG_NewCGAAP_DepExp_2013'!O51,+'App.2-CG_NewCGAAP_DepExp_2013'!O51+((C51*0.5)/D51)) -> 0 | H51: 0 | I51: 0 | K51: =IF(ISERROR(+I51+'App.2-CG_NewCGAAP_DepExp_2013'!O51-J51), 0, +I51+'App.2-CG_NewCGAAP_DepExp_2013'!O51-J51) -> 0
A52: 1985 | B52: Miscellaneous Fixed Assets | E52: 0 | F52: =IF(D52=0,+'App.2-CG_NewCGAAP_DepExp_2013'!O52,+'App.2-CG_NewCGAAP_DepExp_2013'!O52+((C52*0.5)/D52)) -> 0 | H52: 0 | I52: 0 | K52: =IF(ISERROR(+I52+'App.2-CG_NewCGAAP_DepExp_2013'!O52-J52), 0, +I52+'App.2-CG_NewCGAAP_DepExp_2013'!O52-J52) -> 0
A53: 1990 | B53: Other Tangible Property | E53: 0 | F53: =IF(D53=0,+'App.2-CG_NewCGAAP_DepExp_2013'!O53,+'App.2-CG_NewCGAAP_DepExp_2013'!O53+((C53*0.5)/D53)) -> 0 | H53: 0 | I53: 0 | K53: =IF(ISERROR(+I53+'App.2-CG_NewCGAAP_DepExp_2013'!O53-J53), 0, +I53+'App.2-CG_NewCGAAP_DepExp_2013'!O53-J53) -> 0
E54: 0 | F54: =IF(D54=0,+'App.2-CG_NewCGAAP_DepExp_2013'!O54,+'App.2-CG_NewCGAAP_DepExp_2013'!O54+((C54*0.5)/D54)) -> 0 | H54: 0 | I54: 0 | K54: =IF(ISERROR(+I54+'App.2-CG_NewCGAAP_DepExp_2013'!O54-J54), 0, +I54+'App.2-CG_NewCGAAP_DepExp_2013'!O54-J54) -> 0
B55: Total | C55: =SUM(C17:C54) -> 0 | F55: =SUM(F17:F54) -> 0 | G55: 0 | H55: 0 | I55: 0 | J55: 0 | K55: 0
B56: Depreciation exp. adj. from gain or loss on the retirement of assets (pool of like assets)
B57: Total Depreciation Expense | F57: =SUM(F55:F56) -> 0
A59: Notes:
A60: 1 | B60: Board policy of the "half-year" rule - the applicant must ensure that additions in the year attract a half-year depreciation expense in the first year. Deviations from this standard practice must be supported in the application.
A61: 2 | B61: The applicant must provide an explanation of material variances in evidence.
A62: 3 | B62: This column refers to the calculated full year depreciation but excludes the depreciation expense on assets fully depreciated during the year. This column is used for the purpose of calculating depreciation expense in the following year on the next worksheet.
A64: General: | B64: Applicants must provide a breakdown of depreciation and amortization expense in the above format for all relevant accounts. Asset Retirement Obligations (AROs), depreciation and accretion expense should be disclosed separately consistent with the Notes of historical Audited Financial Statements.

Sheet App.2-CI MIFRS_DepExp_2015 (hidden)
G1: File Number: | H1: =EBNUMBER -> EB-2015-0004
G2: Exhibit:
G3: Tab:
G4: Schedule:
G5: Page:
G7: Date:
A9: Appendix 2-CQ
A10: Depreciation and Amortization Expense
A11: Assumes the applicant made capitalization and depreciation expense accounting policy changes under CGAAP effective January 1, 2013 and will adopt IFRS for financial reporting purposes effective January 1, 2015.
D13: 2015 | E13: MIFRS
A15: Account | B15: Description | C15: Additions | D15: Years (new additions only) | E15: Depreciation Rate on New Additions | F15: 2015 Depreciation Expense 1 | G15: 2015 Depreciation Expense per Appendix 2-BA Fixed Assets, Column J (l) | H15: Variance 2
C16: (d) | D16: (f) | E16: (g) = 1 / (f) | F16: (h)=2014 Full Year Depreciation + ((d)*0.5)/(f) | H16: (m) = (h) - (l)
A17: 1611 | B17: Computer Software (Formally known as Account 1925) | E17: =IF(D17=0,0,1/D17) -> 0 | F17: =IF(D17=0,'App.2-CH_MIFRS_DepExp_2014'!K17,+'App.2-CH_MIFRS_DepExp_2014'!K17+((C17*0.5)/D17)) -> 0 | H17: =IF(ISERROR(+F17-G17), 0, +F17-G17) -> 0
A18: 1612 | B18: Land Rights (Formally known as Account 1906) | E18: 0 | F18: =IF(D18=0,'App.2-CH_MIFRS_DepExp_2014'!K18,+'App.2-CH_MIFRS_DepExp_2014'!K18+((C18*0.5)/D18)) -> 0 | H18: 0
A19: 1805 | B19: Land | E19: 0 | F19: =IF(D19=0,'App.2-CH_MIFRS_DepExp_2014'!K19,+'App.2-CH_MIFRS_DepExp_2014'!K19+((C19*0.5)/D19)) -> 0 | H19: 0
A20: 1808 | B20: Buildings | E20: 0 | F20: =IF(D20=0,'App.2-CH_MIFRS_DepExp_2014'!K20,+'App.2-CH_MIFRS_DepExp_2014'!K20+((C20*0.5)/D20)) -> 0 | H20: 0
A21: 1810 | B21: Leasehold Improvements | E21: 0 | F21: =IF(D21=0,'App.2-CH_MIFRS_DepExp_2014'!K21,+'App.2-CH_MIFRS_DepExp_2014'!K21+((C21*0.5)/D21)) -> 0 | H21: 0
A22: 1815 | B22: Transformer Station Equipment >50 kV | E22: 0 | F22: =IF(D22=0,'App.2-CH_MIFRS_DepExp_2014'!K22,+'App.2-CH_MIFRS_DepExp_2014'!K22+((C22*0.5)/D22)) -> 0 | H22: 0
A23: 1820 | B23: Distribution Station Equipment <50 kV | E23: 0 | F23: =IF(D23=0,'App.2-CH_MIFRS_DepExp_2014'!K23,+'App.2-CH_MIFRS_DepExp_2014'!K23+((C23*0.5)/D23)) -> 0 | H23: 0
A24: 1825 | B24: Storage Battery Equipment | E24: 0 | F24: =IF(D24=0,'App.2-CH_MIFRS_DepExp_2014'!K24,+'App.2-CH_MIFRS_DepExp_2014'!K24+((C24*0.5)/D24)) -> 0 | H24: 0
A25: 1830 | B25: Poles, Towers & Fixtures | E25: 0 | F25: =IF(D25=0,'App.2-CH_MIFRS_DepExp_2014'!K25,+'App.2-CH_MIFRS_DepExp_2014'!K25+((C25*0.5)/D25)) -> 0 | H25: 0
A26: 1835 | B26: Overhead Conductors & Devices | E26: 0 | F26: =IF(D26=0,'App.2-CH_MIFRS_DepExp_2014'!K26,+'App.2-CH_MIFRS_DepExp_2014'!K26+((C26*0.5)/D26)) -> 0 | H26: 0
A27: 1840 | B27: Underground Conduit | E27: 0 | F27: =IF(D27=0,'App.2-CH_MIFRS_DepExp_2014'!K27,+'App.2-CH_MIFRS_DepExp_2014'!K27+((C27*0.5)/D27)) -> 0 | H27: 0
A28: 1845 | B28: Underground Conductors & Devices | E28: 0 | F28: =IF(D28=0,'App.2-CH_MIFRS_DepExp_2014'!K28,+'App.2-CH_MIFRS_DepExp_2014'!K28+((C28*0.5)/D28)) -> 0 | H28: 0
A29: 1850 | B29: Line Transformers | E29: 0 | F29: =IF(D29=0,'App.2-CH_MIFRS_DepExp_2014'!K29,+'App.2-CH_MIFRS_DepExp_2014'!K29+((C29*0.5)/D29)) -> 0 | H29: 0
A30: 1855 | B30: Services (Overhead & Underground) | E30: 0 | F30: =IF(D30=0,'App.2-CH_MIFRS_DepExp_2014'!K30,+'App.2-CH_MIFRS_DepExp_2014'!K30+((C30*0.5)/D30)) -> 0 | H30: 0
A31: 1860 | B31: Meters | E31: 0 | F31: =IF(D31=0,'App.2-CH_MIFRS_DepExp_2014'!K31,+'App.2-CH_MIFRS_DepExp_2014'!K31+((C31*0.5)/D31)) -> 0 | H31: 0
A32: 1860 | B32: Meters (Smart Meters) | E32: 0 | F32: =IF(D32=0,'App.2-CH_MIFRS_DepExp_2014'!K32,+'App.2-CH_MIFRS_DepExp_2014'!K32+((C32*0.5)/D32)) -> 0 | H32: 0
A33: 1905 | B33: Land | E33: 0 | F33: =IF(D33=0,'App.2-CH_MIFRS_DepExp_2014'!K33,+'App.2-CH_MIFRS_DepExp_2014'!K33+((C33*0.5)/D33)) -> 0 | H33: 0
A34: 1908 | B34: Buildings & Fixtures | E34: 0 | F34: =IF(D34=0,'App.2-CH_MIFRS_DepExp_2014'!K34,+'App.2-CH_MIFRS_DepExp_2014'!K34+((C34*0.5)/D34)) -> 0 | H34: 0
A35: 1910 | B35: Leasehold Improvements | E35: 0 | F35: =IF(D35=0,'App.2-CH_MIFRS_DepExp_2014'!K35,+'App.2-CH_MIFRS_DepExp_2014'!K35+((C35*0.5)/D35)) -> 0 | H35: 0
A36: 1915 | B36: Office Furniture & Equipment (10 years) | E36: 0 | F36: =IF(D36=0,'App.2-CH_MIFRS_DepExp_2014'!K36,+'App.2-CH_MIFRS_DepExp_2014'!K36+((C36*0.5)/D36)) -> 0 | H36: 0
A37: 1915 | B37: Office Furniture & Equipment (5 years) | E37: 0 | F37: =IF(D37=0,'App.2-CH_MIFRS_DepExp_2014'!K37,+'App.2-CH_MIFRS_DepExp_2014'!K37+((C37*0.5)/D37)) -> 0 | H37: 0
A38: 1920 | B38: Computer Equipment - Hardware | E38: 0 | F38: =IF(D38=0,'App.2-CH_MIFRS_DepExp_2014'!K38,+'App.2-CH_MIFRS_DepExp_2014'!K38+((C38*0.5)/D38)) -> 0 | H38: 0
A39: 1920 | B39: Computer Equip.-Hardware(Post Mar. 22/04) | E39: 0 | F39: =IF(D39=0,'App.2-CH_MIFRS_DepExp_2014'!K39,+'App.2-CH_MIFRS_DepExp_2014'!K39+((C39*0.5)/D39)) -> 0 | H39: 0
A40: 1920 | B40: Computer Equip.-Hardware(Post Mar. 19/07) | E40: 0 | F40: =IF(D40=0,'App.2-CH_MIFRS_DepExp_2014'!K40,+'App.2-CH_MIFRS_DepExp_2014'!K40+((C40*0.5)/D40)) -> 0 | H40: 0
A41: 1930 | B41: Transportation Equipment | E41: 0 | F41: =IF(D41=0,'App.2-CH_MIFRS_DepExp_2014'!K41,+'App.2-CH_MIFRS_DepExp_2014'!K41+((C41*0.5)/D41)) -> 0 | H41: 0
A42: 1935 | B42: Stores Equipment | E42: 0 | F42: =IF(D42=0,'App.2-CH_MIFRS_DepExp_2014'!K42,+'App.2-CH_MIFRS_DepExp_2014'!K42+((C42*0.5)/D42)) -> 0 | H42: 0
A43: 1940 | B43: Tools, Shop & Garage Equipment | E43: 0 | F43: =IF(D43=0,'App.2-CH_MIFRS_DepExp_2014'!K43,+'App.2-CH_MIFRS_DepExp_2014'!K43+((C43*0.5)/D43)) -> 0 | H43: 0
A44: 1945 | B44: Measurement & Testing Equipment | E44: 0 | F44: =IF(D44=0,'App.2-CH_MIFRS_DepExp_2014'!K44,+'App.2-CH_MIFRS_DepExp_2014'!K44+((C44*0.5)/D44)) -> 0 | H44: 0
A45: 1950 | B45: Power Operated Equipment | E45: 0 | F45: =IF(D45=0,'App.2-CH_MIFRS_DepExp_2014'!K45,+'App.2-CH_MIFRS_DepExp_2014'!K45+((C45*0.5)/D45)) -> 0 | H45: 0
A46: 1955 | B46: Communications Equipment | E46: 0 | F46: =IF(D46=0,'App.2-CH_MIFRS_DepExp_2014'!K46,+'App.2-CH_MIFRS_DepExp_2014'!K46+((C46*0.5)/D46)) -> 0 | H46: 0
A47: 1955 | B47: Communication Equipment (Smart Meters) | E47: 0 | F47: =IF(D47=0,'App.2-CH_MIFRS_DepExp_2014'!K47,+'App.2-CH_MIFRS_DepExp_2014'!K47+((C47*0.5)/D47)) -> 0 | H47: 0
A48: 1960 | B48: Miscellaneous Equipment | E48: 0 | F48: =IF(D48=0,'App.2-CH_MIFRS_DepExp_2014'!K48,+'App.2-CH_MIFRS_DepExp_2014'!K48+((C48*0.5)/D48)) -> 0 | H48: 0
A49: 1970 | B49: Load Management Controls - Customer Premises | E49: 0 | F49: =IF(D49=0,'App.2-CH_MIFRS_DepExp_2014'!K49,+'App.2-CH_MIFRS_DepExp_2014'!K49+((C49*0.5)/D49)) -> 0 | H49: 0
A50: 1975 | B50: Load Management Controls Utility Premises | E50: 0 | F50: =IF(D50=0,'App.2-CH_MIFRS_DepExp_2014'!K50,+'App.2-CH_MIFRS_DepExp_2014'!K50+((C50*0.5)/D50)) -> 0 | H50: 0
A51: 1980 | B51: System Supervisor Equipment | E51: 0 | F51: =IF(D51=0,'App.2-CH_MIFRS_DepExp_2014'!K51,+'App.2-CH_MIFRS_DepExp_2014'!K51+((C51*0.5)/D51)) -> 0 | H51: 0
A52: 1985 | B52: Miscellaneous Fixed Assets | E52: 0 | F52: =IF(D52=0,'App.2-CH_MIFRS_DepExp_2014'!K52,+'App.2-CH_MIFRS_DepExp_2014'!K52+((C52*0.5)/D52)) -> 0 | H52: 0
A53: 1990 | B53: Other Tangible Property | E53: 0 | F53: =IF(D53=0,'App.2-CH_MIFRS_DepExp_2014'!K53,+'App.2-CH_MIFRS_DepExp_2014'!K53+((C53*0.5)/D53)) -> 0 | H53: 0
A54: 1995 | B54: Contributions & Grants | E54: 0 | F54: =IF(D54=0,'App.2-CH_MIFRS_DepExp_2014'!K54,+'App.2-CH_MIFRS_DepExp_2014'!K54+((C54*0.5)/D54)) -> 0 | H54: 0
B55: Total | C55: =SUM(C17:C54) -> 0 | F55: =SUM(F17:F54) -> 0 | G55: =SUM(G17:G54) -> 0 | H55: =SUM(H17:H54) -> 0
B56: Depreciation exp. adj. from gain or loss on the retirement of assets (pool of like assets)
B57: Total Depreciation expense to be included in the test year revenue requirement | F57: =SUM(F55:F56) -> 0
A58: Notes:
A59: 1 | B59: Board policy of the "half-year" rule - the applicant must ensure that additions in the year attract a half-year depreciation expense in the first year. Deviations from this standard practice must be supported in the application.
A60: 2 | B60: The applicant must provide an explanation of material variances in evidence.
A62: General: | B62: Applicants must provide a breakdown of depreciation and amortization expense in the above format for all relevant accounts. Asset Retirement Obligations (AROs), depreciation and accretion expense should be disclosed separately consistent with the Notes of historical Audited Financial Statements.

Sheet App.2-D_Overhead
F1: File Number: | G1: =EBNUMBER -> EB-2015-0004
F2: Exhibit: | G2: B
F3: Tab: | G3: 5
F4: Schedule: | G4: 3
F5: Page: | G5: 1 of 1
F7: Date: | G7: ORIGINAL
A9: Appendix 2-D
A10: Overhead Expense
A12: Applicants are to provide a breakdown of OM&A before capitalization in the below table. OM&A before capitalization may be broken down by cost center, program, drivers or another format best suited to focus on capitalized vs. uncapitalized OM&A.
A14: OM&A Before Capitalization
B15: 2012 | C15: 2013 | D15: 2014 Q2 Forecast | E15: 2015 | F15: 2016
B16: Historical Year | C16: Historical Year | D16: Historical Year | E16: Bridge Year | F16: Test Year
A17: Collections, Acct & Activities | B17: 2937418.14 | C17: 4070580.42 | D17: 3649113.58 | E17: 3543340.62 | F17: 4059282.29
A18: Corporate Costs | B18: 6056030.21 | C18: 6575377.79 | D18: 5420095.82 | E18: 5015523.81 | F18: 4993414.81
A19: Customer & Community Relations | B19: 7716111.81 | C19: 7605946.63 | D19: 8220736.24 | E19: 8785231.48 | F19: 9084616.58
A20: Customer Billing | B20: 9176801.83 | C20: 9736344.37 | D20: 10664787.35 | E20: 10432582.67 | F20: 10511497.18
A21: Distribution Operations | B21: 33380037.66 | C21: 34860049.65 | D21: 37834128.88 | E21: 39785778.34 | F21: 40824588.38
A22: Engineering & Design | B22: 10863198.22 | C22: 11693463.17 | D22: 12451538.16 | E22: 12975441.61 | F22: 13677111.24
A23: Facilities | B23: 5518925.76 | C23: 5656285.21 | D23: 5794591.92 | E23: 6027819.42 | F23: 6108573.03
A24: Finance | B24: 4074221.84 | C24: 3988436.85 | D24: 4368115.38 | E24: 4517543.96 | F24: 4759915.36
A25: Human Resources & Training | B25: 3395829.79 | C25: 3675121.01 | D25: 4010176.37 | E25: 4051662.13 | F25: 4180257.13
A26: Information Mgt & Technology | B26: 6343144.54 | C26: 6717794.11 | D26: 7521460.3 | E26: 7500527.52 | F26: 7862962.71
A27: Metering | B27: 2712294.86 | C27: 2807318.25 | D27: 2846087.18 | E27: 2842465.09 | F27: 2956322.3
A28: Regulatory Affairs | B28: 1930843.88 | C28: 1967874.91 | D28: 2340939.72 | E28: 2505096.41 | F28: 2580683.84
A29: Safety, Environment & Bus Cont | B29: 1853905.09 | C29: 2334563.53 | D29: 2116845.44 | E29: 1952732.32 | F29: 2006304.97
A30: Supply Chain | B30: 2233136.02 | C30: 1985924.88 | D30: 2491807.67 | E30: 2498434.16 | F30: 2744524.08
A38: Total OM&A Before Capitalization (B) | B38: =SUM(B17:B37) -> 98191899.65 | C38: =SUM(C17:C37) -> 103675080.8 | D38: =SUM(D17:D37) -> 109730424 | E38: =SUM(E17:E37) -> 112434179.5 | F38: =SUM(F17:F37) -> 116350053.9
A40: Applicants are to provide a breakdown of capitalized OM&A in the below table. Capitalized OM&A may be broken down using the categories listed in the table below if possible. Otherwise, applicants are to provide its own break down of capitalized OM&A.
A42: Capitalized OM&A | G42: Directly | H42: Explanation for Change in Overhead Capitalized
B43: 2012 | C43: 2013 | D43: 2014 Q2 Forecast | E43: 2015 | F43: 2016 | G43: Attributable?
B44: Historical Year | C44: Historical Year | D44: Historical Year | E44: Bridge Year | F44: Test Year | G44: (Y/N)
A45: Supply Chain | B45: 1127115.45 | C45: 1305256.43 | D45: 1301155.98 | E45: 1244923 | F45: 1452331
A46: Supervision | B46: 1831800.2 | C46: 2157288 | D46: 1826399.41 | E46: 2034276 | F46: 2077315
A47: Engineering | B47: 1996464.64 | C47: 2815804.58 | D47: 2843934.33 | E47: 2904091 | F47: 2997522
A48: Fleet | B48: 2613093.29 | C48: 2593457.45 | D48: 2737547.54 | E48: 2627424 | F48: 2698352
A49: Labour | B49: 17547092.48 | C49: 19046118.2 | D49: 20253969.99 | E49: 19967657 | F49: 20018970
A58: Total Capitalized OM&A (A) | B58: =SUM(B45:B57) -> 25115566.06 | C58: =SUM(C45:C57) -> 27917924.66 | D58: =SUM(D45:D57) -> 28963007.25 | E58: =SUM(E45:E57) -> 28778371 | F58: =SUM(F45:F57) -> 29244490
A60: % of Capitalized OM&A (=A/B) | B60: =IF(ISERROR(B58/B38),"0%",B58/B38) -> 0.2557804274 | C60: =IF(ISERROR(C58/C38),"0%",C58/C38) -> 0.2692828831 | D60: 0.2639469182 | E60: 0.2559574955 | F60: 0.2513491745

Sheet App.2-FA Proposed REG Inves (2 (hidden)
F1: File Number: | G1: =EBNUMBER -> EB-2015-0004
F2: Exhibit:
F3: Tab:
F4: Schedule:
F5: Page:
F7: Date:
A9: Appendix 2-FA
A10: Renewable Generation Connection Investment Summary (over the rate setting period)
A12: Enter the details of the Renewable Generation Connection projects as described in Section 2.5.2.5 of the Filing Requirements.
A13: All costs entered on this page will be transferred to the appropriate cells in the appendices that follow.
A14: For Part A, Renewable Enabling Improvements (REI), these amounts will be transferred to Appendix 2 - FB
A15: For Part B, Expansions, these amounts will be transferred to Appendix 2 - FC
A17: If there are more than five projects proposed to be in-service in a certain year, please amend the tables below and ensure that the formulae for the Total Amounts in any given rate year are updated.
A18: Based on the current methodology and allocation, amounts allocated represent 6% for REI Connection Investments and 17% for Expansion Investments. (pg 15, EB-2009-0349)
A21: Part A
A22: REI Investments (Direct Benefit at 6%) | C22: 2015 | D22: =C22+1 -> 2016 | E22: =D22+1 -> 2017 | F22: 2018 | G22: 2019
A23: Project 1
A24: Name: REI Connection Project
A25: Capital Costs | C25: 1000 | D25: 0 | E25: 1000 | F25: 0 | G25: 0
A26: OM&A (Start-Up) | C26: 0 | D26: 0 | E26: 0 | F26: 0 | G26: 0
A27: OM&A (Ongoing) | C27: 0 | D27: 0 | E27: 0 | F27: 0 | G27: 0
A29: Project 2
A30: Name: REI Connection Project
A31: Capital Costs | C31: 0 | D31: 0 | E31: 0 | F31: 0 | G31: 0
A32: OM&A (Start-Up) | C32: 0 | D32: 0 | E32: 0 | F32: 0 | G32: 0
A33: OM&A (Ongoing) | C33: 0 | D33: 0 | E33: 0 | F33: 0 | G33: 0
A35: Project 3
A36: Name: REI Connection Project
A37: Capital Costs | C37: 0 | D37: 0 | E37: 0 | F37: 0 | G37: 0
A38: OM&A (Start-Up) | C38: 0 | D38: 0 | E38: 0 | F38: 0 | G38: 0
A39: OM&A (Ongoing) | C39: 0 | D39: 0 | E39: 0 | F39: 0 | G39: 0
A41: Project 4
A42: Name: REI Connection Project
A43: Capital Costs | C43: 0 | D43: 0 | E43: 0 | F43: 0 | G43: 0
A44: OM&A (Start-Up) | C44: 0 | D44: 0 | E44: 0 | F44: 0 | G44: 0
A45: OM&A (Ongoing) | C45: 0 | D45: 0 | E45: 0 | F45: 0 | G45: 0
A47: Project 5
A48: Name: REI Connection Project
A49: Capital Costs | C49: 0 | D49: 0 | E49: 0 | F49: 0 | G49: 0
A50: OM&A (Start-Up) | C50: 0 | D50: 0 | E50: 0 | F50: 0 | G50: 0
A51: OM&A (Ongoing) | C51: 0 | D51: 0 | E51: 0 | F51: 0 | G51: 0
A53: Total Capital Costs | C53: =SUM(C49,C43,C37,C31,C25) -> 1000 | D53: =SUM(D49,D43,D37,D31,D25) -> 0 | E53: 1000 | F53: 0 | G53: 0
A54: Total OM&A (Start-Up) | C54: =SUM(C50,C44,C38,C32,C26) -> 0 | D54: 0 | E54: 0 | F54: 0 | G54: 0
A55: Total OM&A (Ongoing) | C55: =SUM(C51,C45,C39,C33,C27) -> 0 | D55: 0 | E55: 0 | F55: 0 | G55: 0
A58: Part B
A59: Expansion Investments (Direct Benefit at 17%) | C59: 2015 | D59: =C59+1 -> 2016 | E59: =D59+1 -> 2017 | F59: 2018 | G59: 2019
A60: Project 1
A61: Name: Expansion Connection Project
A62: Capital Costs | C62: 0 | D62: 0 | E62: 0 | F62: 0 | G62: 0
A63: OM&A (Start-Up) | C63: 0 | D63: 0 | E63: 0 | F63: 0 | G63: 0
A64: OM&A (Ongoing) | C64: 0 | D64: 0 | E64: 0 | F64: 0 | G64: 0
A66: Project 2
A67: Name: Expansion Connection Project
A68: Capital Costs | C68: 0 | D68: 0 | E68: 0 | F68: 0 | G68: 0
A69: OM&A (Start-Up) | C69: 0 | D69: 0 | E69: 0 | F69: 0 | G69: 0
A70: OM&A (Ongoing) | C70: 0 | D70: 0 | E70: 0 | F70: 0 | G70: 0
A72: Project 3
A73: Name: Expansion Connection Project
A74: Capital Costs | C74: 0 | D74: 0 | E74: 0 | F74: 0 | G74: 0
A75: OM&A (Start-Up) | C75: 0 | D75: 0 | E75: 0 | F75: 0 | G75: 0
A76: OM&A (Ongoing) | C76: 0 | D76: 0 | E76: 0 | F76: 0 | G76: 0
A78: Project 4
A79: Name: Expansion Connection Project
A80: Capital Costs | C80: 0 | D80: 0 | E80: 0 | F80: 0 | G80: 0
A81: OM&A (Start-Up) | C81: 0 | D81: 0 | E81: 0 | F81: 0 | G81: 0
A82: OM&A (Ongoing) | C82: 0 | D82: 0 | E82: 0 | F82: 0 | G82: 0
A84: Project 5
A85: Name: Expansion Connection Project
A86: Capital Costs | C86: 0 | D86: 0 | E86: 0 | F86: 0 | G86: 0
A87: OM&A (Start-Up) | C87: 0 | D87: 0 | E87: 0 | F87: 0 | G87: 0
A88: OM&A (Ongoing) | C88: 0 | D88: 0 | E88: 0 | F88: 0 | G88: 0
A90: Total Capital Costs | C90: =SUM(C86,C80,C74,C68,C62) -> 0 | D90: =SUM(D86,D80,D74,D68,D62) -> 0 | E90: 0 | F90: 0 | G90: 0
A91: Total OM&A (Start-Up) | C91: =SUM(C87,C81,C75,C69,C63) -> 0 | D91: 0 | E91: 0 | F91: 0 | G91: 0
A92: Total OM&A (Ongoing) | C92: =SUM(C88,C82,C76,C70,C64) -> 0 | D92: 0 | E92: 0 | F92: 0 | G92: 0

Sheet App.2-FB Calc of REG Improv (2 (hidden)
F1: File Number: | G1: =EBNUMBER -> EB-2015-0004
F2: Exhibit:
F3: Tab:
F4: Schedule:
F5: Page:
F7: Date:
A9: Appendix 2-FB
A10: Calculation of Renewable Generation Connection Direct Benefits/Provincial Amount: Renewable Enabling Improvement Investments
A12: This table will calculate the distributor/provincial shares of the investments entered in Part A of Appendix 2-FA.
A13: Enter values in green shaded cells: WCA percentage, debt percentages, interest rates, kWh, tax rates, amortization period, CCA Class and percentage.
A14: Rate Riders are not calculated for Test Year as these assets and costs are already in the distributor's rate base/revenue requirement.
D17: 2015 Test Year | G17: 2016 | J17: 2017 | K17: 2016 | M17: 2018 | P17: 2019
E18: Direct Benefit | F18: Provincial | H18: Direct Benefit | I18: Provincial | K18: Direct Benefit | L18: Provincial | N18: Direct Benefit | O18: Provincial | Q18: Direct Benefit | R18: Provincial
D19: Total | E19: 0.06 | F19: 0.94 | G19: Total | H19: 0.06 | I19: 0.94 | J19: Total | K19: 0.06 | L19: 0.94 | M19: Total | N19: 0.06 | O19: 0.94 | P19: Total | Q19: 0.06 | R19: 0.94
A20: Net Fixed Assets (average) | D20: =D82 -> 490 | E20: =D20*E19 -> 29.4 | F20: =D20*F19 -> 460.6 | G20: =E82 -> 960 | H20: =G20*H19 -> 57.6 | I20: =G20*I19 -> 902.4 | J20: =F82 -> 1410 | K20: =J20*K19 -> 84.6 | L20: =J20*L19 -> 1325.4 | M20: =G82 -> 1840 | N20: =M20*N19 -> 110.4 | O20: =M20*O19 -> 1729.6 | P20: =H82 -> 1760 | Q20: =P20*Q19 -> 105.6 | R20: =P20*R19 -> 1654.4
A21: Incremental OM&A (on-going, N/A for Provincial Recovery) | D21: ='App.2-FA Proposed REG Inves (2'!C55 -> 0 | E21: =D21 -> 0 | G21: ='App.2-FA Proposed REG Inves (2'!D55 -> 0 | H21: =G21 -> 0 | J21: ='App.2-FA Proposed REG Inves (2'!E55 -> 0 | K21: =J21 -> 0 | M21: ='App.2-FA Proposed REG Inves (2'!F55 -> 0 | N21: =M21 -> 0 | P21: ='App.2-FA Proposed REG Inves (2'!G55 -> 0 | Q21: =P21 -> 0
A22: Incremental OM&A (start-up, applicable for Provincial Recovery) | D22: ='App.2-FA Proposed REG Inves (2'!C54 -> 0 | E22: =D22*E19 -> 0 | F22: =D22*F19 -> 0 | G22: ='App.2-FA Proposed REG Inves (2'!D54 -> 0 | H22: =G22*H19 -> 0 | I22: =G22*I19 -> 0 | J22: ='App.2-FA Proposed REG Inves (2'!E54 -> 0 | K22: =J22*K19 -> 0 | L22: =J22*L19 -> 0 | M22: ='App.2-FA Proposed REG Inves (2'!F54 -> 0 | N22: =M22*N19 -> 0 | O22: =M22*O19 -> 0 | P22: ='App.2-FA Proposed REG Inves (2'!G54 -> 0 | Q22: =P22*Q19 -> 0 | R22: =P22*R19 -> 0
A23: WCA | B23: 0.13 | E23: =(E21+E22)*$B$23 -> 0 | F23: =F22*$B$23 -> 0 | H23: =(H21+H22)*$B$23 -> 0 | I23: =I22*$B$23 -> 0 | K23: =(K21+K22)*$B$23 -> 0 | L23: =L22*$B$23 -> 0 | N23: =(N21+N22)*$B$23 -> 0 | O23: =O22*$B$23 -> 0 | Q23: =(Q21+Q22)*$B$23 -> 0 | R23: =R22*$B$23 -> 0
A24: Rate Base | E24: =SUM(E20+E23) -> 29.4 | F24: =SUM(F20+F23) -> 460.6 | H24: =SUM(H20+H23) -> 57.6 | I24: =SUM(I20+I23) -> 902.4 | K24: =SUM(K20+K23) -> 84.6 | L24: =SUM(L20+L23) -> 1325.4 | N24: =SUM(N20+N23) -> 110.4 | O24: =SUM(O20+O23) -> 1729.6 | Q24: =SUM(Q20+Q23) -> 105.6 | R24: =SUM(R20+R23) -> 1654.4
A27: Deemed ST Debt | B27: 0.04 | E27: =E24*$B$27 -> 1.176 | F27: =F24*$B$27 -> 18.424 | H27: =H24*$B$27 -> 2.304 | I27: =I24*$B$27 -> 36.096 | K27: =K24*$B$27 -> 3.384 | L27: =L24*$B$27 -> 53.016 | N27: =N24*$B$27 -> 4.416 | O27: =O24*$B$27 -> 69.184 | Q27: =Q24*$B$27 -> 4.224 | R27: =R24*$B$27 -> 66.176
A28: Deemed LT Debt | B28: 0.56 | E28: =E24*$B$28 -> 16.464 | F28: =F24*$B$28 -> 257.936 | H28: =H24*$B$28 -> 32.256 | I28: =I24*$B$28 -> 505.344 | K28: =K24*$B$28 -> 47.376 | L28: =L24*$B$28 -> 742.224 | N28: =N24*$B$28 -> 61.824 | O28: =O24*$B$28 -> 968.576 | Q28: =Q24*$B$28 -> 59.136 | R28: =R24*$B$28 -> 926.464
A29: Deemed Equity | B29: 0.4 | E29: =E24*$B$29 -> 11.76 | F29: =F24*$B$29 -> 184.24 | H29: =H24*$B$29 -> 23.04 | I29: =I24*$B$29 -> 360.96 | K29: =K24*$B$29 -> 33.84 | L29: =L24*$B$29 -> 530.16 | N29: =N24*$B$29 -> 44.16 | O29: =O24*$B$29 -> 691.84 | Q29: =Q24*$B$29 -> 42.24 | R29: =R24*$B$29 -> 661.76
A31: ST Interest | B31: 0.024 | E31: =E27*$B31 -> 0.028224 | F31: =F27*$B31 -> 0.442176 | H31: =H27*$B31 -> 0.055296 | I31: =I27*$B31 -> 0.866304 | K31: =K27*$B31 -> 0.081216 | L31: =L27*$B31 -> 1.272384 | N31: =N27*$B31 -> 0.105984 | O31: =O27*$B31 -> 1.660416 | Q31: =Q27*$B31 -> 0.101376 | R31: =R27*$B31 -> 1.588224
A32: LT Interest | B32: 0.056 | E32: =E28*$B32 -> 0.921984 | F32: 14.444416 | H32: =H28*$B32 -> 1.806336 | I32: 28.299264 | K32: =K28*$B32 -> 2.653056 | L32: 41.564544 | N32: =N28*$B32 -> 3.462144 | O32: 54.240256 | Q32: =Q28*$B32 -> 3.311616 | R32: 51.881984
A33: ROE | B33: 0.085 | E33: 0.9996 | F33: 15.6604 | H33: 1.9584 | I33: 30.6816 | K33: 2.8764 | L33: 45.0636 | N33: 3.7536 | O33: 58.8064 | Q33: 3.5904 | R33: 56.2496
A34: Cost of Capital Total | E34: =SUM(E31:E33) -> 1.949808 | F34: =SUM(F31:F33) -> 30.546992 | H34: =SUM(H31:H33) -> 3.820032 | I34: =SUM(I31:I33) -> 59.847168 | K34: =SUM(K31:K33) -> 5.610672 | L34: =SUM(L31:L33) -> 87.900528 | N34: =SUM(N31:N33) -> 7.321728 | O34: =SUM(O31:O33) -> 114.707072 | Q34: =SUM(Q31:Q33) -> 7.003392 | R34: =SUM(R31:R33) -> 109.719808
A36: OM&A | E36: =E21+E22 -> 0 | F36: =F22 -> 0 | H36: =H21+H22 -> 0 | I36: =I22 -> 0 | K36: =K21+K22 -> 0 | L36: =L22 -> 0 | N36: =N21+N22 -> 0 | O36: =O22 -> 0 | Q36: =Q21+Q22 -> 0 | R36: =R22 -> 0
A37: Amortization | D37: =D77 -> 20 | E37: =D37*E$19 -> 1.2 | F37: =D37*F$19 -> 18.8 | G37: =E76+E77 -> 40 | H37: =G37*H$19 -> 2.4 | I37: =G37*I$19 -> 37.6 | J37: =F76+F77 -> 60 | K37: =J37*K$19 -> 3.6 | L37: =J37*L$19 -> 56.4 | M37: =G76+G77 -> 80 | N37: =M37*N$19 -> 4.8 | O37: =M37*O$19 -> 75.2 | P37: =H76+H77 -> 80 | Q37: =P37*Q$19 -> 4.8 | R37: =P37*R$19 -> 75.2
A38: Grossed-up PILs | E38: =E65 -> 0 | F38: =F65 -> 0 | H38: =H65 -> 0 | I38: =I65 -> 0 | K38: =K65 -> 0 | L38: =L65 -> 0 | N38: =N65 -> 0 | O38: =O65 -> 0 | Q38: =Q65 -> 0 | R38: =R65 -> 0
A40: Revenue Requirement | E40: =SUM(E34:E38) -> 3.149808 | F40: =SUM(F34:F38) -> 49.346992 | H40: =SUM(H34:H38) -> 6.220032 | I40: =SUM(I34:I38) -> 97.447168 | K40: =SUM(K34:K38) -> 9.210672 | L40: =SUM(L34:L38) -> 144.300528 | N40: =SUM(N34:N38) -> 12.121728 | O40: =SUM(O34:O38) -> 189.907072 | Q40: =SUM(Q34:Q38) -> 11.803392 | R40: =SUM(R34:R38) -> 184.919808
A43: Provincial Rate Protection | F43: =F40 -> 49.346992 | I43: =I40 -> 97.447168 | L43: =L40 -> 144.300528 | O43: =O40 -> 189.907072 | R43: =R40 -> 184.919808
A45: Monthly Amount Paid by IESO | F45: =F43/12 -> 4.112249333 | I45: =I43/12 -> 8.120597333 | L45: =L43/12 -> 12.025044 | O45: =O43/12 -> 15.82558933 | R45: =R43/12 -> 15.409984
A47: Note 1: The difference between the actual costs of approved eligible investments and revenue received from the IESO should be recorded in a variance account. The Board may provide
A48: regulatory accounting guidance regarding a variance account either in an individual proceeding or on a generic basis.
A49: Note 2: For the 2014 Test Year, Costs and Revenues of the Direct Benefit are to be included in the test year applicant Rate Base and Revenues.
A51: PILs Calculation
E52: 2015 | H52: =E52+1 -> 2016 | K52: =H52+1 -> 2017 | N52: =K52+1 -> 2018 | Q52: =N52+1 -> 2019
A53: Income Tax | E53: Direct Benefit | F53: Provincial | H53: Direct Benefit | I53: Provincial | K53: Direct Benefit | L53: Provincial | N53: Direct Benefit | O53: Provincial | Q53: Direct Benefit | R53: Provincial
M54: Total | P54: Total
A55: Net Income - ROE on Rate Base | E55: =E33 -> 0.9996 | F55: =F33 -> 15.6604 | H55: =H33 -> 1.9584 | I55: =I33 -> 30.6816 | K55: =K33 -> 2.8764 | L55: =L33 -> 45.0636 | N55: =N33 -> 3.7536 | O55: =O33 -> 58.8064 | Q55: =Q33 -> 3.5904 | R55: =R33 -> 56.2496
A56: Amortization (6% DB and 94% P) | E56: =E37 -> 1.2 | F56: =F37 -> 18.8 | H56: =H37 -> 2.4 | I56: =I37 -> 37.6 | K56: =K37 -> 3.6 | L56: =L37 -> 56.4 | N56: =N37 -> 4.8 | O56: =O37 -> 75.2 | Q56: =Q37 -> 4.8 | R56: =R37 -> 75.2
A57: CCA (6% DB and 94% P) | E57: =-D94*E$19 -> -2.4 | F57: =-D94*F$19 -> -37.6 | H57: =-E94*H$19 -> -4.608 | I57: =-E94*I$19 -> -72.192 | K57: =-F94*K$19 -> -4.23936 | L57: =-F94*L$19 -> -66.41664 | N57: =-G94*N$19 -> -3.9002112 | O57: =-G94*O$19 -> -61.1033088 | Q57: =-H94*Q$19 -> -3.588194304 | R57: =-H94*R$19 -> -56.2150441
A58: Taxable income | E58: =SUM(E55:E57) -> -0.2004 | F58: =SUM(F55:F57) -> -3.1396 | H58: =SUM(H55:H57) -> -0.2496 | I58: =SUM(I55:I57) -> -3.9104 | K58: =SUM(K55:K57) -> 2.23704 | L58: =SUM(L55:L57) -> 35.04696 | N58: =SUM(N55:N57) -> 4.6533888 | O58: =SUM(O55:O57) -> 72.9030912 | Q58: =SUM(Q55:Q57) -> 4.802205696 | R58: =SUM(R55:R57) -> 75.2345559
A60: Tax Rate (to be entered)
A62: Income Taxes Payable | E62: =E58*E60 -> 0 | F62: =F58*F60 -> 0 | H62: =H58*H60 -> 0 | I62: =I58*I60 -> 0 | K62: =K58*K60 -> 0 | L62: =L58*L60 -> 0 | N62: =N58*N60 -> 0 | O62: =O58*O60 -> 0 | Q62: =Q58*Q60 -> 0 | R62: =R58*R60 -> 0
A63: Gross Up
A64: Income Taxes Payable | E64: =E62/(1-E60) -> 0 | F64: =F62/(1-F60) -> 0 | H64: =H62/(1-H60) -> 0 | I64: =I62/(1-I60) -> 0 | K64: =K62/(1-K60) -> 0 | L64: =L62/(1-L60) -> 0 | N64: =N62/(1-N60) -> 0 | O64: =O62/(1-O60) -> 0 | Q64: =Q62/(1-Q60) -> 0 | R64: =R62/(1-R60) -> 0
A65: Grossed Up PILs | E65: =SUM(E64:E64) -> 0 | F65: =SUM(F64:F64) -> 0 | H65: =SUM(H64:H64) -> 0 | I65: =SUM(I64:I64) -> 0 | K65: =SUM(K64:K64) -> 0 | L65: =SUM(L64:L64) -> 0 | N65: =SUM(N64:N64) -> 0 | O65: =SUM(O64:O64) -> 0 | Q65: =SUM(Q64:Q64) -> 0 | R65: =SUM(R64:R64) -> 0
D68: 2015 | E68: =D68+1 -> 2016 | F68: =E68+1 -> 2017 | G68: 2018 | H68: 2019
A69: Net Fixed Assets
B70: Enter applicable amortization in years: | C70: 25
A71: Opening Gross Fixed Assets | E71: =D73 -> 1000 | F71: =E73 -> 1000 | G71: =F73 -> 2000 | H71: =G73 -> 2000
A72: Gross Capital Additions | D72: ='App.2-FA Proposed REG Inves (2'!C53 -> 1000 | E72: ='App.2-FA Proposed REG Inves (2'!D53 -> 0 | F72: ='App.2-FA Proposed REG Inves (2'!E53 -> 1000 | G72: ='App.2-FA Proposed REG Inves (2'!F53 -> 0 | H72: ='App.2-FA Proposed REG Inves (2'!G53 -> 0
A73: Closing Gross Fixed Assets | D73: =SUM(D71:D72) -> 1000 | E73: =SUM(E71:E72) -> 1000 | F73: 2000 | G73: 2000 | H73: 2000
A75: Opening Accumulated Amortization | E75: =D78 -> 20 | F75: =E78 -> 60 | G75: =F78 -> 120 | H75: =G78 -> 200
A76: Current Year Amortization (before additions) | E76: =IF(ISERROR(E71/$C$70), 0, E71/$C$70) -> 40 | F76: =IF(ISERROR(F71/$C$70), 0, F71/$C$70) -> 40 | G76: =IF(ISERROR(G71/$C$70), 0, G71/$C$70) -> 80 | H76: =IF(ISERROR(H71/$C$70), 0, H71/$C$70) -> 80
A77: Additions (half year) | D77: =D72/C70/2 -> 20 | E77: =E72/C70/2 -> 0 | F77: =F72/C70/2 -> 20 | G77: =G72/C70/2 -> 0 | H77: =H72/C70/2 -> 0
A78: Closing Accumulated Amortization | D78: =SUM(D75+D77) -> 20 | E78: =SUM(E75:E77) -> 60 | F78: =SUM(F75:F77) -> 120 | G78: =SUM(G75:G77) -> 200 | H78: =SUM(H75:H77) -> 280
A80: Opening Net Fixed Assets | D80: =D71-D75 -> 0 | E80: =D81 -> 980 | F80: =E81 -> 940 | G80: =F81 -> 1880 | H80: =G81 -> 1800
A81: Closing Net Fixed Assets | D81: =D73-D78 -> 980 | E81: =E73-E78 -> 940 | F81: =F73-F78 -> 1880 | G81: =G73-G78 -> 1800 | H81: =H73-H78 -> 1720
A82: Average Net Fixed Assets | D82: =SUM(D80:D81)/2 -> 490 | E82: =SUM(E80:E81)/2 -> 960 | F82: =SUM(F80:F81)/2 -> 1410 | G82: =SUM(G80:G81)/2 -> 1840 | H82: =SUM(H80:H81)/2 -> 1760
A84: UCC for PILs Calculation
D85: 2015 | E85: =D85+1 -> 2016 | F85: =E85+1 -> 2017 | G85: 2018 | H85: 2019
A87: Opening UCC | E87: =D95 -> 960 | F87: =E95 -> 883.2 | G87: =F95 -> 812.544 | H87: =G95 -> 747.54048
A88: Capital Additions (from Appendix 2-FA) | D88: =D72 -> 1000 | E88: ='App.2-FA Proposed REG Inves (2'!D31 -> 0 | F88: ='App.2-FA Proposed REG Inves (2'!E31 -> 0 | G88: ='App.2-FA Proposed REG Inves (2'!F31 -> 0 | H88: ='App.2-FA Proposed REG Inves (2'!G31 -> 0
A89: UCC Before Half Year Rule | D89: =SUM(D87:D88) -> 1000 | E89: =SUM(E87:E88) -> 960 | F89: =SUM(F87:F88) -> 883.2 | G89: =SUM(G87:G88) -> 812.544 | H89: =SUM(H87:H88) -> 747.54048
A90: Half Year Rule (1/2 Additions - Disposals) | D90: =D88/2 -> 500 | E90: =E88/2 -> 0 | F90: =F88/2 -> 0 | G90: =G88/2 -> 0 | H90: =H88/2 -> 0
A91: Reduced UCC | D91: =D89-D90 -> 500 | E91: =E89-E90 -> 960 | F91: =F89-F90 -> 883.2 | G91: =G89-G90 -> 812.544 | H91: =H89-H90 -> 747.54048
A92: CCA Rate Class (to be entered) | C92: 47 | D92: =C92 -> 47 | E92: =C92 -> 47 | F92: =C92 -> 47 | G92: =C92 -> 47 | H92: =C92 -> 47
A93: CCA Rate (to be entered) | C93: 0.08 | D93: =C93 -> 0.08 | E93: =C93 -> 0.08 | F93: =C93 -> 0.08 | G93: =C93 -> 0.08 | H93: =C93 -> 0.08
A94: CCA | D94: =D91*D93 -> 40 | E94: =E91*E93 -> 76.8 | F94: 70.656 | G94: 65.00352 | H94: =H91*H93 -> 59.8032384
A95: Closing UCC | D95: =D89-D94 -> 960 | E95: =E89-E94 -> 883.2 | F95: =F89-F94 -> 812.544 | G95: =G89-G94 -> 747.54048 | H95: =H89-H94 -> 687.7372416

Sheet App.2-FC Calc of REG Expans (2 (hidden)
E1: File Number: | F1: =EBNUMBER -> EB-2015-0004
E2: Exhibit:
E3: Tab:
E4: Schedule:
E5: Page:
E7: Date:
A9: Appendix 2-FC
A10: Calculation of Renewable Generation Connection Direct Benefits/Provincial Amount: Renewable Expansion Investments
A12: This table will calculate the distributor/provincial shares of the investments entered in Part B of Appendix 2-FA.
A13: Enter values in green shaded cells: WCA percentage, debt percentages, interest rates, kWh, tax rates, amortization period, CCA Class and percentage.
A14: Rate Riders are not calculated for Test Year as these assets and costs are already in the distributors rate base.
D17: 2014 Test Year | G17: 2015 | J17: 2016 | K17: 2016 | M17: 2017 | P17: 2018
E18: Direct Benefit | F18: Provincial | H18: Direct Benefit | I18: Provincial | K18: Direct Benefit | L18: Provincial | N18: Direct Benefit | O18: Provincial | Q18: Direct Benefit | R18: Provincial
D19: Total | E19: 0.17 | F19: 0.83 | G19: Total | H19: 0.17 | I19: 0.83 | J19: Total | K19: 0.17 | L19: 0.83 | M19: Total | N19: 0.17 | O19: 0.83 | P19: Total | Q19: 0.17 | R19: 0.83
A20: Net Fixed Assets (average) | D20: =D81 -> 0 | E20: =D20*E19 -> 0 | F20: =D20*F19 -> 0 | G20: =E81 -> 0 | H20: =G20*H19 -> 0 | I20: =G20*I19 -> 0 | J20: =F81 -> 0 | K20: =J20*K19 -> 0 | L20: =J20*L19 -> 0 | M20: =G81 -> 0 | N20: =M20*N19 -> 0 | O20: =M20*O19 -> 0 | P20: =H81 -> 0 | Q20: =P20*Q19 -> 0 | R20: =P20*R19 -> 0
A21: Incremental OM&A (on-going, N/A for Provincial Recovery) | D21: ='App.2-FA Proposed REG Inves (2'!C$92 -> 0 | E21: =D21 -> 0 | G21: ='App.2-FA Proposed REG Inves (2'!D$92 -> 0 | H21: =G21 -> 0 | J21: ='App.2-FA Proposed REG Inves (2'!E$92 -> 0 | K21: =J21 -> 0 | M21: ='App.2-FA Proposed REG Inves (2'!F$92 -> 0 | N21: =M21 -> 0 | P21: ='App.2-FA Proposed REG Inves (2'!G$92 -> 0 | Q21: =P21 -> 0
A22: Incremental OM&A (start-up, applicable for Provincial Recovery) | D22: ='App.2-FA Proposed REG Inves (2'!C$91 -> 0 | E22: =D22*E19 -> 0 | F22: =D22*F19 -> 0 | G22: ='App.2-FA Proposed REG Inves (2'!D$91 -> 0 | H22: =G22*H19 -> 0 | I22: =G22*I19 -> 0 | J22: ='App.2-FA Proposed REG Inves (2'!E$91 -> 0 | K22: =J22*K19 -> 0 | L22: =J22*L19 -> 0 | M22: ='App.2-FA Proposed REG Inves (2'!F$91 -> 0 | N22: =M22*N19 -> 0 | O22: =M22*O19 -> 0 | P22: ='App.2-FA Proposed REG Inves (2'!G$91 -> 0 | Q22: =P22*Q19 -> 0 | R22: =P22*R19 -> 0
A23: WCA | E23: =(E21+E22)*$B$23 -> 0 | F23: =F22*$B$23 -> 0 | H23: =(H21+H22)*$B$23 -> 0 | I23: =I22*$B$23 -> 0 | K23: =(K21+K22)*$B$23 -> 0 | L23: =L22*$B$23 -> 0 | N23: =(N21+N22)*$B$23 -> 0 | O23: =O22*$B$23 -> 0 | Q23: =(Q21+Q22)*$B$23 -> 0 | R23: =R22*$B$23 -> 0
A24: Rate Base | E24: =SUM(E20+E23) -> 0 | F24: =SUM(F20+F23) -> 0 | H24: =SUM(H20+H23) -> 0 | I24: =SUM(I20+I23) -> 0 | K24: =SUM(K20+K23) -> 0 | L24: =SUM(L20+L23) -> 0 | N24: =SUM(N20+N23) -> 0 | O24: =SUM(O20+O23) -> 0 | Q24: =SUM(Q20+Q23) -> 0 | R24: =SUM(R20+R23) -> 0
A27: Deemed ST Debt | E27: =E24*$B$27 -> 0 | F27: =F24*$B$27 -> 0 | H27: =H24*$B$27 -> 0 | I27: =I24*$B$27 -> 0 | K27: =K24*$B$27 -> 0 | L27: =L24*$B$27 -> 0 | N27: =N24*$B$27 -> 0 | O27: =O24*$B$27 -> 0 | Q27: =Q24*$B$27 -> 0 | R27: =R24*$B$27 -> 0
A28: Deemed LT Debt | E28: =E24*$B$28 -> 0 | F28: =F24*$B$28 -> 0 | H28: =H24*$B$28 -> 0 | I28: =I24*$B$28 -> 0 | K28: =K24*$B$28 -> 0 | L28: =L24*$B$28 -> 0 | N28: =N24*$B$28 -> 0 | O28: =O24*$B$28 -> 0 | Q28: =Q24*$B$28 -> 0 | R28: =R24*$B$28 -> 0
A29: Deemed Equity | E29: =E24*$B$29 -> 0 | F29: =F24*$B$29 -> 0 | H29: =H24*$B$29 -> 0 | I29: =I24*$B$29 -> 0 | K29: =K24*$B$29 -> 0 | L29: =L24*$B$29 -> 0 | N29: =N24*$B$29 -> 0 | O29: =O24*$B$29 -> 0 | Q29: =Q24*$B$29 -> 0 | R29: =R24*$B$29 -> 0
A31: ST Interest | E31: =E27*$B$31 -> 0 | F31: =F27*$B$31 -> 0 | H31: =H27*$B$31 -> 0 | I31: =I27*$B$31 -> 0 | K31: =K27*$B$31 -> 0 | L31: =L27*$B$31 -> 0 | N31: =N27*$B$31 -> 0 | O31: =O27*$B$31 -> 0 | Q31: =Q27*$B$31 -> 0 | R31: =R27*$B$31 -> 0
A32: LT Interest | E32: =E28*$B$32 -> 0 | F32: =F28*$B$32 -> 0 | H32: =H28*$B$32 -> 0 | I32: =I28*$B$32 -> 0 | K32: =K28*$B$32 -> 0 | L32: =L28*$B$32 -> 0 | N32: =N28*$B$32 -> 0 | O32: =O28*$B$32 -> 0 | Q32: =Q28*$B$32 -> 0 | R32: =R28*$B$32 -> 0
A33: ROE | E33: =E29*$B$33 -> 0 | F33: =F29*$B$33 -> 0 | H33: =H29*$B$33 -> 0 | I33: =I29*$B$33 -> 0 | K33: =K29*$B$33 -> 0 | L33: =L29*$B$33 -> 0 | N33: =N29*$B$33 -> 0 | O33: =O29*$B$33 -> 0 | Q33: =Q29*$B$33 -> 0 | R33: =R29*$B$33 -> 0
A34: Cost of Capital Total | E34: =SUM(E31:E33) -> 0 | F34: =SUM(F31:F33) -> 0 | H34: =SUM(H31:H33) -> 0 | I34: =SUM(I31:I33) -> 0 | K34: =SUM(K31:K33) -> 0 | L34: =SUM(L31:L33) -> 0 | N34: =SUM(N31:N33) -> 0 | O34: =SUM(O31:O33) -> 0 | Q34: =SUM(Q31:Q33) -> 0 | R34: =SUM(R31:R33) -> 0
A36: OM&A | E36: =E21+E22 -> 0 | F36: =F22 -> 0 | H36: =H21+H22 -> 0 | I36: =I22 -> 0 | K36: =K21+K22 -> 0 | L36: =L22 -> 0 | N36: =N21+N22 -> 0 | O36: =O22 -> 0 | Q36: =Q21+Q22 -> 0 | R36: =R22 -> 0
A37: Amortization | D37: =D77 -> 0 | E37: =D37*E$19 -> 0 | F37: =D37*F$19 -> 0 | G37: =E75+E76 -> 0 | H37: =G37*H$19 -> 0 | I37: =G37*I$19 -> 0 | J37: =F75+F76 -> 0 | K37: =J37*K$19 -> 0 | L37: =J37*L$19 -> 0 | M37: =G75+G76 -> 0 | N37: =M37*N$19 -> 0 | O37: =M37*O$19 -> 0 | P37: =H75+H76 -> 0 | Q37: =P37*Q$19 -> 0 | R37: =P37*R$19 -> 0
A38: Grossed-up PILs | E38: =E65 -> 0 | F38: =F65 -> 0 | H38: =H65 -> 0 | I38: =I65 -> 0 | K38: =K65 -> 0 | L38: =L65 -> 0 | N38: =N65 -> 0 | O38: =O65 -> 0 | Q38: =Q65 -> 0 | R38: =R65 -> 0
A40: Revenue Requirement | E40: =SUM(E34:E38) -> 0 | F40: =SUM(F34:F38) -> 0 | H40: =SUM(H34:H38) -> 0 | I40: =SUM(I34:I38) -> 0 | K40: =SUM(K34:K38) -> 0 | L40: =SUM(L34:L38) -> 0 | N40: =SUM(N34:N38) -> 0 | O40: =SUM(O34:O38) -> 0 | Q40: =SUM(Q34:Q38) -> 0 | R40: =SUM(R34:R38) -> 0
A43: Provincial Rate Protection | F43: =F40 -> 0 | I43: =I40 -> 0 | L43: =L40 -> 0 | O43: =O40 -> 0 | R43: =R40 -> 0
A45: Monthly Amount Paid by IESO | F45: =F43/12 -> 0 | I45: =I43/12 -> 0 | L45: =L43/12 -> 0 | O45: =O43/12 -> 0 | R45: =R43/12 -> 0
A47: Note 1: The difference between the actual costs of approved eligible investments and revenue received from the IESO should be recorded in a variance account. The Board may provide
A48: regulatory accounting guidance regarding a variance account either in an individual proceeding or on a generic basis.
A49: Note 2: For the 2014 Test Year, Costs and Revenues of the Direct Benefit are to be included in the test year applicant Rate Base and Revenues.
A51: PILs Calculation
E52: 2014 | H52: 2015 | K52: 2016 | N52: 2017 | Q52: 2018
A53: Income Tax | E53: Direct Benefit | F53: Provincial | H53: Direct Benefit | I53: Provincial | K53: Direct Benefit | L53: Provincial | N53: Direct Benefit | O53: Provincial | Q53: Direct Benefit | R53: Provincial
M54: Total | P54: Total
A55: Net Income - ROE on Rate Base | E55: =E33 -> 0 | F55: =F33 -> 0 | H55: =H33 -> 0 | I55: =I33 -> 0 | K55: =K33 -> 0 | L55: =L33 -> 0 | N55: =N33 -> 0 | O55: =O33 -> 0 | Q55: =Q33 -> 0 | R55: =R33 -> 0
A56: Amortization (17% DB and 83% P) | E56: =E37 -> 0 | F56: =F37 -> 0 | H56: =H37 -> 0 | I56: =I37 -> 0 | K56: =K37 -> 0 | L56: =L37 -> 0 | N56: =N37 -> 0 | O56: =O37 -> 0 | Q56: =Q37 -> 0 | R56: =R37 -> 0
A57: CCA (17% DB and 83% P) | E57: =-D93*E$19 -> 0 | F57: =-D93*F$19 -> 0 | H57: =-E93*H$19 -> 0 | I57: =-E93*I$19 -> 0 | K57: =-F93*K$19 -> 0 | L57: =-F93*L$19 -> 0 | N57: =-G93*N$19 -> 0 | O57: =-G93*O$19 -> 0 | Q57: =-H93*Q$19 -> 0 | R57: =-H93*R$19 -> 0
A58: Taxable income | E58: =SUM(E55:E57) -> 0 | F58: =SUM(F55:F57) -> 0 | H58: =SUM(H55:H57) -> 0 | I58: =SUM(I55:I57) -> 0 | K58: =SUM(K55:K57) -> 0 | L58: =SUM(L55:L57) -> 0 | N58: =SUM(N55:N57) -> 0 | O58: =SUM(O55:O57) -> 0 | Q58: =SUM(Q55:Q57) -> 0 | R58: =SUM(R55:R57) -> 0
A60: Tax Rate (to be entered)
A62: Income Taxes Payable | E62: =E58*E60 -> 0 | F62: =F58*F60 -> 0 | H62: =H58*H60 -> 0 | I62: =I58*I60 -> 0 | K62: =K58*K60 -> 0 | L62: =L58*L60 -> 0 | N62: =N58*N60 -> 0 | O62: =O58*O60 -> 0 | Q62: =Q58*Q60 -> 0 | R62: =R58*R60 -> 0
A63: Gross Up
A64: Income Taxes Payable | E64: =E62/(1-E60) -> 0 | F64: =F62/(1-F60) -> 0 | H64: =H62/(1-H60) -> 0 | I64: =I62/(1-I60) -> 0 | K64: =K62/(1-K60) -> 0 | L64: =L62/(1-L60) -> 0 | N64: =N62/(1-N60) -> 0 | O64: =O62/(1-O60) -> 0 | Q64: =Q62/(1-Q60) -> 0 | R64: =R62/(1-R60) -> 0
A65: Grossed Up PILs | E65: =SUM(E64:E64) -> 0 | F65: =SUM(F64:F64) -> 0 | H65: =SUM(H64:H64) -> 0 | I65: =SUM(I64:I64) -> 0 | K65: =SUM(K64:K64) -> 0 | L65: =SUM(L64:L64) -> 0 | N65: =SUM(N64:N64) -> 0 | O65: =SUM(O64:O64) -> 0 | Q65: =SUM(Q64:Q64) -> 0 | R65: =SUM(R64:R64) -> 0
A68: Net Fixed Assets | D68: 2014 | E68: 2015 | F68: 2016 | G68: 2017 | H68: 2018
B69: Enter applicable amortization in years: | C69: 25
A70: Opening Gross Fixed Assets | E70: =D72 -> 0 | F70: =E72 -> 0 | G70: =F72 -> 0 | H70: =G72 -> 0
A71: Gross Capital Additions | D71: ='App.2-FA Proposed REG Inves (2'!C90 -> 0 | E71: ='App.2-FA Proposed REG Inves (2'!D90 -> 0 | F71: ='App.2-FA Proposed REG Inves (2'!E90 -> 0 | G71: ='App.2-FA Proposed REG Inves (2'!F90 -> 0 | H71: ='App.2-FA Proposed REG Inves (2'!G90 -> 0
A72: Closing Gross Fixed Assets | D72: =SUM(D70:D71) -> 0 | E72: =SUM(E70:E71) -> 0 | F72: =SUM(F70:F71) -> 0 | G72: =SUM(G70:G71) -> 0 | H72: =SUM(H70:H71) -> 0
A74: Opening Accumulated Amortization | E74: =D77 -> 0 | F74: =E77 -> 0 | G74: =F77 -> 0 | H74: =G77 -> 0
A75: Current Year Amortization (before additions) | E75: =E70/$C$69 -> 0 | F75: =F70/$C$69 -> 0 | G75: =G70/$C$69 -> 0 | H75: =H70/$C$69 -> 0
A76: Additions (half year) | D76: =D71/C69/2 -> 0 | E76: =E71/C69/2 -> 0 | F76: =F71/C69/2 -> 0 | G76: =G71/C69/2 -> 0 | H76: =H71/C69/2 -> 0
A77: Closing Accumulated Amortization | D77: =SUM(D74+D76) -> 0 | E77: =SUM(E74:E76) -> 0 | F77: =SUM(F74:F76) -> 0 | G77: =SUM(G74:G76) -> 0 | H77: =SUM(H74:H76) -> 0
A79: Opening Net Fixed Assets | D79: =D70-D74 -> 0 | E79: =D80 -> 0 | F79: =E80 -> 0 | G79: =F80 -> 0 | H79: =G80 -> 0
A80: Closing Net Fixed Assets | D80: =D72-D77 -> 0 | E80: =E72-E77 -> 0 | F80: =F72-F77 -> 0 | G80: =G72-G77 -> 0 | H80: =H72-H77 -> 0
A81: Average Net Fixed Assets | D81: =SUM(D79:D80)/2 -> 0 | E81: =SUM(E79:E80)/2 -> 0 | F81: =SUM(F79:F80)/2 -> 0 | G81: =SUM(G79:G80)/2 -> 0 | H81: =SUM(H79:H80)/2 -> 0
A83: UCC for PILs Calculation
D84: 2014 | E84: 2015 | F84: 2016 | G84: 2017 | H84: 2018
A86: Opening UCC | E86: =D94 -> 0 | F86: =E94 -> 0 | G86: =F94 -> 0 | H86: =G94 -> 0
A87: Capital Additions (from Appendix 2-FA) | D87: =D71 -> 0 | E87: =E71 -> 0 | F87: =F71 -> 0 | G87: =G71 -> 0 | H87: =H71 -> 0
A88: UCC Before Half Year Rule | D88: =SUM(D86:D87) -> 0 | E88: =SUM(E86:E87) -> 0 | F88: =SUM(F86:F87) -> 0 | G88: =SUM(G86:G87) -> 0 | H88: =SUM(H86:H87) -> 0
A89: Half Year Rule (1/2 Additions - Disposals) | D89: =D87/2 -> 0 | E89: =E87/2 -> 0 | F89: =F87/2 -> 0 | G89: =G87/2 -> 0 | H89: =H87/2 -> 0
A90: Reduced UCC | D90: =D88-D89 -> 0 | E90: =E88-E89 -> 0 | F90: =F88-F89 -> 0 | G90: =G88-G89 -> 0 | H90: =H88-H89 -> 0
A91: CCA Rate Class (to be entered) | C91: 47 | D91: =C91 -> 47 | E91: =C91 -> 47 | F91: =C91 -> 47 | G91: =C91 -> 47 | H91: =C91 -> 47
A92: CCA Rate (to be entered) | C92: 0.08 | D92: =C92 -> 0.08 | E92: =C92 -> 0.08 | F92: =C92 -> 0.08 | G92: =C92 -> 0.08 | H92: =C92 -> 0.08
A93: CCA | D93: =D90*D$92 -> 0 | E93: =E90*E$92 -> 0 | F93: 0 | G93: 0 | H93: 0
A94: Closing UCC | D94: =D88-D93 -> 0 | E94: =E88-E93 -> 0 | F94: =F88-F93 -> 0 | G94: =G88-G93 -> 0 | H94: =H88-H93 -> 0

Sheet App.2-G SQI
I1: File Number: | K1: =EBNUMBER -> EB-2015-0004
I2: Exhibit: | K2: B
I3: Tab: | K3: 5
I4: Schedule: | K4: 4
I5: Page: | K5: 1
I7: Date: | K7: ORIGINAL
A9: Appendix 2-G
A10: Service Reliability Indicators
A11: 2009 - 2013
A13: Index | B13: Includes outages caused by loss of supply | G13: Excludes outages caused by loss of supply
B14: 2009 | C14: 2010 | D14: 2011 | E14: 2012 | F14: 2013 | G14: 2009 | H14: 2010 | I14: 2011 | J14: 2012 | K14: 2013
A15: SAIDI | B15: 1.5 | C15: 1.36 | D15: 2.6 | E15: 1.64 | F15: 1.67 | G15: 1.05 | H15: 1.05 | I15: 2.44 | J15: 1.31 | K15: 1.64
A16: SAIFI | B16: 1.15 | C16: 1.39 | D16: 1.69 | E16: 1.81 | F16: 1.53 | G16: 0.82 | H16: 0.77 | I16: 1.4 | J16: 1.13 | K16: 1.36
A18: 5 Year Historical Average
A19: SAIDI | F19: =IF(ISERROR(AVERAGE(B15:F15)), "", AVERAGE(B15:F15)) -> 1.754 | K19: =IF(ISERROR(AVERAGE(G15:K15)), "", AVERAGE(G15:K15)) -> 1.498
A20: SAIFI | F20: =IF(ISERROR(AVERAGE(B16:F16)), "", AVERAGE(B16:F16)) -> 1.514 | K20: =IF(ISERROR(AVERAGE(G16:K16)), "", AVERAGE(G16:K16)) -> 1.096
A22: SAIDI = System Average Interruption Duration Index
A23: SAIFI = System Average Interruption Frequency Index
A26: Indicator | C26: OEB Minimum Standard | D26: 2009 | E26: 2010 | F26: 2011 | G26: 2012 | H26: 2013
A27: Low Voltage Connections | C27: 0.9 | D27: 0.987 | E27: 1 | F27: 1 | G27: 1 | H27: 1
A28: High Voltage Connections | C28: 0.9 | D28: 1 | E28: 1 | F28: 1 | G28: 1 | H28: 1
A29: Telephone Accessibility | C29: 0.65 | D29: 0.69 | E29: 0.821 | F29: 0.829 | G29: 0.825 | H29: 0.822
A30: Appointments Met | C30: 0.9 | D30: 0.993 | E30: 1 | F30: 0.973 | G30: 0.974 | H30: 0.974
A31: Written Response to Enquires | C31: 0.8 | D31: 0.998 | E31: 0.999 | F31: 0.999 | G31: 1 | H31: 0.993
A32: Emergency Urban Response | C32: 0.8 | D32: 0.953 | E32: 0.97 | F32: 0.816 | G32: 0.985 | H32: 0.976
A33: Emergency Rural Response | C33: 0.8 | D33: N/A | E33: N/A | F33: N/A | G33: N/A | H33: N/A
A34: Telephone Call Abandon Rate | C34: 0.1 | D34: 0.058 | E34: 0.026 | F34: 0.027 | G34: 0.018 | H34: 0.019
A35: Appointment Scheduling | C35: 0.9 | D35: 1 | E35: 1 | F35: 1 | G35: 0.998 | H35: 1
A36: Rescheduling a Missed Appointment | C36: 1 | D36: 1 | E36: 1 | F36: 1 | G36: 1 | H36: 1
A37: Reconnection Performance Standard | C37: 0.85 | D37: N/A | E37: N/A | F37: 1 | G37: 1 | H37: 1

Sheet App.2-H_Other_Oper_Rev
G1: File Number: | H1: EB-2015-004
G2: Exhibit: | H2: C
G3: Tab: | H3: 2
G4: Schedule: | H4: 1
G5: Page: | H5: 1 of 1
G7: Date: | H7: ORIGINAL
A9: Appendix 2-H
A10: Other Operating Revenue
A12: USoA # | B12: USoA Description | C12: =F13-3 & " Actual" -> 2012 Actual | D12: =F13-2 & " Actual" -> 2013 Actual | E12: =F13-1 & " Forecast" -> 2014 Forecast | F12: ="Bridge Year" & CHAR(178) -> Bridge Year² | G12: ="Bridge Year" & CHAR(178) -> Bridge Year² | H12: Test Year
F13: =G13 -> 2015 | G13: =BridgeYear -> 2015 | H13: =TestYear -> 2016
B14: Reporting Basis | C14: MIFRS | D14: MIFRS | E14: MIFRS | G14: MIFRS | H14: MIFRS
A15: 4235 | B15: Specific Service Charges | C15: 3583148 | D15: 5292621 | E15: 3801357 | F15: N/A | G15: 3710267 | H15: 5910525
A16: 4225 | B16: Late Payment Charges | C16: 872023 | D16: 906905 | E16: 956249 | F16: N/A | G16: 898752 | H16: 898752
A17: 4082 | B17: Retail Services Revenues | C17: 208790 | D17: 100517 | E17: 213645 | F17: N/A | G17: 159204 | H17: 171228
A18: 4084 | B18: Service Transaction Requests | C18: 7502 | D18: 5816 | E18: 7613 | F18: N/A | G18: 5616 | H18: 6132
A19: 4086 | B19: SSS Admin Charge | C19: 980504 | D19: 897531 | E19: 842277 | F19: N/A | G19: 760485 | H19: 891797
A20: 4090 | B20: Electric Services Incidental to Energy Sales | C20: 0 | D20: 0 | E20: 0 | F20: N/A | G20: 0 | H20: 341400
A21: 4315 | B21: Revenues from Leased Plant | C21: 1737805 | D21: 1768330 | E21: 1822147 | F21: N/A | G21: 1823686 | H21: 1839502
A22: 4325 | B22: Revenues from Merch, Jobbing | C22: 4762170 | D22: 9414470 | E22: 5406047 | F22: N/A | G22: 5486488 | H22: 5459437
A23: 4330 | B23: Expenses from Merch, Jobbing | C23: -3866634 | D23: -6938273 | E23: -4062449 | F23: N/A | G23: -4186206 | H23: -4045020
A24: 4355 | B24: Gain on Disposal of Property | C24: -468071 | D24: -2557273 | E24: 0 | F24: N/A | G24: 0 | H24: 0
A25: 4360 | B25: Loss on Disposal of Property | C25: -3687 | D25: 0 | E25: 0 | F25: N/A | G25: 0 | H25: 0
A26: 4362 | B26: Loss from Retirement of Utility and Other Property | C26: 0 | D26: 0 | E26: -54605 | F26: N/A | G26: 189121 | H26: 198349
A27: 4375 | B27: Revenues from Non-Utility Operations | C27: 2712 | D27: 2513 | E27: 38450 | F27: N/A | G27: 0 | H27: 0
A28: 4405 | B28: Interest and Dividend Income | C28: 139142 | D28: 86990 | E28: 13073 | F28: N/A | G28: 0 | H28: 27436
A30: =SUM(H38) -> 0
A31: Specific Service Charges | C31: =C15 -> 3583148 | D31: 5292621 | E31: 3801357 | F31: N/A | G31: 3710267 | H31: 5910525
A32: Late Payment Charges | C32: 872023 | D32: 906905 | E32: 956249 | F32: N/A | G32: 898752 | H32: 898752
A33: Other Operating Revenues | C33: =SUM(C17:C20) -> 1196796 | D33: =SUM(D17:D20) -> 1003864 | E33: 1063535 | F33: N/A | G33: 925305 | H33: =SUM(H17:H20) -> 1410557
A34: Other Income or Deductions | C34: =SUM(C21:C28) -> 2303437 | D34: =SUM(D21:D28) -> 1776757 | E34: =SUM(E21:E28) -> 3162663 | F34: N/A | G34: =SUM(G21:G28) -> 3313089 | H34: =SUM(H21:H28) -> 3479704
A35: Total | C35: =SUM(C31:C34) -> 7955404 | D35: 8980147 | E35: 8983804 | F35: N/A | G35: 8847413 | H35: 11699538
A37: Description | C37: Account(s)
A38: Specific Service Charges: | C38: 4235
A39: Late Payment Charges: | C39: 4225
A40: Other Distribution Revenues: | C40: 4080, 4082, 4084, 4090, 4205, 4210, 4215, 4220, 4240, 4245
A41: Other Income and Expenses: | C41: 4305, 4310, 4315, 4320, 4325, 4330, 4335, 4340, 4345, 4350, 4355, 4360, 4365, 4370, 4375, 4380, 4385, 4390, 4395, 4398, 4405, 4415
A44: Note: Add all applicable accounts listed above to the table and include all relevant information.
A46: Account Breakdown Details
A48: For each "Other Operating Revenue" and "Other Income or Deductions" Account, a detailed breakdown of the account components is required. See the example below for Account 4405, Interest and Dividend Income.
A51: Account 4405 - Interest and Dividend Income
C52: =C12 -> 2012 Actual | D52: 2013 Actual | E52: 2014 Forecast | F52: Bridge Year² | G52: Bridge Year² | H52: Test Year
F53: =F13 -> 2015 | G53: =G13 -> 2015 | H53: =H13 -> 2016
A54: Reporting Basis | C54: =IF(C14=0, "", C14) -> MIFRS | D54: MIFRS | E54: MIFRS | G54: MIFRS | H54: MIFRS
A55: Short-term Investment Interest
A56: Bank Deposit Interest | C56: 139142 | D56: 86990 | E56: 13073 | G56: 0 | H56: 27436
A57: Miscellaneous Interest Revenue
A58: etc.1
A60: Total | C60: =SUM(C55:C59) -> 139142 | D60: 86990 | E60: 13073 | F60: 0 | G60: 0 | H60: 27436
A63: Notes:
A64: 1 | B64: List and specify any other interest revenue.
A65: 2 | B65: In the transition year to IFRS, the applicant is to present information in both MIFRS and CGAAP. For the typical applicant that is adopting IFRS on January 1, 2015, 2014 must be presented in both a CGAAP and MIFRS basis.

Sheet App.2-I LF_CDM_WF_OLD (hidden)
E1: File Number: | F1: =EBNUMBER -> EB-2015-0004 | H1: ='LDC Info'!$E$16 -> EB-2015-0004
E2: Exhibit:
E3: Tab:
E4: Schedule:
E5: Page:
E7: Date:
A9: Appendix 2-I
A10: Load Forecast CDM Adjustment Work Form (2015)
A12: Input the 2011-2014 CDM target in Cell B21.
A14: Input the measured results for 2011 CDM programs for each of the years 2011 and persistence into 2012, 2013 and 2014 into cells B29 to E29. These results are taken from the final 2011 CDM Report issued by the OPA for that distributor in the fall of 2012.
A16: Measured results for 2012 CDM programs for each of the years 2012 and persistence into 2013 and 2014 are input into cells C30 to E30. These results are taken from the final 2012 CDM Report issued by the OPA for that distributor in the fall of 2013. Until that report is issued, the distributor should use the results from the preliminary 2012 CDM Report issued in the spring of 2013.
A18: Based on these inputs, the residual kWh to achieve the 4 year CDM target is allocated so that there is an equal incremental increase in each of the years 2012, 2013 and 2014.
A20: 4 Year (2011-2014) kWh Target:
A21: 100000
B22: 2011 | C22: 2012 | D22: 2013 | E22: 2014 | F22: Total | I22: =B22 -> 2011 | J22: =C22 -> 2012 | K22: =D22 -> 2013 | L22: =E22 -> 2014
A23: 2011 CDM Programs | B23: =B29/$F$33 -> 0.1 | C23: =C29/$F$33 -> 0.1 | D23: 0.1 | E23: 0.095 | F23: =SUM(B23:E23) -> 0.395 | H23: =A23 -> 2011 CDM Programs | I23: =50% -> 0.5 | J23: 1 | K23: 1 | L23: 1
A24: 2012 CDM Programs | C24: 0.12 | D24: 0.1195 | E24: 0.11 | F24: =SUM(B24:E24) -> 0.3495 | H24: =A24 -> 2012 CDM Programs | J24: 0.5 | K24: 1 | L24: 1
A25: 2013 CDM Programs | D25: 0.08516666667 | E25: 0.08516666667 | F25: 0.1703333333 | H25: =A25 -> 2013 CDM Programs | K25: 0.5 | L25: 1
A26: 2014 CDM Programs | E26: 0.08516666667 | F26: 0.08516666667 | H26: =A26 -> 2014 CDM Programs | L26: 0.5
A27: Total in Year | B27: =SUM(B23:B26) -> 0.1 | C27: =SUM(C23:C26) -> 0.22 | D27: 0.3046666667 | E27: 0.3753333333 | F27: =SUM(B27:E27) -> 1
A28: kWh
A29: 2011 CDM Programs | B29: 10000 | C29: 10000 | D29: 10000 | E29: 9500 | F29: =SUM(B29:E29) -> 39500
A30: 2012 CDM Programs | C30: 12000 | D30: 11950 | E30: 11000 | F30: =SUM(B30:E30) -> 34950
A31: 2013 CDM Programs | D31: =(A21-SUM(F29:F30))/3 -> 8516.666667 | E31: =D31 -> 8516.666667 | F31: 17033.33333
A32: 2014 CDM Programs | E32: =D31 -> 8516.666667 | F32: 8516.666667
A33: Total in Year | B33: =SUM(B29:B32) -> 10000 | C33: =SUM(C29:C32) -> 22000 | D33: 30466.66667 | E33: 37533.33333 | F33: =A21 -> 100000
E35: Check | F35: =SUM(F29:F32) -> 100000
A36: From each of the 2006-2010 CDM Final Report, 2011 CDM Final Report, and the 2012 CDM Final Report, issued by the OPA for the distributor, the distributor should input the "gross" and "net" results of the cumulative CDM savings for 2014 into cells D31 to E33. The model will calculate the cumulative savings for all programs from 2006 to 2012 and determine the "net" to "gross" factor "g".
A37: The Board has determined that the "net" number should be used in its Decision and Order with respect to Centre Wellington Hydro Ltd.'s 2013 Cost of Service rates (EB-2012-0113). This approach has also been used in Settlement Agreements accepted by the Board in other 2013 applications. The distributor should select whether the adjustment is done on a "net" or "gross" basis, but must support a proposal for the adjustment being done on a "gross" basis.
A39: Net-to-Gross Conversion
A41: Is CDM adjustment being done on a "net" or "gross" basis? | F41: net
C43: "Gross" | D43: "Net" | E43: Difference | F43: "Net-to-Gross" Conversion Factor
A44: Persistence of Historical CDM programs to 2014 | C44: kWh | D44: kWh | E44: kWh | F44: ('g')
A45: 2006-2010 CDM programs
A46: 2011 CDM program
A47: 2012 CDM program
A48: 2006 to 2011 OPA CDM programs: Persistence to 2014 | C48: =SUM(C45:C47) -> 0 | D48: =SUM(D45:D47) -> 0 | E48: =C48-D48 -> 0 | F48: =IF(D48=0,0,IF(F41="net",0,E48/D48)) -> 0
A50: The default values represent the factor that each year's CDM program is factored into the manual CDM adjustment. Distributors can choose alternative weights of "0", "0.5" or "1" from the drop-down menu for each cell, but must support its alternatives.
A51: These factors do not mean that CDM programs are excluded, but also reflect the assumption that impacts of 2011 and 2012 programs are already implicitly reflected in the actual data for those years that are the basis for the load forecast prior to any manual CDM adjustment.
A53: Weight Factor for Inclusion in CDM Adjustment to 2014 Load Forecast
B54: 2011 | C54: 2012 | D54: 2013 | E54: 2014
A55: Weight Factor for each year's CDM program impact on 2014 load forecast | B55: 0 | C55: 0 | D55: 1 | E55: 0.5 | F55: Utility can select "0", "0.5", or "1" from drop-down list
A56: Default Value selection rationale. | B56: Persistence of 2011 CDM programs for the full year of 2012 means that all of 2011 CDM impact is assumed to be in the base forecast before the CDM Adjustment | C56: 50% of 2012 CDM impact is assumed reflected in base forecast based on 1/2 year rule. | D56: Full year impact of 2013 CDM programs on adjustment for 2014 load forecast | E56: Only 50% of 2014 CDM impact is used based on a half year rule
A59: The Amount used for the CDM threshold of the LRAMVA is the kWh that will be used to determine the base amount for the LRAMVA balance for 2014, for assessing performance against the four-year target. The base amount for 2011-2013 is 0 (zero) for 2014 Cost of Service applications, as the utility rebased prior to the 2011-2014 CDM programs, and there was no adjustment to reflect the impacts of the 2011-2014 programs on the load forecast used to determine their last cost of service-based rates.
A61: The proposed loss factor should correspond with the loss factor calculated in Appendix 2-R
A63: The Manual Adjustment for the 2014 Load Forecast is the amount manually subtracted from the load forecast derived from the base forecast from historical data, and is intended to reflect the further CDM savings that the distributor needs to achieve assuming that they meet 100% of the 2011-2014 CDM target that is a condition of their target.
A65: If the distributor has developed their load forecast on a system purchased basis, then the manual adjustment should be on system purchased basis, including the adjustment for losses. If the load forecast has been developed on a billed basis, either on a system basis or on a class-specific basis, the manual adjustment should be on a billed basis, excluding losses.
A67: The distributor should determine the allocation of the savings to all customer classes in a reasonable manner, for both the LRAMVA and for the load forecast adjustment.
B69: 2011 | C69: 2012 | D69: 2013 | E69: 2014 | F69: Total for 2014
B70: kWh
A71: Amount used for CDM threshold for LRAMVA (2014) | B71: =E29 -> 9500 | C71: =E30 -> 11000 | D71: =E31 -> 8516.666667 | E71: =E32 -> 8516.666667 | F71: =SUM(B71:E71) -> 37533.33333
A73: Manual Adjustment for 2014 Load Forecast (billed basis) | B73: =B71*(1+F48)*B55 -> 0 | C73: =C71*(1+F48)*C55 -> 0 | D73: =D71*(1+F48)*D55 -> 8516.666667 | E73: =E71*(1+F48)*E55 -> 4258.333333 | F73: =SUM(B73:E73) -> 12775
A75: Proposed Loss Factor (TLF) | B75: 0.0479 | C75: Format: X.XX%
A76: Manual Adjustment for 2014 Load Forecast (system purchased basis) | B76: =B73*(1+$B75) -> 0 | C76: =C73*(1+$B75) -> 0 | D76: 8924.615 | E76: 4462.3075 | F76: =SUM(B76:E76) -> 13386.9225
A77: Manual adjustment uses "gross" versus "net" (i.e. numbers multiplied by (1 + g). The Weight factor is also used calculate the impact of each year's program on the CDM adjustment to the 2014 load forecast.

Sheet App.2-I LF_CDM_WF
G1: File Number: | H1: =EBNUMBER -> EB-2015-0004
G2: Exhibit: | H2: C
G3: Tab: | H3: 1
G4: Schedule: | H4: 2
G5: Page: | H5: 4
G7: Date: | H7: ORIGINAL
A9: Appendix 2-I
A10: Load Forecast CDM Adjustment Work Form (2015)
A12: The 2014 bridge year is the last year of the current four year (2011-2014) CDM program, and 2015 is the first year of a new six year (2015-2020) CDM program, per the Ministirial directives of March 31, 2014. Thus, with 2015, there is a need to recognize the final year of the current 2011-2014 CDM program, as well as to estimate reasonable impacts each year for the new 2015-2020 CDM program. These are combined to estimate the adjustment for CDM program impacts on the 2015 load forecast.
A14: Appendix 2-I was developed to help determine what would be the amount of CDM savings needed in each year to cumulatively achieve the four year 2011-2014 CDM target. This then determined the amount of kWh (and with translation, kW of demand) savings that were converted in dollars balances for the LRAMVA, and also to determine the related adjustment to the load forecast to account for OPA-reported savings. Beginning for the 2015 year, it has been adjusted because of the persistence of 2011-2014 CDM programs will be an adjustment to the load forecast in addition to the estimated savings for the first year (2015) for the new 2015-2020 CDM plan.
A16: It is assumed that the new six year (2015-2020) CDM program will work similar to the existing 2011-2014 CDM program, meaning that distributors will offer programs each year that, cumulatively over the six years (from January 1, 2015 to December 31, 2020) will cumulatively achieve the new six year CDM target. This is the approach contemplated in the Ministerial directive letters of March 31, 2014 to the Board and to the OPA. Thus, distributors will be able to offer programs on a basis so that cumulatively over the period, the impacts, including persistence, of the CDM programs will accumulate towards achieving each distributor's 2015-2020 CDM target.
A18: With this approach, it is necessary to account for estimated savings for the last year of the current program, particularly the estimated savings for new CDM programs offered in 2014, as well as the estimated savings for new CDM programs that the distributor will offer in 2015 towards achievement of the new six year (2015-2020) CDM program. This necessitates expansion of this Appendix 2-I to deal with both the 2011-2014 and 2015-2020 CDM plans. It is expected that this approach will be updated each year.
A20: 2011-2014 CDM Program - 2014, last year of the current CDM plan
A22: Input the 2011-2014 CDM target in Cell B21.
A24: Input the measured results for 2011 CDM programs for each of the years 2011 and persistence into 2012, 2013 and 2014 into cells B31 to E31. These results are taken from the final 2011 CDM Report issued by the OPA for that distributor in the fall of 2012.
A26: Measured results for 2012 CDM programs for each of the years 2012 and persistence into 2013 and 2014 are input into cells C32 to E32. These results are taken from the final 2012 CDM Report issued by the OPA for that distributor in the fall of 2013.
A28: Measured results for 2013 CDM programs for each of the years 2013 and persistence into 2014 are input into cells C33 to E33. These results are taken from the final 2013 CDM Report issued by the OPA for that distributor in the fall of 2014. Until that report is issued, the distributor should use the results from the preliminary 2013 CDM Report issued in the spring of 2014.
A30: Based on these inputs, the residual kWh to achieve the 4 year CDM target icalculated for 2014 CDM under the assumption that the distributor will at least achieve the 2011-2014 CDM target that is currently a condition of the utility's Distribution Licence. If the distributor has met its cumulative kWh savings target by the end of 2013, the incremental savings for 2014 are assumed to be zero. Any further savings for 2014 CDM savings and any further compensation for meeting or exceeding the four-year (2011-2014) targets will be dealt with through the disposition of the 2011-2014 LRAMVA balance, which will occur in the next cost of service application filed after the final 2014 CDM Reports issued by the OPA in the fall of 2015.
A32: 4 Year (2011-2014) kWh Target:
A33: 374700
B34: 2011 | C34: 2012 | D34: 2013 | E34: 2014 | F34: Total | K34: =B34 -> 2011 | L34: =C34 -> 2012 | M34: =D34 -> 2013 | N34: =E34 -> 2014
A35: 2011 CDM Programs | B35: =B41/$F$45 -> 0.09554310115 | C35: =C41/$F$45 -> 0.09554310115 | D35: 0.09527622098 | E35: 0.09073925807 | F35: =SUM(B35:E35) -> 0.3771016813 | J35: =A35 -> 2011 CDM Programs | K35: =50% -> 0.5 | L35: 1 | M35: 1 | N35: 1
A36: 2012 CDM Programs | C36: 0.09420870029 | D36: 0.09314117961 | E36: 0.09180677876 | F36: =SUM(B36:E36) -> 0.2791566587 | J36: =A36 -> 2012 CDM Programs | L36: 0.5 | M36: 1 | N36: 1
A37: 2013 CDM Programs | D37: 0.1200960769 | E37: 0.1104883907 | F37: 0.2305844676 | J37: =A37 -> 2013 CDM Programs | M37: 0.5 | N37: 1
A38: 2014 CDM Programs | E38: 0.1131571924 | F38: 0.1131571924 | J38: =A38 -> 2014 CDM Programs | N38: 0.5
A39: Total in Year | B39: =SUM(B35:B38) -> 0.09554310115 | C39: =SUM(C35:C38) -> 0.1897518014 | D39: 0.3085134774 | E39: 0.40619162 | F39: =SUM(B39:E39) -> 1
A40: kWh
A41: 2011 CDM Programs | B41: 35800 | C41: 35800 | D41: 35700 | E41: 34000 | F41: =SUM(B41:E41) -> 141300
A42: 2012 CDM Programs | C42: =35100+200 -> 35300 | D42: 34900 | E42: 34400 | F42: =SUM(B42:E42) -> 104600
A43: 2013 CDM Programs | D43: =42600+2400 -> 45000 | E43: 41400 | F43: 86400
A44: 2014 CDM Programs | E44: =MAX(0,A33-SUM(B41:E43)) -> 42400 | F44: 42400
A45: Total in Year | B45: =SUM(B41:B44) -> 35800 | C45: =SUM(C41:C44) -> 71100 | D45: 115600 | E45: 152200 | F45: =SUM(F41:F44) -> 374700
A47: 2015-2020 CDM Program - 2015, first year of the current CDM plan
A49: For the first year of the new 2015-2020 CDM plan, it is assumed that each year's program will achieve an equal amount of new CDM savings. The new targets for 2015-2020 do not take into account persistence beyond the first year, but the OPA will encourage distributors to promote and implement CDM plans that will have longer term persistence of savings. This results in each year's program being about 1/6 (18.67%) of the cumulative 2015-2020 CDM target for kWh savings. A distributor may propose an alternative approach but would be expected to document in its application why it believes that its proposal is more reasonable. In its proposal, the distributor should ensure that the sum of the results for each year's CDM program from 2015 to 2020 add up to its 2015-2020 CDM target as established by the OPA.
A51: 6 Year (2015-2020) kWh Target:
A52: 395000
B53: 2015 | C53: 2016 | D53: 2017 | E53: 2018 | F53: 2019 | G53: 2020 | H53: Total
A54: %
A55: 2015 CDM Programs | B55: =B63/$H$69 -> 0.1 | H55: =SUM(B55:G55) -> 0.1
A56: 2016 CDM Programs | C56: =C64/$H$69 -> 0.2 | H56: =SUM(B56:G56) -> 0.2
A57: 2017 CDM Programs | D57: 0.2 | H57: =SUM(B57:G57) -> 0.2
A58: 2018 CDM Programs | E58: 0.1666666667 | H58: =SUM(E58:G58) -> 0.1666666667
A59: 2019 CDM Programs | F59: 0.1666666667 | H59: =SUM(F59:G59) -> 0.1666666667
A60: 2020 CDM Programs | G60: =G68/$H$69 -> 0.1666666667 | H60: =SUM(B60:G60) -> 0.1666666667
A61: Total in Year | B61: =SUM(B55:B60) -> 0.1 | C61: =SUM(C55:C60) -> 0.2 | D61: =SUM(D55:D60) -> 0.2 | E61: =SUM(E55:E58) -> 0.1666666667 | F61: =SUM(F55:F59) -> 0.1666666667 | G61: =SUM(G55:G60) -> 0.1666666667 | H61: =SUM(B61:G61) -> 1
A62: kWh
A63: =A55 -> 2015 CDM Programs | B63: =A52/2*0.2 -> 39500 | H63: =SUM(B63:G63) -> 39500
A64: 2016 CDM Programs | C64: =A52/2*0.4 -> 79000 | H64: =SUM(B64:G64) -> 79000
A65: 2017 CDM Programs | D65: =A52/2*0.4 -> 79000 | H65: =SUM(B65:G65) -> 79000
A66: 2018 CDM Programs | E66: =A52*1/6 -> 65833.33333 | H66: =SUM(E66:G66) -> 65833.33333
A67: 2019 CDM Programs | F67: =E66 -> 65833.33333 | H67: =SUM(F67:G67) -> 65833.33333
A68: 2020 CDM Programs | G68: =F67 -> 65833.33333 | H68: =SUM(B68:G68) -> 65833.33333
A69: Total in Year | B69: =SUM(B63:B68) -> 39500 | C69: =SUM(C63:C68) -> 79000 | D69: 79000 | E69: =SUM(E63:E66) -> 65833.33333 | F69: =SUM(F63:F67) -> 65833.33333 | G69: =SUM(G63:G68) -> 65833.33333 | H69: =A52 -> 395000
A71: Determination of 2015 Load Forecast Adjustment
A73: The Board has determined that the "net" number should be used in its Decision and Order with respect to Centre Wellington Hydro Ltd.'s 2013 Cost of Service rates (EB-2012-0113). This approach has also been used in Settlement Agreements accepted by the Board in other 2013 and 2-14 applications. The distributor should select whether the adjustment is done on a "net" or "gross" basis, but must support a proposal for the adjustment being done on a "gross" basis. Sheet 2-I defaults to the adjustment being done on a "net" basis consistent with Board policy and practice.
A75: From each of the 2006-2010 CDM Final Report, and the 2011, 2012 and 2013 CDM Final Reports, issued by the OPA for the distributor, the distributor should input the "gross" and "net" results of the cumulative CDM savings for 2014 into cells D31 to E33. The model will calculate the cumulative savings for all programs from 2006 to 2012 and determine the "net" to "gross" factor "g".
A77: Net-to-Gross Conversion
A79: Is CDM adjustment being done on a "net" or "gross" basis? | F79: net
C81: "Gross" | D81: "Net" | E81: Difference | F81: "Net-to-Gross" Conversion Factor
A82: Persistence of Historical CDM programs to 2014 | C82: kWh | D82: kWh | E82: kWh | F82: ('g')
A83: 2006-2010 CDM programs
A84: 2011 CDM program | C84: 52446922 | D84: 35847339
A85: 2012 CDM program | C85: 48896698 | D85: 35093510
A86: 2013 CDM program | C86: 59297889 | D86: 42598285
A87: 2006 to 2013 OPA CDM programs: Persistence to 2015 | C87: =SUM(C83:C86) -> 160641509 | D87: =SUM(D83:D86) -> 113539134 | E87: =C87-D87 -> 47102375 | F87: =IF(D87=0,0,IF(F79="net",0,E87/D87)) -> 0
A89: The default values represent the factor that each year's CDM program is factored into the manual CDM adjustment. Distributors can choose alternative weights of "0", "0.5" or "1" from the drop-down menu for each cell, but must support its alternatives.
A91: These factors do not mean that CDM programs are excluded, but also reflect the assumption that impacts of 2011 and 2012 programs are already implicitly reflected in the actual data for those years that are the basis for the load forecast prior to any manual CDM adjustment.
A93: Weight Factor for Inclusion in CDM Adjustment to 2014 Load Forecast
B94: 2011 | C94: 2012 | D94: 2013 | E94: 2014 | F94: 2015
A95: Weight Factor for each year's CDM program impact on 2014 load forecast | B95: 0 | C95: 0 | D95: 0 | E95: 1 | F95: 0.5 | G95: Distributor can select "0", "0.5", or "1" from drop-down list
A96: Default Value selection rationale. | B96: Full year persistence of 2011 CDM programs on 2015 load forecast. Full impact assumed because of 50% impact in 2011 (first year) but full year persistence impact on 2012 and 2013, and thus reflected in base forecast before the CDM adjustment. | C96: Full year persistence of 2012 CDM programs on 2015 load forecast. Full impact assumed because of 50% impact in 2012 (first year) but full year persistence impact on 2013, and thus reflected in base forecast before the CDM adjustment. | D96: Default is 0, but one option is for full year impact of persistence of 2013 CDM programs on 2015 load forecast, but 50% impact in base forecast (first year impact of 2013 CDM programs on 2013 load forecast, which is part of the data for the load forecast. | E96: Full year impact of persistence of 2014 programs on 2015 load forecast. 2014 CDM programs not in base forecast. | F96: Only 50% of 2015 CDM programs are assumed to impact the 2015 load forecast based on the "half-year" rule.
A98: 2011-2014 and 2015-2020 LRAMVA and 2015 CDM adjustment to Load Forecast
A100: One manual adjustment for CDM impacts to the 2015 load forecast is made. However, the distributor will have two associated annualized CDM impacts, one for the 2011-2014 CDM program and the second for the 2015-2020 CDM plan. In addition, the distributor needs to reflect the CDM adjustment that was explicitly factored into its 2011 load forecast in its 2011 cost of service application (assuming that it rebased in that year). this amount, and equal persistence for 2012, 2013 and 2014 is used as an offset to determine what the net balance of the 2011-2014 LRAMVA balance should be for disposition.
A102: The Amount used for the CDM threshold of the LRAMVA is the kWh that will be used to determine the base amount for the LRAMVA balance for 2014, for assessing performance against the four-year target. The base amount for 2011-2013 is 0 (zero) for 2014 Cost of Service applications, as the utility rebased prior to the 2011-2014 CDM programs, and there was no adjustment to reflect the impacts of the 2011-2014 programs on the load forecast used to determine their last cost of service-based rates.
A104: The proposed loss factor should correspond with the loss factor calculated in Appendix 2-R
A106: The Manual Adjustment for the 2015 Load Forecast is the amount manually subtracted from the load forecast derived from the base forecast from historical data, and is intended to reflect the further CDM savings that the distributor needs to achieve assuming that they meet 100% of the 2011-2014 CDM target that is a condition of their target.
A108: If the distributor has developed their load forecast on a system purchased basis, then the manual adjustment should be on system purchased basis, including the adjustment for losses. If the load forecast has been developed on a billed basis, either on a system basis or on a class-specific basis, the manual adjustment should be on a billed basis, excluding losses.
A110: The distributor should determine the allocation of the savings to all customer classes in a reasonable manner (e.g. taking into account what programs and what OPA-measured impacts were directed at specific customer classes), for both the LRAMVA and for the load forecast adjustment.
B112: 2011 | C112: 2012 | D112: 2013 | E112: 2014 | F112: 2015 | G112: Total for 2014 | H112: Total for 2015
B113: kWh
A114: Amount used for CDM threshold for LRAMVA (2014) | B114: =E41 -> 34000 | C114: =E42 -> 34400 | D114: =E43 -> 41400 | E114: =E44 -> 42400 | G114: =SUM(B114:E114) -> 152200
A116: 2012 CDM adjustment (per Board Decision in 2012 Cost of Service Application) (enter as negative) | B116: -8000 | C116: =B116 -> -8000 | D116: =B116 -> -8000 | E116: =B116 -> -8000 | G116: =SUM(B116:E117) -> -32000
A118: Amount used for CDM threshold for LRAMVA (2015) | F118: =B63 -> 39500 | H118: =SUM(B118:F118) -> 39500
A120: Manual Adjustment for 2015 Load Forecast (billed basis) | B120: =B114*(1+F87)*B95 -> 0 | C120: =C114*(1+F87)*C95 -> 0 | D120: =D114*(1+F87)*D95 -> 0 | E120: =E114*(1+F87)*E95 -> 42400 | F120: =F118*(1+F87)*F95 -> 19750 | H120: =SUM(B120:F120) -> 62150
A122: Proposed Loss Factor (TLF) | B122: 0.0358 | C122: Format: X.XX%
A123: Manual Adjustment for 2015 Load Forecast (system purchased basis) | B123: =B120*(1+$B122) -> 0 | C123: =C120*(1+$B122) -> 0 | D123: 0 | E123: 43917.92 | F123: 20457.05 | H123: =SUM(B123:F123) -> 64374.97
A125: Manual adjustment uses "gross" versus "net" (i.e. numbers multiplied by (1 + g). The Weight factor is also used calculate the impact of each year's program on the CDM adjustment to the 2014 load forecast.

Sheet App.2-IA_Act_Frcst_Data
F1: File Number: | G1: =EBNUMBER -> EB-2015-0004
F2: Exhibit: | G2: C
F3: Tab: | G3: 1
F4: Schedule: | G4: 2
F5: Page: | G5: 1
F7: Date: | G7: ORIGINAL
A9: Appendix 2-IA
A10: Summary and Variances of Actual and Forecast Data
A12: Replace "Rate Class #" with the appropriate rate classification.
B14: =RebaseYear & " Board Approved" -> 2012 Board Approved | C14: =RebaseYear -> 2012 | D14: =RebaseYear+1 -> 2013 | E14: 2014 Forecast | F14: =RebaseYear+3&" Bridge" -> 2015 Bridge | G14: =RebaseYear+4 &" Test" -> 2016 Test | H14: 2017 Test | I14: 2018 Test | J14: 2019 Test | K14: 2020 Test | M14: 2012 Board Approved vs Actual
A15: RESIDENTIAL
A16: # of Customers | B16: 280901 | C16: 280254 | D16: 284964 | E16: 284296 | F16: 293366 | G16: 297343 | H16: 301258 | I16: 305144 | J16: 308990 | K16: 312786 | M16: =B16-C16 -> 647
A17: kWh | B17: 2282535398 | C17: 2302188900 | D17: 2256501094 | E17: 2287520580 | F17: 2233419000 | G17: =+'[9]Summary Totals (2)'!B11*1000 -> 2216045000 | H17: =+'[9]Summary Totals (2)'!C11*1000 -> 2198259000 | I17: =+'[9]Summary Totals (2)'!D11*1000 -> 2206411000 | J17: =+'[9]Summary Totals (2)'!E11*1000 -> 2214984000 | K17: =+'[9]Summary Totals (2)'!F11*1000 -> 2217628000 | M17: =B17-C17 -> -19653501.66
A18: kW | B18: N/A | C18: N/A | D18: N/A | E18: N/A | F18: N/A | G18: N/A | H18: N/A | I18: N/A | J18: N/A | K18: N/A | M18: N/A
A19: Variance Analysis
A20: =A16 -> # of Customers | C20: =IF(ISERROR((C16-$B16)/$B16), 0, (C16-$B16)/$B16) -> -0.002303302587 | D20: =IF(ISERROR((D16-$B16)/$B16), 0, (D16-$B16)/$B16) -> 0.01446417065 | E20: 0.01208610863 | F20: 0.04437506452 | G20: 0.05853307749 | H20: =IF(ISERROR((H16-$B16)/$B16), 0, (H16-$B16)/$B16) -> 0.07247037212 | I20: 0.08630442754 | J20: 0.09999608403 | K20: 0.1135097419
A21: kWh | C21: =IF(ISERROR((C17-$B17)/$B17), 0, (C17-$B17)/$B17) -> 0.008610381979 | D21: -0.01140587101 | E21: 0.002184054479 | F21: -0.02151835121 | G21: -0.02913006229 | H21: =IF(ISERROR((H17-$B17)/$B17), 0, (H17-$B17)/$B17) -> -0.03692227442 | I21: -0.03335080735 | J21: -0.02959489627 | K21: -0.02843653526
A22: kW | C22: =IF(ISERROR((C18-$B18)/$B18), 0, (C18-$B18)/$B18) -> 0 | D22: 0 | E22: 0 | F22: 0 | G22: 0 | H22: =IF(ISERROR((H18-$B18)/$B18), 0, (H18-$B18)/$B18) -> 0 | I22: 0 | J22: 0 | K22: 0
A24: GENERAL SERVICE <50KW
A25: # of Customers | B25: 23636 | C25: 23767 | D25: 23936 | E25: 23817 | F25: 24099 | G25: 24512 | H25: 24626 | I25: 24739 | J25: 24850 | K25: 24959 | M25: =B25-C25 -> -131
A26: kWh | B26: 770026294.8 | C26: 702625952 | D26: 720479340 | E26: 746537340 | F26: 705279000 | G26: 726360000 | H26: 716896000 | I26: 709791000 | J26: 704193000 | K26: 699744000 | M26: =B26-C26 -> 67400342.77
A27: kW | B27: N/A | C27: N/A | D27: N/A | E27: N/A | F27: N/A | G27: N/A | H27: N/A | I27: N/A | J27: N/A | K27: N/A | M27: N/A
A28: Variance Analysis
A29: =A25 -> # of Customers | C29: =IF(ISERROR((C25-$B25)/$B25), 0, (C25-$B25)/$B25) -> 0.00554239296 | D29: =IF(ISERROR((D25-$B25)/$B25), 0, (D25-$B25)/$B25) -> 0.01269250296 | E29: 0.00765781012 | F29: 0.0195887629 | G29: 0.03706210865 | H29: =IF(ISERROR((H25-$B25)/$B25), 0, (H25-$B25)/$B25) -> 0.04188525977 | I29: 0.04666610256 | J29: 0.05136232865 | K29: 0.05597393806
A30: kWh | C30: =IF(ISERROR((C26-$B26)/$B26), 0, (C26-$B26)/$B26) -> -0.08752992362 | D30: -0.0643444972 | E30: -0.03050409438 | F30: -0.0840845244 | G30: -0.05670753722 | H30: =IF(ISERROR((H26-$B26)/$B26), 0, (H26-$B26)/$B26) -> -0.0689980266 | I30: -0.07822498424 | J30: -0.08549486585 | K30: -0.09127259062
A31: kW | C31: =IF(ISERROR((C27-$B27)/$B27), 0, (C27-$B27)/$B27) -> 0 | D31: 0 | E31: 0 | F31: 0 | G31: 0 | H31: =IF(ISERROR((H27-$B27)/$B27), 0, (H27-$B27)/$B27) -> 0 | I31: 0 | J31: 0 | K31: 0
A33: GENERAL SERVICE 50-1999KW
A34: # of Customers | B34: 3340 | C34: 3416 | D34: 3408 | E34: 3417 | F34: 3549 | G34: 3296 | H34: 3323 | I34: 3351 | J34: 3380 | K34: 3408 | M34: =B34-C34 -> -76
A35: kWh | B35: 3051141934 | C35: 2982426722 | D35: 3006131060 | E35: 3052417630 | F35: 2957727000 | G35: 2954441000 | H35: 2907445000 | I35: 2875422000 | J35: 2852593000 | K35: 2835387000 | M35: =B35-C35 -> 68715212
A36: kW | B36: 7404278 | C36: 7288884 | D36: 7292973 | E36: 7621503.66 | F36: 7070781 | G36: 7027979 | H36: 6908640 | I36: 6824350 | J36: 6761930 | K36: 6711579 | M36: N/A
A37: Variance Analysis
A38: =A34 -> # of Customers | C38: =IF(ISERROR((C34-$B34)/$B34), 0, (C34-$B34)/$B34) -> 0.02275449102 | D38: =IF(ISERROR((D34-$B34)/$B34), 0, (D34-$B34)/$B34) -> 0.02035928144 | E38: 0.02305389222 | F38: 0.0625748503 | G38: -0.01317365269 | H38: =IF(ISERROR((H34-$B34)/$B34), 0, (H34-$B34)/$B34) -> -0.005089820359 | I38: 0.003293413174 | J38: 0.0119760479 | K38: 0.02035928144
A39: kWh | C39: =IF(ISERROR((C35-$B35)/$B35), 0, (C35-$B35)/$B35) -> -0.02252114568 | D39: -0.01475214034 | E39: 0.0004181044434 | F39: -0.0306163843 | G39: -0.03169335812 | H39: =IF(ISERROR((H35-$B35)/$B35), 0, (H35-$B35)/$B35) -> -0.04709611585 | I39: -0.05759153058 | J39: -0.06507364728 | K39: -0.07071284741
A40: kW | C40: =IF(ISERROR((C36-$B36)/$B36), 0, (C36-$B36)/$B36) -> -0.0155847741 | D40: -0.01503252579 | E40: 0.02933785847 | F40: -0.04504112352 | G40: -0.0508218357 | H40: =IF(ISERROR((H36-$B36)/$B36), 0, (H36-$B36)/$B36) -> -0.06693940989 | I40: -0.07832336927 | J40: -0.08675363081 | K40: -0.09355388871
A42: GENERAL SERVICE 1500-5000 KW
A43: # of Customers | B43: 71 | C43: 74 | D43: 76 | E43: 72 | F43: 88 | G43: 76 | H43: 76 | I43: 76 | J43: 76 | K43: 76 | M43: =B43-C43 -> -3
A44: kWh | B44: 836317557 | C44: 870903316 | D44: 857551218 | E44: 840571690 | F44: 883242000 | G44: 863309000 | H44: 877400000 | I44: 895369000 | J44: 914569000 | K44: 935554000 | M44: =B44-C44 -> -34585759
A45: kW | B45: 1719678 | C45: 1864369 | D45: 1866871 | E45: 1809214.1 | F45: 1885562 | G45: 1885562 | H45: 1885562 | I45: 1885562 | J45: 1885562 | K45: 1885562 | M45: N/A
A46: Variance Analysis
A47: =A43 -> # of Customers | C47: =IF(ISERROR((C43-$B43)/$B43), 0, (C43-$B43)/$B43) -> 0.04225352113 | D47: =IF(ISERROR((D43-$B43)/$B43), 0, (D43-$B43)/$B43) -> 0.07042253521 | E47: 0.01408450704 | F47: 0.2394366197 | G47: 0.07042253521 | H47: =IF(ISERROR((H43-$B43)/$B43), 0, (H43-$B43)/$B43) -> 0.07042253521 | I47: 0.07042253521 | J47: 0.07042253521 | K47: 0.07042253521
A48: kWh | C48: =IF(ISERROR((C44-$B44)/$B44), 0, (C44-$B44)/$B44) -> 0.04135481637 | D48: 0.02538947176 | E48: 0.005086743623 | F48: 0.05610840357 | G48: 0.03227415564 | H48: =IF(ISERROR((H44-$B44)/$B44), 0, (H44-$B44)/$B44) -> 0.04912301871 | I48: 0.07060887638 | J48: 0.09356666298 | K48: 0.1186588063
A49: kW | C49: =IF(ISERROR((C45-$B45)/$B45), 0, (C45-$B45)/$B45) -> 0.08413842591 | D49: 0.08559334945 | E49: 0.05206561926 | F49: 0.09646224468 | G49: 0.09646224468 | H49: =IF(ISERROR((H45-$B45)/$B45), 0, (H45-$B45)/$B45) -> 0.09646224468 | I49: 0.09646224468 | J49: 0.09646224468 | K49: 0.09646224468
A51: LARGE USER
A52: # of Customers | B52: 11 | C52: 11 | D52: 11 | E52: 11 | F52: 11 | G52: 11 | H52: 11 | I52: 11 | J52: 11 | K52: 11 | M52: =B52-C52 -> 0
A53: kWh | B53: 672395178 | C53: 646432433 | D53: 613513830 | E53: 653609490 | F53: 620305000 | G53: 620218000 | H53: 619253000 | I53: 618467000 | J53: 617036000 | K53: 615195000 | M53: =B53-C53 -> 25962745
A54: kW | B54: 1187623 | C54: 1178836 | D54: 1135342 | E54: 1195741.01 | F54: 1121629 | G54: 1121449 | H54: 1119726 | I54: 1118300 | J54: 1115702 | K54: 1112342 | M54: N/A
A55: Variance Analysis
A56: =A52 -> # of Customers | C56: =IF(ISERROR((C52-$B52)/$B52), 0, (C52-$B52)/$B52) -> 0 | D56: =IF(ISERROR((D52-$B52)/$B52), 0, (D52-$B52)/$B52) -> 0 | E56: 0 | F56: 0 | G56: 0 | H56: =IF(ISERROR((H52-$B52)/$B52), 0, (H52-$B52)/$B52) -> 0 | I56: 0 | J56: 0 | K56: 0
A57: kWh | C57: =IF(ISERROR((C53-$B53)/$B53), 0, (C53-$B53)/$B53) -> -0.03861233074 | D57: -0.0875695572 | E57: -0.02793846329 | F57: -0.07746958887 | G57: -0.07759897707 | H57: =IF(ISERROR((H53-$B53)/$B53), 0, (H53-$B53)/$B53) -> -0.07903414501 | I57: -0.08020310045 | J57: -0.08233131321 | K57: -0.08506928644
A58: kW | C58: =IF(ISERROR((C54-$B54)/$B54), 0, (C54-$B54)/$B54) -> -0.007398812586 | D58: -0.04402154556 | E58: 0.006835510932 | F58: -0.05556813905 | G58: -0.0557197023 | H58: =IF(ISERROR((H54-$B54)/$B54), 0, (H54-$B54)/$B54) -> -0.05717049939 | I58: -0.05837121713 | J58: -0.06055878002 | K58: -0.06338796066
A60: STREETLIGHTING
A61: # of Connections | B61: 55546 | C61: 55674 | D61: 55757 | E61: 56608 | F61: 55516 | G61: 55516 | H61: 55516 | I61: 55516 | J61: 55516 | K61: 55516 | M61: =B61-C61 -> -128
A62: kWh | B62: 41153239 | C62: 44699159 | D62: 44767415 | E62: 43962170 | F62: 43501000 | G62: 43552000 | H62: 43653000 | I62: 43765000 | J62: 43876000 | K62: 44015000 | M62: =B62-C62 -> -3545920
A63: kW | B63: 121500 | C63: 123332 | D63: 123947 | E63: 129681.7 | F63: 123144 | G63: 123144 | H63: 123144 | I63: 123144 | J63: 123144 | K63: 123144 | M63: N/A
A64: Variance Analysis
A65: =A61 -> # of Connections | C65: =IF(ISERROR((C61-$B61)/$B61), 0, (C61-$B61)/$B61) -> 0.002304396356 | D65: =IF(ISERROR((D61-$B61)/$B61), 0, (D61-$B61)/$B61) -> 0.003798653368 | E65: 0.01911928852 | F65: -0.000540092896 | G65: -0.000540092896 | H65: =IF(ISERROR((H61-$B61)/$B61), 0, (H61-$B61)/$B61) -> -0.000540092896 | I65: -0.000540092896 | J65: -0.000540092896 | K65: -0.000540092896
A66: kWh | C66: =IF(ISERROR((C62-$B62)/$B62), 0, (C62-$B62)/$B62) -> 0.08616381325 | D66: 0.08782239473 | E66: 0.06825540512 | F66: 0.05704923979 | G66: 0.05828851041 | H66: =IF(ISERROR((H62-$B62)/$B62), 0, (H62-$B62)/$B62) -> 0.06074275223 | I66: 0.06346428771 | J66: 0.06616152376 | K66: 0.06953914369
A67: kW | C67: =IF(ISERROR((C63-$B63)/$B63), 0, (C63-$B63)/$B63) -> 0.0150781893 | D67: 0.0201399177 | E67: 0.06733909465 | F67: 0.0135308642 | G67: 0.0135308642 | H67: =IF(ISERROR((H63-$B63)/$B63), 0, (H63-$B63)/$B63) -> 0.0135308642 | I67: 0.0135308642 | J67: 0.0135308642 | K67: 0.0135308642
A69: UMSL
A70: # of Connections | B70: 3093 | C70: 3384 | D70: 3376 | E70: 3333 | F70: 3444 | G70: 3477 | H70: 3525 | I70: 3573 | J70: 3621 | K70: 3669 | M70: =B70-C70 -> -291
A71: kWh | B71: 17394983.36 | C71: 17594132 | D71: 17054550 | E71: 16739310 | F71: 16651000 | G71: 16651000 | H71: 16651000 | I71: 16651000 | J71: 16651000 | K71: 16651000 | M71: =B71-C71 -> -199148.64
A72: kW | B72: N/A | C72: N/A | D72: N/A | E72: N/A | F72: N/A | G72: N/A | H72: N/A | I72: N/A | J72: N/A | K72: N/A | M72: N/A
A73: Variance Analysis
A74: =A70 -> # of Connections | C74: =IF(ISERROR((C70-$B70)/$B70), 0, (C70-$B70)/$B70) -> 0.09408341416 | D74: =IF(ISERROR((D70-$B70)/$B70), 0, (D70-$B70)/$B70) -> 0.09149692855 | E74: 0.07759456838 | F74: 0.1134820563 | G74: 0.1241513094 | H74: =IF(ISERROR((H70-$B70)/$B70), 0, (H70-$B70)/$B70) -> 0.1396702231 | I74: 0.1551891368 | J74: 0.1707080504 | K74: 0.1862269641
A75: kWh | C75: =IF(ISERROR((C71-$B71)/$B71), 0, (C71-$B71)/$B71) -> 0.01144862492 | D75: -0.01957077813 | E75: -0.03769324445 | F75: -0.0427699955 | G75: -0.0427699955 | H75: =IF(ISERROR((H71-$B71)/$B71), 0, (H71-$B71)/$B71) -> -0.0427699955 | I75: -0.0427699955 | J75: -0.0427699955 | K75: -0.0427699955
A76: kW | C76: =IF(ISERROR((C72-$B72)/$B72), 0, (C72-$B72)/$B72) -> 0 | D76: 0 | E76: 0 | F76: 0 | G76: 0 | H76: =IF(ISERROR((H72-$B72)/$B72), 0, (H72-$B72)/$B72) -> 0 | I76: 0 | J76: 0 | K76: 0
A78: SENTINEL LIGHTS
A79: # of Connections | B79: N/A | C79: 61 | D79: 57 | E79: 78 | F79: 57 | G79: 55 | H79: 51 | I79: 47 | J79: 43 | K79: 39 | M79: N/A
A80: kWh | B80: N/A | C80: 59894 | D80: 49020 | E80: 0 | F80: 48000 | G80: 48000 | H80: 48000 | I80: 48000 | J80: 48000 | K80: 48000 | M80: N/A
A81: kW | B81: 221 | C81: 166 | D81: 139 | E81: 0 | F81: 216 | G81: 216 | H81: 216 | I81: 216 | J81: 216 | K81: 216 | M81: N/A
A82: Variance Analysis
A83: =A79 -> # of Connections | C83: =IF(ISERROR((C79-$B79)/$B79), 0, (C79-$B79)/$B79) -> 0 | D83: =IF(ISERROR((D79-$B79)/$B79), 0, (D79-$B79)/$B79) -> 0 | E83: 0 | F83: 0 | G83: 0 | H83: =IF(ISERROR((H79-$B79)/$B79), 0, (H79-$B79)/$B79) -> 0 | I83: 0 | J83: 0 | K83: 0
A84: kWh | C84: =IF(ISERROR((C80-$B80)/$B80), 0, (C80-$B80)/$B80) -> 0 | D84: 0 | E84: 0 | F84: 0 | G84: 0 | H84: =IF(ISERROR((H80-$B80)/$B80), 0, (H80-$B80)/$B80) -> 0 | I84: 0 | J84: 0 | K84: 0
A85: kW | C85: =IF(ISERROR((C81-$B81)/$B81), 0, (C81-$B81)/$B81) -> -0.2488687783 | D85: -0.371040724 | E85: -1 | F85: -0.02262443439 | G85: -0.02262443439 | H85: =IF(ISERROR((H81-$B81)/$B81), 0, (H81-$B81)/$B81) -> -0.02262443439 | I85: -0.02262443439 | J85: -0.02262443439 | K85: -0.02262443439
A87: STANDBY
A88: # of Customers | B88: N/A | C88: 2 | D88: 2 | E88: 2 | F88: 2 | G88: 2 | H88: 2 | I88: 2 | J88: 2 | K88: 2 | M88: N/A
A89: kWh | B89: N/A | M89: N/A
A90: kW | B90: 86400 | C90: Included in actuals for class | E90: 4800 | F90: 4800 | G90: 4800 | H90: 4800 | I90: 4800 | J90: 4800 | K90: 4800 | M90: N/A
A91: Variance Analysis
A92: =A88 -> # of Customers | C92: =IF(ISERROR((C88-$B88)/$B88), 0, (C88-$B88)/$B88) -> 0 | D92: =IF(ISERROR((D88-$B88)/$B88), 0, (D88-$B88)/$B88) -> 0 | E92: 0 | F92: 0 | G92: 0 | H92: =IF(ISERROR((H88-$B88)/$B88), 0, (H88-$B88)/$B88) -> 0 | I92: 0 | J92: 0 | K92: 0
A93: kWh | C93: =IF(ISERROR((C89-$B89)/$B89), 0, (C89-$B89)/$B89) -> 0 | D93: 0 | E93: 0 | F93: 0 | G93: 0 | H93: =IF(ISERROR((H89-$B89)/$B89), 0, (H89-$B89)/$B89) -> 0 | I93: 0 | J93: 0 | K93: 0
A94: kW | C94: =IF(ISERROR((C90-$B90)/$B90), 0, (C90-$B90)/$B90) -> 0 | D94: -1 | E94: -0.9444444444 | F94: -0.9444444444 | G94: -0.9444444444 | H94: =IF(ISERROR((H90-$B90)/$B90), 0, (H90-$B90)/$B90) -> -0.9444444444 | I94: -0.9444444444 | J94: -0.9444444444 | K94: -0.9444444444
A96: Rate Class 10
A97: # of Customers
A98: kWh
A99: kW
A100: Variance Analysis
A101: =A97 -> # of Customers | C101: =IF(ISERROR((C97-$B97)/$B97), 0, (C97-$B97)/$B97) -> 0 | D101: =IF(ISERROR((D97-$B97)/$B97), 0, (D97-$B97)/$B97) -> 0 | E101: 0 | F101: 0 | G101: 0 | H101: =IF(ISERROR((H97-$B97)/$B97), 0, (H97-$B97)/$B97) -> 0 | I101: 0 | J101: 0 | K101: 0
A102: kWh | C102: =IF(ISERROR((C98-$B98)/$B98), 0, (C98-$B98)/$B98) -> 0 | D102: 0 | E102: 0 | F102: 0 | G102: 0 | H102: =IF(ISERROR((H98-$B98)/$B98), 0, (H98-$B98)/$B98) -> 0 | I102: 0 | J102: 0 | K102: 0
A103: kW | C103: =IF(ISERROR((C99-$B99)/$B99), 0, (C99-$B99)/$B99) -> 0 | D103: 0 | E103: 0 | F103: 0 | G103: 0 | H103: =IF(ISERROR((H99-$B99)/$B99), 0, (H99-$B99)/$B99) -> 0 | I103: 0 | J103: 0 | K103: 0
A106: Totals
A107: Customers / Connections | B107: =SUM(B16,B25,B34,B43,B52,B61,B70,B79,B88,B97) -> 366598 | C107: =SUM(C16,C25,C34,C43,C52,C61,C70,C79,C88,C97) -> 366643 | D107: 371587 | E107: 371634 | F107: 380132 | G107: 384288 | H107: =SUM(H16,H25,H34,H43,H52,H61,H70,H79,H88,H97) -> 388388 | I107: 392459 | J107: 396489 | K107: 400466 | M107: =SUM(M16,M25,M34,M43,M52,M61,M70,M79,M88,M97) -> 18
A108: kWh | B108: =SUM(B17,B26,B35,B44,B53,B62,B71,B80,B89,B98) -> 7670964584 | C108: 7566930508 | D108: 7516047527 | E108: 7641358210 | F108: 7460172000 | G108: 7440624000 | H108: =SUM(H17,H26,H35,H44,H53,H62,H71,H80,H89,H98) -> 7379605000 | I108: 7365924000 | J108: 7363950000 | K108: 7364222000 | M108: =SUM(M17,M26,M35,M44,M53,M62,M71,M80,M89,M98) -> 104093970.5
A109: kW from applicable classes | B109: 10519700 | C109: 10455587 | D109: 10419272 | E109: 10760940.47 | F109: 10206132 | G109: 10163150 | H109: =SUM(H18,H27,H36,H45,H54,H63,H72,H81,H90,H99) -> 10042088 | I109: 9956372 | J109: 9891354 | K109: 9837643 | M109: =SUM(M18,M27,M36,M45,M54,M63,M72,M81,M90,M99) -> 0
A111: Totals - Variance
A112: Customers / Connections | C112: =IF(ISERROR((C107-$B107)/$B107), 0, (C107-$B107)/$B107) -> 0.0001227502605 | D112: 0.01360891221 | E112: 0.01373711804 | F112: 0.03691782279 | G112: 0.0482544913 | H112: =IF(ISERROR((H107-$B107)/$B107), 0, (H107-$B107)/$B107) -> 0.05943840392 | I112: 0.07054321082 | J112: 0.08153617859 | K112: 0.09238457384
A113: kWh | C113: -0.01356205929 | D113: -0.0201952513 | E113: -0.003859537369 | F113: -0.0274792801 | G113: -0.03002759065 | H113: =IF(ISERROR((H108-$B108)/$B108), 0, (H108-$B108)/$B108) -> -0.03798213136 | I113: -0.0397656098 | J113: -0.0400229438 | K113: -0.03998748542
A114: kW from applicable classes | C114: -0.006094565434 | D114: -0.009546660076 | E114: 0.02293225757 | F114: -0.02980769414 | G114: -0.0338935521 | H114: =IF(ISERROR((H109-$B109)/$B109), 0, (H109-$B109)/$B109) -> -0.04540167495 | I114: -0.05354981606 | J114: -0.05973041056 | K114: -0.06483616453
A116: Totals - Variance Year over Year
A117: Customers / Connections | C117: =IF(ISERROR((C107-B107)/B107), 0, (C107-B107)/B107) -> 0.0001227502605 | D117: 0.01348450673 | E117: =IF(ISERROR((E107-D107)/D107), 0, (E107-D107)/D107) -> 0.000126484511 | F117: 0.02286658379 | G117: 0.01093304431 | H117: 0.01066908152 | I117: 0.01048178625 | J117: 0.01026858857 | K117: 0.01003054309
A118: kWh | C118: -0.01356205929 | D118: -0.006724388568 | E118: =IF(ISERROR((E108-D108)/D108), 0, (E108-D108)/D108) -> 0.01667241759 | F118: -0.02371125722 | G118: -0.00262031492 | H118: -0.008200790686 | I118: -0.001853893264 | J118: -0.0002679908183 | K118: 3.693669838e-05
A119: kW from applicable classes | C119: -0.006094565434 | D119: -0.003473262668 | E119: =IF(ISERROR((E109-D109)/D109), 0, (E109-D109)/D109) -> 0.03279197145 | F119: -0.05155761911 | G119: -0.00421138978 | H119: -0.01191185804 | I119: -0.008535675051 | J119: -0.006530290351 | K119: -0.005430095819

Sheet App.2-JA_OM&A_Summary_Analys
K1: File Number: | L1: =EBNUMBER -> EB-2015-0004
K2: Exhibit: | L2: D
K3: Tab: | L3: 1
K4: Schedule: | L4: 2
K5: Page: | L5: 1
G7: ` | K7: Date: | L7: ORIGINAL
A9: Appendix 2-JA
A10: Summary of Recoverable OM&A Expenses
B13: ="Last Rebasing Year (" & RebaseYear & " Board-Approved)" -> Last Rebasing Year (2012 Board-Approved) | C13: ="Last Rebasing Year (" & RebaseYear & " Actuals)" -> Last Rebasing Year (2012 Actuals) | D13: =BridgeYear -2 & " Actuals" -> 2013 Actuals | E13: 2014 Q2 Forecast | F13: =BridgeYear & " Bridge Year" -> 2015 Bridge Year | G13: =TestYear & " Test Year" -> 2016 Test Year | H13: 2017 | I13: 2018 | J13: 2019 | K13: 2020
A14: Reporting Basis | B14: MIFRS | C14: MIFRS | D14: MIFRS | E14: MIFRS | F14: MIFRS | G14: MIFRS | H14: MIFRS | I14: MIFRS | J14: MIFRS | K14: MIFRS
A15: Operations | C15: 14993742.34 | D15: 15607432.59 | E15: 17497244.3 | F15: 18466502.57 | G15: 20490723.66
A16: Maintenance | C16: 9883523.12 | D16: 9611543.69 | E16: 9634371.04 | F16: 11073276 | G16: 10386427
A17: SubTotal | B17: =SUM(B15:B16) -> 0 | C17: =SUM(C15:C16) -> 24877265.46 | D17: 25218976.28 | E17: 27131615.34 | F17: 29539778.57 | G17: 30877150.66
A18: %Change (year over year) | D18: =IF(ISERROR((D17-C17)/C17), "", (D17-C17)/C17) -> 0.01373586741 | E18: =IF(ISERROR((E17-D17)/D17), "", (E17-D17)/D17) -> 0.07584126488 | F18: 0.08875856449 | G18: 0.04527359902
A19: %Change (Test Year vs Last Rebasing Year - Actual) | G19: =IF(ISERROR((G17-C17)/C17), "", (G17-C17)/C17) -> 0.24117945
A20: Billing and Collecting | C20: 9590081.47 | D20: 10135276.12 | E20: 12056732.18 | F20: 12397275.29 | G20: 12555619.47
A21: Community Relations | C21: 5550016.71 | D21: 5351620.7 | E21: 5705131.77 | F21: 5959788.48 | G21: 6162315.4
A22: Administrative and General | C22: =48199068.13-9590081.47-5550016.71 -> 33058969.95 | D22: 35051283.02 | E22: 35873937.47 | F22: 35758966.2 | G22: 37510478.37
A23: SubTotal | B23: =SUM(B20:B22) -> 0 | C23: =SUM(C20:C22) -> 48199068.13 | D23: 50538179.84 | E23: 53635801.42 | F23: 54116029.97 | G23: 56228413.24 | H23: 0 | I23: 0 | J23: 0 | K23: 0
A24: %Change (year over year) | D24: =IF(ISERROR((D23-C23)/C23), "", (D23-C23)/C23) -> 0.04853022684 | E24: =IF(ISERROR((E23-D23)/D23), "", (E23-D23)/D23) -> 0.06129270167 | F24: =IF(ISERROR((F23-E23)/E23), "", (F23-E23)/E23) -> 0.008953507495 | G24: =IF(ISERROR((G23-F23)/F23), "", (G23-F23)/F23) -> 0.0390343355
A25: %Change (Test Year vs Last Rebasing Year - Actual) | G25: =IF(ISERROR((G23-C23)/C23), "", (G23-C23)/C23) -> 0.1665871441
A26: Total | B26: 73090393 | C26: =SUM(C23,C17) -> 73076333.59 | D26: 75757156.12 | E26: 80767416.76 | F26: 83655808.54 | G26: 87105563.9 | H26: =+G26*1.03245 -> 89932139.45 | I26: =+H26*1.03245 -> 92850437.37 | J26: =+I26*1.03245 -> 95863434.07 | K26: =+J26*1.03245 -> 98974202.5
A27: %Change (year over year) | D27: =IF(ISERROR((D26-C26)/C26), "", (D26-C26)/C26) -> 0.03668523581 | E27: =IF(ISERROR((E26-D26)/D26), "", (E26-D26)/D26) -> 0.06613580679 | F27: =IF(ISERROR((F26-E26)/E26), "", (F26-E26)/E26) -> 0.03576184427 | G27: =IF(ISERROR((G26-F26)/F26), "", (G26-F26)/F26) -> 0.04123748751 | H27: 0.03245 | I27: 0.03245 | J27: 0.03245 | K27: 0.03245
B30: =B13 -> Last Rebasing Year (2012 Board-Approved) | C30: =C13 -> Last Rebasing Year (2012 Actuals) | D30: 2013 Actuals | E30: 2014 Q2 Forecast | F30: 2015 Bridge Year | G30: 2016 Test Year | H30: 2017 | I30: 2018 | J30: 2019 | K30: 2020
A31: Operations | B31: =B15 -> 0 | C31: =C15 -> 14993742.34 | D31: 15607432.59 | E31: 17497244.3 | F31: 18466502.57 | G31: 20490723.66 | H31: 0 | I31: 0 | J31: 0 | K31: 0
A32: Maintenance | B32: =B16 -> 0 | C32: =C16 -> 9883523.12 | D32: 9611543.69 | E32: 9634371.04 | F32: 11073276 | G32: 10386427 | H32: 0 | I32: 0 | J32: 0 | K32: 0
A33: Billing and Collecting | B33: =B20 -> 0 | C33: =C20 -> 9590081.47 | D33: 10135276.12 | E33: 12056732.18 | F33: 12397275.29 | G33: 12555619.47 | H33: 0 | I33: 0 | J33: 0 | K33: 0
A34: Community Relations | B34: =B21 -> 0 | C34: =C21 -> 5550016.71 | D34: 5351620.7 | E34: 5705131.77 | F34: 5959788.48 | G34: 6162315.4 | H34: 0 | I34: 0 | J34: 0 | K34: 0
A35: Administrative and General | B35: =B22 -> 0 | C35: =C22 -> 33058969.95 | D35: 35051283.02 | E35: 35873937.47 | F35: 35758966.2 | G35: 37510478.37 | H35: 0 | I35: 0 | J35: 0 | K35: 0
A36: Total | B36: 73090393 | C36: =SUM(C31:C35) -> 73076333.59 | D36: 75757156.12 | E36: 80767416.76 | F36: 83655808.54 | G36: 87105563.9 | H36: =+G36*1.03245 -> 89932139.45 | I36: =+H36*1.03245 -> 92850437.37 | J36: =+I36*1.03245 -> 95863434.07 | K36: =+J36*1.03245 -> 98974202.5
A37: %Change (year over year) | D37: =IF(ISERROR((D36-C36)/C36), "", (D36-C36)/C36) -> 0.03668523581 | E37: =IF(ISERROR((E36-D36)/D36), "", (E36-D36)/D36) -> 0.06613580679 | F37: =IF(ISERROR((F36-E36)/E36), "", (F36-E36)/E36) -> 0.03576184427 | G37: =IF(ISERROR((G36-F36)/F36), "", (G36-F36)/F36) -> 0.04123748751 | H37: 0.03245 | I37: 0.03245 | J37: 0.03245 | K37: 0.03245
B40: =B13 -> Last Rebasing Year (2012 Board-Approved) | C40: =C13 -> Last Rebasing Year (2012 Actuals) | D40: ="Variance " & 'LDC Info'!E28 & " BA – " & 'LDC Info'!E28 & " Actuals" -> Variance 2012 BA – 2012 Actuals | E40: =D13 -> 2013 Actuals | F40: ="Variance " & 'LDC Info'!E26 -2 & " Actuals vs. " & 'LDC Info'!E28 & " Actuals" -> Variance 2013 Actuals vs. 2012 Actuals | G40: =E13 -> 2014 Q2 Forecast | H40: ="Variance " & 'LDC Info'!E26 -1 & " Actuals vs. " & 'LDC Info'!E26-2 & " Actuals" -> Variance 2014 Actuals vs. 2013 Actuals | I40: =F13 -> 2015 Bridge Year | J40: ="Variance " & 'LDC Info'!E26 & " Bridge vs. " & 'LDC Info'!E26 -1 & " Actuals" -> Variance 2015 Bridge vs. 2014 Actuals | K40: =G13 -> 2016 Test Year | L40: ="Variance " & TestYear & " Test vs. " & BridgeYear & " Bridge" -> Variance 2016 Test vs. 2015 Bridge
A41: Operations | B41: =B15 -> 0 | C41: 14993742.34 | E41: =D15 -> 15607432.59 | F41: =E41-C41 -> 613690.25 | G41: =E15 -> 17497244.3 | H41: =G41-E41 -> 1889811.71 | I41: =F15 -> 18466502.57 | J41: =I41-G41 -> 969258.27 | K41: =G15 -> 20490723.66 | L41: =K41-I41 -> 2024221.09
A42: Maintenance | B42: 0 | C42: 9883523.12 | E42: =D16 -> 9611543.69 | F42: =E42-C42 -> -271979.43 | G42: =E16 -> 9634371.04 | H42: =G42-E42 -> 22827.35 | I42: =F16 -> 11073276 | J42: 1438904.96 | K42: =G16 -> 10386427 | L42: -686849
A43: Billing and Collecting | B43: =B20 -> 0 | C43: 9590081.47 | E43: =D20 -> 10135276.12 | F43: 545194.65 | G43: =E20 -> 12056732.18 | H43: 1921456.06 | I43: =F20 -> 12397275.29 | J43: 340543.11 | K43: =G20 -> 12555619.47 | L43: 158344.18
A44: Community Relations | B44: 0 | C44: 5550016.71 | E44: =D21 -> 5351620.7 | F44: -198396.01 | G44: =E21 -> 5705131.77 | H44: 353511.07 | I44: =F21 -> 5959788.48 | J44: 254656.71 | K44: =G21 -> 6162315.4 | L44: 202526.92
A45: Administrative and General | B45: 0 | C45: 33058969.95 | E45: 35051283.02 | F45: 1992313.07 | G45: 35873937.47 | H45: 822654.45 | I45: 35758966.2 | J45: -114971.27 | K45: 37510478.37 | L45: 1751512.17
A46: Total OM&A Expenses | B46: 73090393 | C46: =SUM(C41:C45) -> 73076333.59 | D46: =B46-C46 -> 14059.41 | E46: 75757156.12 | F46: 2680822.53 | G46: 80767416.76 | H46: 5010260.64 | I46: 83655808.54 | J46: 2888391.78 | K46: 87105563.9 | L46: 3449755.36
A47: Adjustments for Total non-recoverable items (from Appendices 2-JA and 2-JB)
A48: Total Recoverable OM&A Expenses | B48: =B46-B47 -> 73090393 | C48: =C46-C47 -> 73076333.59 | D48: 14059.41 | E48: 75757156.12 | F48: 2680822.53 | G48: 80767416.76 | H48: 5010260.64 | I48: 83655808.54 | J48: 2888391.78 | K48: 87105563.9 | L48: 3449755.36
A49: Variance from previous year | E49: =E48-C48 -> 2680822.53 | G49: =G48-E48 -> 5010260.64 | I49: =I48-G48 -> 2888391.78 | K49: =K48-I48 -> 3449755.36
A50: Percent change (year over year) | E50: =IF(ISERROR(E49/C48), "", E49/C48) -> 0.03668523581 | G50: =IF(ISERROR(G49/E48), "", G49/E48) -> 0.06613580679 | I50: =IF(ISERROR(I49/G48), "", I49/G48) -> 0.03576184427 | K50: =IF(ISERROR(K49/I48), "", K49/I48) -> 0.04123748751
A51: Percent Change: Test year vs. Most Current Actual | G51: =IF(ISERROR((K48-G48)/G48), "", (K48-G48)/G48) -> 0.07847406039
A52: Simple average of % variance for all years | G52: =IF(ISERROR((K46-C46)/C46), "", (K46-C46)/C46) -> 0.1919804897 | L52: =IF(ISERROR(AVERAGE(E50,G50,I50,K50)), "", AVERAGE(E50,G50,I50,K50)) -> 0.04495509359
A53: Compound Annual Growth Rate for all years | G53: =IF(ISERROR((K49-C49)/C49), "", (K49-C49)/C49) ->  | L53: =IF((K48-C48)=0, "", (K48/C48)^(1/4)-1) -> 0.04488209386
A54: ="Compound Growth Rate (" & E13 & " vs. " & 'LDC Info'!E28 & " Actuals)" -> Compound Growth Rate (2014 Q2 Forecast vs. 2012 Actuals) | G54: =IF(ISERROR((G48/C48)^(1/(2)) - 1), "", (G48/C48)^(1/(2)) - 1) -> 0.05130740046
A56: Note:
A58: 1 "BA" = Board-Approved
A59: 2 If it has been more than three years since the applicant last filed a cost of service application, additional years of historical actuals should be incorporated into the table, as necessary, to go back to the last cost of service application. If the applicant last filed a cost of service application less than three years ago, a minimum of three years of actual information is required.
A61: 3 Recoverable OM&A that is included on these tables should be identical to the recoverable OM&A that is shown for the corresponding periods on Appendix 2-JB.

Sheet App.2-JB_OM&A_Cost _Drivers
E1: File Number: | F1: =EBNUMBER -> EB-2015-0004
E2: Exhibit: | F2: D
E3: Tab: | F3: 1
E4: Schedule: | F4: 3
E5: Page: | F5: 1
E7: Date: | F7: ORIGINAL
A10: Appendix 2-JB
A11: Recoverable OM&A Cost Driver Table
